Workbook

Sheet Cash-Basis ERs (hidden)
B1: OPEB Reporting for Washington State Cash-Basis Employers in PEBB
B3: Welcome to OSA's OPEB Liability Estimation Tool
C4: Background
C5: At the request of the Washington State Auditors Office (SAO), the Washington Office of the State Actuary (OSA) developed this Tool for purposes of estimating the retiree medical obligations of specific employers. As we understand, the SAO will distribute this Tool annually to approximately ten cash-basis employers who are not eligible to perform the Alternative Measurement Method (AMM) under the Governmental Accounting Standards Board (GASB) Statement No. 75. As such, the results produced by this Tool do NOT comply with GASB 75. Please review the following explanation and directions below before proceeding.
C7: Intended Use
C8: This Tool is intended to assist certain local government employers in Washington State covering employees under the Public Employees' Benefit Board (PEBB) health insurance with their reporting requirements for Other Postemployment Benefits (OPEB) healthcare obligations. Unless otherwise noted herein, this tool estimates your OPEB Liability using the same methods and assumptions as disclosed in our 2020 PEBB OPEB AMM Online Tool available on OSA's website.
C10: Requirements to use this Tool
C11: (1) Eligible employers must prepare their annual financial reporting on a cash-basis and have been provided this Tool directly by qualified staff at SAO. Please do not distribute.
C12: (2) Current employees must be covered under PEBB health insurance.
C13: (3) Employers must have at least 100 total members. This includes all current employees and retirees participating in PEBB health insurance, but not covered spouses.
C15: Steps to calculate your reporting results
C16: (1) Enter all required information into the Data Inputs table below and press the Calculate button. If you need assistance with how to prepare your data, please download the PEBB OPEB AMM Online Tool from our website (see link below) and review the "Steps to Calculate your Reporting Results" section on the Intro and Data Inputs tab.
C17: http://leg.wa.gov/osa/additionalservices/Pages/OPEB.aspx
C18: (2) In addition to printing these two pages, please print the Additional Disclosures tab within this Tool for further description of the assumptions and methods used in estimating the OPEB Liability. (Note that you can ignore the disclosures related to GASB 75 on the latter tab.)
C20: Data Inputs | H20: Note before distributing to SAO: Relink "Intro and Data Inputs" tab to this data inputs tab for cash-basis ER final version
C21: Current Employees (Actives)
C22: Age Divisions | D22: 20-35 | E22: 36-46 | F22: 47-56 | G22: 57+
C23: Number Active | D23: 0 | E23: 0 | F23: 0 | G23: 0
C24: Average Active Age | D24: 30 | E24: 40 | F24: 50 | G24: 60
C25: Retirees
C26: Age Divisions | D26: 20-64 | E26: 65-70 | F26: 71-77 | G26: 78+
C27: Number Inactive | D27: 0 | E27: 0 | F27: 0 | G27: 0
C28: Average Inactive Age | D28: 62 | E28: 68 | F28: 74 | G28: 82
C30: Excise Tax
C31: This Tool no longer provides the option to calculate results with the excise tax (consistent with GASB reporting requirements). Please see the Actuarial Certification below for further details.
C33: Reporting Results
C35: Total OPEB Liability (TOL) Estimate
C36: ="As of June 30, "&ToolYear -> As of June 30, 2020 | D36: ='GASB Results'!E15 -> 0
C38: The OPEB Liability estimate is only intended to provide a high-level sense for today's value of all future retiree medical obligations that have been earned as of the measurement date (as required by the SAO for financial reporting purposes; other uses are not appropriate). Further, these results are calculated using assumptions and methods we selected for the entire PEBB population; and as such, your results from this Tool may vary significantly from a full actuarial valuation performed by a consulting actuary on your covered population. That said, we believe this estimate is reasonable given the intended use. If you feel any of the simplifying assumptions or methods we selected may not be appropriate based upon your circumstances, please contact OSA via email for guidance:
C39: State.Actuary@leg.wa.gov
I40: Page 1 of 2
B42: OPEB Reporting for Washington State Cash-Basis Employers in PEBB (Cont'd)
C44: Assumptions and Methods | G44: What's New in this FY20 Tool?
C46: Methodology | G46: And how do these changes impact my resulting OPEB liabilities? ↑or↓
C47: Actuarial Valuation Date | E47: ='GASB Results'!E36:F36 -> 6/30/2020
C48: Actuarial Measurement Date | E48: ='GASB Results'!E37:F37 -> 6/30/2020 | G48: - New discount rate as of June 30th, 2020. ↑
C49: Actuarial Cost Method | E49: ='GASB Results'!E38:F38 -> Entry Age
C50: Amortization Method | E50: ='GASB Results'!E39:F39 -> Recognized Immediately | G50: - Removal of Excise Tax via H.R. 1865 (if appliable). ↓
C51: Asset Valuation Method | E51: ='GASB Results'!E40:F40 -> N/A (No Assets)
C52: Assumptions | G52: - Rolled-forward expected costs and premiums to align with new measurement date. ↑
C53: Discount Rate1
C54: Beginning of Measurement Year | E54: ='GASB Results'!E43:F43 -> 0.035
C55: End of Measurement Year | E55: ='GASB Results'!E44:F44 -> 0.0221
C56: Projected Salary Changes | E56: ='GASB Results'!E45:F45 -> 3.5% + Service-Based Increases
C57: Healthcare Trend Rates2 | E57: ='GASB Results'!E46:F46 -> Initial rate is about 7%, trends down to around 5% in 2020.
C58: Mortality Rates
C59: Base Mortality Table | E59: ='GASB Results'!E48:F48 -> Healthy RP-2000
C60: Age Setback | E60: ='GASB Results'!E49:F49 -> 1 year
C61: Mortality Improvements | E61: ='GASB Results'!E50:F50 -> 100% Scale BB
C62: Projection Period | E62: ='GASB Results'!E51:F51 -> Generational
C63: Inflation Rate | E63: ='GASB Results'!E52:F52 -> 0.0275
C64: Post-Retirement Participation % | E64: ='GASB Results'!E53:F53 -> 0.65
C65: Percentage with Spouse Coverage | E65: ='GASB Results'!E54:F54 -> 0.45
C66: 1Source: Bond Buyer General Obligation 20-Bond Municipal Index.
C67: 2Trend rate assumptions vary slightly by medical plan. For additional detail on the healthcare trend rates, please see OSA's 2018 PEBB OPEB Actuarial Valuation Report.
C69: Actuarial Certification
C71: This OPEB Liability Estimation Tool relies on inputs from users with respect to eligible counts and average ages. We have made efforts to screen for unreasonable user inputs; for example, reasonable inputs would include positive integers and appropriate figures for each of the four Current Employee and Retiree cohorts. However given the nature of this Tool, the ultimate responsibility of the accuracy of the inputs, and in effect the results, falls on the user of the Tool. In other words, OSA cannot take responsibility for the results if user inputs are not reasonable and accurate.
C73: Recent federal legislation H.R. 1865, also referred to as the Further Consolidations Appropriations Act of 2020, repealed the excise or "cadillac" tax from the Patient Protection and Affordable Care Act. We reflect the change in this update of the Tool because the repeal occurred before the measurement date of June 30, 2020. We estimate the exclusion of the excise tax will on average reduce OPEB liabilities by roughly 2 to 3 percent.
C75: I believe that the assumptions and methods used in this Tool are reasonable and appropriate for the primary purpose stated above. The use of another set of assumptions and methods, however, could also be reasonable and could produce materially different results.
C77: In my opinion, all methods, assumptions, and calculations are appropriate and in conformity with the Actuarial Standards of Practice (ASOPs) as of the date of this publication. The undersigned, with actuarial credentials, meets the Qualification Standards of the American Academy of Actuaries to render the actuarial opinions contained herein. While this communication and associated disclosures in the Tool are intended to be complete, I am available to offer extra advice and explanations as needed.
C79: Michael T. Harbour, ASA, MAAA Actuary
C81: OSA distributed this tool to SAO in November, 2020.
I82: Page 2 of 2

Sheet Intro and Data Inputs
B1: GASB 75 Alternative Measurement Method for PEBB
B3: Welcome to the Office of the State Actuary's (OSA) AMM Online Tool
C4: Intended Use
C5: This Alternative Measurement Method (AMM) Online Tool is intended to assist employers covering employees under Public Employees' Benefit Board (PEBB) health insurance with their reporting requirements for Other Postemployment Benefits (OPEB) healthcare obligations under Governmental Accounting Standards Board (GASB) Statement No. 75. Please review the following explanation and directions below, along with the Additional Disclosures and Certification Letter before proceeding.
C7: Requirements to use this Tool
C8: (1) Employers must be non-state entities. State employers and employers outside the State of Washington are not eligible to use this Tool.
C9: (2) Current employees must be covered under PEBB health insurance.
C10: (3) Employers must have less than 100 total members. This includes all current employees and retirees participating in PEBB health insurance, but not covered spouses.
C12: Steps to Calculate your Reporting Results
C13: (1) Enable Macros. For Excel versions 2010 or greater, there should be a tan strip across the top of the screen when you open Excel - please allow macros to run.
C14: (2) Gather member information on the age and payroll of covered current employees. The WA Health Care Authority can assist with providing member information on participating retirees. Please see the Additional Disclosures for further guidance.
C15: (3) Group your member information by status and age divisions according to the Data Inputs table below. Important note, do not include covered spouses in the retiree count and member statistics.
C16: (4) Calculate average age for each age division of current employees and retirees.
C17: (5) Copy your data into the Data Inputs table below. There has been an effort by OSA to screen unreasonable inputs into the Tool. However, the ultimate responsibility of the accuracy of the inputs, and in effect the results, falls on the user of the Tool.
C18: (6) Enter your ending Total OPEB Liability from the prior year reporting (if available). This will serve as the beginning Total OPEB Liability for this year. The Tool will estimate a beginning OPEB liability if you did not report OPEB liabilities last year.
C19: (7) Press the Calculate button. Please print the entire workbook for your records (5 pages).
C21: Data Inputs
C22: Current Employees (Actives)
C23: Age Divisions | D23: 20-35 | E23: 36-46 | F23: 47-56 | G23: 57+
C24: Number Active | D24: 0 | E24: 0 | F24: 0 | G24: 0
C25: Average Active Age | D25: 30 | E25: 40 | F25: 50 | G25: 60
C26: Annual Covered Employee Payroll = | E26: 0
C27: Retirees
C28: Age Divisions | D28: 20-64 | E28: 65-70 | F28: 71-77 | G28: 78+
C29: Number Inactive | D29: 0 | E29: 0 | F29: 0 | G29: 0
C30: Average Inactive Age | D30: 62 | E30: 68 | F30: 74 | G30: 82
C31: Beginning Total OPEB Liability* = | E31: 0
C32: *Enter $0 if you did not report OPEB liabilities last year; the Tool will estimate a beginning Total OPEB Liability for you.
C34: Excise Tax
C35: Recent federal legislation H.R. 1865, also referred to as the Further Consolidations Appropriations Act of 2020, repealed the excise or "cadillac" tax from the Patient Protection and Affordable Care Act. As a result, this Tool no longer provides the option to calculate results with the excise tax (consistent with GASB reporting requirements). We reflect the change in this update of the Tool because the repeal occurred before the measurement date of June 30, 2020. We estimate the exclusion of the excise tax will on average reduce OPEB liabilities by roughly 2 to 3 percent. The impact of removing excise tax will be included in the “Changes in Experience Data and Assumptions” line item of GASB reporting results table if included in your Beginning Total OPEB Liability.
I40: Page 1 of 5

Sheet GASB Results
B1: PEBB - GASB 75 Reporting Results and Required Disclosures
C3: Schedule of Changes in Total OPEB Liability and Related Ratios
C4: ="Measurement Date of June 30, " & ToolYear -> Measurement Date of June 30, 2020
C5: Total OPEB Liability (TOL) | F5: What's New in this FY20 Tool?
C6: Service Cost | E6: =IF('Intro and Data Inputs'!E31>0, ROUND(Log!L5*('Intro and Data Inputs'!E31/Log!L6), 0), ROUND(Log!L5,0)) -> 0 | F6: And how do these changes impact my resulting OPEB liabilities? ↑or↓
C7: Interest Cost | E7: =ROUND(((E6+E14)*Lookups!S1+E10*((1+Lookups!S1)^0.5-1)),0) -> 0
C8: Changes in Experience Data and Assumptions | E8: =E12-E6-E7-E10 -> 0 | F8: - New discount rate as of June 30th, 2020. ↑
C9: Changes in Benefit Terms | E9: 0
C10: Benefit Payments | E10: =IF('Intro and Data Inputs'!E31>0, -ROUND(Log!L7/VLOOKUP(ToolYear, Trends!$A$3:$P$94,16,FALSE) * 'Intro and Data Inputs'!E31/Log!L6, 0), -ROUND(Log!L7/VLOOKUP(ToolYear, Trends!$A$3:$P$94,16,FALSE),0)) -> 0 | F10: - Removal of Excise Tax via H.R. 1865 (if appliable). ↓
C11: Other | E11: 0
C12: Net Change in Total OPEB Liability | E12: =E15-E14 -> 0 | F12: - Rolled-forward expected costs and premiums to align with new measurement date. ↑
C14: Total OPEB Liability - Beginning | E14: =IF('Intro and Data Inputs'!E31>0, 'Intro and Data Inputs'!E31, ROUND((Log!L6-E6-E10)/(1+Lookups!S1),0)) -> 0
C15: Total OPEB Liability - Ending | E15: =ROUND(Log!L11,0) -> 0
C17: Covered Employee Payroll | E17: ='Intro and Data Inputs'!E26 -> 0
C18: TOL as a Percentage of Covered Payroll | E18: =IFERROR(E15/E17, 0) -> 0
C20: ="OPEB Expense for Fiscal Year Ending June 30, " & ToolYear -> OPEB Expense for Fiscal Year Ending June 30, 2020
D21: Service Cost | E21: ='GASB Results'!E6 -> 0
D22: Interest Cost | E22: ='GASB Results'!E7 -> 0
D23: Changes in Experience Data and Assumptions | E23: ='GASB Results'!E8 -> 0
D24: Changes in Benefit Terms | E24: =E9 -> 0
D25: Other Changes in Fiduciary Net Position | E25: 0
D26: Total OPEB Expense | E26: =SUM(E21:E25) -> 0
D28: Transactions Subsequent to Measurement Date | E28: N/A* | F28: *See Additional Disclosures tab for more details and guidance.
C30: Sensitivity Analysis
C31: Total OPEB Liability | E31: 1% Decrease | F31: Current | G31: 1% Increase
C32: Discount Rate | E32: =ROUND(Log!L26,0) -> 0 | F32: ='GASB Results'!E15 -> 0 | G32: =ROUND(Log!L31,0) -> 0
C33: Healthcare Trend | E33: =ROUND(Log!L16,0) -> 0 | F33: ='GASB Results'!E15 -> 0 | G33: =ROUND(Log!L21,0) -> 0
C35: Methodology
C36: Actuarial Valuation Date | E36: ="6/30/"&Lookups!S32 -> 6/30/2020
C37: Actuarial Measurement Date | E37: =E36 -> 6/30/2020
C38: Actuarial Cost Method | E38: Entry Age
C39: Amortization Method | E39: Recognized Immediately
C40: Asset Valuation Method | E40: N/A (No Assets)
C41: Assumptions
C42: Discount Rate1
C43: Beginning of Measurement Year | E43: =Lookups!S1 -> 0.035
C44: End of Measurement Year | E44: =Lookups!S2 -> 0.0221
C45: Projected Salary Changes | E45: =GSG*100&"% + Service-Based Increases" -> 3.5% + Service-Based Increases
C46: Healthcare Trend Rates2 | E46: Initial rate is about 7%, trends down to around 5% in 2020.
C47: Mortality Rates
C48: Base Mortality Table | E48: Healthy RP-2000
C49: Age Setback | E49: 1 year
C50: Mortality Improvements | E50: 100% Scale BB
C51: Projection Period | E51: Generational
C52: Inflation Rate | E52: 0.0275
C53: Post-Retirement Participation Percentage | E53: =Lookups!S8 -> 0.65
C54: Percentage with Spouse Coverage | E54: =Lookups!S26 -> 0.45
C55: 1Source: Bond Buyer General Obligation 20-Bond Municipal Index.
C56: 2Trend rate assumptions vary slightly by medical plan. For additional detail on the healthcare trend rates, please see OSA's 2018 PEBB OPEB Actuarial Valuation Report.
H57: Page 2 of 5

Sheet Active (hidden)
A1: Actives | B1: 0 | D1: Insured | G1: UMP | J1: Pre-Med (Implicit) | K1: Insured | L1: Pst-Med (Explicit) | M1: Insured | N1: Insured Med | O1: Insured | P1: Pre-Med (Implicit) | Q1: UMP | R1: Pst-Med (Explicit) | S1: UMP | T1: UMP Med | U1: UMP | X1: Insured | AB1: UMP | AE1: Average | AI1: 0.5 | AZ1: Survive pst Decrement | BF1: Retires at age XX, implicit subsidy | BQ1: Retires at age XX, explicit subsidy | CH1: =MAX(B2-35,1) -> 25
A2: Year | B2: 60 | D2: Costs | E2: Prem | G2: Costs | H2: Prem | J2: Trend | K2: Rel Trend | L2: Trend | M2: Rel Trend | N2: Premium | O2: Med Accum | P2: Trend | Q2: Rel Trend | R2: Trend | S2: Rel Trend | T2: Premium | U2: Med Accum | W2: Costs | X2: Prem | Y2: Net | AA2: Costs | AB2: Prem | AC2: Net | AE2: Net | AG2: Retire - M | AH2: Retire - F | AI2: Retire | AJ2: Term - M | AK2: Term - F | AL2: Term | AM2: Dis - M | AN2: Dis - F | AO2: Disab | AP2: Mort - M | AQ2: Mort - F | AR2: Death | AS2: Decrement | AT2: Survive | AU2: Interest | AW2: Mort - M | AX2: Mort - F | AY2: Mortality | BA2: Interest | BB2: Pay Timing | BD2: Age | BE2: Net | BF2: Imp 55 | BG2: Imp 56 | BH2: Imp 57 | BI2: Imp 58 | BJ2: Imp 59 | BK2: Imp 60 | BL2: Imp 61 | BM2: Imp 62 | BN2: Imp 63 | BO2: Imp 64 | BQ2: Exp 55 | BR2: Exp 56 | BS2: Exp 57 | BT2: Exp 58 | BU2: Exp 59 | BV2: Exp 60 | BW2: Exp 61 | BX2: Exp 62 | BY2: Exp 63 | BZ2: Exp 64 | CA2: Exp 65 | CB2: Exp 66 | CC2: Exp 67 | CD2: Exp 68 | CE2: Exp 69 | CF2: Exp 70 | CH2: Estimated MS
A3: =ToolYear - MS -> 1995 | B3: =B2-MS -> 35 | D3: =VLOOKUP(B3,Lookups!A:B,2) -> 11361.29145 | E3: =VLOOKUP(B3,Lookups!A:C,3) -> 9083.932034 | G3: =VLOOKUP(B3,Lookups!A:D,4) -> 8383.145227 | H3: =VLOOKUP(B3,Lookups!A:E,5) -> 9220.12622 | J3: =VLOOKUP(A3,Trends!$A$3:$Q$94,IF(ExFlg=0,2,10))+IF(B3>=$B$2,Sens,0) -> 1.045 | K3: =IF(B3=$B$2,1,IF(B3<$B$2,K4/J3,K2*J2)) -> 0.3264715743 | L3: =VLOOKUP(A3,Trends!$A$3:$Q$94,IF(ExFlg=0,4,12))+IF(B3>=$B$2,Sens,0) -> 1.047 | M3: =IF(B3=$B$2,1,IF(B3<$B$2,M4/L3,M2*L2)) -> 0.3083726664 | N3: =VLOOKUP(A3,Trends!$A$3:$Z$94,IF(ExFlg=0,19,23))+IF(B3>=$B$2,Sens,0) -> 1.047 | O3: =IF(B3=$B$2,1,IF(B3<$B$2,O4/N3,O2*N2)) -> 0.2884759061 | P3: =VLOOKUP(A3,Trends!$A$3:$Q$94,IF(ExFlg=0,6,14))+IF(B3>=$B$2,Sens,0) -> 1.045 | Q3: =IF(B3=$B$2,1,IF(B3<$B$2,Q4/P3,Q2*P2)) -> 0.3173776586 | R3: =VLOOKUP(A3,Trends!$A$3:$Q$94,IF(ExFlg=0,8,16))+IF(B3>=$B$2,Sens,0) -> 1.046 | S3: =IF(B3=$B$2,1,IF(B3<$B$2,S4/R3,S2*R2)) -> 0.3191921289 | T3: =VLOOKUP(A3,Trends!$A$3:$Z$94,IF(ExFlg=0,21,25))+IF(B3>=$B$2,Sens,0) -> 1.046 | U3: =IF(B3=$B$2,1,IF(B3<$B$2,U4/T3,U2*T2)) -> 0.3096461514 | W3: =IF(B3<65,D3*K3,D3*M3) -> 3709.138705 | X3: =IF(B3<65,E3*K3,E3*O3) -> 2965.645592 | Y3: =W3-X3 -> 743.4931126 | AA3: =IF(B3<65,G3*Q3,G3*S3) -> 2660.623004 | AB3: =IF(B3<65,H3*Q3,H3*U3) -> 2926.262072 | AC3: =AA3-AB3 -> -265.6390676 | AE3: =(1-PctUMP)*Y3+PctUMP*AC3 -> 70.73496203 | AG3: =IF(B3<71,VLOOKUP(B3,Lookups!A:F,6),"") -> 0 | AH3: =IF(B3<71,VLOOKUP(Active!B3,Lookups!A:G,7),"") -> 0 | AI3: =IF(B3<71,PCTMALE*AG3+(1-PCTMALE)*AH3,"") -> 0 | AJ3: =IF(B3<55,VLOOKUP(B3-$B$3,Lookups!$O$3:$Q$53,2),"") -> 0.262397 | AK3: =IF(B3<55,VLOOKUP(B3-$B$3,Lookups!$O$3:$Q$53,3),"") -> 0.262397 | AL3: =IF(B3<55,PCTMALE*AJ3+(1-PCTMALE)*AK3,"") -> 0.262397 | AM3: =IF(B3<55,VLOOKUP(B3,Lookups!A:M,12),"") -> 0.000156 | AN3: =IF(B3<55,VLOOKUP(B3,Lookups!A:M,13),"") -> 0.000194 | AO3: =IF(B3<55,PCTMALE*AM3+(1-PCTMALE)*AN3,"") -> 0.000175 | AP3: =IF(B3<70,VLOOKUP(B3,Lookups!A:H,8)*(1-VLOOKUP(B3,Lookups!$U$3:$W$103,2))^(B3-$B$2),"") -> 0.000712578975 | AQ3: =IF(B3<70,VLOOKUP(B3,Lookups!A:I,9)*(1-VLOOKUP(B3,Lookups!$U$3:$W$103,3))^(B3-$B$2),"") -> 0.0004414775003 | AR3: =IF(AP3<>"",PCTMALE*AP3+(1-PCTMALE)*AQ3,"") -> 0.0005770282377 | AS3: =IF(B3<71,SUM(AI3,AL3,AO3,AR3),"") -> 0.2631490282 | AT3: =IF(B3<71,IF(B3=$B$2,1, IF(B3<$B$2, AT4/(1-AS3), AT2*(1-AS2))),"") -> 4.494446711 | AU3: =IF(B3<71,IF(B3=$B$2,1,IF(B3<$B$2,AU4*(1+IntRt),AU2/(1+IntRt))),"") -> 2.363244984 | AW3: =IF(BD3>=$B$3,VLOOKUP(BD3,Lookups!A:H,8)*(1-VLOOKUP(BD3,Lookups!U:W,2))^(BD3-$B$3),"") ->  | AX3: =IF(BD3>=$B$3,VLOOKUP(BD3,Lookups!A:I,9)*(1-VLOOKUP(BD3,Lookups!U:W,3))^(BD3-$B$3),"") ->  | AY3: =IFERROR(PCTMALE*AW3+(1-PCTMALE)*AX3,"") -> 
A4: =1+A3 -> 1996 | B4: 36 | D4: =VLOOKUP(B4,Lookups!A:B,2) -> 12242.16162 | E4: =VLOOKUP(B4,Lookups!A:C,3) -> 9083.932034 | G4: =VLOOKUP(B4,Lookups!A:D,4) -> 9033.111992 | H4: =VLOOKUP(B4,Lookups!A:E,5) -> 9220.12622 | J4: =VLOOKUP(A4,Trends!$A$3:$Q$94,IF(ExFlg=0,2,10))+IF(B4>=$B$2,Sens,0) -> 1.045 | K4: 0.3411627952 | L4: =VLOOKUP(A4,Trends!$A$3:$Q$94,IF(ExFlg=0,4,12))+IF(B4>=$B$2,Sens,0) -> 1.047 | M4: =IF(B4=$B$2,1,IF(B4<$B$2,M5/L4,M3*L3)) -> 0.3228661817 | N4: =VLOOKUP(A4,Trends!$A$3:$Z$94,IF(ExFlg=0,19,23))+IF(B4>=$B$2,Sens,0) -> 1.047 | O4: =IF(B4=$B$2,1,IF(B4<$B$2,O5/N4,O3*N3)) -> 0.3020342737 | P4: =VLOOKUP(A4,Trends!$A$3:$Q$94,IF(ExFlg=0,6,14))+IF(B4>=$B$2,Sens,0) -> 1.045 | Q4: 0.3316596532 | R4: =VLOOKUP(A4,Trends!$A$3:$Q$94,IF(ExFlg=0,8,16))+IF(B4>=$B$2,Sens,0) -> 1.046 | S4: 0.3338749669 | T4: =VLOOKUP(A4,Trends!$A$3:$Z$94,IF(ExFlg=0,21,25))+IF(B4>=$B$2,Sens,0) -> 1.046 | U4: =IF(B4=$B$2,1,IF(B4<$B$2,U5/T4,U3*T3)) -> 0.3238898744 | W4: =IF(B4<65,D4*K4,D4*M4) -> 4176.570079 | X4: =IF(B4<65,E4*K4,E4*O4) -> 3099.099644 | Y4: 1077.470435 | AA4: =IF(B4<65,G4*Q4,G4*S4) -> 2995.918791 | AB4: =IF(B4<65,H4*Q4,H4*U4) -> 3057.943865 | AC4: =AA4-AB4 -> -62.02507384 | AE4: =(1-PctUMP)*Y4+PctUMP*AC4 -> 317.8029641 | AG4: =IF(B4<71,VLOOKUP(B4,Lookups!A:F,6),"") -> 0 | AH4: =IF(B4<71,VLOOKUP(Active!B4,Lookups!A:G,7),"") -> 0 | AI4: 0 | AJ4: =IF(B4<55,VLOOKUP(B4-$B$3,Lookups!$O$3:$Q$53,2),"") -> 0.154534 | AK4: =IF(B4<55,VLOOKUP(B4-$B$3,Lookups!$O$3:$Q$53,3),"") -> 0.167747 | AL4: 0.1611405 | AM4: =IF(B4<55,VLOOKUP(B4,Lookups!A:M,12),"") -> 0.000164 | AN4: =IF(B4<55,VLOOKUP(B4,Lookups!A:M,13),"") -> 0.000228 | AO4: 0.000196 | AP4: =IF(B4<70,VLOOKUP(B4,Lookups!A:H,8)*(1-VLOOKUP(B4,Lookups!$U$3:$W$103,2))^(B4-$B$2),"") -> 0.0007820195282 | AQ4: =IF(B4<70,VLOOKUP(B4,Lookups!A:I,9)*(1-VLOOKUP(B4,Lookups!$U$3:$W$103,3))^(B4-$B$2),"") -> 0.00048074971 | AR4: 0.0006313846191 | AS4: =IF(B4<71,SUM(AI4,AL4,AO4,AR4),"") -> 0.1619678846 | AT4: =IF(B4<71,IF(B4=$B$2,1, IF(B4<$B$2, AT5/(1-AS4), AT3*(1-AS3))),"") -> 3.311737426 | AU4: 2.283328487 | AW4: =IF(BD4>=$B$3,VLOOKUP(BD4,Lookups!A:H,8)*(1-VLOOKUP(BD4,Lookups!U:W,2))^(BD4-$B$3),"") ->  | AX4: =IF(BD4>=$B$3,VLOOKUP(BD4,Lookups!A:I,9)*(1-VLOOKUP(BD4,Lookups!U:W,3))^(BD4-$B$3),"") -> 
A5: 1997 | B5: 37 | D5: =VLOOKUP(B5,Lookups!A:B,2) -> 12228.36052 | E5: =VLOOKUP(B5,Lookups!A:C,3) -> 9083.932034 | G5: =VLOOKUP(B5,Lookups!A:D,4) -> 9022.928597 | H5: =VLOOKUP(B5,Lookups!A:E,5) -> 9220.12622 | J5: =VLOOKUP(A5,Trends!$A$3:$Q$94,IF(ExFlg=0,2,10))+IF(B5>=$B$2,Sens,0) -> 1.045 | K5: 0.356515121 | L5: =VLOOKUP(A5,Trends!$A$3:$Q$94,IF(ExFlg=0,4,12))+IF(B5>=$B$2,Sens,0) -> 1.047 | M5: 0.3380408923 | N5: =VLOOKUP(A5,Trends!$A$3:$Z$94,IF(ExFlg=0,19,23))+IF(B5>=$B$2,Sens,0) -> 1.047 | O5: 0.3162298845 | P5: =VLOOKUP(A5,Trends!$A$3:$Q$94,IF(ExFlg=0,6,14))+IF(B5>=$B$2,Sens,0) -> 1.045 | Q5: 0.3465843376 | R5: =VLOOKUP(A5,Trends!$A$3:$Q$94,IF(ExFlg=0,8,16))+IF(B5>=$B$2,Sens,0) -> 1.046 | S5: 0.3492332154 | T5: =VLOOKUP(A5,Trends!$A$3:$Z$94,IF(ExFlg=0,21,25))+IF(B5>=$B$2,Sens,0) -> 1.046 | U5: 0.3387888086 | W5: =IF(B5<65,D5*K5,D5*M5) -> 4359.59543 | X5: 3238.559128 | Y5: 1121.036302 | AA5: 3127.205731 | AB5: 3195.551339 | AC5: =AA5-AB5 -> -68.34560734 | AE5: =(1-PctUMP)*Y5+PctUMP*AC5 -> 328.1110645 | AG5: =IF(B5<71,VLOOKUP(B5,Lookups!A:F,6),"") -> 0 | AH5: =IF(B5<71,VLOOKUP(Active!B5,Lookups!A:G,7),"") -> 0 | AI5: 0 | AJ5: =IF(B5<55,VLOOKUP(B5-$B$3,Lookups!$O$3:$Q$53,2),"") -> 0.100683 | AK5: =IF(B5<55,VLOOKUP(B5-$B$3,Lookups!$O$3:$Q$53,3),"") -> 0.117007 | AL5: 0.108845 | AM5: =IF(B5<55,VLOOKUP(B5,Lookups!A:M,12),"") -> 0.000171 | AN5: =IF(B5<55,VLOOKUP(B5,Lookups!A:M,13),"") -> 0.000262 | AO5: 0.0002165 | AP5: =IF(B5<70,VLOOKUP(B5,Lookups!A:H,8)*(1-VLOOKUP(B5,Lookups!$U$3:$W$103,2))^(B5-$B$2),"") -> 0.0008489067696 | AQ5: =IF(B5<70,VLOOKUP(B5,Lookups!A:I,9)*(1-VLOOKUP(B5,Lookups!$U$3:$W$103,3))^(B5-$B$2),"") -> 0.0005187171854 | AR5: 0.0006838119775 | AS5: 0.109745312 | AT5: 2.775342321 | AU5: 2.20611448 | AW5: =IF(BD5>=$B$3,VLOOKUP(BD5,Lookups!A:H,8)*(1-VLOOKUP(BD5,Lookups!U:W,2))^(BD5-$B$3),"") ->  | AX5: =IF(BD5>=$B$3,VLOOKUP(BD5,Lookups!A:I,9)*(1-VLOOKUP(BD5,Lookups!U:W,3))^(BD5-$B$3),"") -> 
A6: 1998 | B6: 38 | D6: =VLOOKUP(B6,Lookups!A:B,2) -> 12215.89642 | E6: =VLOOKUP(B6,Lookups!A:C,3) -> 9083.932034 | G6: =VLOOKUP(B6,Lookups!A:D,4) -> 9013.731736 | H6: =VLOOKUP(B6,Lookups!A:E,5) -> 9220.12622 | J6: =VLOOKUP(A6,Trends!$A$3:$Q$94,IF(ExFlg=0,2,10))+IF(B6>=$B$2,Sens,0) -> 1.045 | K6: 0.3725583014 | L6: =VLOOKUP(A6,Trends!$A$3:$Q$94,IF(ExFlg=0,4,12))+IF(B6>=$B$2,Sens,0) -> 1.047 | M6: 0.3539288142 | N6: =VLOOKUP(A6,Trends!$A$3:$Z$94,IF(ExFlg=0,19,23))+IF(B6>=$B$2,Sens,0) -> 1.047 | O6: 0.3310926891 | P6: =VLOOKUP(A6,Trends!$A$3:$Q$94,IF(ExFlg=0,6,14))+IF(B6>=$B$2,Sens,0) -> 1.045 | Q6: 0.3621806328 | R6: =VLOOKUP(A6,Trends!$A$3:$Q$94,IF(ExFlg=0,8,16))+IF(B6>=$B$2,Sens,0) -> 1.046 | S6: 0.3652979433 | T6: =VLOOKUP(A6,Trends!$A$3:$Z$94,IF(ExFlg=0,21,25))+IF(B6>=$B$2,Sens,0) -> 1.046 | U6: 0.3543730938 | W6: =IF(B6<65,D6*K6,D6*M6) -> 4551.13362 | X6: 3384.294289 | Y6: 1166.839331 | AA6: 3264.599064 | AB6: 3339.351149 | AC6: -74.75208474 | AE6: 339.107582 | AG6: =IF(B6<71,VLOOKUP(B6,Lookups!A:F,6),"") -> 0 | AH6: =IF(B6<71,VLOOKUP(Active!B6,Lookups!A:G,7),"") -> 0 | AI6: 0 | AJ6: =IF(B6<55,VLOOKUP(B6-$B$3,Lookups!$O$3:$Q$53,2),"") -> 0.075236 | AK6: =IF(B6<55,VLOOKUP(B6-$B$3,Lookups!$O$3:$Q$53,3),"") -> 0.092904 | AL6: 0.08407 | AM6: =IF(B6<55,VLOOKUP(B6,Lookups!A:M,12),"") -> 0.000192 | AN6: =IF(B6<55,VLOOKUP(B6,Lookups!A:M,13),"") -> 0.000266 | AO6: 0.000229 | AP6: =IF(B6<70,VLOOKUP(B6,Lookups!A:H,8)*(1-VLOOKUP(B6,Lookups!$U$3:$W$103,2))^(B6-$B$2),"") -> 0.0009090140554 | AQ6: =IF(B6<70,VLOOKUP(B6,Lookups!A:I,9)*(1-VLOOKUP(B6,Lookups!$U$3:$W$103,3))^(B6-$B$2),"") -> 0.0005575144615 | AR6: 0.0007332642585 | AS6: 0.08503226426 | AT6: 2.470761512 | AU6: 2.131511575 | AW6: =IF(BD6>=$B$3,VLOOKUP(BD6,Lookups!A:H,8)*(1-VLOOKUP(BD6,Lookups!U:W,2))^(BD6-$B$3),"") ->  | AX6: =IF(BD6>=$B$3,VLOOKUP(BD6,Lookups!A:I,9)*(1-VLOOKUP(BD6,Lookups!U:W,3))^(BD6-$B$3),"") ->  | CK6: Current Employees - Default Ages
A7: 1999 | B7: 39 | D7: =VLOOKUP(B7,Lookups!A:B,2) -> 12204.76187 | E7: =VLOOKUP(B7,Lookups!A:C,3) -> 9083.932034 | G7: =VLOOKUP(B7,Lookups!A:D,4) -> 9005.515908 | H7: =VLOOKUP(B7,Lookups!A:E,5) -> 9220.12622 | J7: =VLOOKUP(A7,Trends!$A$3:$Q$94,IF(ExFlg=0,2,10))+IF(B7>=$B$2,Sens,0) -> 1.045 | K7: 0.389323425 | L7: =VLOOKUP(A7,Trends!$A$3:$Q$94,IF(ExFlg=0,4,12))+IF(B7>=$B$2,Sens,0) -> 1.047 | M7: 0.3705634685 | N7: =VLOOKUP(A7,Trends!$A$3:$Z$94,IF(ExFlg=0,19,23))+IF(B7>=$B$2,Sens,0) -> 1.047 | O7: 0.3466540455 | P7: =VLOOKUP(A7,Trends!$A$3:$Q$94,IF(ExFlg=0,6,14))+IF(B7>=$B$2,Sens,0) -> 1.045 | Q7: 0.3784787613 | R7: =VLOOKUP(A7,Trends!$A$3:$Q$94,IF(ExFlg=0,8,16))+IF(B7>=$B$2,Sens,0) -> 1.046 | S7: 0.3821016486 | T7: =VLOOKUP(A7,Trends!$A$3:$Z$94,IF(ExFlg=0,21,25))+IF(B7>=$B$2,Sens,0) -> 1.046 | U7: 0.3706742561 | W7: 4751.599691 | X7: 3536.587532 | Y7: =W7-X7 -> 1215.01216 | AA7: 3408.396506 | AB7: 3489.621951 | AC7: -81.22544485 | AE7: 350.8494359 | AG7: =IF(B7<71,VLOOKUP(B7,Lookups!A:F,6),"") -> 0 | AH7: =IF(B7<71,VLOOKUP(Active!B7,Lookups!A:G,7),"") -> 0 | AI7: 0 | AJ7: =IF(B7<55,VLOOKUP(B7-$B$3,Lookups!$O$3:$Q$53,2),"") -> 0.063052 | AK7: =IF(B7<55,VLOOKUP(B7-$B$3,Lookups!$O$3:$Q$53,3),"") -> 0.076024 | AL7: 0.069538 | AM7: =IF(B7<55,VLOOKUP(B7,Lookups!A:M,12),"") -> 0.000213 | AN7: =IF(B7<55,VLOOKUP(B7,Lookups!A:M,13),"") -> 0.000271 | AO7: 0.000242 | AP7: =IF(B7<70,VLOOKUP(B7,Lookups!A:H,8)*(1-VLOOKUP(B7,Lookups!$U$3:$W$103,2))^(B7-$B$2),"") -> 0.0009666355644 | AQ7: =IF(B7<70,VLOOKUP(B7,Lookups!A:I,9)*(1-VLOOKUP(B7,Lookups!$U$3:$W$103,3))^(B7-$B$2),"") -> 0.0006003092716 | AR7: 0.000783472418 | AS7: 0.07056347242 | AT7: 2.260667066 | AU7: 2.059431474 | AW7: =IF(BD7>=$B$3,VLOOKUP(BD7,Lookups!A:H,8)*(1-VLOOKUP(BD7,Lookups!U:W,2))^(BD7-$B$3),"") ->  | AX7: =IF(BD7>=$B$3,VLOOKUP(BD7,Lookups!A:I,9)*(1-VLOOKUP(BD7,Lookups!U:W,3))^(BD7-$B$3),"") ->  | CK7: Age Divisions | CL7: 20-35 | CM7: 36-46 | CN7: 47-56 | CO7: 57+
A8: 2000 | B8: 40 | D8: =VLOOKUP(B8,Lookups!A:B,2) -> 12194.94959 | E8: =VLOOKUP(B8,Lookups!A:C,3) -> 9083.932034 | G8: =VLOOKUP(B8,Lookups!A:D,4) -> 8998.275742 | H8: =VLOOKUP(B8,Lookups!A:E,5) -> 9220.12622 | J8: =VLOOKUP(A8,Trends!$A$3:$Q$94,IF(ExFlg=0,2,10))+IF(B8>=$B$2,Sens,0) -> 1.045 | K8: =IF(B8=$B$2,1,IF(B8<$B$2,K9/J8,K7*J7)) -> 0.4068429791 | L8: =VLOOKUP(A8,Trends!$A$3:$Q$94,IF(ExFlg=0,4,12))+IF(B8>=$B$2,Sens,0) -> 1.047 | M8: =IF(B8=$B$2,1,IF(B8<$B$2,M9/L8,M7*L7)) -> 0.3879799515 | N8: =VLOOKUP(A8,Trends!$A$3:$Z$94,IF(ExFlg=0,19,23))+IF(B8>=$B$2,Sens,0) -> 1.047 | O8: 0.3629467856 | P8: =VLOOKUP(A8,Trends!$A$3:$Q$94,IF(ExFlg=0,6,14))+IF(B8>=$B$2,Sens,0) -> 1.045 | Q8: =IF(B8=$B$2,1,IF(B8<$B$2,Q9/P8,Q7*P7)) -> 0.3955103056 | R8: =VLOOKUP(A8,Trends!$A$3:$Q$94,IF(ExFlg=0,8,16))+IF(B8>=$B$2,Sens,0) -> 1.046 | S8: =IF(B8=$B$2,1,IF(B8<$B$2,S9/R8,S7*R7)) -> 0.3996783245 | T8: =VLOOKUP(A8,Trends!$A$3:$Z$94,IF(ExFlg=0,21,25))+IF(B8>=$B$2,Sens,0) -> 1.046 | U8: 0.3877252719 | W8: =IF(B8<65,D8*K8,D8*M8) -> 4961.429619 | X8: 3695.733971 | Y8: 1265.695649 | AA8: 3558.910788 | AB8: 3646.654939 | AC8: -87.74415031 | AE8: 363.3979379 | AG8: =IF(B8<71,VLOOKUP(B8,Lookups!A:F,6),"") -> 0 | AH8: =IF(B8<71,VLOOKUP(Active!B8,Lookups!A:G,7),"") -> 0 | AI8: 0 | AJ8: =IF(B8<55,VLOOKUP(B8-$B$3,Lookups!$O$3:$Q$53,2),"") -> 0.054443 | AK8: =IF(B8<55,VLOOKUP(B8-$B$3,Lookups!$O$3:$Q$53,3),"") -> 0.066544 | AL8: 0.0604935 | AM8: =IF(B8<55,VLOOKUP(B8,Lookups!A:M,12),"") -> 0.000235 | AN8: =IF(B8<55,VLOOKUP(B8,Lookups!A:M,13),"") -> 0.000275 | AO8: 0.000255 | AP8: =IF(B8<70,VLOOKUP(B8,Lookups!A:H,8)*(1-VLOOKUP(B8,Lookups!$U$3:$W$103,2))^(B8-$B$2),"") -> 0.001020736452 | AQ8: =IF(B8<70,VLOOKUP(B8,Lookups!A:I,9)*(1-VLOOKUP(B8,Lookups!$U$3:$W$103,3))^(B8-$B$2),"") -> 0.0006481201466 | AR8: 0.0008344282994 | AS8: 0.0615829283 | AT8: 2.101146548 | AU8: 1.989788863 | AW8: =IF(BD8>=$B$3,VLOOKUP(BD8,Lookups!A:H,8)*(1-VLOOKUP(BD8,Lookups!U:W,2))^(BD8-$B$3),"") ->  | AX8: =IF(BD8>=$B$3,VLOOKUP(BD8,Lookups!A:I,9)*(1-VLOOKUP(BD8,Lookups!U:W,3))^(BD8-$B$3),"") ->  | CK8: Default Age | CL8: 30 | CM8: =ROUND((46+36)/2, 0) -> 41 | CN8: =ROUND((56+47)/2,0) -> 52 | CO8: 60
A9: 2001 | B9: 41 | D9: =VLOOKUP(B9,Lookups!A:B,2) -> 12186.45246 | E9: =VLOOKUP(B9,Lookups!A:C,3) -> 9083.932034 | G9: =VLOOKUP(B9,Lookups!A:D,4) -> 8992.00599 | H9: =VLOOKUP(B9,Lookups!A:E,5) -> 9220.12622 | J9: =VLOOKUP(A9,Trends!$A$3:$Q$94,IF(ExFlg=0,2,10))+IF(B9>=$B$2,Sens,0) -> 1.045 | K9: =IF(B9=$B$2,1,IF(B9<$B$2,K10/J9,K8*J8)) -> 0.4251509131 | L9: =VLOOKUP(A9,Trends!$A$3:$Q$94,IF(ExFlg=0,4,12))+IF(B9>=$B$2,Sens,0) -> 1.047 | M9: =IF(B9=$B$2,1,IF(B9<$B$2,M10/L9,M8*L8)) -> 0.4062150092 | N9: =VLOOKUP(A9,Trends!$A$3:$Z$94,IF(ExFlg=0,19,23))+IF(B9>=$B$2,Sens,0) -> 1.047 | O9: 0.3800052846 | P9: =VLOOKUP(A9,Trends!$A$3:$Q$94,IF(ExFlg=0,6,14))+IF(B9>=$B$2,Sens,0) -> 1.045 | Q9: =IF(B9=$B$2,1,IF(B9<$B$2,Q10/P9,Q8*P8)) -> 0.4133082693 | R9: =VLOOKUP(A9,Trends!$A$3:$Q$94,IF(ExFlg=0,8,16))+IF(B9>=$B$2,Sens,0) -> 1.046 | S9: =IF(B9=$B$2,1,IF(B9<$B$2,S10/R9,S8*R8)) -> 0.4180635274 | T9: =VLOOKUP(A9,Trends!$A$3:$Z$94,IF(ExFlg=0,21,25))+IF(B9>=$B$2,Sens,0) -> 1.046 | U9: 0.4055606344 | W9: =IF(B9<65,D9*K9,D9*M9) -> 5181.081392 | X9: 3862.041999 | Y9: 1319.039393 | AA9: 3716.470434 | AB9: 3810.754411 | AC9: -94.28397712 | AE9: 376.8191019 | AG9: =IF(B9<71,VLOOKUP(B9,Lookups!A:F,6),"") -> 0 | AH9: =IF(B9<71,VLOOKUP(Active!B9,Lookups!A:G,7),"") -> 0 | AI9: 0 | AJ9: =IF(B9<55,VLOOKUP(B9-$B$3,Lookups!$O$3:$Q$53,2),"") -> 0.044874 | AK9: =IF(B9<55,VLOOKUP(B9-$B$3,Lookups!$O$3:$Q$53,3),"") -> 0.057856 | AL9: 0.051365 | AM9: =IF(B9<55,VLOOKUP(B9,Lookups!A:M,12),"") -> 0.000256 | AN9: =IF(B9<55,VLOOKUP(B9,Lookups!A:M,13),"") -> 0.000279 | AO9: 0.0002675 | AP9: =IF(B9<70,VLOOKUP(B9,Lookups!A:H,8)*(1-VLOOKUP(B9,Lookups!$U$3:$W$103,2))^(B9-$B$2),"") -> 0.001075556439 | AQ9: =IF(B9<70,VLOOKUP(B9,Lookups!A:I,9)*(1-VLOOKUP(B9,Lookups!$U$3:$W$103,3))^(B9-$B$2),"") -> 0.0007040579819 | AR9: 0.0008898072104 | AS9: 0.05252230721 | AT9: =IF(B9<71,IF(B9=$B$2,1, IF(B9<$B$2, AT10/(1-AS9), AT8*(1-AS8))),"") -> 1.971751791 | AU9: 1.922501317 | AW9: =IF(BD9>=$B$3,VLOOKUP(BD9,Lookups!A:H,8)*(1-VLOOKUP(BD9,Lookups!U:W,2))^(BD9-$B$3),"") ->  | AX9: =IF(BD9>=$B$3,VLOOKUP(BD9,Lookups!A:I,9)*(1-VLOOKUP(BD9,Lookups!U:W,3))^(BD9-$B$3),"") -> 
A10: 2002 | B10: 42 | D10: =VLOOKUP(B10,Lookups!A:B,2) -> 12105.12335 | E10: =VLOOKUP(B10,Lookups!A:C,3) -> 9083.932034 | G10: =VLOOKUP(B10,Lookups!A:D,4) -> 8931.995747 | H10: =VLOOKUP(B10,Lookups!A:E,5) -> 9220.12622 | J10: =VLOOKUP(A10,Trends!$A$3:$Q$94,IF(ExFlg=0,2,10))+IF(B10>=$B$2,Sens,0) -> 1.045 | K10: =IF(B10=$B$2,1,IF(B10<$B$2,K11/J10,K9*J9)) -> 0.4442827042 | L10: =VLOOKUP(A10,Trends!$A$3:$Q$94,IF(ExFlg=0,4,12))+IF(B10>=$B$2,Sens,0) -> 1.047 | M10: 0.4253071146 | N10: =VLOOKUP(A10,Trends!$A$3:$Z$94,IF(ExFlg=0,19,23))+IF(B10>=$B$2,Sens,0) -> 1.047 | O10: 0.3978655329 | P10: =VLOOKUP(A10,Trends!$A$3:$Q$94,IF(ExFlg=0,6,14))+IF(B10>=$B$2,Sens,0) -> 1.045 | Q10: 0.4319071414 | R10: =VLOOKUP(A10,Trends!$A$3:$Q$94,IF(ExFlg=0,8,16))+IF(B10>=$B$2,Sens,0) -> 1.046 | S10: 0.4372944497 | T10: =VLOOKUP(A10,Trends!$A$3:$Z$94,IF(ExFlg=0,21,25))+IF(B10>=$B$2,Sens,0) -> 1.046 | U10: 0.4242164236 | W10: 5378.096936 | X10: 4035.833889 | Y10: 1342.263046 | AA10: 3857.79275 | AB10: 3982.238359 | AC10: -124.4456088 | AE10: 364.4523873 | AG10: =IF(B10<71,VLOOKUP(B10,Lookups!A:F,6),"") -> 0 | AH10: =IF(B10<71,VLOOKUP(Active!B10,Lookups!A:G,7),"") -> 0 | AI10: 0 | AJ10: =IF(B10<55,VLOOKUP(B10-$B$3,Lookups!$O$3:$Q$53,2),"") -> 0.041778 | AK10: =IF(B10<55,VLOOKUP(B10-$B$3,Lookups!$O$3:$Q$53,3),"") -> 0.053301 | AL10: =IF(B10<55,PCTMALE*AJ10+(1-PCTMALE)*AK10,"") -> 0.0475395 | AM10: =IF(B10<55,VLOOKUP(B10,Lookups!A:M,12),"") -> 0.000277 | AN10: =IF(B10<55,VLOOKUP(B10,Lookups!A:M,13),"") -> 0.000283 | AO10: 0.00028 | AP10: =IF(B10<70,VLOOKUP(B10,Lookups!A:H,8)*(1-VLOOKUP(B10,Lookups!$U$3:$W$103,2))^(B10-$B$2),"") -> 0.00113528455 | AQ10: =IF(B10<70,VLOOKUP(B10,Lookups!A:I,9)*(1-VLOOKUP(B10,Lookups!$U$3:$W$103,3))^(B10-$B$2),"") -> 0.0007690975744 | AR10: 0.0009521910624 | AS10: 0.04877169106 | AT10: 1.868190838 | AU10: 1.857489196 | AW10: =IF(BD10>=$B$3,VLOOKUP(BD10,Lookups!A:H,8)*(1-VLOOKUP(BD10,Lookups!U:W,2))^(BD10-$B$3),"") ->  | AX10: =IF(BD10>=$B$3,VLOOKUP(BD10,Lookups!A:I,9)*(1-VLOOKUP(BD10,Lookups!U:W,3))^(BD10-$B$3),"") -> 
A11: 2003 | B11: 43 | D11: =VLOOKUP(B11,Lookups!A:B,2) -> 12024.69634 | E11: =VLOOKUP(B11,Lookups!A:C,3) -> 9083.932034 | G11: =VLOOKUP(B11,Lookups!A:D,4) -> 8872.651139 | H11: =VLOOKUP(B11,Lookups!A:E,5) -> 9220.12622 | J11: =VLOOKUP(A11,Trends!$A$3:$Q$94,IF(ExFlg=0,2,10))+IF(B11>=$B$2,Sens,0) -> 1.045 | K11: 0.4642754259 | L11: =VLOOKUP(A11,Trends!$A$3:$Q$94,IF(ExFlg=0,4,12))+IF(B11>=$B$2,Sens,0) -> 1.047 | M11: 0.445296549 | N11: =VLOOKUP(A11,Trends!$A$3:$Z$94,IF(ExFlg=0,19,23))+IF(B11>=$B$2,Sens,0) -> 1.047 | O11: 0.416565213 | P11: =VLOOKUP(A11,Trends!$A$3:$Q$94,IF(ExFlg=0,6,14))+IF(B11>=$B$2,Sens,0) -> 1.045 | Q11: 0.4513429628 | R11: =VLOOKUP(A11,Trends!$A$3:$Q$94,IF(ExFlg=0,8,16))+IF(B11>=$B$2,Sens,0) -> 1.046 | S11: 0.4574099944 | T11: =VLOOKUP(A11,Trends!$A$3:$Z$94,IF(ExFlg=0,21,25))+IF(B11>=$B$2,Sens,0) -> 1.046 | U11: 0.4437303791 | W11: 5582.771013 | X11: 4217.446414 | Y11: 1365.324599 | AA11: 4004.608653 | AB11: 4161.439085 | AC11: =AA11-AB11 -> -156.8304322 | AE11: 350.5495044 | AG11: =IF(B11<71,VLOOKUP(B11,Lookups!A:F,6),"") -> 0 | AH11: =IF(B11<71,VLOOKUP(Active!B11,Lookups!A:G,7),"") -> 0 | AI11: 0 | AJ11: =IF(B11<55,VLOOKUP(B11-$B$3,Lookups!$O$3:$Q$53,2),"") -> 0.038895 | AK11: =IF(B11<55,VLOOKUP(B11-$B$3,Lookups!$O$3:$Q$53,3),"") -> 0.049105 | AL11: 0.044 | AM11: =IF(B11<55,VLOOKUP(B11,Lookups!A:M,12),"") -> 0.000344 | AN11: =IF(B11<55,VLOOKUP(B11,Lookups!A:M,13),"") -> 0.000345 | AO11: 0.0003445 | AP11: =IF(B11<70,VLOOKUP(B11,Lookups!A:H,8)*(1-VLOOKUP(B11,Lookups!$U$3:$W$103,2))^(B11-$B$2),"") -> 0.001204059501 | AQ11: =IF(B11<70,VLOOKUP(B11,Lookups!A:I,9)*(1-VLOOKUP(B11,Lookups!$U$3:$W$103,3))^(B11-$B$2),"") -> 0.0008442015788 | AR11: 0.00102413054 | AS11: 0.04536863054 | AT11: 1.777076011 | AU11: 1.794675551 | AV11: Age | AW11: =IF(BD11>=$B$3,VLOOKUP(BD11,Lookups!A:H,8)*(1-VLOOKUP(BD11,Lookups!U:W,2))^(BD11-$B$3),"") ->  | AX11: =IF(BD11>=$B$3,VLOOKUP(BD11,Lookups!A:I,9)*(1-VLOOKUP(BD11,Lookups!U:W,3))^(BD11-$B$3),"") -> 
A12: 2004 | B12: 44 | D12: =VLOOKUP(B12,Lookups!A:B,2) -> 11945.16124 | E12: =VLOOKUP(B12,Lookups!A:C,3) -> 9083.932034 | G12: =VLOOKUP(B12,Lookups!A:D,4) -> 8813.96465 | H12: =VLOOKUP(B12,Lookups!A:E,5) -> 9220.12622 | J12: =VLOOKUP(A12,Trends!$A$3:$Q$94,IF(ExFlg=0,2,10))+IF(B12>=$B$2,Sens,0) -> 1.045 | K12: 0.4851678201 | L12: =VLOOKUP(A12,Trends!$A$3:$Q$94,IF(ExFlg=0,4,12))+IF(B12>=$B$2,Sens,0) -> 1.047 | M12: 0.4662254868 | N12: =VLOOKUP(A12,Trends!$A$3:$Z$94,IF(ExFlg=0,19,23))+IF(B12>=$B$2,Sens,0) -> 1.047 | O12: 0.436143778 | P12: =VLOOKUP(A12,Trends!$A$3:$Q$94,IF(ExFlg=0,6,14))+IF(B12>=$B$2,Sens,0) -> 1.045 | Q12: 0.4716533961 | R12: =VLOOKUP(A12,Trends!$A$3:$Q$94,IF(ExFlg=0,8,16))+IF(B12>=$B$2,Sens,0) -> 1.046 | S12: 0.4784508541 | T12: =VLOOKUP(A12,Trends!$A$3:$Z$94,IF(ExFlg=0,21,25))+IF(B12>=$B$2,Sens,0) -> 1.046 | U12: 0.4641419765 | W12: 5795.407841 | X12: 4407.231503 | Y12: 1388.176338 | AA12: 4157.136361 | AB12: 4348.703844 | AC12: -191.5674837 | AE12: 335.0085245 | AG12: =IF(B12<71,VLOOKUP(B12,Lookups!A:F,6),"") -> 0 | AH12: =IF(B12<71,VLOOKUP(Active!B12,Lookups!A:G,7),"") -> 0 | AI12: 0 | AJ12: =IF(B12<55,VLOOKUP(B12-$B$3,Lookups!$O$3:$Q$53,2),"") -> 0.036211 | AK12: =IF(B12<55,VLOOKUP(B12-$B$3,Lookups!$O$3:$Q$53,3),"") -> 0.045239 | AL12: 0.040725 | AM12: =IF(B12<55,VLOOKUP(B12,Lookups!A:M,12),"") -> 0.00041 | AN12: =IF(B12<55,VLOOKUP(B12,Lookups!A:M,13),"") -> 0.000406 | AO12: 0.000408 | AP12: =IF(B12<70,VLOOKUP(B12,Lookups!A:H,8)*(1-VLOOKUP(B12,Lookups!$U$3:$W$103,2))^(B12-$B$2),"") -> 0.001283884148 | AQ12: =IF(B12<70,VLOOKUP(B12,Lookups!A:I,9)*(1-VLOOKUP(B12,Lookups!$U$3:$W$103,3))^(B12-$B$2),"") -> 0.0009261487596 | AR12: 0.001105016454 | AS12: 0.04223801645 | AT12: 1.696452506 | AU12: 1.73398604 | AV12: 55 | AW12: =IF(BD12>=$B$3,VLOOKUP(BD12,Lookups!A:H,8)*(1-VLOOKUP(BD12,Lookups!U:W,2))^(BD12-$B$2),"") -> 0.003055416333 | AX12: =IF(BD12>=$B$3,VLOOKUP(BD12,Lookups!A:I,9)*(1-VLOOKUP(BD12,Lookups!U:W,3))^(BD12-$B$2),"") -> 0.00224856004 | AY12: 0.002651988186 | AZ12: =IF(AY11="",1,AZ11*(1-AY11)) -> 1 | BA12: =IF(AY11="",1,BA11/(1+IntRt)) -> 1 | BB12: =IF(AY12="",1,ROUND((13/24)+(11/24)*(1/(1+IntRt))*(1-AY12),6)) -> 0.983326 | BD12: 55 | BE12: =IF(BD12>=$B$3,VLOOKUP(BD12,$B$3:$AE$93,30),"") -> 678.6548048 | BF12: =IF(BE12<>"",BE12*BA12*BB12*AZ12,"") -> 667.3389146 | BQ12: 0
A13: 2005 | B13: 45 | D13: =VLOOKUP(B13,Lookups!A:B,2) -> 11866.50799 | E13: =VLOOKUP(B13,Lookups!A:C,3) -> 9083.932034 | G13: =VLOOKUP(B13,Lookups!A:D,4) -> 8755.928845 | H13: =VLOOKUP(B13,Lookups!A:E,5) -> 9220.12622 | J13: =VLOOKUP(A13,Trends!$A$3:$Q$94,IF(ExFlg=0,2,10))+IF(B13>=$B$2,Sens,0) -> 1.045 | K13: 0.507000372 | L13: =VLOOKUP(A13,Trends!$A$3:$Q$94,IF(ExFlg=0,4,12))+IF(B13>=$B$2,Sens,0) -> 1.047 | M13: 0.4881380847 | N13: =VLOOKUP(A13,Trends!$A$3:$Z$94,IF(ExFlg=0,19,23))+IF(B13>=$B$2,Sens,0) -> 1.047 | O13: 0.4566425356 | P13: =VLOOKUP(A13,Trends!$A$3:$Q$94,IF(ExFlg=0,6,14))+IF(B13>=$B$2,Sens,0) -> 1.045 | Q13: 0.492877799 | R13: =VLOOKUP(A13,Trends!$A$3:$Q$94,IF(ExFlg=0,8,16))+IF(B13>=$B$2,Sens,0) -> 1.046 | S13: 0.5004595934 | T13: =VLOOKUP(A13,Trends!$A$3:$Z$94,IF(ExFlg=0,21,25))+IF(B13>=$B$2,Sens,0) -> 1.046 | U13: 0.4854925074 | W13: 6016.323967 | X13: 4605.55692 | Y13: 1410.767046 | AA13: 4315.602937 | AB13: 4544.395517 | AC13: -228.7925801 | AE13: 317.7218302 | AG13: =IF(B13<71,VLOOKUP(B13,Lookups!A:F,6),"") -> 0 | AH13: =IF(B13<71,VLOOKUP(Active!B13,Lookups!A:G,7),"") -> 0 | AI13: 0 | AJ13: =IF(B13<55,VLOOKUP(B13-$B$3,Lookups!$O$3:$Q$53,2),"") -> 0.033712 | AK13: =IF(B13<55,VLOOKUP(B13-$B$3,Lookups!$O$3:$Q$53,3),"") -> 0.041677 | AL13: 0.0376945 | AM13: =IF(B13<55,VLOOKUP(B13,Lookups!A:M,12),"") -> 0.000476 | AN13: =IF(B13<55,VLOOKUP(B13,Lookups!A:M,13),"") -> 0.000467 | AO13: 0.0004715 | AP13: =IF(B13<70,VLOOKUP(B13,Lookups!A:H,8)*(1-VLOOKUP(B13,Lookups!$U$3:$W$103,2))^(B13-$B$2),"") -> 0.001375696987 | AQ13: =IF(B13<70,VLOOKUP(B13,Lookups!A:I,9)*(1-VLOOKUP(B13,Lookups!$U$3:$W$103,3))^(B13-$B$2),"") -> 0.001013835648 | AR13: 0.001194766318 | AS13: 0.03936076632 | AT13: 1.624797717 | AU13: 1.675348831 | AV13: 56 | AW13: =IF(BD13>=$B$3,VLOOKUP(BD13,Lookups!A:H,8)*(1-VLOOKUP(BD13,Lookups!U:W,2))^(BD13-$B$2),"") -> 0.003453691063 | AX13: =IF(BD13>=$B$3,VLOOKUP(BD13,Lookups!A:I,9)*(1-VLOOKUP(BD13,Lookups!U:W,3))^(BD13-$B$2),"") -> 0.002467521426 | AY13: 0.002960606245 | AZ13: 0.9973480118 | BA13: 0.9661835749 | BB13: 0.98319 | BD13: =1+BD12 -> 56 | BE13: =IF(BD13>=$B$3,VLOOKUP(BD13,$B$3:$AE$93,30),"") -> 853.889601 | BF13: =IF(BE13<>"",BE13*BA13*BB13*AZ13,"") -> 808.9944715 | BG13: =IF(BE13<>"",BE13*AZ13/$AZ$13*BA13/$BA$13*BB13,"") -> 839.5357168 | BQ13: 0 | BR13: 0
A14: 2006 | B14: 46 | D14: =VLOOKUP(B14,Lookups!A:B,2) -> 11788.72663 | E14: =VLOOKUP(B14,Lookups!A:C,3) -> 9083.932034 | G14: =VLOOKUP(B14,Lookups!A:D,4) -> 8698.536377 | H14: =VLOOKUP(B14,Lookups!A:E,5) -> 9220.12622 | J14: =VLOOKUP(A14,Trends!$A$3:$Q$94,IF(ExFlg=0,2,10))+IF(B14>=$B$2,Sens,0) -> 1.045 | K14: =IF(B14=$B$2,1,IF(B14<$B$2,K15/J14,K13*J13)) -> 0.5298153887 | L14: =VLOOKUP(A14,Trends!$A$3:$Q$94,IF(ExFlg=0,4,12))+IF(B14>=$B$2,Sens,0) -> 1.047 | M14: 0.5110805747 | N14: =VLOOKUP(A14,Trends!$A$3:$Z$94,IF(ExFlg=0,19,23))+IF(B14>=$B$2,Sens,0) -> 1.047 | O14: 0.4781047347 | P14: =VLOOKUP(A14,Trends!$A$3:$Q$94,IF(ExFlg=0,6,14))+IF(B14>=$B$2,Sens,0) -> 1.045 | Q14: 0.5150572999 | R14: =VLOOKUP(A14,Trends!$A$3:$Q$94,IF(ExFlg=0,8,16))+IF(B14>=$B$2,Sens,0) -> 1.046 | S14: 0.5234807347 | T14: =VLOOKUP(A14,Trends!$A$3:$Z$94,IF(ExFlg=0,21,25))+IF(B14>=$B$2,Sens,0) -> 1.046 | U14: 0.5078251628 | W14: 6245.848781 | X14: 4812.806982 | Y14: 1433.041799 | AA14: 4480.244659 | AB14: 4748.893316 | AC14: -268.6486561 | AE14: 298.5758232 | AG14: =IF(B14<71,VLOOKUP(B14,Lookups!A:F,6),"") -> 0 | AH14: =IF(B14<71,VLOOKUP(Active!B14,Lookups!A:G,7),"") -> 0 | AI14: 0 | AJ14: =IF(B14<55,VLOOKUP(B14-$B$3,Lookups!$O$3:$Q$53,2),"") -> 0.031386 | AK14: =IF(B14<55,VLOOKUP(B14-$B$3,Lookups!$O$3:$Q$53,3),"") -> 0.038396 | AL14: 0.034891 | AM14: =IF(B14<55,VLOOKUP(B14,Lookups!A:M,12),"") -> 0.000542 | AN14: =IF(B14<55,VLOOKUP(B14,Lookups!A:M,13),"") -> 0.000528 | AO14: 0.000535 | AP14: =IF(B14<70,VLOOKUP(B14,Lookups!A:H,8)*(1-VLOOKUP(B14,Lookups!$U$3:$W$103,2))^(B14-$B$2),"") -> 0.001481461362 | AQ14: =IF(B14<70,VLOOKUP(B14,Lookups!A:I,9)*(1-VLOOKUP(B14,Lookups!$U$3:$W$103,3))^(B14-$B$2),"") -> 0.001104098216 | AR14: 0.001292779789 | AS14: 0.03671877979 | AT14: 1.560844434 | AU14: 1.618694522 | AV14: 57 | AW14: =IF(BD14>=$B$3,VLOOKUP(BD14,Lookups!A:H,8)*(1-VLOOKUP(BD14,Lookups!U:W,2))^(BD14-$B$2),"") -> 0.003923694779 | AX14: =IF(BD14>=$B$3,VLOOKUP(BD14,Lookups!A:I,9)*(1-VLOOKUP(BD14,Lookups!U:W,3))^(BD14-$B$2),"") -> 0.002742195368 | AY14: 0.003332945073 | AZ14: =IF(AY13="",1,AZ13*(1-AY13)) -> 0.9943952571 | BA14: 0.9335107004 | BB14: 0.983025 | BD14: =1+BD13 -> 57 | BE14: 1213.356155 | BF14: =IF(BE14<>"",BE14*BA14*BB14*AZ14,"") -> 1107.213073 | BG14: =IF(BE14<>"",BE14*AZ14/$AZ$13*BA14/$BA$13*BB14,"") -> 1149.012699 | BH14: =IF(BE14<>"",BE14*AZ14/$AZ$14*BA14/$BA$14*BB14,"") -> 1192.759435 | BQ14: 0 | BR14: 0 | BS14: 0
A15: 2007 | B15: 47 | D15: =VLOOKUP(B15,Lookups!A:B,2) -> 11692.10434 | E15: =VLOOKUP(B15,Lookups!A:C,3) -> 9083.932034 | G15: =VLOOKUP(B15,Lookups!A:D,4) -> 8627.24177 | H15: =VLOOKUP(B15,Lookups!A:E,5) -> 9220.12622 | J15: =VLOOKUP(A15,Trends!$A$3:$Q$94,IF(ExFlg=0,2,10))+IF(B15>=$B$2,Sens,0) -> 1.045 | K15: =IF(B15=$B$2,1,IF(B15<$B$2,K16/J15,K14*J14)) -> 0.5536570812 | L15: =VLOOKUP(A15,Trends!$A$3:$Q$94,IF(ExFlg=0,4,12))+IF(B15>=$B$2,Sens,0) -> 1.047 | M15: 0.5351013617 | N15: =VLOOKUP(A15,Trends!$A$3:$Z$94,IF(ExFlg=0,19,23))+IF(B15>=$B$2,Sens,0) -> 1.047 | O15: 0.5005756573 | P15: =VLOOKUP(A15,Trends!$A$3:$Q$94,IF(ExFlg=0,6,14))+IF(B15>=$B$2,Sens,0) -> 1.045 | Q15: 0.5382348784 | R15: =VLOOKUP(A15,Trends!$A$3:$Q$94,IF(ExFlg=0,8,16))+IF(B15>=$B$2,Sens,0) -> 1.046 | S15: 0.5475608485 | T15: =VLOOKUP(A15,Trends!$A$3:$Z$94,IF(ExFlg=0,21,25))+IF(B15>=$B$2,Sens,0) -> 1.046 | U15: 0.5311851203 | W15: 6473.416364 | X15: 5029.383296 | Y15: 1444.033068 | AA15: 4643.482425 | AB15: 4962.593515 | AC15: -319.1110896 | AE15: 268.5977526 | AG15: =IF(B15<71,VLOOKUP(B15,Lookups!A:F,6),"") -> 0 | AH15: =IF(B15<71,VLOOKUP(Active!B15,Lookups!A:G,7),"") -> 0 | AI15: 0 | AJ15: =IF(B15<55,VLOOKUP(B15-$B$3,Lookups!$O$3:$Q$53,2),"") -> 0.02922 | AK15: =IF(B15<55,VLOOKUP(B15-$B$3,Lookups!$O$3:$Q$53,3),"") -> 0.035373 | AL15: 0.0322965 | AM15: =IF(B15<55,VLOOKUP(B15,Lookups!A:M,12),"") -> 0.000609 | AN15: =IF(B15<55,VLOOKUP(B15,Lookups!A:M,13),"") -> 0.000589 | AO15: 0.000599 | AP15: =IF(B15<70,VLOOKUP(B15,Lookups!A:H,8)*(1-VLOOKUP(B15,Lookups!$U$3:$W$103,2))^(B15-$B$2),"") -> 0.001582444362 | AQ15: =IF(B15<70,VLOOKUP(B15,Lookups!A:I,9)*(1-VLOOKUP(B15,Lookups!$U$3:$W$103,3))^(B15-$B$2),"") -> 0.001197944491 | AR15: 0.001390194426 | AS15: 0.03428569443 | AT15: 1.503532131 | AU15: 1.56395606 | AV15: 58 | AW15: =IF(BD15>=$B$3,VLOOKUP(BD15,Lookups!A:H,8)*(1-VLOOKUP(BD15,Lookups!U:W,2))^(BD15-$B$2),"") -> 0.004288 | AX15: =IF(BD15>=$B$3,VLOOKUP(BD15,Lookups!A:I,9)*(1-VLOOKUP(BD15,Lookups!U:W,3))^(BD15-$B$2),"") -> 0.00301 | AY15: 0.003649 | AZ15: 0.9910809923 | BA15: 0.9019427057 | BB15: 0.982885 | BD15: 58 | BE15: 1616.725755 | BF15: =IF(BE15<>"",BE15*BA15*BB15*AZ15,"") -> 1420.45396 | BG15: =IF(BE15<>"",BE15*AZ15/$AZ$13*BA15/$BA$13*BB15,"") -> 1474.079089 | BH15: =IF(BE15<>"",BE15*AZ15/$AZ$14*BA15/$BA$14*BB15,"") -> 1530.202183 | BI15: =IF(BE15<>"",BE15*AZ15/$AZ$15*BA15/$BA$15*BB15,"") -> 1589.055494 | BQ15: 0 | BR15: 0 | BS15: 0 | BT15: 0
A16: 2008 | B16: 48 | D16: =VLOOKUP(B16,Lookups!A:B,2) -> 11598.30771 | E16: =VLOOKUP(B16,Lookups!A:C,3) -> 9083.932034 | G16: =VLOOKUP(B16,Lookups!A:D,4) -> 8558.032119 | H16: =VLOOKUP(B16,Lookups!A:E,5) -> 9220.12622 | J16: =VLOOKUP(A16,Trends!$A$3:$Q$94,IF(ExFlg=0,2,10))+IF(B16>=$B$2,Sens,0) -> 1.045 | K16: 0.5785716499 | L16: =VLOOKUP(A16,Trends!$A$3:$Q$94,IF(ExFlg=0,4,12))+IF(B16>=$B$2,Sens,0) -> 1.047 | M16: 0.5602511257 | N16: =VLOOKUP(A16,Trends!$A$3:$Z$94,IF(ExFlg=0,19,23))+IF(B16>=$B$2,Sens,0) -> 1.047 | O16: 0.5241027132 | P16: =VLOOKUP(A16,Trends!$A$3:$Q$94,IF(ExFlg=0,6,14))+IF(B16>=$B$2,Sens,0) -> 1.045 | Q16: =IF(B16=$B$2,1,IF(B16<$B$2,Q17/P16,Q15*P15)) -> 0.5624554479 | R16: =VLOOKUP(A16,Trends!$A$3:$Q$94,IF(ExFlg=0,8,16))+IF(B16>=$B$2,Sens,0) -> 1.046 | S16: 0.5727486475 | T16: =VLOOKUP(A16,Trends!$A$3:$Z$94,IF(ExFlg=0,21,25))+IF(B16>=$B$2,Sens,0) -> 1.046 | U16: 0.5556196358 | W16: 6710.452025 | X16: 5255.705544 | Y16: 1454.746481 | AA16: 4813.511789 | AB16: 5185.910223 | AC16: -372.3984337 | AE16: 236.6437807 | AG16: =IF(B16<71,VLOOKUP(B16,Lookups!A:F,6),"") -> 0 | AH16: =IF(B16<71,VLOOKUP(Active!B16,Lookups!A:G,7),"") -> 0 | AI16: 0 | AJ16: =IF(B16<55,VLOOKUP(B16-$B$3,Lookups!$O$3:$Q$53,2),"") -> 0.027204 | AK16: =IF(B16<55,VLOOKUP(B16-$B$3,Lookups!$O$3:$Q$53,3),"") -> 0.032588 | AL16: 0.029896 | AM16: =IF(B16<55,VLOOKUP(B16,Lookups!A:M,12),"") -> 0.000713 | AN16: =IF(B16<55,VLOOKUP(B16,Lookups!A:M,13),"") -> 0.000727 | AO16: 0.00072 | AP16: =IF(B16<70,VLOOKUP(B16,Lookups!A:H,8)*(1-VLOOKUP(B16,Lookups!$U$3:$W$103,2))^(B16-$B$2),"") -> 0.00169311314 | AQ16: =IF(B16<70,VLOOKUP(B16,Lookups!A:I,9)*(1-VLOOKUP(B16,Lookups!$U$3:$W$103,3))^(B16-$B$2),"") -> 0.001294309254 | AR16: 0.001493711197 | AS16: 0.0321097112 | AT16: 1.451982488 | AU16: 1.511068657 | AV16: 59 | AW16: =IF(BD16>=$B$3,VLOOKUP(BD16,Lookups!A:H,8)*(1-VLOOKUP(BD16,Lookups!U:W,2))^(BD16-$B$2),"") -> 0.004703608 | AX16: =IF(BD16>=$B$3,VLOOKUP(BD16,Lookups!A:I,9)*(1-VLOOKUP(BD16,Lookups!U:W,3))^(BD16-$B$2),"") -> 0.003303994 | AY16: 0.004003801 | AZ16: 0.9874645377 | BA16: 0.8714422277 | BB16: 0.982728 | BD16: 59 | BE16: 2089.284309 | BF16: 1766.81461 | BG16: 1833.515583 | BH16: =IF(BE16<>"",BE16*AZ16/$AZ$14*BA16/$BA$14*BB16,"") -> 1903.32362 | BI16: 1976.527605 | BJ16: =IF(BE16<>"",BE16*AZ16/$AZ$16*BA16/$BA$16*BB16,"") -> 2053.198191 | BQ16: 0 | BR16: 0 | BS16: 0 | BT16: 0 | BU16: 0
A17: 2009 | B17: 49 | D17: =VLOOKUP(B17,Lookups!A:B,2) -> 11507.28732 | E17: =VLOOKUP(B17,Lookups!A:C,3) -> 9083.932034 | G17: =VLOOKUP(B17,Lookups!A:D,4) -> 8490.870979 | H17: =VLOOKUP(B17,Lookups!A:E,5) -> 9220.12622 | J17: =VLOOKUP(A17,Trends!$A$3:$Q$94,IF(ExFlg=0,2,10))+IF(B17>=$B$2,Sens,0) -> 1.045 | K17: 0.6046073741 | L17: =VLOOKUP(A17,Trends!$A$3:$Q$94,IF(ExFlg=0,4,12))+IF(B17>=$B$2,Sens,0) -> 1.047 | M17: 0.5865829286 | N17: =VLOOKUP(A17,Trends!$A$3:$Z$94,IF(ExFlg=0,19,23))+IF(B17>=$B$2,Sens,0) -> 1.047 | O17: 0.5487355407 | P17: =VLOOKUP(A17,Trends!$A$3:$Q$94,IF(ExFlg=0,6,14))+IF(B17>=$B$2,Sens,0) -> 1.045 | Q17: 0.5877659431 | R17: =VLOOKUP(A17,Trends!$A$3:$Q$94,IF(ExFlg=0,8,16))+IF(B17>=$B$2,Sens,0) -> 1.046 | S17: 0.5990950853 | T17: =VLOOKUP(A17,Trends!$A$3:$Z$94,IF(ExFlg=0,21,25))+IF(B17>=$B$2,Sens,0) -> 1.046 | U17: 0.581178139 | W17: 6957.390769 | X17: 5492.212294 | Y17: 1465.178475 | AA17: 4990.644789 | AB17: 5419.276183 | AC17: -428.6313944 | AE17: 202.6322495 | AG17: =IF(B17<71,VLOOKUP(B17,Lookups!A:F,6),"") -> 0 | AH17: =IF(B17<71,VLOOKUP(Active!B17,Lookups!A:G,7),"") -> 0 | AI17: 0 | AJ17: =IF(B17<55,VLOOKUP(B17-$B$3,Lookups!$O$3:$Q$53,2),"") -> 0.025327 | AK17: =IF(B17<55,VLOOKUP(B17-$B$3,Lookups!$O$3:$Q$53,3),"") -> 0.030023 | AL17: 0.027675 | AM17: =IF(B17<55,VLOOKUP(B17,Lookups!A:M,12),"") -> 0.000817 | AN17: =IF(B17<55,VLOOKUP(B17,Lookups!A:M,13),"") -> 0.000865 | AO17: 0.000841 | AP17: =IF(B17<70,VLOOKUP(B17,Lookups!A:H,8)*(1-VLOOKUP(B17,Lookups!$U$3:$W$103,2))^(B17-$B$2),"") -> 0.001810295531 | AQ17: =IF(B17<70,VLOOKUP(B17,Lookups!A:I,9)*(1-VLOOKUP(B17,Lookups!$U$3:$W$103,3))^(B17-$B$2),"") -> 0.001396249504 | AR17: 0.001603272518 | AS17: 0.03011927252 | AT17: 1.405359749 | AU17: 1.459969717 | AV17: 60 | AW17: =IF(BD17>=$B$3,VLOOKUP(BD17,Lookups!A:H,8)*(1-VLOOKUP(BD17,Lookups!U:W,2))^(BD17-$B$2),"") -> 0.005165910711 | AX17: =IF(BD17>=$B$3,VLOOKUP(BD17,Lookups!A:I,9)*(1-VLOOKUP(BD17,Lookups!U:W,3))^(BD17-$B$2),"") -> 0.0036322506 | AY17: 0.004399080655 | AZ17: 0.9835109262 | BA17: 0.8419731669 | BB17: 0.982553 | BD17: 60 | BE17: 2647.597352 | BF17: =IF(BE17<>"",BE17*BA17*BB17*AZ17,"") -> 2154.196739 | BG17: 2235.522204 | BH17: 2320.63597 | BI17: 2409.890261 | BJ17: 2503.371222 | BK17: =IF(BE17<>"",BE17*AZ17/$AZ$17*BA17/$BA$17*BB17,"") -> 2601.404721 | BQ17: 0 | BR17: 0 | BS17: 0 | BT17: 0 | BU17: 0 | BV17: 0
A18: 2010 | B18: 50 | D18: =VLOOKUP(B18,Lookups!A:B,2) -> 11418.9948 | E18: =VLOOKUP(B18,Lookups!A:C,3) -> 9083.932034 | G18: =VLOOKUP(B18,Lookups!A:D,4) -> 8425.722651 | H18: =VLOOKUP(B18,Lookups!A:E,5) -> 9220.12622 | J18: =VLOOKUP(A18,Trends!$A$3:$Q$94,IF(ExFlg=0,2,10))+IF(B18>=$B$2,Sens,0) -> 1.045 | K18: 0.631814706 | L18: =VLOOKUP(A18,Trends!$A$3:$Q$94,IF(ExFlg=0,4,12))+IF(B18>=$B$2,Sens,0) -> 1.047 | M18: 0.6141523263 | N18: =VLOOKUP(A18,Trends!$A$3:$Z$94,IF(ExFlg=0,19,23))+IF(B18>=$B$2,Sens,0) -> 1.047 | O18: 0.5745261111 | P18: =VLOOKUP(A18,Trends!$A$3:$Q$94,IF(ExFlg=0,6,14))+IF(B18>=$B$2,Sens,0) -> 1.045 | Q18: 0.6142154105 | R18: =VLOOKUP(A18,Trends!$A$3:$Q$94,IF(ExFlg=0,8,16))+IF(B18>=$B$2,Sens,0) -> 1.046 | S18: 0.6266534592 | T18: =VLOOKUP(A18,Trends!$A$3:$Z$94,IF(ExFlg=0,21,25))+IF(B18>=$B$2,Sens,0) -> 1.046 | U18: 0.6079123334 | W18: 7214.688845 | X18: 5739.361847 | Y18: 1475.326998 | AA18: 5175.208697 | AB18: 5663.143611 | AC18: -487.9349141 | AE18: 166.4791789 | AG18: =IF(B18<71,VLOOKUP(B18,Lookups!A:F,6),"") -> 0 | AH18: =IF(B18<71,VLOOKUP(Active!B18,Lookups!A:G,7),"") -> 0 | AI18: 0 | AJ18: =IF(B18<55,VLOOKUP(B18-$B$3,Lookups!$O$3:$Q$53,2),"") -> 0.023579 | AK18: =IF(B18<55,VLOOKUP(B18-$B$3,Lookups!$O$3:$Q$53,3),"") -> 0.027659 | AL18: 0.025619 | AM18: =IF(B18<55,VLOOKUP(B18,Lookups!A:M,12),"") -> 0.000922 | AN18: =IF(B18<55,VLOOKUP(B18,Lookups!A:M,13),"") -> 0.001003 | AO18: 0.0009625 | AP18: =IF(B18<70,VLOOKUP(B18,Lookups!A:H,8)*(1-VLOOKUP(B18,Lookups!$U$3:$W$103,2))^(B18-$B$2),"") -> 0.001935978534 | AQ18: =IF(B18<70,VLOOKUP(B18,Lookups!A:I,9)*(1-VLOOKUP(B18,Lookups!$U$3:$W$103,3))^(B18-$B$2),"") -> 0.001503712428 | AR18: 0.001719845481 | AS18: 0.02830134548 | AT18: 1.363031336 | AU18: 1.410598761 | AV18: 61 | AW18: =IF(BD18>=$B$3,VLOOKUP(BD18,Lookups!A:H,8)*(1-VLOOKUP(BD18,Lookups!U:W,2))^(BD18-$B$2),"") -> 0.005699982098 | AX18: =IF(BD18>=$B$3,VLOOKUP(BD18,Lookups!A:I,9)*(1-VLOOKUP(BD18,Lookups!U:W,3))^(BD18-$B$2),"") -> 0.004006812033 | AY18: 0.004853397066 | AZ18: 0.9791843824 | BA18: 0.8135006443 | BB18: 0.982352 | BD18: 61 | BE18: 3276.756453 | BF18: 2564.092429 | BG18: 2660.892319 | BH18: 2762.201341 | BI18: 2868.438736 | BJ18: 2979.707043 | BK18: =IF(BE18<>"",BE18*AZ18/$AZ$17*BA18/$BA$17*BB18,"") -> 3096.394136 | BL18: =IF(BE18<>"",BE18*AZ18/$AZ$18*BA18/$BA$18*BB18,"") -> 3218.928255 | BQ18: 0 | BR18: 0 | BS18: 0 | BT18: 0 | BU18: 0 | BV18: 0 | BW18: 0
A19: 2011 | B19: 51 | D19: =VLOOKUP(B19,Lookups!A:B,2) -> 11333.38278 | E19: =VLOOKUP(B19,Lookups!A:C,3) -> 9083.932034 | G19: =VLOOKUP(B19,Lookups!A:D,4) -> 8362.552173 | H19: =VLOOKUP(B19,Lookups!A:E,5) -> 9220.12622 | J19: =VLOOKUP(A19,Trends!$A$3:$Q$94,IF(ExFlg=0,2,10))+IF(B19>=$B$2,Sens,0) -> 1.045 | K19: 0.6602463677 | L19: =VLOOKUP(A19,Trends!$A$3:$Q$94,IF(ExFlg=0,4,12))+IF(B19>=$B$2,Sens,0) -> 1.047 | M19: 0.6430174856 | N19: =VLOOKUP(A19,Trends!$A$3:$Z$94,IF(ExFlg=0,19,23))+IF(B19>=$B$2,Sens,0) -> 1.047 | O19: 0.6015288383 | P19: =VLOOKUP(A19,Trends!$A$3:$Q$94,IF(ExFlg=0,6,14))+IF(B19>=$B$2,Sens,0) -> 1.045 | Q19: 0.641855104 | R19: =VLOOKUP(A19,Trends!$A$3:$Q$94,IF(ExFlg=0,8,16))+IF(B19>=$B$2,Sens,0) -> 1.046 | S19: 0.6554795183 | T19: =VLOOKUP(A19,Trends!$A$3:$Z$94,IF(ExFlg=0,21,25))+IF(B19>=$B$2,Sens,0) -> 1.046 | U19: 0.6358763008 | W19: 7482.824814 | X19: 5997.63313 | Y19: 1485.191684 | AA19: 5367.546795 | AB19: 5917.985074 | AC19: -550.4382787 | AE19: 128.0982568 | AG19: =IF(B19<71,VLOOKUP(B19,Lookups!A:F,6),"") -> 0 | AH19: =IF(B19<71,VLOOKUP(Active!B19,Lookups!A:G,7),"") -> 0 | AI19: 0 | AJ19: =IF(B19<55,VLOOKUP(B19-$B$3,Lookups!$O$3:$Q$53,2),"") -> 0.021952 | AK19: =IF(B19<55,VLOOKUP(B19-$B$3,Lookups!$O$3:$Q$53,3),"") -> 0.025482 | AL19: 0.023717 | AM19: =IF(B19<55,VLOOKUP(B19,Lookups!A:M,12),"") -> 0.001026 | AN19: =IF(B19<55,VLOOKUP(B19,Lookups!A:M,13),"") -> 0.001141 | AO19: 0.0010835 | AP19: =IF(B19<70,VLOOKUP(B19,Lookups!A:H,8)*(1-VLOOKUP(B19,Lookups!$U$3:$W$103,2))^(B19-$B$2),"") -> 0.002068039927 | AQ19: =IF(B19<70,VLOOKUP(B19,Lookups!A:I,9)*(1-VLOOKUP(B19,Lookups!$U$3:$W$103,3))^(B19-$B$2),"") -> 0.001621751805 | AR19: 0.001844895866 | AS19: 0.02664539587 | AT19: 1.324455715 | AU19: 1.362897353 | AV19: 62 | AW19: =IF(BD19>=$B$3,VLOOKUP(BD19,Lookups!A:H,8)*(1-VLOOKUP(BD19,Lookups!U:W,2))^(BD19-$B$2),"") -> 0.0062913232 | AX19: =IF(BD19>=$B$3,VLOOKUP(BD19,Lookups!A:I,9)*(1-VLOOKUP(BD19,Lookups!U:W,3))^(BD19-$B$2),"") -> 0.004457465555 | AY19: 0.005374394377 | AZ19: 0.9744320117 | BA19: 0.7859909607 | BB19: 0.982121 | BD19: 62 | BE19: 4159.812142 | BF19: 3129.016188 | BG19: 3247.143139 | BH19: 3370.77268 | BI19: 3500.416419 | BJ19: 3636.199486 | BK19: =IF(BE19<>"",BE19*AZ19/$AZ$17*BA19/$BA$17*BB19,"") -> 3778.595211 | BL19: =IF(BE19<>"",BE19*AZ19/$AZ$18*BA19/$BA$18*BB19,"") -> 3928.126188 | BM19: =IF(BE19<>"",BE19*AZ19/$AZ$19*BA19/$BA$19*BB19,"") -> 4085.438861 | BQ19: 0 | BR19: 0 | BS19: 0 | BT19: 0 | BU19: 0 | BV19: 0 | BW19: 0 | BX19: 0
A20: =1+A19 -> 2012 | B20: 52 | D20: =VLOOKUP(B20,Lookups!A:B,2) -> 11532.7768 | E20: =VLOOKUP(B20,Lookups!A:C,3) -> 9083.932034 | G20: =VLOOKUP(B20,Lookups!A:D,4) -> 8509.678841 | H20: =VLOOKUP(B20,Lookups!A:E,5) -> 9220.12622 | J20: =VLOOKUP(A20,Trends!$A$3:$Q$94,IF(ExFlg=0,2,10))+IF(B20>=$B$2,Sens,0) -> 1.045 | K20: 0.6899574543 | L20: =VLOOKUP(A20,Trends!$A$3:$Q$94,IF(ExFlg=0,4,12))+IF(B20>=$B$2,Sens,0) -> 1.047 | M20: 0.6732393074 | N20: =VLOOKUP(A20,Trends!$A$3:$Z$94,IF(ExFlg=0,19,23))+IF(B20>=$B$2,Sens,0) -> 1.047 | O20: 0.6298006937 | P20: =VLOOKUP(A20,Trends!$A$3:$Q$94,IF(ExFlg=0,6,14))+IF(B20>=$B$2,Sens,0) -> 1.045 | Q20: 0.6707385837 | R20: =VLOOKUP(A20,Trends!$A$3:$Q$94,IF(ExFlg=0,8,16))+IF(B20>=$B$2,Sens,0) -> 1.046 | S20: 0.6856315762 | T20: =VLOOKUP(A20,Trends!$A$3:$Z$94,IF(ExFlg=0,21,25))+IF(B20>=$B$2,Sens,0) -> 1.046 | U20: 0.6651266106 | W20: =IF(B20<65,D20*K20,D20*M20) -> 7957.125325 | X20: 6267.526621 | Y20: 1689.598704 | AA20: 5707.769933 | AB20: 6184.294402 | AC20: -476.5244688 | AE20: 245.5093683 | AG20: =IF(B20<71,VLOOKUP(B20,Lookups!A:F,6),"") -> 0 | AH20: =IF(B20<71,VLOOKUP(Active!B20,Lookups!A:G,7),"") -> 0 | AI20: 0 | AJ20: =IF(B20<55,VLOOKUP(B20-$B$3,Lookups!$O$3:$Q$53,2),"") -> 0.020437 | AK20: =IF(B20<55,VLOOKUP(B20-$B$3,Lookups!$O$3:$Q$53,3),"") -> 0.023475 | AL20: 0.021956 | AM20: =IF(B20<55,VLOOKUP(B20,Lookups!A:M,12),"") -> 0.001131 | AN20: =IF(B20<55,VLOOKUP(B20,Lookups!A:M,13),"") -> 0.001278 | AO20: 0.0012045 | AP20: =IF(B20<70,VLOOKUP(B20,Lookups!A:H,8)*(1-VLOOKUP(B20,Lookups!$U$3:$W$103,2))^(B20-$B$2),"") -> 0.002362202012 | AQ20: =IF(B20<70,VLOOKUP(B20,Lookups!A:I,9)*(1-VLOOKUP(B20,Lookups!$U$3:$W$103,3))^(B20-$B$2),"") -> 0.001786924367 | AR20: 0.002074563189 | AS20: 0.02523506319 | AT20: 1.289165069 | AU20: 1.316809037 | AV20: 63 | AW20: =IF(BD20>=$B$3,VLOOKUP(BD20,Lookups!A:H,8)*(1-VLOOKUP(BD20,Lookups!U:W,2))^(BD20-$B$2),"") -> 0.006949835285 | AX20: =IF(BD20>=$B$3,VLOOKUP(BD20,Lookups!A:I,9)*(1-VLOOKUP(BD20,Lookups!U:W,3))^(BD20-$B$2),"") -> 0.005043202065 | AY20: 0.005996518675 | AZ20: =IF(AY19="",1,AZ19*(1-AY19)) -> 0.9691950298 | BA20: 0.7594115562 | BB20: 0.981845 | BD20: 63 | BE20: 5167.911466 | BF20: 3734.619649 | BG20: 3875.609407 | BH20: 4023.166748 | BI20: 4177.902303 | BJ20: 4339.965418 | BK20: =IF(BE20<>"",BE20*AZ20/$AZ$17*BA20/$BA$17*BB20,"") -> 4509.921034 | BL20: =IF(BE20<>"",BE20*AZ20/$AZ$18*BA20/$BA$18*BB20,"") -> 4688.392889 | BM20: =IF(BE20<>"",BE20*AZ20/$AZ$19*BA20/$BA$19*BB20,"") -> 4876.152544 | BN20: =IF(BE20<>"",BE20*AZ20/$AZ$20*BA20/$BA$20*BB20,"") -> 5074.088033 | BQ20: 0 | BR20: 0 | BS20: 0 | BT20: 0 | BU20: 0 | BV20: 0 | BW20: 0 | BX20: 0 | BY20: 0
A21: 2013 | B21: 53 | D21: =VLOOKUP(B21,Lookups!A:B,2) -> 11736.34792 | E21: =VLOOKUP(B21,Lookups!A:C,3) -> 9083.932034 | G21: =VLOOKUP(B21,Lookups!A:D,4) -> 8659.887653 | H21: =VLOOKUP(B21,Lookups!A:E,5) -> 9220.12622 | J21: =VLOOKUP(A21,Trends!$A$3:$Q$94,IF(ExFlg=0,2,10))+IF(B21>=$B$2,Sens,0) -> 1.045 | K21: 0.7210055397 | L21: =VLOOKUP(A21,Trends!$A$3:$Q$94,IF(ExFlg=0,4,12))+IF(B21>=$B$2,Sens,0) -> 1.047 | M21: 0.7048815549 | N21: =VLOOKUP(A21,Trends!$A$3:$Z$94,IF(ExFlg=0,19,23))+IF(B21>=$B$2,Sens,0) -> 1.047 | O21: 0.6594013263 | P21: =VLOOKUP(A21,Trends!$A$3:$Q$94,IF(ExFlg=0,6,14))+IF(B21>=$B$2,Sens,0) -> 1.045 | Q21: 0.70092182 | R21: =VLOOKUP(A21,Trends!$A$3:$Q$94,IF(ExFlg=0,8,16))+IF(B21>=$B$2,Sens,0) -> 1.046 | S21: 0.7171706287 | T21: =VLOOKUP(A21,Trends!$A$3:$Z$94,IF(ExFlg=0,21,25))+IF(B21>=$B$2,Sens,0) -> 1.046 | U21: 0.6957224347 | W21: 8461.971866 | X21: 6549.565319 | Y21: 1912.406547 | AA21: 6069.904214 | AB21: 6462.58765 | AC21: -392.6834356 | AE21: 375.6722084 | AG21: =IF(B21<71,VLOOKUP(B21,Lookups!A:F,6),"") -> 0 | AH21: =IF(B21<71,VLOOKUP(Active!B21,Lookups!A:G,7),"") -> 0 | AI21: 0 | AJ21: =IF(B21<55,VLOOKUP(B21-$B$3,Lookups!$O$3:$Q$53,2),"") -> 0.019027 | AK21: =IF(B21<55,VLOOKUP(B21-$B$3,Lookups!$O$3:$Q$53,3),"") -> 0.021627 | AL21: 0.020327 | AM21: =IF(B21<55,VLOOKUP(B21,Lookups!A:M,12),"") -> 0.001631 | AN21: =IF(B21<55,VLOOKUP(B21,Lookups!A:M,13),"") -> 0.00178 | AO21: 0.0017055 | AP21: =IF(B21<70,VLOOKUP(B21,Lookups!A:H,8)*(1-VLOOKUP(B21,Lookups!$U$3:$W$103,2))^(B21-$B$2),"") -> 0.002565248547 | AQ21: =IF(B21<70,VLOOKUP(B21,Lookups!A:I,9)*(1-VLOOKUP(B21,Lookups!$U$3:$W$103,3))^(B21-$B$2),"") -> 0.001940939938 | AR21: 0.002253094243 | AS21: 0.02428559424 | AT21: =IF(B21<71,IF(B21=$B$2,1, IF(B21<$B$2, AT22/(1-AS21), AT20*(1-AS20))),"") -> 1.256632907 | AU21: 1.272279263 | AV21: 64 | AW21: =IF(BD21>=$B$3,VLOOKUP(BD21,Lookups!A:H,8)*(1-VLOOKUP(BD21,Lookups!U:W,2))^(BD21-$B$2),"") -> 0.007678145452 | AX21: =IF(BD21>=$B$3,VLOOKUP(BD21,Lookups!A:I,9)*(1-VLOOKUP(BD21,Lookups!U:W,3))^(BD21-$B$2),"") -> 0.005723993863 | AY21: 0.006701069657 | AZ21: =IF(AY20="",1,AZ20*(1-AY20)) -> 0.9633832337 | BA21: 0.7337309722 | BB21: 0.981533 | BD21: 64 | BE21: 6319.275853 | BF21: 4384.379667 | BG21: =IF(BE21<>"",BE21*AZ21/$AZ$13*BA21/$BA$13*BB21,"") -> 4549.899235 | BH21: 4723.129033 | BI21: 4904.785932 | BJ21: 5095.045259 | BK21: =IF(BE21<>"",BE21*AZ21/$AZ$17*BA21/$BA$17*BB21,"") -> 5294.570249 | BL21: =IF(BE21<>"",BE21*AZ21/$AZ$18*BA21/$BA$18*BB21,"") -> 5504.093158 | BM21: =IF(BE21<>"",BE21*AZ21/$AZ$19*BA21/$BA$19*BB21,"") -> 5724.519786 | BN21: =IF(BE21<>"",BE21*AZ21/$AZ$20*BA21/$BA$20*BB21,"") -> 5956.892669 | BO21: =IF(BE21<>"",BE21*AZ21/$AZ$21*BA21/$BA$21*BB21,"") -> 6202.577786 | BQ21: 0 | BR21: 0 | BS21: 0 | BT21: 0 | BU21: 0 | BV21: 0 | BW21: 0 | BX21: 0 | BY21: 0 | BZ21: 0
A22: 2014 | B22: 54 | D22: =VLOOKUP(B22,Lookups!A:B,2) -> 11944.19383 | E22: =VLOOKUP(B22,Lookups!A:C,3) -> 9083.932034 | G22: =VLOOKUP(B22,Lookups!A:D,4) -> 8813.250708 | H22: =VLOOKUP(B22,Lookups!A:E,5) -> 9220.12622 | J22: =VLOOKUP(A22,Trends!$A$3:$Q$94,IF(ExFlg=0,2,10))+IF(B22>=$B$2,Sens,0) -> 1.045 | K22: 0.753450789 | L22: =VLOOKUP(A22,Trends!$A$3:$Q$94,IF(ExFlg=0,4,12))+IF(B22>=$B$2,Sens,0) -> 1.047 | M22: 0.7380109879 | N22: =VLOOKUP(A22,Trends!$A$3:$Z$94,IF(ExFlg=0,19,23))+IF(B22>=$B$2,Sens,0) -> 1.047 | O22: 0.6903931886 | P22: =VLOOKUP(A22,Trends!$A$3:$Q$94,IF(ExFlg=0,6,14))+IF(B22>=$B$2,Sens,0) -> 1.045 | Q22: 0.7324633019 | R22: =VLOOKUP(A22,Trends!$A$3:$Q$94,IF(ExFlg=0,8,16))+IF(B22>=$B$2,Sens,0) -> 1.046 | S22: 0.7501604776 | T22: =VLOOKUP(A22,Trends!$A$3:$Z$94,IF(ExFlg=0,21,25))+IF(B22>=$B$2,Sens,0) -> 1.046 | U22: 0.7277256667 | W22: 8999.362269 | X22: 6844.295758 | Y22: 2155.066511 | AA22: 6455.382713 | AB22: 6753.404094 | AC22: -298.0213808 | AE22: 519.6664061 | AG22: =IF(B22<71,VLOOKUP(B22,Lookups!A:F,6),"") -> 0 | AH22: =IF(B22<71,VLOOKUP(Active!B22,Lookups!A:G,7),"") -> 0 | AI22: 0 | AJ22: =IF(B22<55,VLOOKUP(B22-$B$3,Lookups!$O$3:$Q$53,2),"") -> 0.017714 | AK22: =IF(B22<55,VLOOKUP(B22-$B$3,Lookups!$O$3:$Q$53,3),"") -> 0.019925 | AL22: 0.0188195 | AM22: =IF(B22<55,VLOOKUP(B22,Lookups!A:M,12),"") -> 0.00213 | AN22: =IF(B22<55,VLOOKUP(B22,Lookups!A:M,13),"") -> 0.002281 | AO22: 0.0022055 | AP22: =IF(B22<70,VLOOKUP(B22,Lookups!A:H,8)*(1-VLOOKUP(B22,Lookups!$U$3:$W$103,2))^(B22-$B$2),"") -> 0.002795394079 | AQ22: =IF(B22<70,VLOOKUP(B22,Lookups!A:I,9)*(1-VLOOKUP(B22,Lookups!$U$3:$W$103,3))^(B22-$B$2),"") -> 0.002086179126 | AR22: 0.002440786603 | AS22: 0.0234657866 | AT22: 1.22611483 | AU22: 1.229255326 | AV22: 65 | AW22: =IF(BD22>=$B$3,VLOOKUP(BD22,Lookups!A:H,8)*(1-VLOOKUP(BD22,Lookups!U:W,2))^(BD22-$B$2),"") -> 0.008341438412 | AX22: =IF(BD22>=$B$3,VLOOKUP(BD22,Lookups!A:I,9)*(1-VLOOKUP(BD22,Lookups!U:W,3))^(BD22-$B$2),"") -> 0.006373935972 | AY22: 0.007357687192 | AZ22: 0.9569275356 | BA22: 0.7089188137 | BB22: 0.981243 | BD22: 65 | BE22: 1615.433889 | BQ22: =IF(BE22<>"",$BE22*$AZ22/$AZ$12*$BA22/$BA$12*$BB22,"") -> 1075.328892 | BR22: =IF(BE22<>"",$BE22*$AZ22/$AZ$13*$BA22/$BA$13*$BB22,"") -> 1115.924823 | BS22: =IF(BE22<>"",$BE22*$AZ22/$AZ$14*$BA22/$BA$14*$BB22,"") -> 1158.411793 | BT22: =IF(BE22<>"",$BE22*$AZ22/$AZ$15*$BA22/$BA$15*$BB22,"") -> 1202.965624 | BU22: =IF(BE22<>"",$BE22*$AZ22/$AZ$16*$BA22/$BA$16*$BB22,"") -> 1249.629318 | BV22: =IF(BE22<>"",$BE22*$AZ22/$AZ$17*$BA22/$BA$17*$BB22,"") -> 1298.565542 | BW22: =IF(BE22<>"",$BE22*$AZ22/$AZ$18*$BA22/$BA$18*$BB22,"") -> 1349.953892 | BX22: =IF(BE22<>"",$BE22*$AZ22/$AZ$19*$BA22/$BA$19*$BB22,"") -> 1404.016528 | BY22: =IF(BE22<>"",$BE22*$AZ22/$AZ$20*$BA22/$BA$20*$BB22,"") -> 1461.009146 | BZ22: =IF(BE22<>"",$BE22*$AZ22/$AZ$21*$BA22/$BA$21*$BB22,"") -> 1521.26677 | CA22: =IF(BE22<>"",$BE22*$AZ22/$AZ$22*$BA22/$BA$22*$BB22,"") -> 1585.133195
A23: 2015 | B23: 55 | D23: =VLOOKUP(B23,Lookups!A:B,2) -> 12156.41468 | E23: =VLOOKUP(B23,Lookups!A:C,3) -> 9083.932034 | G23: =VLOOKUP(B23,Lookups!A:D,4) -> 8969.841884 | H23: =VLOOKUP(B23,Lookups!A:E,5) -> 9220.12622 | J23: =VLOOKUP(A23,Trends!$A$3:$Q$94,IF(ExFlg=0,2,10))+IF(B23>=$B$2,Sens,0) -> 1.045 | K23: =IF(B23=$B$2,1,IF(B23<$B$2,K24/J23,K22*J22)) -> 0.7873560745 | L23: =VLOOKUP(A23,Trends!$A$3:$Q$94,IF(ExFlg=0,4,12))+IF(B23>=$B$2,Sens,0) -> 1.047 | M23: =IF(B23=$B$2,1,IF(B23<$B$2,M24/L23,M22*L22)) -> 0.7726975044 | N23: =VLOOKUP(A23,Trends!$A$3:$Z$94,IF(ExFlg=0,19,23))+IF(B23>=$B$2,Sens,0) -> 1.047 | O23: 0.7228416685 | P23: =VLOOKUP(A23,Trends!$A$3:$Q$94,IF(ExFlg=0,6,14))+IF(B23>=$B$2,Sens,0) -> 1.045 | Q23: 0.7654241504 | R23: =VLOOKUP(A23,Trends!$A$3:$Q$94,IF(ExFlg=0,8,16))+IF(B23>=$B$2,Sens,0) -> 1.046 | S23: 0.7846678596 | T23: =VLOOKUP(A23,Trends!$A$3:$Z$94,IF(ExFlg=0,21,25))+IF(B23>=$B$2,Sens,0) -> 1.046 | U23: 0.7612010474 | W23: 9571.426939 | X23: 7152.289067 | Y23: 2419.137872 | AA23: 6865.733604 | AB23: 7057.307279 | AC23: -191.573675 | AE23: 678.6548048 | AG23: =IF(B23<71,VLOOKUP(B23,Lookups!A:F,6),"") -> 0.02 | AH23: =IF(B23<71,VLOOKUP(Active!B23,Lookups!A:G,7),"") -> 0.02 | AI23: 0.02 | AJ23: =IF(B23<55,VLOOKUP(B23-$B$3,Lookups!$O$3:$Q$53,2),"") ->  | AK23: =IF(B23<55,VLOOKUP(B23-$B$3,Lookups!$O$3:$Q$53,3),"") ->  | AM23: =IF(B23<55,VLOOKUP(B23,Lookups!A:M,12),"") ->  | AN23: =IF(B23<55,VLOOKUP(B23,Lookups!A:M,13),"") ->  | AP23: =IF(B23<70,VLOOKUP(B23,Lookups!A:H,8)*(1-VLOOKUP(B23,Lookups!$U$3:$W$103,2))^(B23-$B$2),"") -> 0.003055416333 | AQ23: =IF(B23<70,VLOOKUP(B23,Lookups!A:I,9)*(1-VLOOKUP(B23,Lookups!$U$3:$W$103,3))^(B23-$B$2),"") -> 0.00224856004 | AR23: 0.002651988186 | AS23: 0.02265198819 | AT23: 1.197343081 | AU23: 1.187686306 | AV23: 66 | AW23: =IF(BD23>=$B$3,VLOOKUP(BD23,Lookups!A:H,8)*(1-VLOOKUP(BD23,Lookups!U:W,2))^(BD23-$B$2),"") -> 0.009063748567 | AX23: =IF(BD23>=$B$3,VLOOKUP(BD23,Lookups!A:I,9)*(1-VLOOKUP(BD23,Lookups!U:W,3))^(BD23-$B$2),"") -> 0.00709098539 | AY23: 0.008077366978 | AZ23: 0.9498867621 | BA23: 0.6849457137 | BB23: 0.980924 | BD23: 66 | BE23: 1807.911875 | BQ23: =IF(BE23<>"",$BE23*$AZ23/$AZ$12*$BA23/$BA$12*$BB23,"") -> 1153.826755 | BR23: =IF(BE23<>"",$BE23*$AZ23/$AZ$13*$BA23/$BA$13*$BB23,"") -> 1197.386145 | BS23: =IF(BE23<>"",$BE23*$AZ23/$AZ$14*$BA23/$BA$14*$BB23,"") -> 1242.974619 | BT23: =IF(BE23<>"",$BE23*$AZ23/$AZ$15*$BA23/$BA$15*$BB23,"") -> 1290.780832 | BU23: =IF(BE23<>"",$BE23*$AZ23/$AZ$16*$BA23/$BA$16*$BB23,"") -> 1340.850926 | BV23: =IF(BE23<>"",$BE23*$AZ23/$AZ$17*$BA23/$BA$17*$BB23,"") -> 1393.359443 | BW23: =IF(BE23<>"",$BE23*$AZ23/$AZ$18*$BA23/$BA$18*$BB23,"") -> 1448.499088 | BX23: =IF(BE23<>"",$BE23*$AZ23/$AZ$19*$BA23/$BA$19*$BB23,"") -> 1506.508238 | BY23: =IF(BE23<>"",$BE23*$AZ23/$AZ$20*$BA23/$BA$20*$BB23,"") -> 1567.661257 | BZ23: =IF(BE23<>"",$BE23*$AZ23/$AZ$21*$BA23/$BA$21*$BB23,"") -> 1632.317624 | CA23: =IF(BE23<>"",$BE23*$AZ23/$AZ$22*$BA23/$BA$22*$BB23,"") -> 1700.84623 | CB23: =IF(BE23<>"",$BE23*$AZ23/$AZ$23*$BA23/$BA$23*$BB23,"") -> 1773.424148
A24: 2016 | B24: 56 | D24: =VLOOKUP(B24,Lookups!A:B,2) -> 12373.11304 | E24: =VLOOKUP(B24,Lookups!A:C,3) -> 9083.932034 | G24: =VLOOKUP(B24,Lookups!A:D,4) -> 9129.736889 | H24: =VLOOKUP(B24,Lookups!A:E,5) -> 9220.12622 | J24: =VLOOKUP(A24,Trends!$A$3:$Q$94,IF(ExFlg=0,2,10))+IF(B24>=$B$2,Sens,0) -> 1.045 | K24: =IF(B24=$B$2,1,IF(B24<$B$2,K25/J24,K23*J23)) -> 0.8227870979 | L24: =VLOOKUP(A24,Trends!$A$3:$Q$94,IF(ExFlg=0,4,12))+IF(B24>=$B$2,Sens,0) -> 1.047 | M24: 0.8090142871 | N24: =VLOOKUP(A24,Trends!$A$3:$Z$94,IF(ExFlg=0,19,23))+IF(B24>=$B$2,Sens,0) -> 1.047 | O24: 0.7568152269 | P24: =VLOOKUP(A24,Trends!$A$3:$Q$94,IF(ExFlg=0,6,14))+IF(B24>=$B$2,Sens,0) -> 1.045 | Q24: 0.7998682372 | R24: =VLOOKUP(A24,Trends!$A$3:$Q$94,IF(ExFlg=0,8,16))+IF(B24>=$B$2,Sens,0) -> 1.046 | S24: 0.8207625811 | T24: =VLOOKUP(A24,Trends!$A$3:$Z$94,IF(ExFlg=0,21,25))+IF(B24>=$B$2,Sens,0) -> 1.046 | U24: 0.7962162955 | W24: =IF(B24<65,D24*K24,D24*M24) -> 10180.43777 | X24: 7474.142076 | Y24: 2706.295698 | AA24: 7302.586552 | AB24: 7374.886106 | AC24: -72.29955442 | AE24: 853.889601 | AG24: =IF(B24<71,VLOOKUP(B24,Lookups!A:F,6),"") -> 0.03 | AH24: =IF(B24<71,VLOOKUP(Active!B24,Lookups!A:G,7),"") -> 0.02 | AI24: 0.025 | AJ24: =IF(B24<55,VLOOKUP(B24-$B$3,Lookups!$O$3:$Q$53,2),"") ->  | AK24: =IF(B24<55,VLOOKUP(B24-$B$3,Lookups!$O$3:$Q$53,3),"") ->  | AM24: =IF(B24<55,VLOOKUP(B24,Lookups!A:M,12),"") ->  | AN24: =IF(B24<55,VLOOKUP(B24,Lookups!A:M,13),"") ->  | AP24: =IF(B24<70,VLOOKUP(B24,Lookups!A:H,8)*(1-VLOOKUP(B24,Lookups!$U$3:$W$103,2))^(B24-$B$2),"") -> 0.003453691063 | AQ24: =IF(B24<70,VLOOKUP(B24,Lookups!A:I,9)*(1-VLOOKUP(B24,Lookups!$U$3:$W$103,3))^(B24-$B$2),"") -> 0.002467521426 | AR24: 0.002960606245 | AS24: 0.02796060624 | AT24: 1.170220879 | AU24: 1.147523001 | AV24: 67 | AW24: =IF(BD24>=$B$3,VLOOKUP(BD24,Lookups!A:H,8)*(1-VLOOKUP(BD24,Lookups!U:W,2))^(BD24-$B$2),"") -> 0.00984680167 | AX24: =IF(BD24>=$B$3,VLOOKUP(BD24,Lookups!A:I,9)*(1-VLOOKUP(BD24,Lookups!U:W,3))^(BD24-$B$2),"") -> 0.007907420202 | AY24: 0.008877110936 | AZ24: 0.9422141781 | BA24: 0.6617832983 | BB24: 0.98057 | BD24: 67 | BE24: 2019.015325 | BQ24: 1234.478854 | BR24: 1281.083031 | BS24: 1329.858123 | BT24: 1381.005974 | BU24: 1434.575951 | BV24: 1490.754795 | BW24: 1549.748682 | BX24: 1611.812653 | BY24: 1677.240246 | BZ24: 1746.416071 | CA24: =IF(BE24<>"",$BE24*$AZ24/$AZ$22*$BA24/$BA$22*$BB24,"") -> 1819.734804 | CB24: =IF(BE24<>"",$BE24*$AZ24/$AZ$23*$BA24/$BA$23*$BB24,"") -> 1897.385894 | CC24: =IF(BE24<>"",$BE24*$AZ24/$AZ$24*$BA24/$BA$24*$BB24,"") -> 1979.785857
A25: 2017 | B25: 57 | D25: =VLOOKUP(B25,Lookups!A:B,2) -> 12833.20648 | E25: =VLOOKUP(B25,Lookups!A:C,3) -> 9083.932034 | G25: =VLOOKUP(B25,Lookups!A:D,4) -> 9469.225573 | H25: =VLOOKUP(B25,Lookups!A:E,5) -> 9220.12622 | J25: =VLOOKUP(A25,Trends!$A$3:$Q$94,IF(ExFlg=0,2,10))+IF(B25>=$B$2,Sens,0) -> 1.045 | K25: 0.8598125173 | L25: =VLOOKUP(A25,Trends!$A$3:$Q$94,IF(ExFlg=0,4,12))+IF(B25>=$B$2,Sens,0) -> 1.047 | M25: 0.8470379586 | N25: =VLOOKUP(A25,Trends!$A$3:$Z$94,IF(ExFlg=0,19,23))+IF(B25>=$B$2,Sens,0) -> 1.047 | O25: 0.7923855426 | P25: =VLOOKUP(A25,Trends!$A$3:$Q$94,IF(ExFlg=0,6,14))+IF(B25>=$B$2,Sens,0) -> 1.045 | Q25: 0.8358623079 | R25: =VLOOKUP(A25,Trends!$A$3:$Q$94,IF(ExFlg=0,8,16))+IF(B25>=$B$2,Sens,0) -> 1.046 | S25: 0.8585176599 | T25: =VLOOKUP(A25,Trends!$A$3:$Z$94,IF(ExFlg=0,21,25))+IF(B25>=$B$2,Sens,0) -> 1.046 | U25: 0.8328422451 | W25: 11034.15157 | X25: 7810.478469 | Y25: 3223.6731 | AA25: 7914.968741 | AB25: 7706.755981 | AC25: 208.2127606 | AE25: 1213.356155 | AG25: =IF(B25<71,VLOOKUP(B25,Lookups!A:F,6),"") -> 0.04 | AH25: =IF(B25<71,VLOOKUP(Active!B25,Lookups!A:G,7),"") -> 0.02 | AI25: 0.03 | AJ25: =IF(B25<55,VLOOKUP(B25-$B$3,Lookups!$O$3:$Q$53,2),"") ->  | AK25: =IF(B25<55,VLOOKUP(B25-$B$3,Lookups!$O$3:$Q$53,3),"") ->  | AM25: =IF(B25<55,VLOOKUP(B25,Lookups!A:M,12),"") ->  | AN25: =IF(B25<55,VLOOKUP(B25,Lookups!A:M,13),"") ->  | AP25: =IF(B25<70,VLOOKUP(B25,Lookups!A:H,8)*(1-VLOOKUP(B25,Lookups!$U$3:$W$103,2))^(B25-$B$2),"") -> 0.003923694779 | AQ25: =IF(B25<70,VLOOKUP(B25,Lookups!A:I,9)*(1-VLOOKUP(B25,Lookups!$U$3:$W$103,3))^(B25-$B$2),"") -> 0.002742195368 | AR25: 0.003332945073 | AS25: 0.03333294507 | AT25: =IF(B25<71,IF(B25=$B$2,1, IF(B25<$B$2, AT26/(1-AS25), AT24*(1-AS24))),"") -> 1.137500794 | AU25: 1.108717875 | AV25: 68 | AW25: =IF(BD25>=$B$3,VLOOKUP(BD25,Lookups!A:H,8)*(1-VLOOKUP(BD25,Lookups!U:W,2))^(BD25-$B$2),"") -> 0.010528259 | AX25: =IF(BD25>=$B$3,VLOOKUP(BD25,Lookups!A:I,9)*(1-VLOOKUP(BD25,Lookups!U:W,3))^(BD25-$B$2),"") -> 0.008673992338 | AY25: 0.009601125667 | AZ25: 0.9338500383 | BA25: 0.6394041529 | BB25: 0.980249 | BD25: 68 | BE25: 2249.706713 | BQ25: 1316.785106 | BR25: 1366.496518 | BS25: 1418.523586 | BT25: 1473.081611 | BU25: 1530.223252 | BV25: 1590.147701 | BW25: 1653.07488 | BX25: 1719.276834 | BY25: 1789.066673 | BZ25: 1862.85465 | CA25: 1941.061752 | CB25: =IF(BE25<>"",$BE25*$AZ25/$AZ$23*$BA25/$BA$23*$BB25,"") -> 2023.890064 | CC25: =IF(BE25<>"",$BE25*$AZ25/$AZ$24*$BA25/$BA$24*$BB25,"") -> 2111.783869 | CD25: =IF(BE25<>"",$BE25*$AZ25/$AZ$25*$BA25/$BA$25*$BB25,"") -> 2205.272755 | CN25: Age | CO25: Service | CP25: Salary
A26: 2018 | B26: 58 | D26: =VLOOKUP(B26,Lookups!A:B,2) -> 13311.51254 | E26: =VLOOKUP(B26,Lookups!A:C,3) -> 9083.932034 | G26: =VLOOKUP(B26,Lookups!A:D,4) -> 9822.152789 | H26: =VLOOKUP(B26,Lookups!A:E,5) -> 9220.12622 | J26: =VLOOKUP(A26,Trends!$A$3:$Q$94,IF(ExFlg=0,2,10))+IF(B26>=$B$2,Sens,0) -> 1.047 | K26: 0.8985040806 | L26: =VLOOKUP(A26,Trends!$A$3:$Q$94,IF(ExFlg=0,4,12))+IF(B26>=$B$2,Sens,0) -> 1.046 | M26: 0.8868487426 | N26: =VLOOKUP(A26,Trends!$A$3:$Z$94,IF(ExFlg=0,19,23))+IF(B26>=$B$2,Sens,0) -> 1.04 | O26: 0.8296276631 | P26: =VLOOKUP(A26,Trends!$A$3:$Q$94,IF(ExFlg=0,6,14))+IF(B26>=$B$2,Sens,0) -> 1.077 | Q26: 0.8734761117 | R26: =VLOOKUP(A26,Trends!$A$3:$Q$94,IF(ExFlg=0,8,16))+IF(B26>=$B$2,Sens,0) -> 1.033 | S26: 0.8980094722 | T26: =VLOOKUP(A26,Trends!$A$3:$Z$94,IF(ExFlg=0,21,25))+IF(B26>=$B$2,Sens,0) -> 1.024 | U26: 0.8711529884 | W26: 11960.44834 | X26: 8161.95 | Y26: 3798.498338 | AA26: 8579.415827 | AB26: 8053.56 | AC26: 525.8558272 | AE26: 1616.725755 | AG26: =IF(B26<71,VLOOKUP(B26,Lookups!A:F,6),"") -> 0.05 | AH26: =IF(B26<71,VLOOKUP(Active!B26,Lookups!A:G,7),"") -> 0.02 | AI26: 0.035 | AJ26: =IF(B26<55,VLOOKUP(B26-$B$3,Lookups!$O$3:$Q$53,2),"") ->  | AK26: =IF(B26<55,VLOOKUP(B26-$B$3,Lookups!$O$3:$Q$53,3),"") ->  | AM26: =IF(B26<55,VLOOKUP(B26,Lookups!A:M,12),"") ->  | AN26: =IF(B26<55,VLOOKUP(B26,Lookups!A:M,13),"") ->  | AP26: =IF(B26<70,VLOOKUP(B26,Lookups!A:H,8)*(1-VLOOKUP(B26,Lookups!$U$3:$W$103,2))^(B26-$B$2),"") -> 0.004288 | AQ26: =IF(B26<70,VLOOKUP(B26,Lookups!A:I,9)*(1-VLOOKUP(B26,Lookups!$U$3:$W$103,3))^(B26-$B$2),"") -> 0.00301 | AR26: 0.003649 | AS26: 0.038649 | AT26: 1.099584543 | AU26: 1.071225 | AV26: 69 | AW26: =IF(BD26>=$B$3,VLOOKUP(BD26,Lookups!A:H,8)*(1-VLOOKUP(BD26,Lookups!U:W,2))^(BD26-$B$2),"") -> 0.01152880469 | AX26: =IF(BD26>=$B$3,VLOOKUP(BD26,Lookups!A:I,9)*(1-VLOOKUP(BD26,Lookups!U:W,3))^(BD26-$B$2),"") -> 0.009473566571 | AY26: 0.01050118563 | AZ26: 0.9248840268 | BA26: 0.6177817903 | BB26: 0.979851 | BD26: 69 | BE26: 2501.635012 | BQ26: 1400.574995 | BR26: 1453.449652 | BS26: 1508.787315 | BT26: 1566.816985 | BU26: 1627.594673 | BV26: 1691.332244 | BW26: 1758.263616 | BX26: 1828.678144 | BY26: 1902.908862 | BZ26: 1981.392127 | CA26: 2064.575717 | CB26: 2152.674573 | CC26: =IF(BE26<>"",$BE26*$AZ26/$AZ$24*$BA26/$BA$24*$BB26,"") -> 2246.161252 | CD26: =IF(BE26<>"",$BE26*$AZ26/$AZ$25*$BA26/$BA$25*$BB26,"") -> 2345.599039 | CE26: =IF(BE26<>"",$BE26*$AZ26/$AZ$26*$BA26/$BA$26*$BB26,"") -> 2451.229568 | CN26: =IF(OR(CN27<=($CN$76-MS), CN27 = 20), CN27, CN27-1) -> 35 | CO26: =IF(CO27=0,0,CO27-1) -> 0 | CP26: =IF(CN26<CN27,CP27*1/(1-VLOOKUP(CN26,$B$3:$AU$93,44,FALSE)) * (1+IntRt) * 1/(1+GSG) * 1/VLOOKUP(MIN(CO26,30),$CR$63:$CT$93,3,FALSE), "") -> 
A27: 2019 | B27: 59 | D27: =VLOOKUP(B27,Lookups!A:B,2) -> 13808.79116 | E27: =VLOOKUP(B27,Lookups!A:C,3) -> 9083.932034 | G27: =VLOOKUP(B27,Lookups!A:D,4) -> 10189.07927 | H27: =VLOOKUP(B27,Lookups!A:E,5) -> 9220.12622 | J27: =VLOOKUP(A27,Trends!$A$3:$Q$94,IF(ExFlg=0,2,10))+IF(B27>=$B$2,Sens,0) -> 1.063 | K27: 0.9407337723 | L27: =VLOOKUP(A27,Trends!$A$3:$Q$94,IF(ExFlg=0,4,12))+IF(B27>=$B$2,Sens,0) -> 1.078 | M27: 0.9276437848 | N27: =VLOOKUP(A27,Trends!$A$3:$Z$94,IF(ExFlg=0,19,23))+IF(B27>=$B$2,Sens,0) -> 1.159 | O27: 0.8628127696 | P27: =VLOOKUP(A27,Trends!$A$3:$Q$94,IF(ExFlg=0,6,14))+IF(B27>=$B$2,Sens,0) -> 1.063 | Q27: 0.9407337723 | R27: =VLOOKUP(A27,Trends!$A$3:$Q$94,IF(ExFlg=0,8,16))+IF(B27>=$B$2,Sens,0) -> 1.078 | S27: 0.9276437848 | T27: =VLOOKUP(A27,Trends!$A$3:$Z$94,IF(ExFlg=0,21,25))+IF(B27>=$B$2,Sens,0) -> 1.121 | U27: 0.8920606601 | W27: 12990.3962 | X27: 8545.56165 | Y27: 4444.834551 | AA27: 9585.210975 | AB27: 8673.68412 | AC27: 911.5268553 | AE27: 2089.284309 | AG27: =IF(B27<71,VLOOKUP(B27,Lookups!A:F,6),"") -> 0.06 | AH27: =IF(B27<71,VLOOKUP(Active!B27,Lookups!A:G,7),"") -> 0.04 | AI27: 0.05 | AJ27: =IF(B27<55,VLOOKUP(B27-$B$3,Lookups!$O$3:$Q$53,2),"") ->  | AK27: =IF(B27<55,VLOOKUP(B27-$B$3,Lookups!$O$3:$Q$53,3),"") ->  | AM27: =IF(B27<55,VLOOKUP(B27,Lookups!A:M,12),"") ->  | AN27: =IF(B27<55,VLOOKUP(B27,Lookups!A:M,13),"") ->  | AP27: =IF(B27<70,VLOOKUP(B27,Lookups!A:H,8)*(1-VLOOKUP(B27,Lookups!$U$3:$W$103,2))^(B27-$B$2),"") -> 0.004703608 | AQ27: =IF(B27<70,VLOOKUP(B27,Lookups!A:I,9)*(1-VLOOKUP(B27,Lookups!$U$3:$W$103,3))^(B27-$B$2),"") -> 0.003303994 | AR27: 0.004003801 | AS27: 0.054003801 | AT27: =IF(B27<71,IF(B27=$B$2,1, IF(B27<$B$2, AT28/(1-AS27), AT26*(1-AS26))),"") -> 1.0570867 | AU27: 1.035 | AV27: 70 | AW27: =IF(BD27>=$B$3,VLOOKUP(BD27,Lookups!A:H,8)*(1-VLOOKUP(BD27,Lookups!U:W,2))^(BD27-$B$2),"") -> 0.01258371487 | AX27: =IF(BD27>=$B$3,VLOOKUP(BD27,Lookups!A:I,9)*(1-VLOOKUP(BD27,Lookups!U:W,3))^(BD27-$B$2),"") -> 0.0103452713 | AY27: 0.01146449308 | AZ27: 0.9151716479 | BA27: 0.5968906186 | BB27: 0.979424 | BD27: 70 | BE27: 2778.333494 | BQ27: 1486.457261 | BR27: 1542.574153 | BS27: 1601.305083 | BT27: 1662.893092 | BU27: 1727.397624 | BV27: 1795.043538 | BW27: 1866.079094 | BX27: 1940.811391 | BY27: 2019.593883 | BZ27: 2102.889687 | CA27: 2191.174036 | CB27: 2284.675051 | CC27: 2383.894267 | CD27: =IF(BE27<>"",$BE27*$AZ27/$AZ$25*$BA27/$BA$25*$BB27,"") -> 2489.429508 | CE27: =IF(BE27<>"",$BE27*$AZ27/$AZ$26*$BA27/$BA$26*$BB27,"") -> 2601.537227 | CF27: =IF(BE27<>"",$BE27*$AZ27/$AZ$27*$BA27/$BA$27*$BB27,"") -> 2721.166504 | CN27: 35 | CO27: 0
A28: 2020 | B28: 60 | D28: =VLOOKUP(B28,Lookups!A:B,2) -> 14325.83527 | E28: =VLOOKUP(B28,Lookups!A:C,3) -> 9083.932034 | G28: =VLOOKUP(B28,Lookups!A:D,4) -> 10570.59009 | H28: =VLOOKUP(B28,Lookups!A:E,5) -> 9220.12622 | J28: =VLOOKUP(A28,Trends!$A$3:$Q$94,IF(ExFlg=0,2,10))+IF(B28>=$B$2,Sens,0) -> 1.06 | K28: 1 | L28: =VLOOKUP(A28,Trends!$A$3:$Q$94,IF(ExFlg=0,4,12))+IF(B28>=$B$2,Sens,0) -> 1.078 | M28: 1 | N28: =VLOOKUP(A28,Trends!$A$3:$Z$94,IF(ExFlg=0,19,23))+IF(B28>=$B$2,Sens,0) -> 1.148 | O28: 1 | P28: =VLOOKUP(A28,Trends!$A$3:$Q$94,IF(ExFlg=0,6,14))+IF(B28>=$B$2,Sens,0) -> 1.06 | Q28: 1 | R28: =VLOOKUP(A28,Trends!$A$3:$Q$94,IF(ExFlg=0,8,16))+IF(B28>=$B$2,Sens,0) -> 1.078 | S28: 1 | T28: =VLOOKUP(A28,Trends!$A$3:$Z$94,IF(ExFlg=0,21,25))+IF(B28>=$B$2,Sens,0) -> 1.117 | U28: 1 | W28: =IF(B28<65,D28*K28,D28*M28) -> 14325.83527 | X28: 9083.932034 | Y28: 5241.903237 | AA28: 10570.59009 | AB28: 9220.12622 | AC28: 1350.463867 | AE28: 2647.597352 | AG28: =IF(B28<71,VLOOKUP(B28,Lookups!A:F,6),"") -> 0.07 | AH28: =IF(B28<71,VLOOKUP(Active!B28,Lookups!A:G,7),"") -> 0.06 | AI28: 0.065 | AJ28: =IF(B28<55,VLOOKUP(B28-$B$3,Lookups!$O$3:$Q$53,2),"") ->  | AK28: =IF(B28<55,VLOOKUP(B28-$B$3,Lookups!$O$3:$Q$53,3),"") ->  | AM28: =IF(B28<55,VLOOKUP(B28,Lookups!A:M,12),"") ->  | AN28: =IF(B28<55,VLOOKUP(B28,Lookups!A:M,13),"") ->  | AP28: =IF(B28<70,VLOOKUP(B28,Lookups!A:H,8)*(1-VLOOKUP(B28,Lookups!$U$3:$W$103,2))^(B28-$B$2),"") -> 0.005165910711 | AQ28: =IF(B28<70,VLOOKUP(B28,Lookups!A:I,9)*(1-VLOOKUP(B28,Lookups!$U$3:$W$103,3))^(B28-$B$2),"") -> 0.0036322506 | AR28: 0.004399080655 | AS28: 0.06939908066 | AT28: 1 | AU28: =IF(B28<71,IF(B28=$B$2,1,IF(B28<$B$2,AU29*(1+IntRt),AU27/(1+IntRt))),"") -> 1 | AV28: 71 | AW28: =IF(BD28>=$B$3,VLOOKUP(BD28,Lookups!A:H,8)*(1-VLOOKUP(BD28,Lookups!U:W,2))^(BD28-$B$2),"") -> 0.01389934535 | AX28: =IF(BD28>=$B$3,VLOOKUP(BD28,Lookups!A:I,9)*(1-VLOOKUP(BD28,Lookups!U:W,3))^(BD28-$B$2),"") -> 0.01151522303 | AY28: 0.01270728419 | AZ28: 0.9046796689 | BA28: 0.5767059117 | BB28: 0.978874 | BD28: 71 | BE28: 3080.375903 | BQ28: 1573.18481 | BR28: 1632.57585 | BS28: 1694.733443 | BT28: 1759.914813 | BU28: 1828.182871 | BV28: 1899.775595 | BW28: 1974.95573 | BX28: 2054.048293 | BY28: 2137.427361 | BZ28: 2225.583069 | CA28: 2319.01838 | CB28: 2417.974725 | CC28: 2522.982899 | CD28: 2634.675608 | CE28: =IF(BE28<>"",$BE28*$AZ28/$AZ$26*$BA28/$BA$26*$BB28,"") -> 2753.324267 | CF28: =IF(BE28<>"",$BE28*$AZ28/$AZ$27*$BA28/$BA$27*$BB28,"") -> 2879.933331 | CN28: 35 | CO28: 0
A29: 2021 | B29: 61 | D29: =VLOOKUP(B29,Lookups!A:B,2) -> 14863.47228 | E29: =VLOOKUP(B29,Lookups!A:C,3) -> 9083.932034 | G29: =VLOOKUP(B29,Lookups!A:D,4) -> 10967.29577 | H29: =VLOOKUP(B29,Lookups!A:E,5) -> 9220.12622 | J29: =VLOOKUP(A29,Trends!$A$3:$Q$94,IF(ExFlg=0,2,10))+IF(B29>=$B$2,Sens,0) -> 1.052 | K29: =IF(B29=$B$2,1,IF(B29<$B$2,K30/J29,K28*J28)) -> 1.06 | L29: =VLOOKUP(A29,Trends!$A$3:$Q$94,IF(ExFlg=0,4,12))+IF(B29>=$B$2,Sens,0) -> 1.051 | M29: 1.078 | N29: =VLOOKUP(A29,Trends!$A$3:$Z$94,IF(ExFlg=0,19,23))+IF(B29>=$B$2,Sens,0) -> 1.072 | O29: 1.148 | P29: =VLOOKUP(A29,Trends!$A$3:$Q$94,IF(ExFlg=0,6,14))+IF(B29>=$B$2,Sens,0) -> 1.052 | Q29: 1.06 | R29: =VLOOKUP(A29,Trends!$A$3:$Q$94,IF(ExFlg=0,8,16))+IF(B29>=$B$2,Sens,0) -> 1.052 | S29: 1.078 | T29: =VLOOKUP(A29,Trends!$A$3:$Z$94,IF(ExFlg=0,21,25))+IF(B29>=$B$2,Sens,0) -> 1.065 | U29: 1.117 | W29: 15755.28062 | X29: 9628.967956 | Y29: 6126.312661 | AA29: 11625.33351 | AB29: 9773.333793 | AC29: 1851.999721 | AE29: 3276.756453 | AG29: =IF(B29<71,VLOOKUP(B29,Lookups!A:F,6),"") -> 0.08 | AH29: =IF(B29<71,VLOOKUP(Active!B29,Lookups!A:G,7),"") -> 0.13 | AI29: 0.105 | AJ29: =IF(B29<55,VLOOKUP(B29-$B$3,Lookups!$O$3:$Q$53,2),"") ->  | AK29: =IF(B29<55,VLOOKUP(B29-$B$3,Lookups!$O$3:$Q$53,3),"") ->  | AM29: =IF(B29<55,VLOOKUP(B29,Lookups!A:M,12),"") ->  | AN29: =IF(B29<55,VLOOKUP(B29,Lookups!A:M,13),"") ->  | AP29: =IF(B29<70,VLOOKUP(B29,Lookups!A:H,8)*(1-VLOOKUP(B29,Lookups!$U$3:$W$103,2))^(B29-$B$2),"") -> 0.005699982098 | AQ29: =IF(B29<70,VLOOKUP(B29,Lookups!A:I,9)*(1-VLOOKUP(B29,Lookups!$U$3:$W$103,3))^(B29-$B$2),"") -> 0.004006812033 | AR29: 0.004853397066 | AS29: 0.1098533971 | AT29: =IF(B29<71,IF(B29=$B$2,1, IF(B29<$B$2, AT30/(1-AS29), AT28*(1-AS28))),"") -> 0.9306009193 | AU29: 0.9661835749 | AV29: 72 | AW29: =IF(BD29>=$B$3,VLOOKUP(BD29,Lookups!A:H,8)*(1-VLOOKUP(BD29,Lookups!U:W,2))^(BD29-$B$2),"") -> 0.01514839671 | AX29: =IF(BD29>=$B$3,VLOOKUP(BD29,Lookups!A:I,9)*(1-VLOOKUP(BD29,Lookups!U:W,3))^(BD29-$B$2),"") -> 0.01262520437 | AY29: 0.01388680054 | AZ29: 0.8931836472 | BA29: 0.5572037794 | BB29: 0.978351 | BD29: 72 | BE29: 3355.686636 | BQ29: 1633.92045 | BR29: 1695.604388 | BS29: 1760.161687 | BT29: 1827.859502 | BU29: 1898.763171 | BV29: 1973.119861 | BW29: 2051.202462 | BX29: 2133.348535 | BY29: 2219.946603 | BZ29: 2311.505721 | CA29: 2408.548271 | CB29: 2511.325004 | CC29: 2620.387208 | CD29: 2736.392016 | CE29: 2859.62132 | CF29: =IF(BE29<>"",$BE29*$AZ29/$AZ$27*$BA29/$BA$27*$BB29,"") -> 2991.118356 | CN29: 35 | CO29: 0
A30: 2022 | B30: 62 | D30: =VLOOKUP(B30,Lookups!A:B,2) -> 15637.89924 | E30: =VLOOKUP(B30,Lookups!A:C,3) -> 9083.932034 | G30: =VLOOKUP(B30,Lookups!A:D,4) -> 11538.72141 | H30: =VLOOKUP(B30,Lookups!A:E,5) -> 9220.12622 | J30: =VLOOKUP(A30,Trends!$A$3:$Q$94,IF(ExFlg=0,2,10))+IF(B30>=$B$2,Sens,0) -> 1.052 | K30: =IF(B30=$B$2,1,IF(B30<$B$2,K31/J30,K29*J29)) -> 1.11512 | L30: =VLOOKUP(A30,Trends!$A$3:$Q$94,IF(ExFlg=0,4,12))+IF(B30>=$B$2,Sens,0) -> 1.051 | M30: 1.132978 | N30: =VLOOKUP(A30,Trends!$A$3:$Z$94,IF(ExFlg=0,19,23))+IF(B30>=$B$2,Sens,0) -> 1.053 | O30: 1.230656 | P30: =VLOOKUP(A30,Trends!$A$3:$Q$94,IF(ExFlg=0,6,14))+IF(B30>=$B$2,Sens,0) -> 1.052 | Q30: 1.11512 | R30: =VLOOKUP(A30,Trends!$A$3:$Q$94,IF(ExFlg=0,8,16))+IF(B30>=$B$2,Sens,0) -> 1.052 | S30: 1.134056 | T30: =VLOOKUP(A30,Trends!$A$3:$Z$94,IF(ExFlg=0,21,25))+IF(B30>=$B$2,Sens,0) -> 1.054 | U30: 1.189605 | W30: =IF(B30<65,D30*K30,D30*M30) -> 17438.1342 | X30: 10129.67429 | Y30: 7308.459915 | AA30: 12867.05902 | AB30: 10281.54715 | AC30: 2585.511871 | AE30: 4159.812142 | AG30: =IF(B30<71,VLOOKUP(B30,Lookups!A:F,6),"") -> 0.24 | AH30: =IF(B30<71,VLOOKUP(Active!B30,Lookups!A:G,7),"") -> 0.2 | AI30: 0.22 | AJ30: =IF(B30<55,VLOOKUP(B30-$B$3,Lookups!$O$3:$Q$53,2),"") ->  | AK30: =IF(B30<55,VLOOKUP(B30-$B$3,Lookups!$O$3:$Q$53,3),"") ->  | AM30: =IF(B30<55,VLOOKUP(B30,Lookups!A:M,12),"") ->  | AN30: =IF(B30<55,VLOOKUP(B30,Lookups!A:M,13),"") ->  | AP30: =IF(B30<70,VLOOKUP(B30,Lookups!A:H,8)*(1-VLOOKUP(B30,Lookups!$U$3:$W$103,2))^(B30-$B$2),"") -> 0.0062913232 | AQ30: =IF(B30<70,VLOOKUP(B30,Lookups!A:I,9)*(1-VLOOKUP(B30,Lookups!$U$3:$W$103,3))^(B30-$B$2),"") -> 0.004457465555 | AR30: 0.005374394377 | AS30: 0.2253743944 | AT30: 0.828371247 | AU30: 0.9335107004 | AV30: 73 | AW30: =IF(BD30>=$B$3,VLOOKUP(BD30,Lookups!A:H,8)*(1-VLOOKUP(BD30,Lookups!U:W,2))^(BD30-$B$2),"") -> 0.01656729842 | AX30: =IF(BD30>=$B$3,VLOOKUP(BD30,Lookups!A:I,9)*(1-VLOOKUP(BD30,Lookups!U:W,3))^(BD30-$B$2),"") -> 0.01387459459 | AY30: 0.01522094651 | AZ30: 0.8807801841 | BA30: 0.5383611396 | BB30: 0.97776 | BD30: 73 | BE30: 3653.148352 | BQ30: 1693.716874 | BR30: 1757.658254 | BS30: 1824.57815 | BT30: 1894.753494 | BU30: 1968.252018 | BV30: 2045.329933 | BW30: 2126.270114 | BX30: 2211.42248 | BY30: 2301.189768 | BZ30: 2396.099666 | CA30: 2496.693673 | CB30: 2603.231716 | CC30: 2716.285259 | CD30: 2836.535483 | CE30: 2964.274598 | CF30: 3100.584017 | CN30: 35 | CO30: 0
A31: 2023 | B31: 63 | D31: =VLOOKUP(B31,Lookups!A:B,2) -> 16455.77852 | E31: =VLOOKUP(B31,Lookups!A:C,3) -> 9083.932034 | G31: =VLOOKUP(B31,Lookups!A:D,4) -> 12142.20917 | H31: =VLOOKUP(B31,Lookups!A:E,5) -> 9220.12622 | J31: =VLOOKUP(A31,Trends!$A$3:$Q$94,IF(ExFlg=0,2,10))+IF(B31>=$B$2,Sens,0) -> 1.052 | K31: 1.17310624 | L31: =VLOOKUP(A31,Trends!$A$3:$Q$94,IF(ExFlg=0,4,12))+IF(B31>=$B$2,Sens,0) -> 1.052 | M31: 1.190759878 | N31: =VLOOKUP(A31,Trends!$A$3:$Z$94,IF(ExFlg=0,19,23))+IF(B31>=$B$2,Sens,0) -> 1.054 | O31: 1.295880768 | P31: =VLOOKUP(A31,Trends!$A$3:$Q$94,IF(ExFlg=0,6,14))+IF(B31>=$B$2,Sens,0) -> 1.053 | Q31: 1.17310624 | R31: =VLOOKUP(A31,Trends!$A$3:$Q$94,IF(ExFlg=0,8,16))+IF(B31>=$B$2,Sens,0) -> 1.052 | S31: 1.193026912 | T31: =VLOOKUP(A31,Trends!$A$3:$Z$94,IF(ExFlg=0,21,25))+IF(B31>=$B$2,Sens,0) -> 1.054 | U31: 1.25384367 | W31: 19304.37647 | X31: 10656.41735 | Y31: 8647.959113 | AA31: 14244.10134 | AB31: 10816.1876 | AC31: 3427.913743 | AE31: 5167.911466 | AG31: =IF(B31<71,VLOOKUP(B31,Lookups!A:F,6),"") -> 0.22 | AH31: =IF(B31<71,VLOOKUP(Active!B31,Lookups!A:G,7),"") -> 0.18 | AI31: 0.2 | AJ31: =IF(B31<55,VLOOKUP(B31-$B$3,Lookups!$O$3:$Q$53,2),"") ->  | AK31: =IF(B31<55,VLOOKUP(B31-$B$3,Lookups!$O$3:$Q$53,3),"") ->  | AM31: =IF(B31<55,VLOOKUP(B31,Lookups!A:M,12),"") ->  | AN31: =IF(B31<55,VLOOKUP(B31,Lookups!A:M,13),"") ->  | AP31: =IF(B31<70,VLOOKUP(B31,Lookups!A:H,8)*(1-VLOOKUP(B31,Lookups!$U$3:$W$103,2))^(B31-$B$2),"") -> 0.006949835285 | AQ31: =IF(B31<70,VLOOKUP(B31,Lookups!A:I,9)*(1-VLOOKUP(B31,Lookups!$U$3:$W$103,3))^(B31-$B$2),"") -> 0.005043202065 | AR31: 0.005996518675 | AS31: 0.2059965187 | AT31: 0.6416775789 | AU31: 0.9019427057 | AV31: 74 | AW31: =IF(BD31>=$B$3,VLOOKUP(BD31,Lookups!A:H,8)*(1-VLOOKUP(BD31,Lookups!U:W,2))^(BD31-$B$2),"") -> 0.01817656956 | AX31: =IF(BD31>=$B$3,VLOOKUP(BD31,Lookups!A:I,9)*(1-VLOOKUP(BD31,Lookups!U:W,3))^(BD31-$B$2),"") -> 0.01523726684 | AY31: 0.0167069182 | AZ31: 0.867373876 | BA31: 0.5201556904 | BB31: 0.977102 | BD31: 74 | BE31: 3974.444603 | BQ31: 1752.088511 | BR31: 1818.233543 | BS31: 1887.459742 | BT31: 1960.053584 | BU31: 2036.085134 | BV31: 2115.819434 | BW31: 2199.549108 | BX31: 2287.636133 | BY31: 2380.497128 | BZ31: 2478.677966 | CA31: 2582.738808 | CB31: 2692.948539 | CC31: 2809.898318 | CD31: 2934.292802 | CE31: 3066.434271 | CF31: 3207.441408 | CN31: 35 | CO31: 0
A32: 2024 | B32: 64 | D32: =VLOOKUP(B32,Lookups!A:B,2) -> 17319.69583 | E32: =VLOOKUP(B32,Lookups!A:C,3) -> 9083.932034 | G32: =VLOOKUP(B32,Lookups!A:D,4) -> 12779.66696 | H32: =VLOOKUP(B32,Lookups!A:E,5) -> 9220.12622 | J32: =VLOOKUP(A32,Trends!$A$3:$Q$94,IF(ExFlg=0,2,10))+IF(B32>=$B$2,Sens,0) -> 1.053 | K32: 1.234107764 | L32: =VLOOKUP(A32,Trends!$A$3:$Q$94,IF(ExFlg=0,4,12))+IF(B32>=$B$2,Sens,0) -> 1.052 | M32: 1.252679392 | N32: =VLOOKUP(A32,Trends!$A$3:$Z$94,IF(ExFlg=0,19,23))+IF(B32>=$B$2,Sens,0) -> 1.054 | O32: 1.365858329 | P32: =VLOOKUP(A32,Trends!$A$3:$Q$94,IF(ExFlg=0,6,14))+IF(B32>=$B$2,Sens,0) -> 1.053 | Q32: 1.235280871 | R32: =VLOOKUP(A32,Trends!$A$3:$Q$94,IF(ExFlg=0,8,16))+IF(B32>=$B$2,Sens,0) -> 1.053 | S32: 1.255064311 | T32: =VLOOKUP(A32,Trends!$A$3:$Z$94,IF(ExFlg=0,21,25))+IF(B32>=$B$2,Sens,0) -> 1.055 | U32: 1.321551228 | W32: 21374.3711 | X32: 11210.55106 | Y32: 10163.82005 | AA32: 15786.47813 | AB32: 11389.44554 | AC32: 4397.03259 | AE32: 6319.275853 | AG32: =IF(B32<71,VLOOKUP(B32,Lookups!A:F,6),"") -> 0.56 | AH32: =IF(B32<71,VLOOKUP(Active!B32,Lookups!A:G,7),"") -> 0.56 | AI32: 0.56 | AJ32: =IF(B32<55,VLOOKUP(B32-$B$3,Lookups!$O$3:$Q$53,2),"") ->  | AK32: =IF(B32<55,VLOOKUP(B32-$B$3,Lookups!$O$3:$Q$53,3),"") ->  | AM32: =IF(B32<55,VLOOKUP(B32,Lookups!A:M,12),"") ->  | AN32: =IF(B32<55,VLOOKUP(B32,Lookups!A:M,13),"") ->  | AP32: =IF(B32<70,VLOOKUP(B32,Lookups!A:H,8)*(1-VLOOKUP(B32,Lookups!$U$3:$W$103,2))^(B32-$B$2),"") -> 0.007678145452 | AQ32: =IF(B32<70,VLOOKUP(B32,Lookups!A:I,9)*(1-VLOOKUP(B32,Lookups!$U$3:$W$103,3))^(B32-$B$2),"") -> 0.005723993863 | AR32: 0.006701069657 | AS32: 0.5667010697 | AT32: 0.5094942316 | AU32: 0.8714422277 | AV32: 75 | AW32: =IF(BD32>=$B$3,VLOOKUP(BD32,Lookups!A:H,8)*(1-VLOOKUP(BD32,Lookups!U:W,2))^(BD32-$B$2),"") -> 0.01997436884 | AX32: =IF(BD32>=$B$3,VLOOKUP(BD32,Lookups!A:I,9)*(1-VLOOKUP(BD32,Lookups!U:W,3))^(BD32-$B$2),"") -> 0.01668496217 | AY32: 0.01832966551 | AZ32: 0.8528827316 | BA32: 0.5025658844 | BB32: 0.976384 | BD32: 75 | BE32: 4321.3825 | BQ32: 1808.52988 | BR32: 1876.805692 | BS32: 1948.261928 | BT32: 2023.194291 | BU32: 2101.675103 | BV32: 2183.977945 | BW32: 2270.404867 | BX32: 2361.329507 | BY32: 2457.181905 | BZ32: 2558.525517 | CA32: 2665.93855 | CB32: 2779.698552 | CC32: 2900.415724 | CD32: 3028.817422 | CE32: 3165.215665 | CF32: 3310.765173 | CN32: 35 | CO32: 0
A33: 2025 | B33: 65 | D33: =VLOOKUP(B33,Lookups!A:B,2) -> 3925.257863 | E33: =VLOOKUP(B33,Lookups!A:C,3) -> 2359.564522 | G33: =VLOOKUP(B33,Lookups!A:D,4) -> 5780.957953 | H33: =VLOOKUP(B33,Lookups!A:E,5) -> 4378.610934 | J33: =VLOOKUP(A33,Trends!$A$3:$Q$94,IF(ExFlg=0,2,10))+IF(B33>=$B$2,Sens,0) -> 1.053 | K33: 1.299515476 | L33: =VLOOKUP(A33,Trends!$A$3:$Q$94,IF(ExFlg=0,4,12))+IF(B33>=$B$2,Sens,0) -> 1.052 | M33: 1.31781872 | N33: =VLOOKUP(A33,Trends!$A$3:$Z$94,IF(ExFlg=0,19,23))+IF(B33>=$B$2,Sens,0) -> 1.054 | O33: =IF(B33=$B$2,1,IF(B33<$B$2,O34/N33,O32*N32)) -> 1.439614679 | P33: =VLOOKUP(A33,Trends!$A$3:$Q$94,IF(ExFlg=0,6,14))+IF(B33>=$B$2,Sens,0) -> 1.053 | Q33: 1.300750757 | R33: =VLOOKUP(A33,Trends!$A$3:$Q$94,IF(ExFlg=0,8,16))+IF(B33>=$B$2,Sens,0) -> 1.053 | S33: 1.32158272 | T33: =VLOOKUP(A33,Trends!$A$3:$Z$94,IF(ExFlg=0,21,25))+IF(B33>=$B$2,Sens,0) -> 1.055 | U33: 1.394236546 | W33: 5172.778292 | X33: 3396.863722 | Y33: 1775.91457 | AA33: =IF(B33<65,G33*Q33,G33*S33) -> 7640.014135 | AB33: 6104.819383 | AC33: 1535.194752 | AE33: 1615.433889 | AG33: =IF(B33<71,VLOOKUP(B33,Lookups!A:F,6),"") -> 0.4 | AH33: =IF(B33<71,VLOOKUP(Active!B33,Lookups!A:G,7),"") -> 0.4 | AI33: 0.4 | AJ33: =IF(B33<55,VLOOKUP(B33-$B$3,Lookups!$O$3:$Q$53,2),"") ->  | AK33: =IF(B33<55,VLOOKUP(B33-$B$3,Lookups!$O$3:$Q$53,3),"") ->  | AM33: =IF(B33<55,VLOOKUP(B33,Lookups!A:M,12),"") ->  | AN33: =IF(B33<55,VLOOKUP(B33,Lookups!A:M,13),"") ->  | AP33: =IF(B33<70,VLOOKUP(B33,Lookups!A:H,8)*(1-VLOOKUP(B33,Lookups!$U$3:$W$103,2))^(B33-$B$2),"") -> 0.008341438412 | AQ33: =IF(B33<70,VLOOKUP(B33,Lookups!A:I,9)*(1-VLOOKUP(B33,Lookups!$U$3:$W$103,3))^(B33-$B$2),"") -> 0.006373935972 | AR33: 0.007357687192 | AS33: 0.4073576872 | AT33: 0.2207633055 | AU33: 0.8419731669 | AV33: 76 | AW33: =IF(BD33>=$B$3,VLOOKUP(BD33,Lookups!A:H,8)*(1-VLOOKUP(BD33,Lookups!U:W,2))^(BD33-$B$2),"") -> 0.02195792669 | AX33: =IF(BD33>=$B$3,VLOOKUP(BD33,Lookups!A:I,9)*(1-VLOOKUP(BD33,Lookups!U:W,3))^(BD33-$B$2),"") -> 0.01819871811 | AY33: 0.0200783224 | AZ33: 0.8372496764 | BA33: 0.4855709028 | BB33: 0.975609 | BD33: 76 | BE33: 4697.337564 | BQ33: 1863.095907 | BR33: 1933.431701 | BS33: 2007.043878 | BT33: 2084.237061 | BU33: 2165.085756 | BV33: 2249.871796 | BW33: 2338.906347 | BX33: 2432.574318 | BY33: 2531.318724 | BZ33: 2635.720024 | CA33: 2746.373868 | CB33: 2863.566177 | CC33: 2987.925565 | CD33: 3120.201333 | CE33: 3260.714913 | CF33: 3410.655865 | CN33: 35 | CO33: 0
A34: 2026 | B34: 66 | D34: =VLOOKUP(B34,Lookups!A:B,2) -> 3989.714068 | E34: =VLOOKUP(B34,Lookups!A:C,3) -> 2359.564522 | G34: =VLOOKUP(B34,Lookups!A:D,4) -> 5875.886412 | H34: =VLOOKUP(B34,Lookups!A:E,5) -> 4378.610934 | J34: =VLOOKUP(A34,Trends!$A$3:$Q$94,IF(ExFlg=0,2,10))+IF(B34>=$B$2,Sens,0) -> 1.053 | K34: 1.368389796 | L34: =VLOOKUP(A34,Trends!$A$3:$Q$94,IF(ExFlg=0,4,12))+IF(B34>=$B$2,Sens,0) -> 1.053 | M34: 1.386345293 | N34: =VLOOKUP(A34,Trends!$A$3:$Z$94,IF(ExFlg=0,19,23))+IF(B34>=$B$2,Sens,0) -> 1.055 | O34: 1.517353872 | P34: =VLOOKUP(A34,Trends!$A$3:$Q$94,IF(ExFlg=0,6,14))+IF(B34>=$B$2,Sens,0) -> 1.054 | Q34: 1.369690547 | R34: =VLOOKUP(A34,Trends!$A$3:$Q$94,IF(ExFlg=0,8,16))+IF(B34>=$B$2,Sens,0) -> 1.053 | S34: 1.391626604 | T34: =VLOOKUP(A34,Trends!$A$3:$Z$94,IF(ExFlg=0,21,25))+IF(B34>=$B$2,Sens,0) -> 1.055 | U34: 1.470919556 | W34: 5531.121321 | X34: 3580.294363 | Y34: 1950.826958 | AA34: =IF(B34<65,G34*Q34,G34*S34) -> 8177.039854 | AB34: 6440.584449 | AC34: 1736.455405 | AE34: 1807.911875 | AG34: =IF(B34<71,VLOOKUP(B34,Lookups!A:F,6),"") -> 0.24 | AH34: =IF(B34<71,VLOOKUP(Active!B34,Lookups!A:G,7),"") -> 0.24 | AI34: 0.24 | AJ34: =IF(B34<55,VLOOKUP(B34-$B$3,Lookups!$O$3:$Q$53,2),"") ->  | AK34: =IF(B34<55,VLOOKUP(B34-$B$3,Lookups!$O$3:$Q$53,3),"") ->  | AM34: =IF(B34<55,VLOOKUP(B34,Lookups!A:M,12),"") ->  | AN34: =IF(B34<55,VLOOKUP(B34,Lookups!A:M,13),"") ->  | AP34: =IF(B34<70,VLOOKUP(B34,Lookups!A:H,8)*(1-VLOOKUP(B34,Lookups!$U$3:$W$103,2))^(B34-$B$2),"") -> 0.009063748567 | AQ34: =IF(B34<70,VLOOKUP(B34,Lookups!A:I,9)*(1-VLOOKUP(B34,Lookups!$U$3:$W$103,3))^(B34-$B$2),"") -> 0.00709098539 | AR34: 0.008077366978 | AS34: 0.248077367 | AT34: 0.130833676 | AU34: 0.8135006443 | AV34: 77 | AW34: =IF(BD34>=$B$3,VLOOKUP(BD34,Lookups!A:H,8)*(1-VLOOKUP(BD34,Lookups!U:W,2))^(BD34-$B$2),"") -> 0.02410635322 | AX34: =IF(BD34>=$B$3,VLOOKUP(BD34,Lookups!A:I,9)*(1-VLOOKUP(BD34,Lookups!U:W,3))^(BD34-$B$2),"") -> 0.01981048594 | AY34: 0.02195841958 | AZ34: 0.8204391075 | BA34: 0.4691506308 | BB34: 0.974777 | BD34: 77 | BE34: 4996.408187 | BQ34: 1874.657108 | BR34: 1945.429362 | BS34: 2019.498329 | BT34: 2097.170525 | BU34: 2178.520916 | BV34: 2263.833085 | BW34: 2353.420128 | BX34: 2447.669344 | BY34: 2547.026496 | BZ34: 2652.075644 | CA34: 2763.416136 | CB34: 2881.335667 | CC34: 3006.466751 | CD34: 3139.563339 | CE34: 3280.948858 | CF34: 3431.82025 | CN34: 35 | CO34: 0
A35: 2027 | B35: 67 | D35: =VLOOKUP(B35,Lookups!A:B,2) -> 4055.289926 | E35: =VLOOKUP(B35,Lookups!A:C,3) -> 2359.564522 | G35: =VLOOKUP(B35,Lookups!A:D,4) -> 5972.46385 | H35: =VLOOKUP(B35,Lookups!A:E,5) -> 4378.610934 | J35: =VLOOKUP(A35,Trends!$A$3:$Q$94,IF(ExFlg=0,2,10))+IF(B35>=$B$2,Sens,0) -> 1.053 | K35: 1.440914455 | L35: =VLOOKUP(A35,Trends!$A$3:$Q$94,IF(ExFlg=0,4,12))+IF(B35>=$B$2,Sens,0) -> 1.053 | M35: 1.459821594 | N35: =VLOOKUP(A35,Trends!$A$3:$Z$94,IF(ExFlg=0,19,23))+IF(B35>=$B$2,Sens,0) -> 1.055 | O35: 1.600808335 | P35: =VLOOKUP(A35,Trends!$A$3:$Q$94,IF(ExFlg=0,6,14))+IF(B35>=$B$2,Sens,0) -> 1.054 | Q35: 1.443653837 | R35: =VLOOKUP(A35,Trends!$A$3:$Q$94,IF(ExFlg=0,8,16))+IF(B35>=$B$2,Sens,0) -> 1.053 | S35: 1.465382814 | T35: =VLOOKUP(A35,Trends!$A$3:$Z$94,IF(ExFlg=0,21,25))+IF(B35>=$B$2,Sens,0) -> 1.055 | U35: 1.551820131 | W35: 5919.999804 | X35: 3777.210553 | Y35: 2142.789251 | AA35: 8751.945884 | AB35: 6794.816594 | AC35: 1957.12929 | AE35: =(1-PctUMP)*Y35+PctUMP*AC35 -> 2019.015325 | AG35: =IF(B35<71,VLOOKUP(B35,Lookups!A:F,6),"") -> 0.24 | AH35: =IF(B35<71,VLOOKUP(Active!B35,Lookups!A:G,7),"") -> 0.24 | AI35: =IF(B35<71,PCTMALE*AG35+(1-PCTMALE)*AH35,"") -> 0.24 | AJ35: =IF(B35<55,VLOOKUP(B35-$B$3,Lookups!$O$3:$Q$53,2),"") ->  | AK35: =IF(B35<55,VLOOKUP(B35-$B$3,Lookups!$O$3:$Q$53,3),"") ->  | AL35: =IF(B35<55,PCTMALE*AJ35+(1-PCTMALE)*AK35,"") ->  | AM35: =IF(B35<55,VLOOKUP(B35,Lookups!A:M,12),"") ->  | AN35: =IF(B35<55,VLOOKUP(B35,Lookups!A:M,13),"") ->  | AO35: =IF(B35<55,PCTMALE*AM35+(1-PCTMALE)*AN35,"") ->  | AP35: =IF(B35<70,VLOOKUP(B35,Lookups!A:H,8)*(1-VLOOKUP(B35,Lookups!$U$3:$W$103,2))^(B35-$B$2),"") -> 0.00984680167 | AQ35: =IF(B35<70,VLOOKUP(B35,Lookups!A:I,9)*(1-VLOOKUP(B35,Lookups!$U$3:$W$103,3))^(B35-$B$2),"") -> 0.007907420202 | AR35: =IF(AP35<>"",PCTMALE*AP35+(1-PCTMALE)*AQ35,"") -> 0.008877110936 | AS35: 0.2488771109 | AT35: 0.09837680213 | AU35: =IF(B35<71,IF(B35=$B$2,1,IF(B35<$B$2,AU36*(1+IntRt),AU34/(1+IntRt))),"") -> 0.7859909607 | AV35: 78 | AW35: =IF(BD35>=$B$3,VLOOKUP(BD35,Lookups!A:H,8)*(1-VLOOKUP(BD35,Lookups!U:W,2))^(BD35-$B$2),"") -> 0.02641230131 | AX35: =IF(BD35>=$B$3,VLOOKUP(BD35,Lookups!A:I,9)*(1-VLOOKUP(BD35,Lookups!U:W,3))^(BD35-$B$2),"") -> 0.02155689977 | AY35: =IFERROR(PCTMALE*AW35+(1-PCTMALE)*AX35,"") -> 0.02398460054 | AZ35: 0.8024235613 | BA35: 0.4532856336 | BB35: 0.97388 | BD35: 78 | BE35: 5314.293678 | BQ35: 1882.463763 | BR35: 1953.530735 | BS35: 2027.908148 | BT35: 2105.903795 | BU35: 2187.592954 | BV35: 2273.26039 | BW35: 2363.220501 | BX35: 2457.8622 | BY35: 2557.633106 | BZ35: 2663.119712 | CA35: 2774.92386 | CB35: 2893.334445 | CC35: 3018.986613 | CD35: 3152.637457 | CE35: 3294.611749 | CF35: 3446.111416 | CN35: 35 | CO35: 0
A36: 2028 | B36: 68 | D36: =VLOOKUP(B36,Lookups!A:B,2) -> 4122.005824 | E36: =VLOOKUP(B36,Lookups!A:C,3) -> 2359.564522 | G36: =VLOOKUP(B36,Lookups!A:D,4) -> 6070.720292 | H36: =VLOOKUP(B36,Lookups!A:E,5) -> 4378.610934 | J36: =VLOOKUP(A36,Trends!$A$3:$Q$94,IF(ExFlg=0,2,10))+IF(B36>=$B$2,Sens,0) -> 1.054 | K36: 1.517282922 | L36: =VLOOKUP(A36,Trends!$A$3:$Q$94,IF(ExFlg=0,4,12))+IF(B36>=$B$2,Sens,0) -> 1.053 | M36: 1.537192138 | N36: =VLOOKUP(A36,Trends!$A$3:$Z$94,IF(ExFlg=0,19,23))+IF(B36>=$B$2,Sens,0) -> 1.055 | O36: 1.688852793 | P36: =VLOOKUP(A36,Trends!$A$3:$Q$94,IF(ExFlg=0,6,14))+IF(B36>=$B$2,Sens,0) -> 1.054 | Q36: 1.521611144 | R36: =VLOOKUP(A36,Trends!$A$3:$Q$94,IF(ExFlg=0,8,16))+IF(B36>=$B$2,Sens,0) -> 1.053 | S36: 1.543048103 | T36: =VLOOKUP(A36,Trends!$A$3:$Z$94,IF(ExFlg=0,21,25))+IF(B36>=$B$2,Sens,0) -> 1.055 | U36: 1.637170239 | W36: 6336.314947 | X36: 3984.957133 | Y36: 2351.357814 | AA36: 9367.413432 | AB36: 7168.531507 | AC36: 2198.881925 | AE36: 2249.706713 | AG36: =IF(B36<71,VLOOKUP(B36,Lookups!A:F,6),"") -> 0.24 | AH36: =IF(B36<71,VLOOKUP(Active!B36,Lookups!A:G,7),"") -> 0.24 | AI36: 0.24 | AJ36: =IF(B36<55,VLOOKUP(B36-$B$3,Lookups!$O$3:$Q$53,2),"") ->  | AK36: =IF(B36<55,VLOOKUP(B36-$B$3,Lookups!$O$3:$Q$53,3),"") ->  | AM36: =IF(B36<55,VLOOKUP(B36,Lookups!A:M,12),"") ->  | AN36: =IF(B36<55,VLOOKUP(B36,Lookups!A:M,13),"") ->  | AP36: =IF(B36<70,VLOOKUP(B36,Lookups!A:H,8)*(1-VLOOKUP(B36,Lookups!$U$3:$W$103,2))^(B36-$B$2),"") -> 0.010528259 | AQ36: =IF(B36<70,VLOOKUP(B36,Lookups!A:I,9)*(1-VLOOKUP(B36,Lookups!$U$3:$W$103,3))^(B36-$B$2),"") -> 0.008673992338 | AR36: 0.009601125667 | AS36: 0.2496011257 | AT36: 0.07389306783 | AU36: 0.7594115562 | AV36: 79 | AW36: =IF(BD36>=$B$3,VLOOKUP(BD36,Lookups!A:H,8)*(1-VLOOKUP(BD36,Lookups!U:W,2))^(BD36-$B$2),"") -> 0.02890938505 | AX36: =IF(BD36>=$B$3,VLOOKUP(BD36,Lookups!A:I,9)*(1-VLOOKUP(BD36,Lookups!U:W,3))^(BD36-$B$2),"") -> 0.02347739614 | AY36: 0.0261933906 | AZ36: 0.7831777528 | BA36: 0.4379571339 | BB36: 0.972901 | BD36: 79 | BE36: 5655.8201 | BQ36: 1887.366247 | BR36: 1958.618298 | BS36: 2033.189412 | BT36: 2111.388182 | BU36: 2193.290084 | BV36: 2279.180623 | BW36: 2369.375016 | BX36: 2464.263189 | BY36: 2564.293928 | BZ36: 2670.055252 | CA36: 2782.15057 | CB36: 2900.869531 | CC36: 3026.848934 | CD36: 3160.847844 | CE36: 3303.191878 | CF36: 3455.086095 | CN36: 35 | CO36: 0
A37: 2029 | B37: 69 | D37: =VLOOKUP(B37,Lookups!A:B,2) -> 4189.882533 | E37: =VLOOKUP(B37,Lookups!A:C,3) -> 2359.564522 | G37: =VLOOKUP(B37,Lookups!A:D,4) -> 6170.686331 | H37: =VLOOKUP(B37,Lookups!A:E,5) -> 4378.610934 | J37: =VLOOKUP(A37,Trends!$A$3:$Q$94,IF(ExFlg=0,2,10))+IF(B37>=$B$2,Sens,0) -> 1.054 | K37: 1.599216199 | L37: =VLOOKUP(A37,Trends!$A$3:$Q$94,IF(ExFlg=0,4,12))+IF(B37>=$B$2,Sens,0) -> 1.053 | M37: 1.618663322 | N37: =VLOOKUP(A37,Trends!$A$3:$Z$94,IF(ExFlg=0,19,23))+IF(B37>=$B$2,Sens,0) -> 1.055 | O37: 1.781739697 | P37: =VLOOKUP(A37,Trends!$A$3:$Q$94,IF(ExFlg=0,6,14))+IF(B37>=$B$2,Sens,0) -> 1.054 | Q37: 1.603778145 | R37: =VLOOKUP(A37,Trends!$A$3:$Q$94,IF(ExFlg=0,8,16))+IF(B37>=$B$2,Sens,0) -> 1.054 | S37: 1.624829653 | T37: =VLOOKUP(A37,Trends!$A$3:$Z$94,IF(ExFlg=0,21,25))+IF(B37>=$B$2,Sens,0) -> 1.056 | U37: 1.727214602 | W37: 6782.00918 | X37: 4204.129776 | Y37: 2577.879404 | AA37: 10026.31413 | AB37: 7562.80074 | AC37: 2463.513388 | AE37: 2501.635012 | AG37: =IF(B37<71,VLOOKUP(B37,Lookups!A:F,6),"") -> 0.24 | AH37: =IF(B37<71,VLOOKUP(Active!B37,Lookups!A:G,7),"") -> 0.24 | AI37: 0.24 | AJ37: =IF(B37<55,VLOOKUP(B37-$B$3,Lookups!$O$3:$Q$53,2),"") ->  | AK37: =IF(B37<55,VLOOKUP(B37-$B$3,Lookups!$O$3:$Q$53,3),"") ->  | AM37: =IF(B37<55,VLOOKUP(B37,Lookups!A:M,12),"") ->  | AN37: =IF(B37<55,VLOOKUP(B37,Lookups!A:M,13),"") ->  | AP37: =IF(B37<70,VLOOKUP(B37,Lookups!A:H,8)*(1-VLOOKUP(B37,Lookups!$U$3:$W$103,2))^(B37-$B$2),"") -> 0.01152880469 | AQ37: =IF(B37<70,VLOOKUP(B37,Lookups!A:I,9)*(1-VLOOKUP(B37,Lookups!$U$3:$W$103,3))^(B37-$B$2),"") -> 0.009473566571 | AR37: 0.01050118563 | AS37: 0.2505011856 | AT37: 0.05544927492 | AU37: 0.7337309722 | AV37: 80 | AW37: =IF(BD37>=$B$3,VLOOKUP(BD37,Lookups!A:H,8)*(1-VLOOKUP(BD37,Lookups!U:W,2))^(BD37-$B$2),"") -> 0.03164688715 | AX37: =IF(BD37>=$B$3,VLOOKUP(BD37,Lookups!A:I,9)*(1-VLOOKUP(BD37,Lookups!U:W,3))^(BD37-$B$2),"") -> 0.02560862406 | AY37: 0.02862775561 | AZ37: 0.762663672 | BA37: 0.4231469893 | BB37: 0.971823 | BD37: 80 | BE37: 6019.052608 | BQ37: 1887.728913 | BR37: 1958.994656 | BS37: 2033.580099 | BT37: 2111.793895 | BU37: 2193.711535 | BV37: 2279.618578 | BW37: 2369.830303 | BX37: 2464.736709 | BY37: 2564.786669 | BZ37: 2670.568315 | CA37: 2782.685174 | CB37: 2901.426947 | CC37: 3027.430557 | CD37: 3161.455215 | CE37: 3303.826602 | CF37: 3455.750006 | CN37: 35 | CO37: 0
A38: 2030 | B38: 70 | D38: =VLOOKUP(B38,Lookups!A:B,2) -> 4258.94122 | E38: =VLOOKUP(B38,Lookups!A:C,3) -> 2359.564522 | G38: =VLOOKUP(B38,Lookups!A:D,4) -> 6272.393137 | H38: =VLOOKUP(B38,Lookups!A:E,5) -> 4378.610934 | J38: =VLOOKUP(A38,Trends!$A$3:$Q$94,IF(ExFlg=0,2,10))+IF(B38>=$B$2,Sens,0) -> 1.054 | K38: 1.685573874 | L38: =VLOOKUP(A38,Trends!$A$3:$Q$94,IF(ExFlg=0,4,12))+IF(B38>=$B$2,Sens,0) -> 1.053 | M38: 1.704452478 | N38: =VLOOKUP(A38,Trends!$A$3:$Z$94,IF(ExFlg=0,19,23))+IF(B38>=$B$2,Sens,0) -> 1.055 | O38: 1.87973538 | P38: =VLOOKUP(A38,Trends!$A$3:$Q$94,IF(ExFlg=0,6,14))+IF(B38>=$B$2,Sens,0) -> 1.054 | Q38: 1.690382165 | R38: =VLOOKUP(A38,Trends!$A$3:$Q$94,IF(ExFlg=0,8,16))+IF(B38>=$B$2,Sens,0) -> 1.054 | S38: 1.712570454 | T38: =VLOOKUP(A38,Trends!$A$3:$Z$94,IF(ExFlg=0,21,25))+IF(B38>=$B$2,Sens,0) -> 1.056 | U38: 1.823938619 | W38: 7259.162916 | X38: 4435.356913 | Y38: 2823.806003 | AA38: 10741.91516 | AB38: 7986.317581 | AC38: 2755.597581 | AE38: 2778.333494 | AG38: =IF(B38<71,VLOOKUP(B38,Lookups!A:F,6),"") -> 1 | AH38: =IF(B38<71,VLOOKUP(Active!B38,Lookups!A:G,7),"") -> 1 | AI38: 1 | AJ38: =IF(B38<55,VLOOKUP(B38-$B$3,Lookups!$O$3:$Q$53,2),"") ->  | AK38: =IF(B38<55,VLOOKUP(B38-$B$3,Lookups!$O$3:$Q$53,3),"") ->  | AM38: =IF(B38<55,VLOOKUP(B38,Lookups!A:M,12),"") ->  | AN38: =IF(B38<55,VLOOKUP(B38,Lookups!A:M,13),"") ->  | AP38: =IF(B38<70,VLOOKUP(B38,Lookups!A:H,8)*(1-VLOOKUP(B38,Lookups!$U$3:$W$103,2))^(B38-$B$2),"") ->  | AQ38: =IF(B38<70,VLOOKUP(B38,Lookups!A:I,9)*(1-VLOOKUP(B38,Lookups!$U$3:$W$103,3))^(B38-$B$2),"") ->  | AS38: 1 | AT38: 0.04155916581 | AU38: 0.7089188137 | AV38: 81 | AW38: =IF(BD38>=$B$3,VLOOKUP(BD38,Lookups!A:H,8)*(1-VLOOKUP(BD38,Lookups!U:W,2))^(BD38-$B$2),"") -> 0.03463834985 | AX38: =IF(BD38>=$B$3,VLOOKUP(BD38,Lookups!A:I,9)*(1-VLOOKUP(BD38,Lookups!U:W,3))^(BD38-$B$2),"") -> 0.02796712935 | AY38: 0.0313027396 | AZ38: 0.7408303228 | BA38: 0.4088376708 | BB38: 0.970639 | BD38: 81 | BE38: 6405.358413 | BQ38: 1883.088922 | BR38: 1954.179495 | BS38: 2028.581608 | BT38: 2106.603157 | BU38: 2188.319445 | BV38: 2274.015331 | BW38: 2364.005318 | BX38: 2458.678446 | BY38: 2558.482486 | BZ38: 2664.004123 | CA38: 2775.845401 | CB38: 2894.29531 | CC38: 3019.989207 | CD38: 3153.684436 | CE38: 3295.705877 | CF38: 3447.255856 | CN38: 35 | CO38: 0
A39: 2031 | B39: 71 | D39: =VLOOKUP(B39,Lookups!A:B,2) -> 4329.203449 | E39: =VLOOKUP(B39,Lookups!A:C,3) -> 2359.564522 | G39: =VLOOKUP(B39,Lookups!A:D,4) -> 6375.872471 | H39: =VLOOKUP(B39,Lookups!A:E,5) -> 4378.610934 | J39: =VLOOKUP(A39,Trends!$A$3:$Q$94,IF(ExFlg=0,2,10))+IF(B39>=$B$2,Sens,0) -> 1.054 | K39: 1.776594863 | L39: =VLOOKUP(A39,Trends!$A$3:$Q$94,IF(ExFlg=0,4,12))+IF(B39>=$B$2,Sens,0) -> 1.053 | M39: 1.794788459 | N39: =VLOOKUP(A39,Trends!$A$3:$Z$94,IF(ExFlg=0,19,23))+IF(B39>=$B$2,Sens,0) -> 1.054 | O39: 1.983120826 | P39: =VLOOKUP(A39,Trends!$A$3:$Q$94,IF(ExFlg=0,6,14))+IF(B39>=$B$2,Sens,0) -> 1.054 | Q39: 1.781662802 | R39: =VLOOKUP(A39,Trends!$A$3:$Q$94,IF(ExFlg=0,8,16))+IF(B39>=$B$2,Sens,0) -> 1.054 | S39: 1.805049258 | T39: =VLOOKUP(A39,Trends!$A$3:$Z$94,IF(ExFlg=0,21,25))+IF(B39>=$B$2,Sens,0) -> 1.055 | U39: 1.926079182 | W39: 7770.004388 | X39: 4679.301544 | Y39: 3090.702844 | AA39: 11508.76388 | AB39: 8433.551366 | AC39: 3075.21251 | AE39: 3080.375903 | AG39: =IF(B39<71,VLOOKUP(B39,Lookups!A:F,6),"") ->  | AH39: =IF(B39<71,VLOOKUP(Active!B39,Lookups!A:G,7),"") ->  | AJ39: =IF(B39<55,VLOOKUP(B39-$B$3,Lookups!$O$3:$Q$53,2),"") ->  | AK39: =IF(B39<55,VLOOKUP(B39-$B$3,Lookups!$O$3:$Q$53,3),"") ->  | AM39: =IF(B39<55,VLOOKUP(B39,Lookups!A:M,12),"") ->  | AN39: =IF(B39<55,VLOOKUP(B39,Lookups!A:M,13),"") ->  | AP39: =IF(B39<70,VLOOKUP(B39,Lookups!A:H,8)*(1-VLOOKUP(B39,Lookups!$U$3:$W$103,2))^(B39-$B$2),"") ->  | AQ39: =IF(B39<70,VLOOKUP(B39,Lookups!A:I,9)*(1-VLOOKUP(B39,Lookups!$U$3:$W$103,3))^(B39-$B$2),"") ->  | AS39: =IF(B39<71,SUM(AI39,AL39,AO39,AR39),"") ->  | AV39: 82 | AW39: =IF(BD39>=$B$3,VLOOKUP(BD39,Lookups!A:H,8)*(1-VLOOKUP(BD39,Lookups!U:W,2))^(BD39-$B$2),"") -> 0.03818558615 | AX39: =IF(BD39>=$B$3,VLOOKUP(BD39,Lookups!A:I,9)*(1-VLOOKUP(BD39,Lookups!U:W,3))^(BD39-$B$2),"") -> 0.03058343695 | AY39: 0.03438451155 | AZ39: 0.7176403041 | BA39: 0.3950122423 | BB39: 0.969274 | BD39: 82 | BE39: 6661.736796 | BQ39: 1830.422773 | BR39: 1899.525088 | BS39: 1971.846326 | BT39: 2047.685772 | BU39: 2127.116622 | BV39: 2210.415769 | BW39: 2297.88892 | BX39: 2389.914235 | BY39: 2486.926959 | BZ39: 2589.497372 | CA39: 2698.210678 | CB39: 2813.347784 | CC39: 2935.52628 | CD39: 3065.482326 | CE39: 3203.531718 | CF39: 3350.843155 | CN39: 35 | CO39: 0
A40: 2032 | B40: 72 | D40: =VLOOKUP(B40,Lookups!A:B,2) -> 4376.115136 | E40: =VLOOKUP(B40,Lookups!A:C,3) -> 2359.564522 | G40: =VLOOKUP(B40,Lookups!A:D,4) -> 6444.962086 | H40: =VLOOKUP(B40,Lookups!A:E,5) -> 4378.610934 | J40: =VLOOKUP(A40,Trends!$A$3:$Q$94,IF(ExFlg=0,2,10))+IF(B40>=$B$2,Sens,0) -> 1.054 | K40: 1.872530986 | L40: =VLOOKUP(A40,Trends!$A$3:$Q$94,IF(ExFlg=0,4,12))+IF(B40>=$B$2,Sens,0) -> 1.053 | M40: 1.889912248 | N40: =VLOOKUP(A40,Trends!$A$3:$Z$94,IF(ExFlg=0,19,23))+IF(B40>=$B$2,Sens,0) -> 1.054 | O40: 2.090209351 | P40: =VLOOKUP(A40,Trends!$A$3:$Q$94,IF(ExFlg=0,6,14))+IF(B40>=$B$2,Sens,0) -> 1.054 | Q40: 1.877872594 | R40: =VLOOKUP(A40,Trends!$A$3:$Q$94,IF(ExFlg=0,8,16))+IF(B40>=$B$2,Sens,0) -> 1.054 | S40: 1.902521918 | T40: =VLOOKUP(A40,Trends!$A$3:$Z$94,IF(ExFlg=0,21,25))+IF(B40>=$B$2,Sens,0) -> 1.055 | U40: 2.032013537 | W40: 8270.473592 | X40: 4931.983827 | Y40: 3338.489765 | AA40: 12261.68163 | AB40: 8897.396691 | AC40: 3364.284942 | AE40: 3355.686636 | AG40: =IF(B40<71,VLOOKUP(B40,Lookups!A:F,6),"") ->  | AH40: =IF(B40<71,VLOOKUP(Active!B40,Lookups!A:G,7),"") ->  | AJ40: =IF(B40<55,VLOOKUP(B40-$B$3,Lookups!$O$3:$Q$53,2),"") ->  | AK40: =IF(B40<55,VLOOKUP(B40-$B$3,Lookups!$O$3:$Q$53,3),"") ->  | AM40: =IF(B40<55,VLOOKUP(B40,Lookups!A:M,12),"") ->  | AN40: =IF(B40<55,VLOOKUP(B40,Lookups!A:M,13),"") ->  | AP40: =IF(B40<70,VLOOKUP(B40,Lookups!A:H,8)*(1-VLOOKUP(B40,Lookups!$U$3:$W$103,2))^(B40-$B$2),"") ->  | AQ40: =IF(B40<70,VLOOKUP(B40,Lookups!A:I,9)*(1-VLOOKUP(B40,Lookups!$U$3:$W$103,3))^(B40-$B$2),"") ->  | AV40: 83 | AW40: =IF(BD40>=$B$3,VLOOKUP(BD40,Lookups!A:H,8)*(1-VLOOKUP(BD40,Lookups!U:W,2))^(BD40-$B$2),"") -> 0.04202227669 | AX40: =IF(BD40>=$B$3,VLOOKUP(BD40,Lookups!A:I,9)*(1-VLOOKUP(BD40,Lookups!U:W,3))^(BD40-$B$2),"") -> 0.03349748718 | AY40: 0.03775988193 | AZ40: 0.6929645928 | BA40: 0.3816543404 | BB40: 0.967779 | BD40: 83 | BE40: 6927.353495 | BQ40: 1773.065561 | BR40: 1840.00252 | BS40: 1910.057537 | BT40: 1983.520516 | BU40: 2060.462361 | BV40: 2141.151287 | BW40: 2225.883423 | BX40: 2315.025079 | BY40: 2408.997861 | BZ40: 2508.354179 | CA40: 2613.660899 | CB40: 2725.190127 | CC40: 2843.540098 | CD40: 2969.423907 | CE40: 3103.147452 | CF40: 3245.842811 | CN40: 35 | CO40: 0
A41: 2033 | B41: 73 | D41: =VLOOKUP(B41,Lookups!A:B,2) -> 4423.582227 | E41: =VLOOKUP(B41,Lookups!A:C,3) -> 2359.564522 | G41: =VLOOKUP(B41,Lookups!A:D,4) -> 6514.869679 | H41: =VLOOKUP(B41,Lookups!A:E,5) -> 4378.610934 | J41: =VLOOKUP(A41,Trends!$A$3:$Q$94,IF(ExFlg=0,2,10))+IF(B41>=$B$2,Sens,0) -> 1.054 | K41: 1.973647659 | L41: =VLOOKUP(A41,Trends!$A$3:$Q$94,IF(ExFlg=0,4,12))+IF(B41>=$B$2,Sens,0) -> 1.053 | M41: 1.990077597 | N41: =VLOOKUP(A41,Trends!$A$3:$Z$94,IF(ExFlg=0,19,23))+IF(B41>=$B$2,Sens,0) -> 1.054 | O41: 2.203080656 | P41: =VLOOKUP(A41,Trends!$A$3:$Q$94,IF(ExFlg=0,6,14))+IF(B41>=$B$2,Sens,0) -> 1.054 | Q41: 1.979277714 | R41: =VLOOKUP(A41,Trends!$A$3:$Q$94,IF(ExFlg=0,8,16))+IF(B41>=$B$2,Sens,0) -> 1.054 | S41: 2.005258102 | T41: =VLOOKUP(A41,Trends!$A$3:$Z$94,IF(ExFlg=0,21,25))+IF(B41>=$B$2,Sens,0) -> 1.055 | U41: 2.143774282 | W41: 8803.271887 | X41: 5198.310954 | Y41: 3604.960934 | AA41: 13063.99521 | AB41: 9386.753509 | AC41: 3677.241699 | AE41: 3653.148352 | AG41: =IF(B41<71,VLOOKUP(B41,Lookups!A:F,6),"") ->  | AH41: =IF(B41<71,VLOOKUP(Active!B41,Lookups!A:G,7),"") ->  | AJ41: =IF(B41<55,VLOOKUP(B41-$B$3,Lookups!$O$3:$Q$53,2),"") ->  | AK41: =IF(B41<55,VLOOKUP(B41-$B$3,Lookups!$O$3:$Q$53,3),"") ->  | AM41: =IF(B41<55,VLOOKUP(B41,Lookups!A:M,12),"") ->  | AN41: =IF(B41<55,VLOOKUP(B41,Lookups!A:M,13),"") ->  | AP41: =IF(B41<70,VLOOKUP(B41,Lookups!A:H,8)*(1-VLOOKUP(B41,Lookups!$U$3:$W$103,2))^(B41-$B$2),"") ->  | AQ41: =IF(B41<70,VLOOKUP(B41,Lookups!A:I,9)*(1-VLOOKUP(B41,Lookups!$U$3:$W$103,3))^(B41-$B$2),"") ->  | AV41: 84 | AW41: =IF(BD41>=$B$3,VLOOKUP(BD41,Lookups!A:H,8)*(1-VLOOKUP(BD41,Lookups!U:W,2))^(BD41-$B$2),"") -> 0.04613963534 | AX41: =IF(BD41>=$B$3,VLOOKUP(BD41,Lookups!A:I,9)*(1-VLOOKUP(BD41,Lookups!U:W,3))^(BD41-$B$2),"") -> 0.03674779423 | AY41: 0.04144371478 | AZ41: 0.6667983316 | BA41: 0.368748155 | BB41: 0.966148 | BD41: 84 | BE41: 7195.627653 | BQ41: 1709.372457 | BR41: 1773.904867 | BS41: 1841.443326 | BT41: 1912.267325 | BU41: 1986.44522 | BV41: 2064.235591 | BW41: 2145.923929 | BX41: 2231.863386 | BY41: 2322.460422 | BZ41: 2418.247604 | CA41: 2519.771434 | CB41: 2627.294244 | CC41: 2741.392778 | CD41: 2862.754514 | CE41: 2991.674364 | CF41: 3129.243736 | CN41: 35 | CO41: 0
A42: 2034 | B42: 74 | D42: =VLOOKUP(B42,Lookups!A:B,2) -> 4471.611749 | E42: =VLOOKUP(B42,Lookups!A:C,3) -> 2359.564522 | G42: =VLOOKUP(B42,Lookups!A:D,4) -> 6585.605596 | H42: =VLOOKUP(B42,Lookups!A:E,5) -> 4378.610934 | J42: =VLOOKUP(A42,Trends!$A$3:$Q$94,IF(ExFlg=0,2,10))+IF(B42>=$B$2,Sens,0) -> 1.054 | K42: 2.080224633 | L42: =VLOOKUP(A42,Trends!$A$3:$Q$94,IF(ExFlg=0,4,12))+IF(B42>=$B$2,Sens,0) -> 1.053 | M42: 2.095551709 | N42: =VLOOKUP(A42,Trends!$A$3:$Z$94,IF(ExFlg=0,19,23))+IF(B42>=$B$2,Sens,0) -> 1.054 | O42: 2.322047011 | P42: =VLOOKUP(A42,Trends!$A$3:$Q$94,IF(ExFlg=0,6,14))+IF(B42>=$B$2,Sens,0) -> 1.055 | Q42: 2.08615871 | R42: =VLOOKUP(A42,Trends!$A$3:$Q$94,IF(ExFlg=0,8,16))+IF(B42>=$B$2,Sens,0) -> 1.054 | S42: 2.11354204 | T42: =VLOOKUP(A42,Trends!$A$3:$Z$94,IF(ExFlg=0,21,25))+IF(B42>=$B$2,Sens,0) -> 1.055 | U42: 2.261681867 | W42: 9370.493644 | X42: 5479.019745 | Y42: 3891.473899 | AA42: 13918.95428 | AB42: 9903.024952 | AC42: 4015.929332 | AE42: 3974.444603 | AG42: =IF(B42<71,VLOOKUP(B42,Lookups!A:F,6),"") ->  | AH42: =IF(B42<71,VLOOKUP(Active!B42,Lookups!A:G,7),"") ->  | AJ42: =IF(B42<55,VLOOKUP(B42-$B$3,Lookups!$O$3:$Q$53,2),"") ->  | AK42: =IF(B42<55,VLOOKUP(B42-$B$3,Lookups!$O$3:$Q$53,3),"") ->  | AM42: =IF(B42<55,VLOOKUP(B42,Lookups!A:M,12),"") ->  | AN42: =IF(B42<55,VLOOKUP(B42,Lookups!A:M,13),"") ->  | AP42: =IF(B42<70,VLOOKUP(B42,Lookups!A:H,8)*(1-VLOOKUP(B42,Lookups!$U$3:$W$103,2))^(B42-$B$2),"") ->  | AQ42: =IF(B42<70,VLOOKUP(B42,Lookups!A:I,9)*(1-VLOOKUP(B42,Lookups!$U$3:$W$103,3))^(B42-$B$2),"") ->  | AV42: 85 | AW42: =IF(BD42>=$B$3,VLOOKUP(BD42,Lookups!A:H,8)*(1-VLOOKUP(BD42,Lookups!U:W,2))^(BD42-$B$2),"") -> 0.0505442562 | AX42: =IF(BD42>=$B$3,VLOOKUP(BD42,Lookups!A:I,9)*(1-VLOOKUP(BD42,Lookups!U:W,3))^(BD42-$B$2),"") -> 0.04037868788 | AY42: 0.04546147204 | AZ42: 0.6391637317 | BA42: 0.3562784106 | BB42: 0.964369 | BD42: 85 | BE42: 7468.309848 | BQ42: 1640.088182 | BR42: 1702.004965 | BS42: 1766.805955 | BT42: 1834.759316 | BU42: 1905.930633 | BV42: 1980.568005 | BW42: 2058.945352 | BX42: 2141.401511 | BY42: 2228.326469 | BZ42: 2320.231205 | CA42: 2417.640072 | CB42: 2520.804768 | CC42: 2630.278661 | CD42: 2746.721364 | CE42: 2870.415835 | CF42: 3002.409246 | CN42: 35 | CO42: 0
A43: 2035 | B43: 75 | D43: =VLOOKUP(B43,Lookups!A:B,2) -> 4520.210819 | E43: =VLOOKUP(B43,Lookups!A:C,3) -> 2359.564522 | G43: =VLOOKUP(B43,Lookups!A:D,4) -> 6657.180322 | H43: =VLOOKUP(B43,Lookups!A:E,5) -> 4378.610934 | J43: =VLOOKUP(A43,Trends!$A$3:$Q$94,IF(ExFlg=0,2,10))+IF(B43>=$B$2,Sens,0) -> 1.054 | K43: 2.192556763 | L43: =VLOOKUP(A43,Trends!$A$3:$Q$94,IF(ExFlg=0,4,12))+IF(B43>=$B$2,Sens,0) -> 1.054 | M43: 2.20661595 | N43: =VLOOKUP(A43,Trends!$A$3:$Z$94,IF(ExFlg=0,19,23))+IF(B43>=$B$2,Sens,0) -> 1.055 | O43: 2.44743755 | P43: =VLOOKUP(A43,Trends!$A$3:$Q$94,IF(ExFlg=0,6,14))+IF(B43>=$B$2,Sens,0) -> 1.055 | Q43: 2.200897439 | R43: =VLOOKUP(A43,Trends!$A$3:$Q$94,IF(ExFlg=0,8,16))+IF(B43>=$B$2,Sens,0) -> 1.054 | S43: 2.22767331 | T43: =VLOOKUP(A43,Trends!$A$3:$Z$94,IF(ExFlg=0,21,25))+IF(B43>=$B$2,Sens,0) -> 1.055 | U43: 2.38607437 | W43: 9974.369291 | X43: 5774.886811 | Y43: 4199.482479 | AA43: 14830.02292 | AB43: 10447.69132 | AC43: 4382.331597 | AE43: 4321.3825 | AG43: =IF(B43<71,VLOOKUP(B43,Lookups!A:F,6),"") ->  | AH43: =IF(B43<71,VLOOKUP(Active!B43,Lookups!A:G,7),"") ->  | AJ43: =IF(B43<55,VLOOKUP(B43-$B$3,Lookups!$O$3:$Q$53,2),"") ->  | AK43: =IF(B43<55,VLOOKUP(B43-$B$3,Lookups!$O$3:$Q$53,3),"") ->  | AM43: =IF(B43<55,VLOOKUP(B43,Lookups!A:M,12),"") ->  | AN43: =IF(B43<55,VLOOKUP(B43,Lookups!A:M,13),"") ->  | AP43: =IF(B43<70,VLOOKUP(B43,Lookups!A:H,8)*(1-VLOOKUP(B43,Lookups!$U$3:$W$103,2))^(B43-$B$2),"") ->  | AQ43: =IF(B43<70,VLOOKUP(B43,Lookups!A:I,9)*(1-VLOOKUP(B43,Lookups!$U$3:$W$103,3))^(B43-$B$2),"") ->  | AV43: 86 | AW43: =IF(BD43>=$B$3,VLOOKUP(BD43,Lookups!A:H,8)*(1-VLOOKUP(BD43,Lookups!U:W,2))^(BD43-$B$2),"") -> 0.05526351876 | AX43: =IF(BD43>=$B$3,VLOOKUP(BD43,Lookups!A:I,9)*(1-VLOOKUP(BD43,Lookups!U:W,3))^(BD43-$B$2),"") -> 0.04444489588 | AY43: 0.04985420732 | AZ43: 0.6101064076 | BA43: 0.3442303484 | BB43: 0.962424 | BD43: 86 | BE43: 7747.722558 | BQ43: 1566.012584 | BR43: 1625.132857 | BS43: 1687.007071 | BT43: 1751.891276 | BU43: 1819.848096 | BV43: 1891.114425 | BW43: 1965.951811 | BX43: 2044.683786 | BY43: 2127.682725 | BZ43: 2215.436527 | CA43: 2308.445862 | CB43: 2406.95106 | CC43: 2511.480497 | CD43: 2622.663993 | CE43: 2740.771727 | CF43: 2866.803574 | CN43: 35 | CO43: 0
A44: 2036 | B44: 76 | D44: =VLOOKUP(B44,Lookups!A:B,2) -> 4569.386651 | E44: =VLOOKUP(B44,Lookups!A:C,3) -> 2359.564522 | G44: =VLOOKUP(B44,Lookups!A:D,4) -> 6729.604478 | H44: =VLOOKUP(B44,Lookups!A:E,5) -> 4378.610934 | J44: =VLOOKUP(A44,Trends!$A$3:$Q$94,IF(ExFlg=0,2,10))+IF(B44>=$B$2,Sens,0) -> 1.054 | K44: 2.310954828 | L44: =VLOOKUP(A44,Trends!$A$3:$Q$94,IF(ExFlg=0,4,12))+IF(B44>=$B$2,Sens,0) -> 1.054 | M44: 2.325773211 | N44: =VLOOKUP(A44,Trends!$A$3:$Z$94,IF(ExFlg=0,19,23))+IF(B44>=$B$2,Sens,0) -> 1.055 | O44: 2.582046615 | P44: =VLOOKUP(A44,Trends!$A$3:$Q$94,IF(ExFlg=0,6,14))+IF(B44>=$B$2,Sens,0) -> 1.055 | Q44: 2.321946798 | R44: =VLOOKUP(A44,Trends!$A$3:$Q$94,IF(ExFlg=0,8,16))+IF(B44>=$B$2,Sens,0) -> 1.054 | S44: 2.347967668 | T44: =VLOOKUP(A44,Trends!$A$3:$Z$94,IF(ExFlg=0,21,25))+IF(B44>=$B$2,Sens,0) -> 1.055 | U44: 2.51730846 | W44: 10627.35706 | X44: 6092.505586 | Y44: 4534.851478 | AA44: 15800.89373 | AB44: 11022.31435 | AC44: 4778.579388 | AE44: 4697.337564 | AG44: =IF(B44<71,VLOOKUP(B44,Lookups!A:F,6),"") ->  | AH44: =IF(B44<71,VLOOKUP(Active!B44,Lookups!A:G,7),"") ->  | AJ44: =IF(B44<55,VLOOKUP(B44-$B$3,Lookups!$O$3:$Q$53,2),"") ->  | AK44: =IF(B44<55,VLOOKUP(B44-$B$3,Lookups!$O$3:$Q$53,3),"") ->  | AM44: =IF(B44<55,VLOOKUP(B44,Lookups!A:M,12),"") ->  | AN44: =IF(B44<55,VLOOKUP(B44,Lookups!A:M,13),"") ->  | AP44: =IF(B44<70,VLOOKUP(B44,Lookups!A:H,8)*(1-VLOOKUP(B44,Lookups!$U$3:$W$103,2))^(B44-$B$2),"") ->  | AQ44: =IF(B44<70,VLOOKUP(B44,Lookups!A:I,9)*(1-VLOOKUP(B44,Lookups!$U$3:$W$103,3))^(B44-$B$2),"") ->  | AV44: 87 | AW44: =IF(BD44>=$B$3,VLOOKUP(BD44,Lookups!A:H,8)*(1-VLOOKUP(BD44,Lookups!U:W,2))^(BD44-$B$2),"") -> 0.06330017817 | AX44: =IF(BD44>=$B$3,VLOOKUP(BD44,Lookups!A:I,9)*(1-VLOOKUP(BD44,Lookups!U:W,3))^(BD44-$B$2),"") -> 0.04897421018 | AY44: 0.05613719417 | AZ44: 0.5796900362 | BA44: =IF(AY43="",1,BA43/(1+IntRt)) -> 0.3325897086 | BB44: =IF(AY44="",1,ROUND((13/24)+(11/24)*(1/(1+IntRt))*(1-AY44),6)) -> 0.959641 | BD44: 87 | BE44: 8036.272757 | BQ44: 1486.853247 | BR44: 1542.985089 | BS44: 1601.731664 | BT44: 1663.33608 | BU44: 1727.857796 | BV44: 1795.52173 | BW44: 1866.57621 | BX44: 1941.328415 | BY44: 2020.131895 | BZ44: 2103.449888 | CA44: 2191.757755 | CB44: 2285.283679 | CC44: 2384.529327 | CD44: 2490.092682 | CE44: 2602.230266 | CF44: 2721.891412 | CN44: 35 | CO44: 0
A45: 2037 | B45: 77 | D45: =VLOOKUP(B45,Lookups!A:B,2) -> 4586.262063 | E45: =VLOOKUP(B45,Lookups!A:C,3) -> 2359.564522 | G45: =VLOOKUP(B45,Lookups!A:D,4) -> 6754.457893 | H45: =VLOOKUP(B45,Lookups!A:E,5) -> 4378.610934 | J45: =VLOOKUP(A45,Trends!$A$3:$Q$94,IF(ExFlg=0,2,10))+IF(B45>=$B$2,Sens,0) -> 1.055 | K45: 2.435746389 | L45: =VLOOKUP(A45,Trends!$A$3:$Q$94,IF(ExFlg=0,4,12))+IF(B45>=$B$2,Sens,0) -> 1.054 | M45: 2.451364965 | N45: =VLOOKUP(A45,Trends!$A$3:$Z$94,IF(ExFlg=0,19,23))+IF(B45>=$B$2,Sens,0) -> 1.055 | O45: 2.724059179 | P45: =VLOOKUP(A45,Trends!$A$3:$Q$94,IF(ExFlg=0,6,14))+IF(B45>=$B$2,Sens,0) -> 1.055 | Q45: 2.449653872 | R45: =VLOOKUP(A45,Trends!$A$3:$Q$94,IF(ExFlg=0,8,16))+IF(B45>=$B$2,Sens,0) -> 1.054 | S45: 2.474757922 | T45: =VLOOKUP(A45,Trends!$A$3:$Z$94,IF(ExFlg=0,21,25))+IF(B45>=$B$2,Sens,0) -> 1.055 | U45: 2.655760425 | W45: 11242.60214 | X45: 6427.593393 | Y45: 4815.008746 | AA45: 16715.64818 | AB45: 11628.54164 | AC45: 5087.106548 | AE45: 4996.408187 | AG45: =IF(B45<71,VLOOKUP(B45,Lookups!A:F,6),"") ->  | AH45: =IF(B45<71,VLOOKUP(Active!B45,Lookups!A:G,7),"") ->  | AJ45: =IF(B45<55,VLOOKUP(B45-$B$3,Lookups!$O$3:$Q$53,2),"") ->  | AK45: =IF(B45<55,VLOOKUP(B45-$B$3,Lookups!$O$3:$Q$53,3),"") ->  | AM45: =IF(B45<55,VLOOKUP(B45,Lookups!A:M,12),"") ->  | AN45: =IF(B45<55,VLOOKUP(B45,Lookups!A:M,13),"") ->  | AP45: =IF(B45<70,VLOOKUP(B45,Lookups!A:H,8)*(1-VLOOKUP(B45,Lookups!$U$3:$W$103,2))^(B45-$B$2),"") ->  | AQ45: =IF(B45<70,VLOOKUP(B45,Lookups!A:I,9)*(1-VLOOKUP(B45,Lookups!$U$3:$W$103,3))^(B45-$B$2),"") ->  | AV45: 88 | AW45: =IF(BD45>=$B$3,VLOOKUP(BD45,Lookups!A:H,8)*(1-VLOOKUP(BD45,Lookups!U:W,2))^(BD45-$B$2),"") -> 0.07259367854 | AX45: =IF(BD45>=$B$3,VLOOKUP(BD45,Lookups!A:I,9)*(1-VLOOKUP(BD45,Lookups!U:W,3))^(BD45-$B$2),"") -> 0.05396692886 | AY45: 0.0632803037 | AZ45: 0.5471478641 | BA45: 0.3213427136 | BB45: 0.956478 | BD45: 88 | BE45: 8328.811346 | BQ45: 1400.654998 | BR45: 1453.532675 | BS45: 1508.873499 | BT45: 1566.906484 | BU45: 1627.687643 | BV45: 1691.428855 | BW45: 1758.364051 | BX45: 1828.782601 | BY45: 1903.017558 | BZ45: 1981.505307 | CA45: 2064.693648 | CB45: 2152.797537 | CC45: 2246.289556 | CD45: 2345.733022 | CE45: 2451.369586 | CF45: 2564.093543 | CN45: 35 | CO45: 0
A46: 2038 | B46: 78 | D46: =VLOOKUP(B46,Lookups!A:B,2) -> 4603.20236 | E46: =VLOOKUP(B46,Lookups!A:C,3) -> 2359.564522 | G46: =VLOOKUP(B46,Lookups!A:D,4) -> 6779.406869 | H46: =VLOOKUP(B46,Lookups!A:E,5) -> 4378.610934 | J46: =VLOOKUP(A46,Trends!$A$3:$Q$94,IF(ExFlg=0,2,10))+IF(B46>=$B$2,Sens,0) -> 1.055 | K46: 2.56971244 | L46: =VLOOKUP(A46,Trends!$A$3:$Q$94,IF(ExFlg=0,4,12))+IF(B46>=$B$2,Sens,0) -> 1.054 | M46: 2.583738673 | N46: =VLOOKUP(A46,Trends!$A$3:$Z$94,IF(ExFlg=0,19,23))+IF(B46>=$B$2,Sens,0) -> 1.055 | O46: 2.873882434 | P46: =VLOOKUP(A46,Trends!$A$3:$Q$94,IF(ExFlg=0,6,14))+IF(B46>=$B$2,Sens,0) -> 1.055 | Q46: 2.584384835 | R46: =VLOOKUP(A46,Trends!$A$3:$Q$94,IF(ExFlg=0,8,16))+IF(B46>=$B$2,Sens,0) -> 1.055 | S46: 2.60839485 | T46: =VLOOKUP(A46,Trends!$A$3:$Z$94,IF(ExFlg=0,21,25))+IF(B46>=$B$2,Sens,0) -> 1.056 | U46: 2.801827249 | W46: 11893.47196 | X46: 6781.11103 | Y46: 5112.360926 | AA46: 17683.36997 | AB46: 12268.11143 | AC46: 5415.25854 | AE46: 5314.293678 | AG46: =IF(B46<71,VLOOKUP(B46,Lookups!A:F,6),"") ->  | AH46: =IF(B46<71,VLOOKUP(Active!B46,Lookups!A:G,7),"") ->  | AJ46: =IF(B46<55,VLOOKUP(B46-$B$3,Lookups!$O$3:$Q$53,2),"") ->  | AK46: =IF(B46<55,VLOOKUP(B46-$B$3,Lookups!$O$3:$Q$53,3),"") ->  | AM46: =IF(B46<55,VLOOKUP(B46,Lookups!A:M,12),"") ->  | AN46: =IF(B46<55,VLOOKUP(B46,Lookups!A:M,13),"") ->  | AP46: =IF(B46<70,VLOOKUP(B46,Lookups!A:H,8)*(1-VLOOKUP(B46,Lookups!$U$3:$W$103,2))^(B46-$B$2),"") ->  | AQ46: =IF(B46<70,VLOOKUP(B46,Lookups!A:I,9)*(1-VLOOKUP(B46,Lookups!$U$3:$W$103,3))^(B46-$B$2),"") ->  | AV46: 89 | AW46: =IF(BD46>=$B$3,VLOOKUP(BD46,Lookups!A:H,8)*(1-VLOOKUP(BD46,Lookups!U:W,2))^(BD46-$B$2),"") -> 0.08334613758 | AX46: =IF(BD46>=$B$3,VLOOKUP(BD46,Lookups!A:I,9)*(1-VLOOKUP(BD46,Lookups!U:W,3))^(BD46-$B$2),"") -> 0.05938851638 | AY46: 0.07136732698 | AZ46: 0.5125241811 | BA46: 0.3104760518 | BB46: 0.952897 | BD46: 89 | BE46: 8744.107261 | BQ46: 1325.879035 | BR46: 1375.933761 | BS46: 1428.320136 | BT46: 1483.254948 | BU46: 1540.791218 | BV46: 1601.129515 | BW46: 1664.491279 | BX46: 1731.150435 | BY46: 1801.422254 | BZ46: 1875.719821 | CA46: 1954.467035 | CB46: 2037.867372 | CC46: 2126.368186 | CD46: 2220.502721 | CE46: 2320.499726 | CF46: 2427.205755 | CN46: 35 | CO46: 0
A47: 2039 | B47: 79 | D47: =VLOOKUP(B47,Lookups!A:B,2) -> 4620.207801 | E47: =VLOOKUP(B47,Lookups!A:C,3) -> 2359.564522 | G47: =VLOOKUP(B47,Lookups!A:D,4) -> 6804.451786 | H47: =VLOOKUP(B47,Lookups!A:E,5) -> 4378.610934 | J47: =VLOOKUP(A47,Trends!$A$3:$Q$94,IF(ExFlg=0,2,10))+IF(B47>=$B$2,Sens,0) -> 1.055 | K47: 2.711046624 | L47: =VLOOKUP(A47,Trends!$A$3:$Q$94,IF(ExFlg=0,4,12))+IF(B47>=$B$2,Sens,0) -> 1.054 | M47: 2.723260561 | N47: =VLOOKUP(A47,Trends!$A$3:$Z$94,IF(ExFlg=0,19,23))+IF(B47>=$B$2,Sens,0) -> 1.055 | O47: 3.031945968 | P47: =VLOOKUP(A47,Trends!$A$3:$Q$94,IF(ExFlg=0,6,14))+IF(B47>=$B$2,Sens,0) -> 1.055 | Q47: 2.726526001 | R47: =VLOOKUP(A47,Trends!$A$3:$Q$94,IF(ExFlg=0,8,16))+IF(B47>=$B$2,Sens,0) -> 1.055 | S47: 2.751856567 | T47: =VLOOKUP(A47,Trends!$A$3:$Z$94,IF(ExFlg=0,21,25))+IF(B47>=$B$2,Sens,0) -> 1.056 | U47: 2.958729575 | W47: 12582.02969 | X47: 7154.072136 | Y47: 5427.957551 | AA47: 18724.87533 | AB47: 12955.12567 | AC47: 5769.749666 | AE47: 5655.8201 | AG47: =IF(B47<71,VLOOKUP(B47,Lookups!A:F,6),"") ->  | AH47: =IF(B47<71,VLOOKUP(Active!B47,Lookups!A:G,7),"") ->  | AJ47: =IF(B47<55,VLOOKUP(B47-$B$3,Lookups!$O$3:$Q$53,2),"") ->  | AK47: =IF(B47<55,VLOOKUP(B47-$B$3,Lookups!$O$3:$Q$53,3),"") ->  | AM47: =IF(B47<55,VLOOKUP(B47,Lookups!A:M,12),"") ->  | AN47: =IF(B47<55,VLOOKUP(B47,Lookups!A:M,13),"") ->  | AP47: =IF(B47<70,VLOOKUP(B47,Lookups!A:H,8)*(1-VLOOKUP(B47,Lookups!$U$3:$W$103,2))^(B47-$B$2),"") ->  | AQ47: =IF(B47<70,VLOOKUP(B47,Lookups!A:I,9)*(1-VLOOKUP(B47,Lookups!$U$3:$W$103,3))^(B47-$B$2),"") ->  | AV47: 90 | AW47: =IF(BD47>=$B$3,VLOOKUP(BD47,Lookups!A:H,8)*(1-VLOOKUP(BD47,Lookups!U:W,2))^(BD47-$B$2),"") -> 0.09572365641 | AX47: =IF(BD47>=$B$3,VLOOKUP(BD47,Lookups!A:I,9)*(1-VLOOKUP(BD47,Lookups!U:W,3))^(BD47-$B$2),"") -> 0.06853658256 | AY47: 0.08213011949 | AZ47: 0.4759467003 | BA47: 0.2999768617 | BB47: 0.948131 | BD47: 90 | BE47: 9180.055043 | BQ47: 1242.681146 | BR47: 1289.594976 | BS47: 1338.694147 | BT47: 1390.181842 | BU47: 1444.107755 | BV47: 1500.65987 | BW47: 1560.045733 | BX47: 1622.522077 | BY47: 1688.384394 | BZ47: 1758.019846 | CA47: 1831.825733 | CB47: 1909.992763 | CC47: 1992.940219 | CD47: 2081.167885 | CE47: 2174.890154 | CF47: 2274.900462 | CN47: 35 | CO47: 0
A48: 2040 | B48: 80 | D48: =VLOOKUP(B48,Lookups!A:B,2) -> 4637.278644 | E48: =VLOOKUP(B48,Lookups!A:C,3) -> 2359.564522 | G48: =VLOOKUP(B48,Lookups!A:D,4) -> 6829.593025 | H48: =VLOOKUP(B48,Lookups!A:E,5) -> 4378.610934 | J48: =VLOOKUP(A48,Trends!$A$3:$Q$94,IF(ExFlg=0,2,10))+IF(B48>=$B$2,Sens,0) -> 1.055 | K48: 2.860154189 | L48: =VLOOKUP(A48,Trends!$A$3:$Q$94,IF(ExFlg=0,4,12))+IF(B48>=$B$2,Sens,0) -> 1.054 | M48: 2.870316631 | N48: =VLOOKUP(A48,Trends!$A$3:$Z$94,IF(ExFlg=0,19,23))+IF(B48>=$B$2,Sens,0) -> 1.055 | O48: 3.198702996 | P48: =VLOOKUP(A48,Trends!$A$3:$Q$94,IF(ExFlg=0,6,14))+IF(B48>=$B$2,Sens,0) -> 1.055 | Q48: 2.876484931 | R48: =VLOOKUP(A48,Trends!$A$3:$Q$94,IF(ExFlg=0,8,16))+IF(B48>=$B$2,Sens,0) -> 1.055 | S48: 2.903208678 | T48: =VLOOKUP(A48,Trends!$A$3:$Z$94,IF(ExFlg=0,21,25))+IF(B48>=$B$2,Sens,0) -> 1.056 | U48: 3.124418431 | W48: 13310.45802 | X48: 7547.546104 | Y48: 5762.911912 | AA48: 19827.73374 | AB48: 13680.6127 | AC48: 6147.121035 | AE48: 6019.052608 | AG48: =IF(B48<71,VLOOKUP(B48,Lookups!A:F,6),"") ->  | AH48: =IF(B48<71,VLOOKUP(Active!B48,Lookups!A:G,7),"") ->  | AJ48: =IF(B48<55,VLOOKUP(B48-$B$3,Lookups!$O$3:$Q$53,2),"") ->  | AK48: =IF(B48<55,VLOOKUP(B48-$B$3,Lookups!$O$3:$Q$53,3),"") ->  | AM48: =IF(B48<55,VLOOKUP(B48,Lookups!A:M,12),"") ->  | AN48: =IF(B48<55,VLOOKUP(B48,Lookups!A:M,13),"") ->  | AP48: =IF(B48<70,VLOOKUP(B48,Lookups!A:H,8)*(1-VLOOKUP(B48,Lookups!$U$3:$W$103,2))^(B48-$B$2),"") ->  | AQ48: =IF(B48<70,VLOOKUP(B48,Lookups!A:I,9)*(1-VLOOKUP(B48,Lookups!$U$3:$W$103,3))^(B48-$B$2),"") ->  | AV48: 91 | AW48: =IF(BD48>=$B$3,VLOOKUP(BD48,Lookups!A:H,8)*(1-VLOOKUP(BD48,Lookups!U:W,2))^(BD48-$B$2),"") -> 0.1098529644 | AX48: =IF(BD48>=$B$3,VLOOKUP(BD48,Lookups!A:I,9)*(1-VLOOKUP(BD48,Lookups!U:W,3))^(BD48-$B$2),"") -> 0.07887140823 | AY48: 0.09436218631 | AZ48: 0.4368571409 | BA48: 0.2898327166 | BB48: 0.942714 | BD48: 91 | BE48: 9637.678583 | BQ48: 1150.374488 | BR48: 1193.803548 | BS48: 1239.25562 | BT48: 1286.918797 | BU48: 1336.83908 | BV48: 1389.19049 | BW48: 1444.165156 | BX48: 1502.000743 | BY48: 1562.97079 | BZ48: 1627.433705 | CA48: 1695.757272 | CB48: 1768.118036 | CC48: 1844.904135 | CD48: 1926.578228 | CE48: 2013.338785 | CF48: 2105.920302 | CN48: 35 | CO48: 0
A49: 2041 | B49: 81 | D49: =VLOOKUP(B49,Lookups!A:B,2) -> 4654.415151 | E49: =VLOOKUP(B49,Lookups!A:C,3) -> 2359.564522 | G49: =VLOOKUP(B49,Lookups!A:D,4) -> 6854.83097 | H49: =VLOOKUP(B49,Lookups!A:E,5) -> 4378.610934 | J49: =VLOOKUP(A49,Trends!$A$3:$Q$94,IF(ExFlg=0,2,10))+IF(B49>=$B$2,Sens,0) -> 1.055 | K49: 3.017462669 | L49: =VLOOKUP(A49,Trends!$A$3:$Q$94,IF(ExFlg=0,4,12))+IF(B49>=$B$2,Sens,0) -> 1.054 | M49: 3.025313729 | N49: =VLOOKUP(A49,Trends!$A$3:$Z$94,IF(ExFlg=0,19,23))+IF(B49>=$B$2,Sens,0) -> 1.055 | O49: 3.374631661 | P49: =VLOOKUP(A49,Trends!$A$3:$Q$94,IF(ExFlg=0,6,14))+IF(B49>=$B$2,Sens,0) -> 1.055 | Q49: 3.034691602 | R49: =VLOOKUP(A49,Trends!$A$3:$Q$94,IF(ExFlg=0,8,16))+IF(B49>=$B$2,Sens,0) -> 1.055 | S49: 3.062885156 | T49: =VLOOKUP(A49,Trends!$A$3:$Z$94,IF(ExFlg=0,21,25))+IF(B49>=$B$2,Sens,0) -> 1.056 | U49: 3.299385863 | W49: 14081.06606 | X49: 7962.66114 | Y49: 6118.404918 | AA49: 20995.56002 | AB49: 14446.72701 | AC49: 6548.833008 | AE49: 6405.358413 | AG49: =IF(B49<71,VLOOKUP(B49,Lookups!A:F,6),"") ->  | AH49: =IF(B49<71,VLOOKUP(Active!B49,Lookups!A:G,7),"") ->  | AJ49: =IF(B49<55,VLOOKUP(B49-$B$3,Lookups!$O$3:$Q$53,2),"") ->  | AK49: =IF(B49<55,VLOOKUP(B49-$B$3,Lookups!$O$3:$Q$53,3),"") ->  | AM49: =IF(B49<55,VLOOKUP(B49,Lookups!A:M,12),"") ->  | AN49: =IF(B49<55,VLOOKUP(B49,Lookups!A:M,13),"") ->  | AP49: =IF(B49<70,VLOOKUP(B49,Lookups!A:H,8)*(1-VLOOKUP(B49,Lookups!$U$3:$W$103,2))^(B49-$B$2),"") ->  | AQ49: =IF(B49<70,VLOOKUP(B49,Lookups!A:I,9)*(1-VLOOKUP(B49,Lookups!$U$3:$W$103,3))^(B49-$B$2),"") ->  | AV49: 92 | AW49: =IF(BD49>=$B$3,VLOOKUP(BD49,Lookups!A:H,8)*(1-VLOOKUP(BD49,Lookups!U:W,2))^(BD49-$B$2),"") -> 0.1248410828 | AX49: =IF(BD49>=$B$3,VLOOKUP(BD49,Lookups!A:I,9)*(1-VLOOKUP(BD49,Lookups!U:W,3))^(BD49-$B$2),"") -> 0.09036706861 | AY49: 0.1076040757 | AZ49: 0.395634346 | BA49: 0.2800316102 | BB49: 0.93685 | BD49: 92 | BE49: 10118.05236 | BQ49: 1050.190362 | BR49: 1089.83726 | BS49: 1131.33099 | BT49: 1174.843262 | BU49: 1220.416075 | BV49: 1268.208291 | BW49: 1318.395308 | BX49: 1371.194094 | BY49: 1426.854365 | BZ49: 1485.703315 | CA49: 1548.076701 | CB49: 1614.135691 | CC49: 1684.234622 | CD49: 1758.795859 | CE49: 1838.000589 | CF49: 1922.519342 | CN49: 35 | CO49: 0 | CU49: Implement breakout formula for next update.
A50: 2042 | B50: 82 | D50: =VLOOKUP(B50,Lookups!A:B,2) -> 4635.151696 | E50: =VLOOKUP(B50,Lookups!A:C,3) -> 2359.564522 | G50: =VLOOKUP(B50,Lookups!A:D,4) -> 6826.460552 | H50: =VLOOKUP(B50,Lookups!A:E,5) -> 4378.610934 | J50: =VLOOKUP(A50,Trends!$A$3:$Q$94,IF(ExFlg=0,2,10))+IF(B50>=$B$2,Sens,0) -> 1.055 | K50: 3.183423116 | L50: =VLOOKUP(A50,Trends!$A$3:$Q$94,IF(ExFlg=0,4,12))+IF(B50>=$B$2,Sens,0) -> 1.054 | M50: 3.188680671 | N50: =VLOOKUP(A50,Trends!$A$3:$Z$94,IF(ExFlg=0,19,23))+IF(B50>=$B$2,Sens,0) -> 1.055 | O50: 3.560236402 | P50: =VLOOKUP(A50,Trends!$A$3:$Q$94,IF(ExFlg=0,6,14))+IF(B50>=$B$2,Sens,0) -> 1.055 | Q50: 3.201599641 | R50: =VLOOKUP(A50,Trends!$A$3:$Q$94,IF(ExFlg=0,8,16))+IF(B50>=$B$2,Sens,0) -> 1.055 | S50: 3.231343839 | T50: =VLOOKUP(A50,Trends!$A$3:$Z$94,IF(ExFlg=0,21,25))+IF(B50>=$B$2,Sens,0) -> 1.056 | U50: 3.484151471 | W50: 14780.01862 | X50: 8400.607502 | Y50: 6379.411116 | AA50: 22058.64125 | AB50: 15255.74373 | AC50: 6802.897519 | AE50: 6661.736796 | AG50: =IF(B50<71,VLOOKUP(B50,Lookups!A:F,6),"") ->  | AH50: =IF(B50<71,VLOOKUP(Active!B50,Lookups!A:G,7),"") ->  | AJ50: =IF(B50<55,VLOOKUP(B50-$B$3,Lookups!$O$3:$Q$53,2),"") ->  | AK50: =IF(B50<55,VLOOKUP(B50-$B$3,Lookups!$O$3:$Q$53,3),"") ->  | AM50: =IF(B50<55,VLOOKUP(B50,Lookups!A:M,12),"") ->  | AN50: =IF(B50<55,VLOOKUP(B50,Lookups!A:M,13),"") ->  | AP50: =IF(B50<70,VLOOKUP(B50,Lookups!A:H,8)*(1-VLOOKUP(B50,Lookups!$U$3:$W$103,2))^(B50-$B$2),"") ->  | AQ50: =IF(B50<70,VLOOKUP(B50,Lookups!A:I,9)*(1-VLOOKUP(B50,Lookups!$U$3:$W$103,3))^(B50-$B$2),"") ->  | AV50: 93 | AW50: =IF(BD50>=$B$3,VLOOKUP(BD50,Lookups!A:H,8)*(1-VLOOKUP(BD50,Lookups!U:W,2))^(BD50-$B$2),"") -> 0.1415099637 | AX50: =IF(BD50>=$B$3,VLOOKUP(BD50,Lookups!A:I,9)*(1-VLOOKUP(BD50,Lookups!U:W,3))^(BD50-$B$2),"") -> 0.1029728886 | AY50: 0.1222414261 | AZ50: 0.3530624779 | BA50: 0.2705619422 | BB50: 0.930368 | BD50: 93 | BE50: 10619.00635 | BQ50: 943.7498977 | BR50: 979.3784442 | BS50: 1016.666639 | BT50: 1055.768791 | BU50: 1096.72264 | BV50: 1139.670948 | BW50: 1184.771336 | BX50: 1232.218779 | BY50: 1282.237688 | BZ50: 1335.122091 | CA50: 1391.173716 | CB50: 1450.537397 | CC50: 1513.531556 | CD50: 1580.535751 | CE50: 1651.712805 | CF50: 1727.665287 | CN50: 35 | CO50: =IF(CO51=0,0,CO51-1) -> 0 | CU50: Salary | CV50: Surv | CW50: Int | CX50: PvSal
A51: 2043 | B51: 83 | D51: =VLOOKUP(B51,Lookups!A:B,2) -> 4615.972604 | E51: =VLOOKUP(B51,Lookups!A:C,3) -> 2359.564522 | G51: =VLOOKUP(B51,Lookups!A:D,4) -> 6798.21438 | H51: =VLOOKUP(B51,Lookups!A:E,5) -> 4378.610934 | J51: =VLOOKUP(A51,Trends!$A$3:$Q$94,IF(ExFlg=0,2,10))+IF(B51>=$B$2,Sens,0) -> 1.054 | K51: 3.358511387 | L51: =VLOOKUP(A51,Trends!$A$3:$Q$94,IF(ExFlg=0,4,12))+IF(B51>=$B$2,Sens,0) -> 1.053 | M51: 3.360869427 | N51: =VLOOKUP(A51,Trends!$A$3:$Z$94,IF(ExFlg=0,19,23))+IF(B51>=$B$2,Sens,0) -> 1.054 | O51: 3.756049404 | P51: =VLOOKUP(A51,Trends!$A$3:$Q$94,IF(ExFlg=0,6,14))+IF(B51>=$B$2,Sens,0) -> 1.054 | Q51: 3.377687621 | R51: =VLOOKUP(A51,Trends!$A$3:$Q$94,IF(ExFlg=0,8,16))+IF(B51>=$B$2,Sens,0) -> 1.054 | S51: 3.40906775 | T51: =VLOOKUP(A51,Trends!$A$3:$Z$94,IF(ExFlg=0,21,25))+IF(B51>=$B$2,Sens,0) -> 1.055 | U51: 3.679263954 | W51: 15513.6812 | X51: 8862.640915 | Y51: 6651.040285 | AA51: 23175.5734 | AB51: 16110.06538 | AC51: 7065.508028 | AE51: 6927.353495 | AG51: =IF(B51<71,VLOOKUP(B51,Lookups!A:F,6),"") ->  | AH51: =IF(B51<71,VLOOKUP(Active!B51,Lookups!A:G,7),"") ->  | AJ51: =IF(B51<55,VLOOKUP(B51-$B$3,Lookups!$O$3:$Q$53,2),"") ->  | AK51: =IF(B51<55,VLOOKUP(B51-$B$3,Lookups!$O$3:$Q$53,3),"") ->  | AM51: =IF(B51<55,VLOOKUP(B51,Lookups!A:M,12),"") ->  | AN51: =IF(B51<55,VLOOKUP(B51,Lookups!A:M,13),"") ->  | AP51: =IF(B51<70,VLOOKUP(B51,Lookups!A:H,8)*(1-VLOOKUP(B51,Lookups!$U$3:$W$103,2))^(B51-$B$2),"") ->  | AQ51: =IF(B51<70,VLOOKUP(B51,Lookups!A:I,9)*(1-VLOOKUP(B51,Lookups!$U$3:$W$103,3))^(B51-$B$2),"") ->  | AV51: 94 | AW51: =IF(BD51>=$B$3,VLOOKUP(BD51,Lookups!A:H,8)*(1-VLOOKUP(BD51,Lookups!U:W,2))^(BD51-$B$2),"") -> 0.1598999306 | AX51: =IF(BD51>=$B$3,VLOOKUP(BD51,Lookups!A:I,9)*(1-VLOOKUP(BD51,Lookups!U:W,3))^(BD51-$B$2),"") -> 0.1166309903 | AY51: 0.1382654604 | AZ51: 0.3099036171 | BA51: 0.2614125046 | BB51: 0.923272 | BD51: 94 | BE51: 11144.69117 | BQ51: 833.5865647 | BR51: 865.0562133 | BS51: 897.9917809 | BT51: 932.529563 | BU51: 968.7028946 | BV51: 1006.637874 | BW51: 1046.473722 | BX51: 1088.382655 | BY51: 1132.562887 | BZ51: 1179.274128 | CA51: 1228.782882 | CB51: 1281.217077 | CC51: 1336.857968 | CD51: 1396.040805 | CE51: 1458.909406 | CF51: 1525.996003 | CN51: 35 | CO51: 0 | CP51: 3.286894185
A52: 2044 | B52: 84 | D52: =VLOOKUP(B52,Lookups!A:B,2) -> 4596.877488 | E52: =VLOOKUP(B52,Lookups!A:C,3) -> 2359.564522 | G52: =VLOOKUP(B52,Lookups!A:D,4) -> 6770.091885 | H52: =VLOOKUP(B52,Lookups!A:E,5) -> 4378.610934 | J52: =VLOOKUP(A52,Trends!$A$3:$Q$94,IF(ExFlg=0,2,10))+IF(B52>=$B$2,Sens,0) -> 1.053 | K52: 3.539871002 | L52: =VLOOKUP(A52,Trends!$A$3:$Q$94,IF(ExFlg=0,4,12))+IF(B52>=$B$2,Sens,0) -> 1.053 | M52: 3.538995507 | N52: =VLOOKUP(A52,Trends!$A$3:$Z$94,IF(ExFlg=0,19,23))+IF(B52>=$B$2,Sens,0) -> 1.054 | O52: 3.958876072 | P52: =VLOOKUP(A52,Trends!$A$3:$Q$94,IF(ExFlg=0,6,14))+IF(B52>=$B$2,Sens,0) -> 1.054 | Q52: 3.560082752 | R52: =VLOOKUP(A52,Trends!$A$3:$Q$94,IF(ExFlg=0,8,16))+IF(B52>=$B$2,Sens,0) -> 1.053 | S52: 3.593157409 | T52: =VLOOKUP(A52,Trends!$A$3:$Z$94,IF(ExFlg=0,21,25))+IF(B52>=$B$2,Sens,0) -> 1.054 | U52: 3.881623471 | W52: 16268.32877 | X52: 9341.223524 | Y52: 6927.105249 | AA52: 24326.00581 | AB52: 16996.11897 | AC52: 7329.886842 | AE52: 7195.627653 | AG52: =IF(B52<71,VLOOKUP(B52,Lookups!A:F,6),"") ->  | AH52: =IF(B52<71,VLOOKUP(Active!B52,Lookups!A:G,7),"") ->  | AJ52: =IF(B52<55,VLOOKUP(B52-$B$3,Lookups!$O$3:$Q$53,2),"") ->  | AK52: =IF(B52<55,VLOOKUP(B52-$B$3,Lookups!$O$3:$Q$53,3),"") ->  | AM52: =IF(B52<55,VLOOKUP(B52,Lookups!A:M,12),"") ->  | AN52: =IF(B52<55,VLOOKUP(B52,Lookups!A:M,13),"") ->  | AP52: =IF(B52<70,VLOOKUP(B52,Lookups!A:H,8)*(1-VLOOKUP(B52,Lookups!$U$3:$W$103,2))^(B52-$B$2),"") ->  | AQ52: =IF(B52<70,VLOOKUP(B52,Lookups!A:I,9)*(1-VLOOKUP(B52,Lookups!$U$3:$W$103,3))^(B52-$B$2),"") ->  | AV52: 95 | AW52: =IF(BD52>=$B$3,VLOOKUP(BD52,Lookups!A:H,8)*(1-VLOOKUP(BD52,Lookups!U:W,2))^(BD52-$B$2),"") -> 0.1800502811 | AX52: =IF(BD52>=$B$3,VLOOKUP(BD52,Lookups!A:I,9)*(1-VLOOKUP(BD52,Lookups!U:W,3))^(BD52-$B$2),"") -> 0.1312879306 | AY52: 0.1556691059 | AZ52: 0.2670546508 | BA52: 0.2525724682 | BB52: 0.915565 | BD52: 95 | BE52: 11696.32374 | BQ52: 722.3118116 | BR52: 749.5806039 | BS52: 778.1196309 | BT52: 808.0469942 | BU52: 839.3915789 | BV52: 872.2626502 | BW52: 906.7808451 | BX52: 943.0953911 | BY52: 981.3780424 | BZ52: 1021.853839 | CA52: 1064.753713 | CB52: 1110.188512 | CC52: 1158.401948 | CD52: 1209.68452 | CE52: 1264.160845 | CF52: 1322.29211 | CN52: 36 | CO52: 1 | CP52: 2.567268245
A53: 2045 | B53: 85 | D53: =VLOOKUP(B53,Lookups!A:B,2) -> 4577.865961 | E53: =VLOOKUP(B53,Lookups!A:C,3) -> 2359.564522 | G53: =VLOOKUP(B53,Lookups!A:D,4) -> 6742.092495 | H53: =VLOOKUP(B53,Lookups!A:E,5) -> 4378.610934 | J53: =VLOOKUP(A53,Trends!$A$3:$Q$94,IF(ExFlg=0,2,10))+IF(B53>=$B$2,Sens,0) -> 1.053 | K53: 3.727484165 | L53: =VLOOKUP(A53,Trends!$A$3:$Q$94,IF(ExFlg=0,4,12))+IF(B53>=$B$2,Sens,0) -> 1.052 | M53: 3.726562268 | N53: =VLOOKUP(A53,Trends!$A$3:$Z$94,IF(ExFlg=0,19,23))+IF(B53>=$B$2,Sens,0) -> 1.053 | O53: 4.17265538 | P53: =VLOOKUP(A53,Trends!$A$3:$Q$94,IF(ExFlg=0,6,14))+IF(B53>=$B$2,Sens,0) -> 1.053 | Q53: 3.752327221 | R53: =VLOOKUP(A53,Trends!$A$3:$Q$94,IF(ExFlg=0,8,16))+IF(B53>=$B$2,Sens,0) -> 1.053 | S53: 3.783594751 | T53: =VLOOKUP(A53,Trends!$A$3:$Z$94,IF(ExFlg=0,21,25))+IF(B53>=$B$2,Sens,0) -> 1.054 | U53: 4.091231139 | W53: 17059.70256 | X53: 9845.649595 | Y53: 7214.052964 | AA53: 25509.34578 | AB53: 17913.9094 | AC53: 7595.436384 | AE53: 7468.309848 | AG53: =IF(B53<71,VLOOKUP(B53,Lookups!A:F,6),"") ->  | AH53: =IF(B53<71,VLOOKUP(Active!B53,Lookups!A:G,7),"") ->  | AJ53: =IF(B53<55,VLOOKUP(B53-$B$3,Lookups!$O$3:$Q$53,2),"") ->  | AK53: =IF(B53<55,VLOOKUP(B53-$B$3,Lookups!$O$3:$Q$53,3),"") ->  | AM53: =IF(B53<55,VLOOKUP(B53,Lookups!A:M,12),"") ->  | AN53: =IF(B53<55,VLOOKUP(B53,Lookups!A:M,13),"") ->  | AP53: =IF(B53<70,VLOOKUP(B53,Lookups!A:H,8)*(1-VLOOKUP(B53,Lookups!$U$3:$W$103,2))^(B53-$B$2),"") ->  | AQ53: =IF(B53<70,VLOOKUP(B53,Lookups!A:I,9)*(1-VLOOKUP(B53,Lookups!$U$3:$W$103,3))^(B53-$B$2),"") ->  | AV53: 96 | AW53: =IF(BD53>=$B$3,VLOOKUP(BD53,Lookups!A:H,8)*(1-VLOOKUP(BD53,Lookups!U:W,2))^(BD53-$B$2),"") -> 0.2020232577 | AX53: =IF(BD53>=$B$3,VLOOKUP(BD53,Lookups!A:I,9)*(1-VLOOKUP(BD53,Lookups!U:W,3))^(BD53-$B$2),"") -> 0.1469037635 | AY53: 0.1744635106 | AZ53: 0.2254824921 | BA53: 0.2440313702 | BB53: 0.907242 | BD53: 96 | BE53: 12275.18066 | BQ53: 612.7869735 | BR53: 635.9209725 | BS53: 660.1325992 | BT53: 685.5220475 | BU53: 712.1138225 | BV53: 740.0006215 | BW53: 769.2847891 | BX53: 800.0929254 | BY53: 832.5707413 | BZ53: 866.9091541 | CA53: 903.3040781 | CB53: 941.8495552 | CC53: 982.752341 | CD53: 1026.258887 | CE53: 1072.474914 | CF53: 1121.791679 | CN53: 37 | CO53: 2 | CP53: 2.280540432
A54: 2046 | B54: 86 | D54: =VLOOKUP(B54,Lookups!A:B,2) -> 4558.937638 | E54: =VLOOKUP(B54,Lookups!A:C,3) -> 2359.564522 | G54: =VLOOKUP(B54,Lookups!A:D,4) -> 6714.215647 | H54: =VLOOKUP(B54,Lookups!A:E,5) -> 4378.610934 | J54: =VLOOKUP(A54,Trends!$A$3:$Q$94,IF(ExFlg=0,2,10))+IF(B54>=$B$2,Sens,0) -> 1.053 | K54: 3.925040826 | L54: =VLOOKUP(A54,Trends!$A$3:$Q$94,IF(ExFlg=0,4,12))+IF(B54>=$B$2,Sens,0) -> 1.052 | M54: 3.920343506 | N54: =VLOOKUP(A54,Trends!$A$3:$Z$94,IF(ExFlg=0,19,23))+IF(B54>=$B$2,Sens,0) -> 1.053 | O54: 4.393806115 | P54: =VLOOKUP(A54,Trends!$A$3:$Q$94,IF(ExFlg=0,6,14))+IF(B54>=$B$2,Sens,0) -> 1.053 | Q54: 3.951200564 | R54: =VLOOKUP(A54,Trends!$A$3:$Q$94,IF(ExFlg=0,8,16))+IF(B54>=$B$2,Sens,0) -> 1.053 | S54: 3.984125273 | T54: =VLOOKUP(A54,Trends!$A$3:$Z$94,IF(ExFlg=0,21,25))+IF(B54>=$B$2,Sens,0) -> 1.054 | U54: 4.31215762 | W54: 17872.60157 | X54: 10367.46902 | Y54: 7505.132544 | AA54: 26750.27625 | AB54: 18881.2605 | AC54: 7869.015746 | AE54: 7747.722558 | AG54: =IF(B54<71,VLOOKUP(B54,Lookups!A:F,6),"") ->  | AH54: =IF(B54<71,VLOOKUP(Active!B54,Lookups!A:G,7),"") ->  | AJ54: =IF(B54<55,VLOOKUP(B54-$B$3,Lookups!$O$3:$Q$53,2),"") ->  | AK54: =IF(B54<55,VLOOKUP(B54-$B$3,Lookups!$O$3:$Q$53,3),"") ->  | AM54: =IF(B54<55,VLOOKUP(B54,Lookups!A:M,12),"") ->  | AN54: =IF(B54<55,VLOOKUP(B54,Lookups!A:M,13),"") ->  | AP54: =IF(B54<70,VLOOKUP(B54,Lookups!A:H,8)*(1-VLOOKUP(B54,Lookups!$U$3:$W$103,2))^(B54-$B$2),"") ->  | AQ54: =IF(B54<70,VLOOKUP(B54,Lookups!A:I,9)*(1-VLOOKUP(B54,Lookups!$U$3:$W$103,3))^(B54-$B$2),"") ->  | AV54: 97 | AW54: =IF(BD54>=$B$3,VLOOKUP(BD54,Lookups!A:H,8)*(1-VLOOKUP(BD54,Lookups!U:W,2))^(BD54-$B$2),"") -> 0.2259201401 | AX54: =IF(BD54>=$B$3,VLOOKUP(BD54,Lookups!A:I,9)*(1-VLOOKUP(BD54,Lookups!U:W,3))^(BD54-$B$2),"") -> 0.163432537 | AY54: 0.1946763386 | AZ54: 0.1861440249 | BA54: 0.2357791017 | BB54: 0.898291 | BD54: 97 | BE54: 12909.48842 | BQ54: 508.9562944 | BR54: 528.1704666 | BS54: 548.2796731 | BT54: 569.3671311 | BU54: 591.4531934 | BV54: 614.6148507 | BW54: 638.9371063 | BX54: 664.5251093 | BY54: 691.4998812 | BZ54: 720.0199903 | CA54: 750.2481551 | CB54: 782.2624832 | CC54: 816.2346973 | CD54: 852.3694902 | CE54: 890.7546699 | CF54: 931.7151976 | CN54: 38 | CO54: 3 | CP54: 2.125684116
A55: 2047 | B55: 87 | D55: =VLOOKUP(B55,Lookups!A:B,2) -> 4540.092138 | E55: =VLOOKUP(B55,Lookups!A:C,3) -> 2359.564522 | G55: =VLOOKUP(B55,Lookups!A:D,4) -> 6686.460775 | H55: =VLOOKUP(B55,Lookups!A:E,5) -> 4378.610934 | J55: =VLOOKUP(A55,Trends!$A$3:$Q$94,IF(ExFlg=0,2,10))+IF(B55>=$B$2,Sens,0) -> 1.053 | K55: 4.13306799 | L55: =VLOOKUP(A55,Trends!$A$3:$Q$94,IF(ExFlg=0,4,12))+IF(B55>=$B$2,Sens,0) -> 1.052 | M55: 4.124201369 | N55: =VLOOKUP(A55,Trends!$A$3:$Z$94,IF(ExFlg=0,19,23))+IF(B55>=$B$2,Sens,0) -> 1.053 | O55: 4.626677839 | P55: =VLOOKUP(A55,Trends!$A$3:$Q$94,IF(ExFlg=0,6,14))+IF(B55>=$B$2,Sens,0) -> 1.053 | Q55: 4.160614194 | R55: =VLOOKUP(A55,Trends!$A$3:$Q$94,IF(ExFlg=0,8,16))+IF(B55>=$B$2,Sens,0) -> 1.052 | S55: 4.195283913 | T55: =VLOOKUP(A55,Trends!$A$3:$Z$94,IF(ExFlg=0,21,25))+IF(B55>=$B$2,Sens,0) -> 1.053 | U55: 4.545014132 | W55: 18724.25421 | X55: 10916.94488 | Y55: 7807.30933 | AA55: 28051.60132 | AB55: 19900.84857 | AC55: 8150.752754 | AE55: 8036.272757 | AG55: =IF(B55<71,VLOOKUP(B55,Lookups!A:F,6),"") ->  | AH55: =IF(B55<71,VLOOKUP(Active!B55,Lookups!A:G,7),"") ->  | AJ55: =IF(B55<55,VLOOKUP(B55-$B$3,Lookups!$O$3:$Q$53,2),"") ->  | AK55: =IF(B55<55,VLOOKUP(B55-$B$3,Lookups!$O$3:$Q$53,3),"") ->  | AM55: =IF(B55<55,VLOOKUP(B55,Lookups!A:M,12),"") ->  | AN55: =IF(B55<55,VLOOKUP(B55,Lookups!A:M,13),"") ->  | AP55: =IF(B55<70,VLOOKUP(B55,Lookups!A:H,8)*(1-VLOOKUP(B55,Lookups!$U$3:$W$103,2))^(B55-$B$2),"") ->  | AQ55: =IF(B55<70,VLOOKUP(B55,Lookups!A:I,9)*(1-VLOOKUP(B55,Lookups!$U$3:$W$103,3))^(B55-$B$2),"") ->  | AV55: 98 | AW55: =IF(BD55>=$B$3,VLOOKUP(BD55,Lookups!A:H,8)*(1-VLOOKUP(BD55,Lookups!U:W,2))^(BD55-$B$2),"") -> 0.2376556609 | AX55: =IF(BD55>=$B$3,VLOOKUP(BD55,Lookups!A:I,9)*(1-VLOOKUP(BD55,Lookups!U:W,3))^(BD55-$B$2),"") -> 0.1705947179 | AY55: 0.2041251894 | AZ55: 0.1499061877 | BA55: 0.2278058953 | BB55: 0.894107 | BD55: 98 | BE55: 13567.87233 | BQ55: 414.2721726 | BR55: 429.9118197 | BS55: 446.2799928 | BT55: 463.4444273 | BU55: 481.42169 | BV55: 500.2744485 | BW55: 520.0718924 | BX55: 540.8996092 | BY55: 562.8561062 | BZ55: 586.0704524 | CA55: 610.6750945 | CB55: 636.7336096 | CC55: 664.3857736 | CD55: 693.7981993 | CE55: 725.0423591 | CF55: 758.3827598 | CN55: 39 | CO55: 4 | CP55: 2.014949949
A56: 2048 | B56: 88 | D56: =VLOOKUP(B56,Lookups!A:B,2) -> 4521.32908 | E56: =VLOOKUP(B56,Lookups!A:C,3) -> 2359.564522 | G56: =VLOOKUP(B56,Lookups!A:D,4) -> 6658.82732 | H56: =VLOOKUP(B56,Lookups!A:E,5) -> 4378.610934 | J56: =VLOOKUP(A56,Trends!$A$3:$Q$94,IF(ExFlg=0,2,10))+IF(B56>=$B$2,Sens,0) -> 1.052 | K56: 4.352120593 | L56: =VLOOKUP(A56,Trends!$A$3:$Q$94,IF(ExFlg=0,4,12))+IF(B56>=$B$2,Sens,0) -> 1.052 | M56: 4.33865984 | N56: =VLOOKUP(A56,Trends!$A$3:$Z$94,IF(ExFlg=0,19,23))+IF(B56>=$B$2,Sens,0) -> 1.053 | O56: 4.871891764 | P56: =VLOOKUP(A56,Trends!$A$3:$Q$94,IF(ExFlg=0,6,14))+IF(B56>=$B$2,Sens,0) -> 1.053 | Q56: 4.381126746 | R56: =VLOOKUP(A56,Trends!$A$3:$Q$94,IF(ExFlg=0,8,16))+IF(B56>=$B$2,Sens,0) -> 1.052 | S56: 4.413438676 | T56: =VLOOKUP(A56,Trends!$A$3:$Z$94,IF(ExFlg=0,21,25))+IF(B56>=$B$2,Sens,0) -> 1.053 | U56: 4.785899881 | W56: 19616.5089 | X56: 11495.54296 | Y56: 8120.965942 | AA56: 29388.32603 | AB56: 20955.59355 | AC56: 8432.732489 | AE56: 8328.811346 | AG56: =IF(B56<71,VLOOKUP(B56,Lookups!A:F,6),"") ->  | AH56: =IF(B56<71,VLOOKUP(Active!B56,Lookups!A:G,7),"") ->  | AJ56: =IF(B56<55,VLOOKUP(B56-$B$3,Lookups!$O$3:$Q$53,2),"") ->  | AK56: =IF(B56<55,VLOOKUP(B56-$B$3,Lookups!$O$3:$Q$53,3),"") ->  | AM56: =IF(B56<55,VLOOKUP(B56,Lookups!A:M,12),"") ->  | AN56: =IF(B56<55,VLOOKUP(B56,Lookups!A:M,13),"") ->  | AP56: =IF(B56<70,VLOOKUP(B56,Lookups!A:H,8)*(1-VLOOKUP(B56,Lookups!$U$3:$W$103,2))^(B56-$B$2),"") ->  | AQ56: =IF(B56<70,VLOOKUP(B56,Lookups!A:I,9)*(1-VLOOKUP(B56,Lookups!$U$3:$W$103,3))^(B56-$B$2),"") ->  | AV56: 99 | AW56: =IF(BD56>=$B$3,VLOOKUP(BD56,Lookups!A:H,8)*(1-VLOOKUP(BD56,Lookups!U:W,2))^(BD56-$B$2),"") -> 0.2640780786 | AX56: =IF(BD56>=$B$3,VLOOKUP(BD56,Lookups!A:I,9)*(1-VLOOKUP(BD56,Lookups!U:W,3))^(BD56-$B$2),"") -> 0.187568047 | AY56: 0.2258230628 | AZ56: 0.1193065587 | BA56: 0.2201023143 | BB56: 0.884499 | BD56: 99 | BE56: 14259.83382 | BQ56: 331.2079396 | BR56: 343.7117369 | BS56: 356.797986 | BT56: 370.5208412 | BU56: 384.8935472 | BV56: 399.9662064 | BW56: 415.7941356 | BX56: 432.4457613 | BY56: 449.9998396 | BZ56: 468.5595601 | CA56: 488.2308134 | CB56: 509.0644287 | CC56: 531.1721561 | CD56: 554.6872014 | CE56: 579.6667064 | CF56: 606.3221424 | CN56: 40 | CO56: 5 | CP56: 1.927078358
A57: =1+A56 -> 2049 | B57: =1+B56 -> 89 | D57: =VLOOKUP(B57,Lookups!A:B,2) -> 4521.32908 | E57: =VLOOKUP(B57,Lookups!A:C,3) -> 2359.564522 | G57: =VLOOKUP(B57,Lookups!A:D,4) -> 6658.82732 | H57: =VLOOKUP(B57,Lookups!A:E,5) -> 4378.610934 | J57: =VLOOKUP(A57,Trends!$A$3:$Q$94,IF(ExFlg=0,2,10))+IF(B57>=$B$2,Sens,0) -> 1.052 | K57: 4.578430864 | L57: =VLOOKUP(A57,Trends!$A$3:$Q$94,IF(ExFlg=0,4,12))+IF(B57>=$B$2,Sens,0) -> 1.052 | M57: 4.564270152 | N57: =VLOOKUP(A57,Trends!$A$3:$Z$94,IF(ExFlg=0,19,23))+IF(B57>=$B$2,Sens,0) -> 1.053 | O57: 5.130102028 | P57: =VLOOKUP(A57,Trends!$A$3:$Q$94,IF(ExFlg=0,6,14))+IF(B57>=$B$2,Sens,0) -> 1.052 | Q57: 4.613326463 | R57: =VLOOKUP(A57,Trends!$A$3:$Q$94,IF(ExFlg=0,8,16))+IF(B57>=$B$2,Sens,0) -> 1.052 | S57: 4.642937487 | T57: =VLOOKUP(A57,Trends!$A$3:$Z$94,IF(ExFlg=0,21,25))+IF(B57>=$B$2,Sens,0) -> 1.053 | U57: 5.039552574 | W57: 20636.56736 | X57: 12104.80674 | Y57: 8531.760628 | AA57: 30916.51899 | AB57: 22066.24 | AC57: 8850.278985 | AE57: 8744.107261 | AG57: =IF(B57<71,VLOOKUP(B57,Lookups!A:F,6),"") ->  | AH57: =IF(B57<71,VLOOKUP(Active!B57,Lookups!A:G,7),"") ->  | AJ57: =IF(B57<55,VLOOKUP(B57-$B$3,Lookups!$O$3:$Q$53,2),"") ->  | AK57: =IF(B57<55,VLOOKUP(B57-$B$3,Lookups!$O$3:$Q$53,3),"") ->  | AM57: =IF(B57<55,VLOOKUP(B57,Lookups!A:M,12),"") ->  | AN57: =IF(B57<55,VLOOKUP(B57,Lookups!A:M,13),"") ->  | AP57: =IF(B57<70,VLOOKUP(B57,Lookups!A:H,8)*(1-VLOOKUP(B57,Lookups!$U$3:$W$103,2))^(B57-$B$2),"") ->  | AQ57: =IF(B57<70,VLOOKUP(B57,Lookups!A:I,9)*(1-VLOOKUP(B57,Lookups!$U$3:$W$103,3))^(B57-$B$2),"") ->  | AV57: 100 | AW57: =IF(BD57>=$B$3,VLOOKUP(BD57,Lookups!A:H,8)*(1-VLOOKUP(BD57,Lookups!U:W,2))^(BD57-$B$2),"") -> 0.2757371775 | AX57: =IF(BD57>=$B$3,VLOOKUP(BD57,Lookups!A:I,9)*(1-VLOOKUP(BD57,Lookups!U:W,3))^(BD57-$B$2),"") -> 0.1932186691 | AY57: 0.2344779233 | AZ57: 0.09236438623 | BA57: 0.2126592409 | BB57: 0.880666 | BD57: 100 | BE57: 14987.08535 | BQ57: 259.2490766 | BR57: 269.0362753 | BS57: 279.2793813 | BT57: 290.0207829 | BU57: 301.2708477 | BV57: 313.0687925 | BW57: 325.4579158 | BX57: 338.4917779 | BY57: 352.2320239 | BZ57: 366.7594245 | CA57: 382.1568641 | CB57: 398.4641288 | CC57: 415.7686896 | CD57: 434.1748117 | CE57: 453.7272222 | CF57: 474.5914478 | CN57: 41 | CO57: 6 | CP57: 1.848188101
A58: 2050 | B58: 90 | D58: =VLOOKUP(B58,Lookups!A:B,2) -> 4521.32908 | E58: =VLOOKUP(B58,Lookups!A:C,3) -> 2359.564522 | G58: =VLOOKUP(B58,Lookups!A:D,4) -> 6658.82732 | H58: =VLOOKUP(B58,Lookups!A:E,5) -> 4378.610934 | J58: =VLOOKUP(A58,Trends!$A$3:$Q$94,IF(ExFlg=0,2,10))+IF(B58>=$B$2,Sens,0) -> 1.052 | K58: 4.816509269 | L58: =VLOOKUP(A58,Trends!$A$3:$Q$94,IF(ExFlg=0,4,12))+IF(B58>=$B$2,Sens,0) -> 1.052 | M58: 4.8016122 | N58: =VLOOKUP(A58,Trends!$A$3:$Z$94,IF(ExFlg=0,19,23))+IF(B58>=$B$2,Sens,0) -> 1.053 | O58: 5.401997435 | P58: =VLOOKUP(A58,Trends!$A$3:$Q$94,IF(ExFlg=0,6,14))+IF(B58>=$B$2,Sens,0) -> 1.052 | Q58: 4.853219439 | R58: =VLOOKUP(A58,Trends!$A$3:$Q$94,IF(ExFlg=0,8,16))+IF(B58>=$B$2,Sens,0) -> 1.052 | S58: 4.884370237 | T58: =VLOOKUP(A58,Trends!$A$3:$Z$94,IF(ExFlg=0,21,25))+IF(B58>=$B$2,Sens,0) -> 1.053 | U58: 5.306648861 | W58: 21709.66887 | X58: 12746.36149 | Y58: 8963.307374 | AA58: 32524.17798 | AB58: 23235.75072 | AC58: 9288.427252 | AE58: 9180.055043 | AG58: =IF(B58<71,VLOOKUP(B58,Lookups!A:F,6),"") ->  | AH58: =IF(B58<71,VLOOKUP(Active!B58,Lookups!A:G,7),"") ->  | AJ58: =IF(B58<55,VLOOKUP(B58-$B$3,Lookups!$O$3:$Q$53,2),"") ->  | AK58: =IF(B58<55,VLOOKUP(B58-$B$3,Lookups!$O$3:$Q$53,3),"") ->  | AM58: =IF(B58<55,VLOOKUP(B58,Lookups!A:M,12),"") ->  | AN58: =IF(B58<55,VLOOKUP(B58,Lookups!A:M,13),"") ->  | AP58: =IF(B58<70,VLOOKUP(B58,Lookups!A:H,8)*(1-VLOOKUP(B58,Lookups!$U$3:$W$103,2))^(B58-$B$2),"") ->  | AQ58: =IF(B58<70,VLOOKUP(B58,Lookups!A:I,9)*(1-VLOOKUP(B58,Lookups!$U$3:$W$103,3))^(B58-$B$2),"") ->  | AV58: 101 | AW58: =IF(BD58>=$B$3,VLOOKUP(BD58,Lookups!A:H,8)*(1-VLOOKUP(BD58,Lookups!U:W,2))^(BD58-$B$2),"") -> 0.3049462748 | AX58: =IF(BD58>=$B$3,VLOOKUP(BD58,Lookups!A:I,9)*(1-VLOOKUP(BD58,Lookups!U:W,3))^(BD58-$B$2),"") -> 0.2101678704 | AY58: 0.2575570726 | AZ58: 0.07070697676 | BA58: 0.2054678656 | BB58: 0.870446 | BD58: 101 | BE58: 15751.4267 | BQ58: 199.1901728 | BR58: 206.7100213 | BS58: 214.5801595 | BT58: 222.8331557 | BU58: 231.4769756 | BV58: 240.5417511 | BW58: 250.0607498 | BX58: 260.0751239 | BY58: 270.6322376 | BZ58: 281.7941498 | CA58: 293.6245435 | CB58: 306.1539878 | CC58: 319.4496898 | CD58: 333.59176 | CE58: 348.6145638 | CF58: 364.6452813 | CN58: =IF(OR(CN59<=($CN$76-MS), CN59 = 20), CN59, CN59-1) -> 42 | CO58: 7 | CP58: =IF(CN58<CN59,CP59*1/(1-VLOOKUP(CN58,$B$3:$AU$93,44,FALSE)) * (1+IntRt) * 1/(1+GSG) * 1/VLOOKUP(MIN(CO58,30),$CR$63:$CT$93,3,FALSE), "") -> 1.777383752
A59: 2051 | B59: 91 | D59: =VLOOKUP(B59,Lookups!A:B,2) -> 4521.32908 | E59: =VLOOKUP(B59,Lookups!A:C,3) -> 2359.564522 | G59: =VLOOKUP(B59,Lookups!A:D,4) -> 6658.82732 | H59: =VLOOKUP(B59,Lookups!A:E,5) -> 4378.610934 | J59: =VLOOKUP(A59,Trends!$A$3:$Q$94,IF(ExFlg=0,2,10))+IF(B59>=$B$2,Sens,0) -> 1.052 | K59: 5.066967751 | L59: =VLOOKUP(A59,Trends!$A$3:$Q$94,IF(ExFlg=0,4,12))+IF(B59>=$B$2,Sens,0) -> 1.052 | M59: 5.051296034 | N59: =VLOOKUP(A59,Trends!$A$3:$Z$94,IF(ExFlg=0,19,23))+IF(B59>=$B$2,Sens,0) -> 1.053 | O59: 5.688303299 | P59: =VLOOKUP(A59,Trends!$A$3:$Q$94,IF(ExFlg=0,6,14))+IF(B59>=$B$2,Sens,0) -> 1.052 | Q59: 5.10558685 | R59: =VLOOKUP(A59,Trends!$A$3:$Q$94,IF(ExFlg=0,8,16))+IF(B59>=$B$2,Sens,0) -> 1.052 | S59: 5.138357489 | T59: =VLOOKUP(A59,Trends!$A$3:$Z$94,IF(ExFlg=0,21,25))+IF(B59>=$B$2,Sens,0) -> 1.053 | U59: 5.58790125 | W59: 22838.57165 | X59: 13421.91865 | Y59: 9416.652996 | AA59: 34215.43523 | AB59: 24467.24551 | AC59: 9748.189718 | AE59: 9637.678583 | AG59: =IF(B59<71,VLOOKUP(B59,Lookups!A:F,6),"") ->  | AH59: =IF(B59<71,VLOOKUP(Active!B59,Lookups!A:G,7),"") ->  | AJ59: =IF(B59<55,VLOOKUP(B59-$B$3,Lookups!$O$3:$Q$53,2),"") ->  | AK59: =IF(B59<55,VLOOKUP(B59-$B$3,Lookups!$O$3:$Q$53,3),"") ->  | AM59: =IF(B59<55,VLOOKUP(B59,Lookups!A:M,12),"") ->  | AN59: =IF(B59<55,VLOOKUP(B59,Lookups!A:M,13),"") ->  | AP59: =IF(B59<70,VLOOKUP(B59,Lookups!A:H,8)*(1-VLOOKUP(B59,Lookups!$U$3:$W$103,2))^(B59-$B$2),"") ->  | AQ59: =IF(B59<70,VLOOKUP(B59,Lookups!A:I,9)*(1-VLOOKUP(B59,Lookups!$U$3:$W$103,3))^(B59-$B$2),"") ->  | AV59: 102 | AW59: =IF(BD59>=$B$3,VLOOKUP(BD59,Lookups!A:H,8)*(1-VLOOKUP(BD59,Lookups!U:W,2))^(BD59-$B$2),"") -> 0.316765825 | AX59: =IF(BD59>=$B$3,VLOOKUP(BD59,Lookups!A:I,9)*(1-VLOOKUP(BD59,Lookups!U:W,3))^(BD59-$B$2),"") -> 0.2162543581 | AY59: 0.2665100916 | AZ59: 0.05249589482 | BA59: 0.1985196769 | BB59: 0.866481 | BD59: 102 | BE59: 16554.74946 | BQ59: 149.4894552 | BR59: 155.132997 | BS59: 161.0394262 | BT59: 167.2331852 | BU59: 173.7202518 | BV59: 180.5232398 | BW59: 187.667116 | BX59: 195.1827645 | BY59: 203.1057315 | BZ59: 211.4825915 | CA59: 220.3611375 | CB59: 229.7643112 | CC59: 239.7425507 | CD59: 250.3559777 | CE59: 261.6303831 | CF59: 273.6612138 | CN59: 43 | CO59: 8 | CP59: 1.710986114
A60: 2052 | B60: 92 | D60: =VLOOKUP(B60,Lookups!A:B,2) -> 4521.32908 | E60: =VLOOKUP(B60,Lookups!A:C,3) -> 2359.564522 | G60: =VLOOKUP(B60,Lookups!A:D,4) -> 6658.82732 | H60: =VLOOKUP(B60,Lookups!A:E,5) -> 4378.610934 | J60: =VLOOKUP(A60,Trends!$A$3:$Q$94,IF(ExFlg=0,2,10))+IF(B60>=$B$2,Sens,0) -> 1.052 | K60: 5.330450074 | L60: =VLOOKUP(A60,Trends!$A$3:$Q$94,IF(ExFlg=0,4,12))+IF(B60>=$B$2,Sens,0) -> 1.051 | M60: 5.313963428 | N60: =VLOOKUP(A60,Trends!$A$3:$Z$94,IF(ExFlg=0,19,23))+IF(B60>=$B$2,Sens,0) -> 1.052 | O60: 5.989783374 | P60: =VLOOKUP(A60,Trends!$A$3:$Q$94,IF(ExFlg=0,6,14))+IF(B60>=$B$2,Sens,0) -> 1.052 | Q60: 5.371077367 | R60: =VLOOKUP(A60,Trends!$A$3:$Q$94,IF(ExFlg=0,8,16))+IF(B60>=$B$2,Sens,0) -> 1.052 | S60: 5.405552078 | T60: =VLOOKUP(A60,Trends!$A$3:$Z$94,IF(ExFlg=0,21,25))+IF(B60>=$B$2,Sens,0) -> 1.053 | U60: 5.884060017 | W60: 24026.17737 | X60: 14133.28034 | Y60: 9892.897033 | AA60: 35994.63786 | AB60: 25764.00952 | AC60: 10230.62834 | AE60: 10118.05236 | AG60: =IF(B60<71,VLOOKUP(B60,Lookups!A:F,6),"") ->  | AH60: =IF(B60<71,VLOOKUP(Active!B60,Lookups!A:G,7),"") ->  | AJ60: =IF(B60<55,VLOOKUP(B60-$B$3,Lookups!$O$3:$Q$53,2),"") ->  | AK60: =IF(B60<55,VLOOKUP(B60-$B$3,Lookups!$O$3:$Q$53,3),"") ->  | AM60: =IF(B60<55,VLOOKUP(B60,Lookups!A:M,12),"") ->  | AN60: =IF(B60<55,VLOOKUP(B60,Lookups!A:M,13),"") ->  | AP60: =IF(B60<70,VLOOKUP(B60,Lookups!A:H,8)*(1-VLOOKUP(B60,Lookups!$U$3:$W$103,2))^(B60-$B$2),"") ->  | AQ60: =IF(B60<70,VLOOKUP(B60,Lookups!A:I,9)*(1-VLOOKUP(B60,Lookups!$U$3:$W$103,3))^(B60-$B$2),"") ->  | AV60: 103 | AW60: =IF(BD60>=$B$3,VLOOKUP(BD60,Lookups!A:H,8)*(1-VLOOKUP(BD60,Lookups!U:W,2))^(BD60-$B$2),"") -> 0.3489799794 | AX60: =IF(BD60>=$B$3,VLOOKUP(BD60,Lookups!A:I,9)*(1-VLOOKUP(BD60,Lookups!U:W,3))^(BD60-$B$2),"") -> 0.2389519265 | AY60: 0.2939659529 | AZ60: 0.03850520908 | BA60: 0.1918064511 | BB60: 0.854323 | BD60: 103 | BE60: 17399.04168 | BQ60: 109.7817433 | BR60: 113.9262353 | BS60: 118.2637861 | BT60: 122.8123454 | BU60: 127.5763034 | BV60: 132.572267 | BW60: 137.8185714 | BX60: 143.3378971 | BY60: 149.1563485 | BZ60: 155.3081288 | CA60: 161.8283363 | CB60: 168.7338187 | CC60: 176.0616167 | CD60: 183.8558823 | CE60: 192.1355558 | CF60: 200.9707312 | CN60: 44 | CO60: 9 | CP60: 1.648061266
A61: 2053 | B61: 93 | D61: =VLOOKUP(B61,Lookups!A:B,2) -> 4521.32908 | E61: =VLOOKUP(B61,Lookups!A:C,3) -> 2359.564522 | G61: =VLOOKUP(B61,Lookups!A:D,4) -> 6658.82732 | H61: =VLOOKUP(B61,Lookups!A:E,5) -> 4378.610934 | J61: =VLOOKUP(A61,Trends!$A$3:$Q$94,IF(ExFlg=0,2,10))+IF(B61>=$B$2,Sens,0) -> 1.052 | K61: 5.607633478 | L61: =VLOOKUP(A61,Trends!$A$3:$Q$94,IF(ExFlg=0,4,12))+IF(B61>=$B$2,Sens,0) -> 1.051 | M61: 5.584975562 | N61: =VLOOKUP(A61,Trends!$A$3:$Z$94,IF(ExFlg=0,19,23))+IF(B61>=$B$2,Sens,0) -> 1.052 | O61: 6.30125211 | P61: =VLOOKUP(A61,Trends!$A$3:$Q$94,IF(ExFlg=0,6,14))+IF(B61>=$B$2,Sens,0) -> 1.052 | Q61: 5.65037339 | R61: =VLOOKUP(A61,Trends!$A$3:$Q$94,IF(ExFlg=0,8,16))+IF(B61>=$B$2,Sens,0) -> 1.052 | S61: 5.686640787 | T61: =VLOOKUP(A61,Trends!$A$3:$Z$94,IF(ExFlg=0,21,25))+IF(B61>=$B$2,Sens,0) -> 1.053 | U61: 6.195915197 | W61: 25251.51242 | X61: 14868.21092 | Y61: 10383.3015 | AA61: 37866.35903 | AB61: 27129.50203 | AC61: 10736.857 | AE61: 10619.00635 | AG61: =IF(B61<71,VLOOKUP(B61,Lookups!A:F,6),"") ->  | AH61: =IF(B61<71,VLOOKUP(Active!B61,Lookups!A:G,7),"") ->  | AJ61: =IF(B61<55,VLOOKUP(B61-$B$3,Lookups!$O$3:$Q$53,2),"") ->  | AK61: =IF(B61<55,VLOOKUP(B61-$B$3,Lookups!$O$3:$Q$53,3),"") ->  | AM61: =IF(B61<55,VLOOKUP(B61,Lookups!A:M,12),"") ->  | AN61: =IF(B61<55,VLOOKUP(B61,Lookups!A:M,13),"") ->  | AP61: =IF(B61<70,VLOOKUP(B61,Lookups!A:H,8)*(1-VLOOKUP(B61,Lookups!$U$3:$W$103,2))^(B61-$B$2),"") ->  | AQ61: =IF(B61<70,VLOOKUP(B61,Lookups!A:I,9)*(1-VLOOKUP(B61,Lookups!$U$3:$W$103,3))^(B61-$B$2),"") ->  | AV61: 104 | AW61: =IF(BD61>=$B$3,VLOOKUP(BD61,Lookups!A:H,8)*(1-VLOOKUP(BD61,Lookups!U:W,2))^(BD61-$B$2),"") -> 0.3592823372 | AX61: =IF(BD61>=$B$3,VLOOKUP(BD61,Lookups!A:I,9)*(1-VLOOKUP(BD61,Lookups!U:W,3))^(BD61-$B$2),"") -> 0.2495429012 | AY61: 0.3044126192 | AZ61: 0.0271859886 | BA61: 0.1853202426 | BB61: 0.849697 | BD61: 104 | BE61: 18286.39281 | BQ61: 78.28167687 | BR61: 81.23697505 | BS61: 84.32993692 | BT61: 87.57336192 | BU61: 90.9703805 | BV61: 94.53283448 | BW61: 98.27379805 | BX61: 102.209444 | BY61: 106.3583864 | BZ61: 110.7450145 | CA61: 115.3943556 | CB61: 120.3184234 | CC61: 125.5436302 | CD61: 131.1014595 | CE61: 137.0054168 | CF61: 143.3054838 | CN61: 45 | CO61: 10 | CP61: 1.58949958 | CR61: PERS Salary Merit Table
A62: 2054 | B62: 94 | D62: =VLOOKUP(B62,Lookups!A:B,2) -> 4521.32908 | E62: =VLOOKUP(B62,Lookups!A:C,3) -> 2359.564522 | G62: =VLOOKUP(B62,Lookups!A:D,4) -> 6658.82732 | H62: =VLOOKUP(B62,Lookups!A:E,5) -> 4378.610934 | J62: =VLOOKUP(A62,Trends!$A$3:$Q$94,IF(ExFlg=0,2,10))+IF(B62>=$B$2,Sens,0) -> 1.052 | K62: 5.899230419 | L62: =VLOOKUP(A62,Trends!$A$3:$Q$94,IF(ExFlg=0,4,12))+IF(B62>=$B$2,Sens,0) -> 1.051 | M62: 5.869809316 | N62: =VLOOKUP(A62,Trends!$A$3:$Z$94,IF(ExFlg=0,19,23))+IF(B62>=$B$2,Sens,0) -> 1.052 | O62: 6.628917219 | P62: =VLOOKUP(A62,Trends!$A$3:$Q$94,IF(ExFlg=0,6,14))+IF(B62>=$B$2,Sens,0) -> 1.052 | Q62: 5.944192806 | R62: =VLOOKUP(A62,Trends!$A$3:$Q$94,IF(ExFlg=0,8,16))+IF(B62>=$B$2,Sens,0) -> 1.052 | S62: 5.982346107 | T62: =VLOOKUP(A62,Trends!$A$3:$Z$94,IF(ExFlg=0,21,25))+IF(B62>=$B$2,Sens,0) -> 1.053 | U62: 6.524298703 | W62: 26539.33955 | X62: 15641.35789 | Y62: 10897.98167 | AA62: 39835.4097 | AB62: 28567.36564 | AC62: 11268.04406 | AE62: 11144.69117 | AG62: =IF(B62<71,VLOOKUP(B62,Lookups!A:F,6),"") ->  | AH62: =IF(B62<71,VLOOKUP(Active!B62,Lookups!A:G,7),"") ->  | AJ62: =IF(B62<55,VLOOKUP(B62-$B$3,Lookups!$O$3:$Q$53,2),"") ->  | AK62: =IF(B62<55,VLOOKUP(B62-$B$3,Lookups!$O$3:$Q$53,3),"") ->  | AM62: =IF(B62<55,VLOOKUP(B62,Lookups!A:M,12),"") ->  | AN62: =IF(B62<55,VLOOKUP(B62,Lookups!A:M,13),"") ->  | AP62: =IF(B62<70,VLOOKUP(B62,Lookups!A:H,8)*(1-VLOOKUP(B62,Lookups!$U$3:$W$103,2))^(B62-$B$2),"") ->  | AQ62: =IF(B62<70,VLOOKUP(B62,Lookups!A:I,9)*(1-VLOOKUP(B62,Lookups!$U$3:$W$103,3))^(B62-$B$2),"") ->  | AV62: 105 | AW62: =IF(BD62>=$B$3,VLOOKUP(BD62,Lookups!A:H,8)*(1-VLOOKUP(BD62,Lookups!U:W,2))^(BD62-$B$2),"") -> 0.392003 | AX62: =IF(BD62>=$B$3,VLOOKUP(BD62,Lookups!A:I,9)*(1-VLOOKUP(BD62,Lookups!U:W,3))^(BD62-$B$2),"") -> 0.279055 | AY62: 0.335529 | AZ62: 0.0189102306 | BA62: 0.1790533745 | BB62: 0.835917 | BD62: 105 | BE62: 19200.71245 | BQ62: 54.34503046 | BR62: 56.39666983 | BS62: 58.54387864 | BT62: 60.7955426 | BU62: 63.15383494 | BV62: 65.62697651 | BW62: 68.22404376 | BX62: 70.95626422 | BY62: 73.83656026 | BZ62: 76.8818634 | CA62: 80.10954828 | CB62: 83.52795504 | CC62: 87.15541977 | CD62: 91.01379906 | CE62: 95.11246879 | CF62: 99.48612749 | CN62: 46 | CO62: 11 | CP62: 1.534570337 | CR62: Service | CS62: Salary Increase | CT62: 1+ Sal Inc
A63: 2055 | B63: 95 | D63: =VLOOKUP(B63,Lookups!A:B,2) -> 4521.32908 | E63: =VLOOKUP(B63,Lookups!A:C,3) -> 2359.564522 | G63: =VLOOKUP(B63,Lookups!A:D,4) -> 6658.82732 | H63: =VLOOKUP(B63,Lookups!A:E,5) -> 4378.610934 | J63: =VLOOKUP(A63,Trends!$A$3:$Q$94,IF(ExFlg=0,2,10))+IF(B63>=$B$2,Sens,0) -> 1.052 | K63: 6.205990401 | L63: =VLOOKUP(A63,Trends!$A$3:$Q$94,IF(ExFlg=0,4,12))+IF(B63>=$B$2,Sens,0) -> 1.051 | M63: 6.169169591 | N63: =VLOOKUP(A63,Trends!$A$3:$Z$94,IF(ExFlg=0,19,23))+IF(B63>=$B$2,Sens,0) -> 1.052 | O63: 6.973620915 | P63: =VLOOKUP(A63,Trends!$A$3:$Q$94,IF(ExFlg=0,6,14))+IF(B63>=$B$2,Sens,0) -> 1.052 | Q63: 6.253290832 | R63: =VLOOKUP(A63,Trends!$A$3:$Q$94,IF(ExFlg=0,8,16))+IF(B63>=$B$2,Sens,0) -> 1.052 | S63: 6.293428105 | T63: =VLOOKUP(A63,Trends!$A$3:$Z$94,IF(ExFlg=0,21,25))+IF(B63>=$B$2,Sens,0) -> 1.053 | U63: 6.870086534 | W63: 27892.84587 | X63: 16454.7085 | Y63: 11438.13737 | AA63: 41906.851 | AB63: 30081.43601 | AC63: 11825.41499 | AE63: 11696.32374 | AG63: =IF(B63<71,VLOOKUP(B63,Lookups!A:F,6),"") ->  | AH63: =IF(B63<71,VLOOKUP(Active!B63,Lookups!A:G,7),"") ->  | AJ63: =IF(B63<55,VLOOKUP(B63-$B$3,Lookups!$O$3:$Q$53,2),"") ->  | AK63: =IF(B63<55,VLOOKUP(B63-$B$3,Lookups!$O$3:$Q$53,3),"") ->  | AM63: =IF(B63<55,VLOOKUP(B63,Lookups!A:M,12),"") ->  | AN63: =IF(B63<55,VLOOKUP(B63,Lookups!A:M,13),"") ->  | AP63: =IF(B63<70,VLOOKUP(B63,Lookups!A:H,8)*(1-VLOOKUP(B63,Lookups!$U$3:$W$103,2))^(B63-$B$2),"") ->  | AQ63: =IF(B63<70,VLOOKUP(B63,Lookups!A:I,9)*(1-VLOOKUP(B63,Lookups!$U$3:$W$103,3))^(B63-$B$2),"") ->  | AV63: 106 | AW63: =IF(BD63>=$B$3,VLOOKUP(BD63,Lookups!A:H,8)*(1-VLOOKUP(BD63,Lookups!U:W,2))^(BD63-$B$2),"") -> 0.397886 | AX63: =IF(BD63>=$B$3,VLOOKUP(BD63,Lookups!A:I,9)*(1-VLOOKUP(BD63,Lookups!U:W,3))^(BD63-$B$2),"") -> 0.293116 | AY63: 0.345501 | AZ63: 0.01256529984 | BA63: 0.1729984295 | BB63: 0.831501 | BD63: 106 | BE63: 20154.49276 | BQ63: 36.42920263 | BR63: 37.80448176 | BS63: 39.24382413 | BT63: 40.75318611 | BU63: 42.33402448 | BV63: 43.99184995 | BW63: 45.73274674 | BX63: 47.56424102 | BY63: 49.49499508 | BZ63: 51.53635865 | CA63: 53.69997849 | CB63: 55.99144528 | CC63: 58.42305028 | CD63: 61.00944465 | CE63: 63.75691335 | CF63: 66.6887159 | CN63: 47 | CO63: 12 | CP63: 1.484135678 | CR63: 0 | CS63: 0.06 | CT63: =CS63+1 -> 1.06
A64: 2056 | B64: 96 | D64: =VLOOKUP(B64,Lookups!A:B,2) -> 4521.32908 | E64: =VLOOKUP(B64,Lookups!A:C,3) -> 2359.564522 | G64: =VLOOKUP(B64,Lookups!A:D,4) -> 6658.82732 | H64: =VLOOKUP(B64,Lookups!A:E,5) -> 4378.610934 | J64: =VLOOKUP(A64,Trends!$A$3:$Q$94,IF(ExFlg=0,2,10))+IF(B64>=$B$2,Sens,0) -> 1.052 | K64: 6.528701902 | L64: =VLOOKUP(A64,Trends!$A$3:$Q$94,IF(ExFlg=0,4,12))+IF(B64>=$B$2,Sens,0) -> 1.051 | M64: 6.48379724 | N64: =VLOOKUP(A64,Trends!$A$3:$Z$94,IF(ExFlg=0,19,23))+IF(B64>=$B$2,Sens,0) -> 1.051 | O64: 7.336249202 | P64: =VLOOKUP(A64,Trends!$A$3:$Q$94,IF(ExFlg=0,6,14))+IF(B64>=$B$2,Sens,0) -> 1.052 | Q64: 6.578461955 | R64: =VLOOKUP(A64,Trends!$A$3:$Q$94,IF(ExFlg=0,8,16))+IF(B64>=$B$2,Sens,0) -> 1.052 | S64: 6.620686367 | T64: =VLOOKUP(A64,Trends!$A$3:$Z$94,IF(ExFlg=0,21,25))+IF(B64>=$B$2,Sens,0) -> 1.052 | U64: 7.234201121 | W64: 29315.38101 | X64: 17310.35334 | Y64: 12005.02767 | AA64: 44086.00726 | AB64: 31675.75212 | AC64: 12410.25513 | AE64: 12275.18066 | AG64: =IF(B64<71,VLOOKUP(B64,Lookups!A:F,6),"") ->  | AH64: =IF(B64<71,VLOOKUP(Active!B64,Lookups!A:G,7),"") ->  | AJ64: =IF(B64<55,VLOOKUP(B64-$B$3,Lookups!$O$3:$Q$53,2),"") ->  | AK64: =IF(B64<55,VLOOKUP(B64-$B$3,Lookups!$O$3:$Q$53,3),"") ->  | AM64: =IF(B64<55,VLOOKUP(B64,Lookups!A:M,12),"") ->  | AN64: =IF(B64<55,VLOOKUP(B64,Lookups!A:M,13),"") ->  | AP64: =IF(B64<70,VLOOKUP(B64,Lookups!A:H,8)*(1-VLOOKUP(B64,Lookups!$U$3:$W$103,2))^(B64-$B$2),"") ->  | AQ64: =IF(B64<70,VLOOKUP(B64,Lookups!A:I,9)*(1-VLOOKUP(B64,Lookups!$U$3:$W$103,3))^(B64-$B$2),"") ->  | AV64: 107 | AW64: =IF(BD64>=$B$3,VLOOKUP(BD64,Lookups!A:H,8)*(1-VLOOKUP(BD64,Lookups!U:W,2))^(BD64-$B$2),"") -> 0.4 | AX64: =IF(BD64>=$B$3,VLOOKUP(BD64,Lookups!A:I,9)*(1-VLOOKUP(BD64,Lookups!U:W,3))^(BD64-$B$2),"") -> 0.307811 | AY64: 0.3539055 | AZ64: 0.00822397618 | BA64: 0.1671482411 | BB64: 0.827779 | BD64: 107 | BE64: 21142.06291 | BQ64: 24.0572189 | BR64: 24.96542958 | BS64: 25.91594653 | BT64: 26.91270322 | BU64: 27.95666169 | BV64: 29.05146112 | BW64: 30.20111942 | BX64: 31.41060675 | BY64: 32.68564352 | BZ64: 34.03372491 | CA64: 35.46254225 | CB64: 36.97578751 | CC64: 38.58157763 | CD64: 40.28958799 | CE64: 42.10396907 | CF64: 44.04008105 | CN64: 48 | CO64: 13 | CP64: 1.437550809 | CR64: =CR63+1 -> 1 | CS64: 0.06 | CT64: =CS64+1 -> 1.06
A65: 2057 | B65: 97 | D65: =VLOOKUP(B65,Lookups!A:B,2) -> 4521.32908 | E65: =VLOOKUP(B65,Lookups!A:C,3) -> 2359.564522 | G65: =VLOOKUP(B65,Lookups!A:D,4) -> 6658.82732 | H65: =VLOOKUP(B65,Lookups!A:E,5) -> 4378.610934 | J65: =VLOOKUP(A65,Trends!$A$3:$Q$94,IF(ExFlg=0,2,10))+IF(B65>=$B$2,Sens,0) -> 1.052 | K65: 6.8681944 | L65: =VLOOKUP(A65,Trends!$A$3:$Q$94,IF(ExFlg=0,4,12))+IF(B65>=$B$2,Sens,0) -> 1.051 | M65: 6.8144709 | N65: =VLOOKUP(A65,Trends!$A$3:$Z$94,IF(ExFlg=0,19,23))+IF(B65>=$B$2,Sens,0) -> 1.051 | O65: 7.710397912 | P65: =VLOOKUP(A65,Trends!$A$3:$Q$94,IF(ExFlg=0,6,14))+IF(B65>=$B$2,Sens,0) -> 1.052 | Q65: 6.920541977 | R65: =VLOOKUP(A65,Trends!$A$3:$Q$94,IF(ExFlg=0,8,16))+IF(B65>=$B$2,Sens,0) -> 1.051 | S65: 6.964962058 | T65: =VLOOKUP(A65,Trends!$A$3:$Z$94,IF(ExFlg=0,21,25))+IF(B65>=$B$2,Sens,0) -> 1.051 | U65: 7.610379579 | W65: 30810.46544 | X65: 18193.18136 | Y65: 12617.28408 | AA65: 46378.47963 | AB65: 33322.89123 | AC65: 13055.5884 | AE65: 12909.48842 | AG65: =IF(B65<71,VLOOKUP(B65,Lookups!A:F,6),"") ->  | AH65: =IF(B65<71,VLOOKUP(Active!B65,Lookups!A:G,7),"") ->  | AJ65: =IF(B65<55,VLOOKUP(B65-$B$3,Lookups!$O$3:$Q$53,2),"") ->  | AK65: =IF(B65<55,VLOOKUP(B65-$B$3,Lookups!$O$3:$Q$53,3),"") ->  | AM65: =IF(B65<55,VLOOKUP(B65,Lookups!A:M,12),"") ->  | AN65: =IF(B65<55,VLOOKUP(B65,Lookups!A:M,13),"") ->  | AP65: =IF(B65<70,VLOOKUP(B65,Lookups!A:H,8)*(1-VLOOKUP(B65,Lookups!$U$3:$W$103,2))^(B65-$B$2),"") ->  | AQ65: =IF(B65<70,VLOOKUP(B65,Lookups!A:I,9)*(1-VLOOKUP(B65,Lookups!$U$3:$W$103,3))^(B65-$B$2),"") ->  | AV65: 108 | AW65: =IF(BD65>=$B$3,VLOOKUP(BD65,Lookups!A:H,8)*(1-VLOOKUP(BD65,Lookups!U:W,2))^(BD65-$B$2),"") -> 0.4 | AX65: =IF(BD65>=$B$3,VLOOKUP(BD65,Lookups!A:I,9)*(1-VLOOKUP(BD65,Lookups!U:W,3))^(BD65-$B$2),"") -> 0.322725 | AY65: 0.3613625 | AZ65: 0.005313465778 | BA65: 0.1614958851 | BB65: 0.824477 | BD65: 108 | BE65: 22156.88193 | BQ65: 15.67568533 | BR65: 16.26747547 | BS65: 16.88683238 | BT65: 17.5363191 | BU65: 18.2165625 | BV65: 18.92993388 | BW65: 19.6790513 | BX65: 20.46715332 | BY65: 21.29796736 | BZ65: 22.17637728 | CA65: 23.10739474 | CB65: 24.09342545 | CC65: 25.13975839 | CD65: 26.25269805 | CE65: 27.43494887 | CF65: 28.69651956 | CN65: 49 | CO65: 14 | CP65: 1.395565642 | CR65: =CR64+1 -> 2 | CS65: 0.047 | CT65: 1.047
A66: 2058 | B66: 98 | D66: =VLOOKUP(B66,Lookups!A:B,2) -> 4521.32908 | E66: =VLOOKUP(B66,Lookups!A:C,3) -> 2359.564522 | G66: =VLOOKUP(B66,Lookups!A:D,4) -> 6658.82732 | H66: =VLOOKUP(B66,Lookups!A:E,5) -> 4378.610934 | J66: =VLOOKUP(A66,Trends!$A$3:$Q$94,IF(ExFlg=0,2,10))+IF(B66>=$B$2,Sens,0) -> 1.051 | K66: 7.225340509 | L66: =VLOOKUP(A66,Trends!$A$3:$Q$94,IF(ExFlg=0,4,12))+IF(B66>=$B$2,Sens,0) -> 1.051 | M66: 7.162008916 | N66: =VLOOKUP(A66,Trends!$A$3:$Z$94,IF(ExFlg=0,19,23))+IF(B66>=$B$2,Sens,0) -> 1.051 | O66: 8.103628205 | P66: =VLOOKUP(A66,Trends!$A$3:$Q$94,IF(ExFlg=0,6,14))+IF(B66>=$B$2,Sens,0) -> 1.052 | Q66: 7.280410159 | R66: =VLOOKUP(A66,Trends!$A$3:$Q$94,IF(ExFlg=0,8,16))+IF(B66>=$B$2,Sens,0) -> 1.051 | S66: 7.320175123 | T66: =VLOOKUP(A66,Trends!$A$3:$Z$94,IF(ExFlg=0,21,25))+IF(B66>=$B$2,Sens,0) -> 1.051 | U66: 7.998508937 | W66: 32381.79918 | X66: 19121.03361 | Y66: 13260.76557 | AA66: 48743.7821 | AB66: 35022.35869 | AC66: 13721.42341 | AE66: 13567.87233 | AG66: =IF(B66<71,VLOOKUP(B66,Lookups!A:F,6),"") ->  | AH66: =IF(B66<71,VLOOKUP(Active!B66,Lookups!A:G,7),"") ->  | AJ66: =IF(B66<55,VLOOKUP(B66-$B$3,Lookups!$O$3:$Q$53,2),"") ->  | AK66: =IF(B66<55,VLOOKUP(B66-$B$3,Lookups!$O$3:$Q$53,3),"") ->  | AM66: =IF(B66<55,VLOOKUP(B66,Lookups!A:M,12),"") ->  | AN66: =IF(B66<55,VLOOKUP(B66,Lookups!A:M,13),"") ->  | AP66: =IF(B66<70,VLOOKUP(B66,Lookups!A:H,8)*(1-VLOOKUP(B66,Lookups!$U$3:$W$103,2))^(B66-$B$2),"") ->  | AQ66: =IF(B66<70,VLOOKUP(B66,Lookups!A:I,9)*(1-VLOOKUP(B66,Lookups!$U$3:$W$103,3))^(B66-$B$2),"") ->  | AV66: 109 | AW66: =IF(BD66>=$B$3,VLOOKUP(BD66,Lookups!A:H,8)*(1-VLOOKUP(BD66,Lookups!U:W,2))^(BD66-$B$2),"") -> 0.4 | AX66: =IF(BD66>=$B$3,VLOOKUP(BD66,Lookups!A:I,9)*(1-VLOOKUP(BD66,Lookups!U:W,3))^(BD66-$B$2),"") -> 0.337441 | AY66: 0.3687205 | AZ66: 0.003393378501 | BA66: 0.1560346716 | BB66: 0.821219 | BD66: 109 | BE66: 23198.25538 | BQ66: 10.08713258 | BR66: 10.46794308 | BS66: 10.8664925 | BT66: 11.28443012 | BU66: 11.72215933 | BV66: 12.18120604 | BW66: 12.66325493 | BX66: 13.17038998 | BY66: 13.70500976 | BZ66: 14.27025696 | CA66: 14.86935655 | CB66: 15.50385655 | CC66: 16.1771604 | CD66: 16.89332493 | CE66: 17.65409044 | CF66: 18.46589742 | CN66: 50 | CO66: 15 | CP66: 1.356239284 | CR66: 3 | CS66: 0.036 | CT66: 1.036
A67: 2059 | B67: 99 | D67: =VLOOKUP(B67,Lookups!A:B,2) -> 4521.32908 | E67: =VLOOKUP(B67,Lookups!A:C,3) -> 2359.564522 | G67: =VLOOKUP(B67,Lookups!A:D,4) -> 6658.82732 | H67: =VLOOKUP(B67,Lookups!A:E,5) -> 4378.610934 | J67: =VLOOKUP(A67,Trends!$A$3:$Q$94,IF(ExFlg=0,2,10))+IF(B67>=$B$2,Sens,0) -> 1.051 | K67: 7.593832875 | L67: =VLOOKUP(A67,Trends!$A$3:$Q$94,IF(ExFlg=0,4,12))+IF(B67>=$B$2,Sens,0) -> 1.051 | M67: 7.52727137 | N67: =VLOOKUP(A67,Trends!$A$3:$Z$94,IF(ExFlg=0,19,23))+IF(B67>=$B$2,Sens,0) -> 1.051 | O67: 8.516913244 | P67: =VLOOKUP(A67,Trends!$A$3:$Q$94,IF(ExFlg=0,6,14))+IF(B67>=$B$2,Sens,0) -> 1.052 | Q67: 7.658991488 | R67: =VLOOKUP(A67,Trends!$A$3:$Q$94,IF(ExFlg=0,8,16))+IF(B67>=$B$2,Sens,0) -> 1.051 | S67: 7.693504054 | T67: =VLOOKUP(A67,Trends!$A$3:$Z$94,IF(ExFlg=0,21,25))+IF(B67>=$B$2,Sens,0) -> 1.051 | U67: 8.406432893 | W67: 34033.27094 | X67: 20096.20632 | Y67: =W67-X67 -> 13937.06461 | AA67: 51229.71498 | AB67: 36808.49898 | AC67: 14421.216 | AE67: =(1-PctUMP)*Y67+PctUMP*AC67 -> 14259.83382 | AG67: =IF(B67<71,VLOOKUP(B67,Lookups!A:F,6),"") ->  | AH67: =IF(B67<71,VLOOKUP(Active!B67,Lookups!A:G,7),"") ->  | AI67: =IF(B67<71,PCTMALE*AG67+(1-PCTMALE)*AH67,"") ->  | AJ67: =IF(B67<55,VLOOKUP(B67-$B$3,Lookups!$O$3:$Q$53,2),"") ->  | AK67: =IF(B67<55,VLOOKUP(B67-$B$3,Lookups!$O$3:$Q$53,3),"") ->  | AL67: =IF(B67<55,PCTMALE*AJ67+(1-PCTMALE)*AK67,"") ->  | AM67: =IF(B67<55,VLOOKUP(B67,Lookups!A:M,12),"") ->  | AN67: =IF(B67<55,VLOOKUP(B67,Lookups!A:M,13),"") ->  | AO67: =IF(B67<55,PCTMALE*AM67+(1-PCTMALE)*AN67,"") ->  | AP67: =IF(B67<70,VLOOKUP(B67,Lookups!A:H,8)*(1-VLOOKUP(B67,Lookups!$U$3:$W$103,2))^(B67-$B$2),"") ->  | AQ67: =IF(B67<70,VLOOKUP(B67,Lookups!A:I,9)*(1-VLOOKUP(B67,Lookups!$U$3:$W$103,3))^(B67-$B$2),"") ->  | AR67: =IF(AP67<>"",PCTMALE*AP67+(1-PCTMALE)*AQ67,"") ->  | AU67: =IF(B67<71,IF(B67=$B$2,1,IF(B67<$B$2,AU68*(1+IntRt),AU66/(1+IntRt))),"") ->  | AV67: 110 | AW67: =IF(BD67>=$B$3,VLOOKUP(BD67,Lookups!A:H,8)*(1-VLOOKUP(BD67,Lookups!U:W,2))^(BD67-$B$2),"") -> 0.4 | AX67: =IF(BD67>=$B$3,VLOOKUP(BD67,Lookups!A:I,9)*(1-VLOOKUP(BD67,Lookups!U:W,3))^(BD67-$B$2),"") -> 0.351544 | AY67: =IFERROR(PCTMALE*AW67+(1-PCTMALE)*AX67,"") -> 0.375772 | AZ67: 0.002142170283 | BA67: 0.1507581368 | BB67: 0.818096 | BD67: 110 | BE67: 24288.57338 | BP67: PV Benefits from Entry Age | BQ67: 6.417132812 | BR67: 6.659393093 | BS67: 6.912938339 | BT67: 7.178817787 | BU67: 7.457288053 | BV67: 7.74931987 | BW67: 8.055984993 | BX67: 8.378609185 | BY67: 8.718718337 | BZ67: 9.078311745 | CA67: 9.459441029 | CB67: 9.863091004 | CC67: 10.29142682 | CD67: 10.74702933 | CE67: 11.23100565 | CF67: 11.74745304 | CG67: PV Benefits from Entry Age | CN67: 51 | CO67: 16 | CP67: 1.3204916 | CR67: 4 | CS67: 0.029 | CT67: 1.029
A68: =1+A67 -> 2060 | B68: =1+B67 -> 100 | D68: =VLOOKUP(B68,Lookups!A:B,2) -> 4521.32908 | E68: =VLOOKUP(B68,Lookups!A:C,3) -> 2359.564522 | G68: =VLOOKUP(B68,Lookups!A:D,4) -> 6658.82732 | H68: =VLOOKUP(B68,Lookups!A:E,5) -> 4378.610934 | J68: =VLOOKUP(A68,Trends!$A$3:$Q$94,IF(ExFlg=0,2,10))+IF(B68>=$B$2,Sens,0) -> 1.051 | K68: 7.981118352 | L68: =VLOOKUP(A68,Trends!$A$3:$Q$94,IF(ExFlg=0,4,12))+IF(B68>=$B$2,Sens,0) -> 1.051 | M68: 7.91116221 | N68: =VLOOKUP(A68,Trends!$A$3:$Z$94,IF(ExFlg=0,19,23))+IF(B68>=$B$2,Sens,0) -> 1.051 | O68: =IF(B68=$B$2,1,IF(B68<$B$2,O69/N68,O67*N67)) -> 8.951275819 | P68: =VLOOKUP(A68,Trends!$A$3:$Q$94,IF(ExFlg=0,6,14))+IF(B68>=$B$2,Sens,0) -> 1.052 | Q68: 8.057259045 | R68: =VLOOKUP(A68,Trends!$A$3:$Q$94,IF(ExFlg=0,8,16))+IF(B68>=$B$2,Sens,0) -> 1.051 | S68: 8.085872761 | T68: =VLOOKUP(A68,Trends!$A$3:$Z$94,IF(ExFlg=0,21,25))+IF(B68>=$B$2,Sens,0) -> 1.051 | U68: =IF(B68=$B$2,1,IF(B68<$B$2,U69/T68,U67*T67)) -> 8.835160971 | W68: =IF(B68<65,D68*K68,D68*M68) -> 35768.96776 | X68: =IF(B68<65,E68*K68,E68*O68) -> 21121.11285 | Y68: 14647.85491 | AA68: 53842.43045 | AB68: =IF(B68<65,H68*Q68,H68*U68) -> 38685.73243 | AC68: =AA68-AB68 -> 15156.69802 | AE68: 14987.08535 | AG68: =IF(B68<71,VLOOKUP(B68,Lookups!A:F,6),"") ->  | AH68: =IF(B68<71,VLOOKUP(Active!B68,Lookups!A:G,7),"") ->  | AJ68: =IF(B68<55,VLOOKUP(B68-$B$3,Lookups!$O$3:$Q$53,2),"") ->  | AK68: =IF(B68<55,VLOOKUP(B68-$B$3,Lookups!$O$3:$Q$53,3),"") ->  | AM68: =IF(B68<55,VLOOKUP(B68,Lookups!A:M,12),"") ->  | AN68: =IF(B68<55,VLOOKUP(B68,Lookups!A:M,13),"") ->  | AP68: =IF(B68<70,VLOOKUP(B68,Lookups!A:H,8)*(1-VLOOKUP(B68,Lookups!$U$3:$W$103,2))^(B68-$B$2),"") ->  | AQ68: =IF(B68<70,VLOOKUP(B68,Lookups!A:I,9)*(1-VLOOKUP(B68,Lookups!$U$3:$W$103,3))^(B68-$B$2),"") ->  | AS68: =IF(B68<71,SUM(AI68,AL68,AO68,AR68),"") ->  | AT68: =IF(B68<71,IF(B68=$B$2,1, IF(B68<$B$2, AT69/(1-AS68), AT67*(1-AS67))),"") ->  | AV68: 111 | AW68: =IF(BD68>=$B$3,VLOOKUP(BD68,Lookups!A:H,8)*(1-VLOOKUP(BD68,Lookups!U:W,2))^(BD68-$B$2),"") -> 0.4 | AX68: =IF(BD68>=$B$3,VLOOKUP(BD68,Lookups!A:I,9)*(1-VLOOKUP(BD68,Lookups!U:W,3))^(BD68-$B$2),"") -> 0.364617 | AY68: 0.3823085 | AZ68: =IF(AY67="",1,AZ67*(1-AY67)) -> 0.001337202672 | BA68: 0.1456600355 | BB68: 0.815202 | BD68: 111 | BF68: =IF($BE$12<>"",SUM(BF12:BF67)*BF70*BF71*BF72*Part,"") -> 401.8516048 | BG68: =IF($BE$13<>"",SUM(BG12:BG67)*BG70*BG71*BG72*Part,"") -> 477.1294768 | BH68: =IF($BE$14<>"",SUM(BH12:BH67)*BH70*BH71*BH72*Part,"") -> 536.7663981 | BI68: =IF($BE$15<>"",SUM(BI12:BI67)*BI70*BI71*BI72*Part,"") -> 574.1857841 | BJ68: =IF($BE$16<>"",SUM(BJ12:BJ67)*BJ70*BJ71*BJ72*Part,"") -> 732.7559369 | BK68: =IF($BE$17<>"",SUM(BK12:BK67)*BK70*BK71*BK72*Part,"") -> 814.6174061 | BL68: =IF($BE$18<>"",SUM(BL12:BL67)*BL70*BL71*BL72*Part,"") -> 1064.053262 | BM68: =IF($BE$19<>"",SUM(BM12:BM67)*BM70*BM71*BM72*Part,"") -> 1624.004267 | BN68: =IF($BE$20<>"",SUM(BN12:BN67)*BN70*BN71*BN72*Part,"") -> 829.9526051 | BO68: =IF($BE$21<>"",SUM(BO12:BO67)*BO70*BO71*BO72*Part,"") -> 1002.424044 | BP68: =SUM(BF68:BO68) -> 8057.740785 | BQ68: =IF($BE12<>"",SUM(BQ12:BQ67)*BQ70*BQ71*BQ72*Part,"") -> 903.8748302 | BR68: =IF($BE13<>"",SUM(BR12:BR67)*BR70*BR71*BR72*Part,"") -> 1107.186581 | BS68: =IF($BE14<>"",SUM(BS12:BS67)*BS70*BS71*BS72*Part,"") -> 1295.30967 | BT68: =IF($BE15<>"",SUM(BT12:BT67)*BT70*BT71*BT72*Part,"") -> 1465.707169 | BU68: =IF($BE16<>"",SUM(BU12:BU67)*BU70*BU71*BU72*Part,"") -> 2020.313628 | BV68: =IF($BE17<>"",SUM(BV12:BV67)*BV70*BV71*BV72*Part,"") -> 2494.559436 | BW68: =IF($BE18<>"",SUM(BW12:BW67)*BW70*BW71*BW72*Part,"") -> 3766.586858 | BX68: =IF($BE19<>"",SUM(BX12:BX67)*BX70*BX71*BX72*Part,"") -> 7059.205787 | BY68: =IF($BE20<>"",SUM(BY12:BY67)*BY70*BY71*BY72*Part,"") -> 4997.989858 | BZ68: =IF($BE21<>"",SUM(BZ12:BZ67)*BZ70*BZ71*BZ72*Part,"") -> 11178.61253 | CA68: =IF($BE22<>"",SUM(CA12:CA67)*CA70*CA71*CA72*Part,"") -> 3483.112617 | CB68: =IF($BE23<>"",SUM(CB12:CB67)*CB70*CB71*CB72*Part,"") -> 1220.28234 | CC68: =IF($BE24<>"",SUM(CC12:CC67)*CC70*CC71*CC72*Part,"") -> 902.7089013 | CD68: =IF($BE25<>"",SUM(CD12:CD67)*CD70*CD71*CD72*Part,"") -> 666.0200631 | CE68: =IF($BE26<>"",SUM(CE12:CE67)*CE70*CE71*CE72*Part,"") -> 489.9988626 | CF68: =IF($BE27<>"",SUM(CF12:CF67)*CF70*CF71*CF72*Part,"") -> 1497.362408 | CG68: =SUM(BQ68:CF68) -> 44548.83154 | CN68: 52 | CO68: 17 | CP68: 1.287877191 | CR68: 5 | CS68: 0.022 | CT68: 1.022
A69: 2061 | B69: 101 | D69: =VLOOKUP(B69,Lookups!A:B,2) -> 4521.32908 | E69: =VLOOKUP(B69,Lookups!A:C,3) -> 2359.564522 | G69: =VLOOKUP(B69,Lookups!A:D,4) -> 6658.82732 | H69: =VLOOKUP(B69,Lookups!A:E,5) -> 4378.610934 | J69: =VLOOKUP(A69,Trends!$A$3:$Q$94,IF(ExFlg=0,2,10))+IF(B69>=$B$2,Sens,0) -> 1.051 | K69: 8.388155388 | L69: =VLOOKUP(A69,Trends!$A$3:$Q$94,IF(ExFlg=0,4,12))+IF(B69>=$B$2,Sens,0) -> 1.051 | M69: 8.314631483 | N69: =VLOOKUP(A69,Trends!$A$3:$Z$94,IF(ExFlg=0,19,23))+IF(B69>=$B$2,Sens,0) -> 1.051 | O69: 9.407790886 | P69: =VLOOKUP(A69,Trends!$A$3:$Q$94,IF(ExFlg=0,6,14))+IF(B69>=$B$2,Sens,0) -> 1.051 | Q69: 8.476236515 | R69: =VLOOKUP(A69,Trends!$A$3:$Q$94,IF(ExFlg=0,8,16))+IF(B69>=$B$2,Sens,0) -> 1.051 | S69: 8.498252271 | T69: =VLOOKUP(A69,Trends!$A$3:$Z$94,IF(ExFlg=0,21,25))+IF(B69>=$B$2,Sens,0) -> 1.051 | U69: 9.28575418 | W69: 37593.18511 | X69: 22198.2896 | Y69: =W69-X69 -> 15394.89551 | AA69: 56588.3944 | AB69: 40658.70478 | AC69: 15929.68962 | AE69: 15751.4267 | AG69: =IF(B69<71,VLOOKUP(B69,Lookups!A:F,6),"") ->  | AH69: =IF(B69<71,VLOOKUP(Active!B69,Lookups!A:G,7),"") ->  | AJ69: =IF(B69<55,VLOOKUP(B69-$B$3,Lookups!$O$3:$Q$53,2),"") ->  | AK69: =IF(B69<55,VLOOKUP(B69-$B$3,Lookups!$O$3:$Q$53,3),"") ->  | AM69: =IF(B69<55,VLOOKUP(B69,Lookups!A:M,12),"") ->  | AN69: =IF(B69<55,VLOOKUP(B69,Lookups!A:M,13),"") ->  | AP69: =IF(B69<70,VLOOKUP(B69,Lookups!A:H,8)*(1-VLOOKUP(B69,Lookups!$U$3:$W$103,2))^(B69-$B$2),"") ->  | AQ69: =IF(B69<70,VLOOKUP(B69,Lookups!A:I,9)*(1-VLOOKUP(B69,Lookups!$U$3:$W$103,3))^(B69-$B$2),"") ->  | AV69: 112 | AW69: =IF(BD69>=$B$3,VLOOKUP(BD69,Lookups!A:H,8)*(1-VLOOKUP(BD69,Lookups!U:W,2))^(BD69-$B$2),"") -> 0.4 | AX69: =IF(BD69>=$B$3,VLOOKUP(BD69,Lookups!A:I,9)*(1-VLOOKUP(BD69,Lookups!U:W,3))^(BD69-$B$2),"") -> 0.376246 | AY69: 0.388123 | AZ69: 0.000825978724 | BA69: 0.1407343339 | BB69: 0.812627 | BD69: 112 | CN69: 53 | CO69: 18 | CP69: 1.256632907 | CR69: 6 | CS69: 0.015 | CT69: 1.015
A70: 2062 | B70: 102 | D70: =VLOOKUP(B70,Lookups!A:B,2) -> 4521.32908 | E70: =VLOOKUP(B70,Lookups!A:C,3) -> 2359.564522 | G70: =VLOOKUP(B70,Lookups!A:D,4) -> 6658.82732 | H70: =VLOOKUP(B70,Lookups!A:E,5) -> 4378.610934 | J70: =VLOOKUP(A70,Trends!$A$3:$Q$94,IF(ExFlg=0,2,10))+IF(B70>=$B$2,Sens,0) -> 1.051 | K70: 8.815951313 | L70: =VLOOKUP(A70,Trends!$A$3:$Q$94,IF(ExFlg=0,4,12))+IF(B70>=$B$2,Sens,0) -> 1.051 | M70: 8.738677689 | N70: =VLOOKUP(A70,Trends!$A$3:$Z$94,IF(ExFlg=0,19,23))+IF(B70>=$B$2,Sens,0) -> 1.051 | O70: 9.887588221 | P70: =VLOOKUP(A70,Trends!$A$3:$Q$94,IF(ExFlg=0,6,14))+IF(B70>=$B$2,Sens,0) -> 1.051 | Q70: 8.908524578 | R70: =VLOOKUP(A70,Trends!$A$3:$Q$94,IF(ExFlg=0,8,16))+IF(B70>=$B$2,Sens,0) -> 1.051 | S70: 8.931663137 | T70: =VLOOKUP(A70,Trends!$A$3:$Z$94,IF(ExFlg=0,21,25))+IF(B70>=$B$2,Sens,0) -> 1.051 | U70: 9.759327643 | W70: =IF(B70<65,D70*K70,D70*M70) -> 39510.43755 | X70: 23330.40237 | Y70: 16180.03518 | AA70: 59474.40251 | AB70: 42732.29873 | AC70: =AA70-AB70 -> 16742.10379 | AE70: 16554.74946 | AG70: =IF(B70<71,VLOOKUP(B70,Lookups!A:F,6),"") ->  | AH70: =IF(B70<71,VLOOKUP(Active!B70,Lookups!A:G,7),"") ->  | AJ70: =IF(B70<55,VLOOKUP(B70-$B$3,Lookups!$O$3:$Q$53,2),"") ->  | AK70: =IF(B70<55,VLOOKUP(B70-$B$3,Lookups!$O$3:$Q$53,3),"") ->  | AM70: =IF(B70<55,VLOOKUP(B70,Lookups!A:M,12),"") ->  | AN70: =IF(B70<55,VLOOKUP(B70,Lookups!A:M,13),"") ->  | AP70: =IF(B70<70,VLOOKUP(B70,Lookups!A:H,8)*(1-VLOOKUP(B70,Lookups!$U$3:$W$103,2))^(B70-$B$2),"") ->  | AQ70: =IF(B70<70,VLOOKUP(B70,Lookups!A:I,9)*(1-VLOOKUP(B70,Lookups!$U$3:$W$103,3))^(B70-$B$2),"") ->  | AV70: 113 | AW70: =IF(BD70>=$B$3,VLOOKUP(BD70,Lookups!A:H,8)*(1-VLOOKUP(BD70,Lookups!U:W,2))^(BD70-$B$2),"") -> 0.4 | AX70: =IF(BD70>=$B$3,VLOOKUP(BD70,Lookups!A:I,9)*(1-VLOOKUP(BD70,Lookups!U:W,3))^(BD70-$B$2),"") -> 0.386015 | AY70: 0.3930075 | AZ70: 0.0005053973837 | BA70: 0.1359752018 | BB70: 0.810464 | BD70: 113 | BE70: Survive | BF70: =IF(55<$B$3,"",VLOOKUP(BF78,$B$3:$AU$93,45)) -> 1.197343081 | BG70: =IF(55<$B$3,"",VLOOKUP(BG78,$B$3:$AU$93,45)) -> 1.170220879 | BH70: 1.137500794 | BI70: 1.099584543 | BJ70: 1.0570867 | BK70: 1 | BL70: 0.9306009193 | BM70: 0.828371247 | BN70: 0.6416775789 | BO70: 0.5094942316 | BQ70: =BF70 -> 1.197343081 | BR70: =BG70 -> 1.170220879 | BS70: 1.137500794 | BT70: 1.099584543 | BU70: 1.0570867 | BV70: 1 | BW70: 0.9306009193 | BX70: 0.828371247 | BY70: 0.6416775789 | BZ70: 0.5094942316 | CA70: =VLOOKUP(CA78,$B$3:$AU$93,45) -> 0.2207633055 | CB70: =VLOOKUP(CB78,$B$3:$AU$93,45) -> 0.130833676 | CC70: 0.09837680213 | CD70: 0.07389306783 | CE70: 0.05544927492 | CF70: 0.04155916581 | CG70: Totals - Scaled for Headcount | CN70: 54 | CO70: 19 | CP70: 1.22611483 | CR70: 7 | CS70: 0.012 | CT70: 1.012
A71: 2063 | B71: 103 | D71: =VLOOKUP(B71,Lookups!A:B,2) -> 4521.32908 | E71: =VLOOKUP(B71,Lookups!A:C,3) -> 2359.564522 | G71: =VLOOKUP(B71,Lookups!A:D,4) -> 6658.82732 | H71: =VLOOKUP(B71,Lookups!A:E,5) -> 4378.610934 | J71: =VLOOKUP(A71,Trends!$A$3:$Q$94,IF(ExFlg=0,2,10))+IF(B71>=$B$2,Sens,0) -> 1.051 | K71: 9.26556483 | L71: =VLOOKUP(A71,Trends!$A$3:$Q$94,IF(ExFlg=0,4,12))+IF(B71>=$B$2,Sens,0) -> 1.051 | M71: 9.184350251 | N71: =VLOOKUP(A71,Trends!$A$3:$Z$94,IF(ExFlg=0,19,23))+IF(B71>=$B$2,Sens,0) -> 1.051 | O71: 10.39185522 | P71: =VLOOKUP(A71,Trends!$A$3:$Q$94,IF(ExFlg=0,6,14))+IF(B71>=$B$2,Sens,0) -> 1.051 | Q71: 9.362859331 | R71: =VLOOKUP(A71,Trends!$A$3:$Q$94,IF(ExFlg=0,8,16))+IF(B71>=$B$2,Sens,0) -> 1.051 | S71: 9.387177957 | T71: =VLOOKUP(A71,Trends!$A$3:$Z$94,IF(ExFlg=0,21,25))+IF(B71>=$B$2,Sens,0) -> 1.051 | U71: 10.25705335 | W71: 41525.46987 | X71: 24520.25289 | Y71: 17005.21698 | AA71: 62507.59704 | AB71: 44911.64596 | AC71: 17595.95108 | AE71: 17399.04168 | AG71: =IF(B71<71,VLOOKUP(B71,Lookups!A:F,6),"") ->  | AH71: =IF(B71<71,VLOOKUP(Active!B71,Lookups!A:G,7),"") ->  | AJ71: =IF(B71<55,VLOOKUP(B71-$B$3,Lookups!$O$3:$Q$53,2),"") ->  | AK71: =IF(B71<55,VLOOKUP(B71-$B$3,Lookups!$O$3:$Q$53,3),"") ->  | AM71: =IF(B71<55,VLOOKUP(B71,Lookups!A:M,12),"") ->  | AN71: =IF(B71<55,VLOOKUP(B71,Lookups!A:M,13),"") ->  | AP71: =IF(B71<70,VLOOKUP(B71,Lookups!A:H,8)*(1-VLOOKUP(B71,Lookups!$U$3:$W$103,2))^(B71-$B$2),"") ->  | AQ71: =IF(B71<70,VLOOKUP(B71,Lookups!A:I,9)*(1-VLOOKUP(B71,Lookups!$U$3:$W$103,3))^(B71-$B$2),"") ->  | AV71: 114 | AW71: =IF(BD71>=$B$3,VLOOKUP(BD71,Lookups!A:H,8)*(1-VLOOKUP(BD71,Lookups!U:W,2))^(BD71-$B$2),"") -> 0.4 | AX71: =IF(BD71>=$B$3,VLOOKUP(BD71,Lookups!A:I,9)*(1-VLOOKUP(BD71,Lookups!U:W,3))^(BD71-$B$2),"") -> 0.393507 | AY71: 0.3967535 | AZ71: 0.0003067724214 | BA71: 0.1313770066 | BB71: 0.808805 | BD71: 114 | BE71: Interest | BF71: =IF(55<$B$3,"",VLOOKUP(BF78,$B$3:$AU$93,46)) -> 1.187686306 | BG71: =IF(55<$B$3,"",VLOOKUP(BG78,$B$3:$AU$93,46)) -> 1.147523001 | BH71: 1.108717875 | BI71: 1.071225 | BJ71: 1.035 | BK71: 1 | BL71: 0.9661835749 | BM71: 0.9335107004 | BN71: 0.9019427057 | BO71: 0.8714422277 | BQ71: =BF71 -> 1.187686306 | BR71: 1.147523001 | BS71: 1.108717875 | BT71: 1.071225 | BU71: 1.035 | BV71: 1 | BW71: 0.9661835749 | BX71: 0.9335107004 | BY71: 0.9019427057 | BZ71: 0.8714422277 | CA71: =VLOOKUP(CA78,$B$3:$AU$93,46) -> 0.8419731669 | CB71: =VLOOKUP(CB78,$B$3:$AU$93,46) -> 0.8135006443 | CC71: 0.7859909607 | CD71: 0.7594115562 | CE71: 0.7337309722 | CF71: 0.7089188137 | CG71: =BP73 -> 0 | CH71: Count in Cohort | CN71: 55 | CO71: 20 | CP71: 1.197343081 | CR71: 8 | CS71: 0.009 | CT71: 1.009
A72: 2064 | B72: 104 | D72: =VLOOKUP(B72,Lookups!A:B,2) -> 4521.32908 | E72: =VLOOKUP(B72,Lookups!A:C,3) -> 2359.564522 | G72: =VLOOKUP(B72,Lookups!A:D,4) -> 6658.82732 | H72: =VLOOKUP(B72,Lookups!A:E,5) -> 4378.610934 | J72: =VLOOKUP(A72,Trends!$A$3:$Q$94,IF(ExFlg=0,2,10))+IF(B72>=$B$2,Sens,0) -> 1.05 | K72: 9.738108636 | L72: =VLOOKUP(A72,Trends!$A$3:$Q$94,IF(ExFlg=0,4,12))+IF(B72>=$B$2,Sens,0) -> 1.05 | M72: 9.652752113 | N72: =VLOOKUP(A72,Trends!$A$3:$Z$94,IF(ExFlg=0,19,23))+IF(B72>=$B$2,Sens,0) -> 1.05 | O72: 10.92183984 | P72: =VLOOKUP(A72,Trends!$A$3:$Q$94,IF(ExFlg=0,6,14))+IF(B72>=$B$2,Sens,0) -> 1.051 | Q72: 9.840365157 | R72: =VLOOKUP(A72,Trends!$A$3:$Q$94,IF(ExFlg=0,8,16))+IF(B72>=$B$2,Sens,0) -> 1.05 | S72: 9.865924033 | T72: =VLOOKUP(A72,Trends!$A$3:$Z$94,IF(ExFlg=0,21,25))+IF(B72>=$B$2,Sens,0) -> 1.05 | U72: 10.78016307 | W72: 43643.26883 | X72: 25770.78579 | Y72: 17872.48304 | AA72: 65695.48449 | AB72: 47202.1399 | AC72: 18493.34459 | AE72: 18286.39281 | AG72: =IF(B72<71,VLOOKUP(B72,Lookups!A:F,6),"") ->  | AH72: =IF(B72<71,VLOOKUP(Active!B72,Lookups!A:G,7),"") ->  | AJ72: =IF(B72<55,VLOOKUP(B72-$B$3,Lookups!$O$3:$Q$53,2),"") ->  | AK72: =IF(B72<55,VLOOKUP(B72-$B$3,Lookups!$O$3:$Q$53,3),"") ->  | AM72: =IF(B72<55,VLOOKUP(B72,Lookups!A:M,12),"") ->  | AN72: =IF(B72<55,VLOOKUP(B72,Lookups!A:M,13),"") ->  | AP72: =IF(B72<70,VLOOKUP(B72,Lookups!A:H,8)*(1-VLOOKUP(B72,Lookups!$U$3:$W$103,2))^(B72-$B$2),"") ->  | AQ72: =IF(B72<70,VLOOKUP(B72,Lookups!A:I,9)*(1-VLOOKUP(B72,Lookups!$U$3:$W$103,3))^(B72-$B$2),"") ->  | AV72: 115 | AW72: =IF(BD72>=$B$3,VLOOKUP(BD72,Lookups!A:H,8)*(1-VLOOKUP(BD72,Lookups!U:W,2))^(BD72-$B$2),"") -> 0.4 | AX72: =IF(BD72>=$B$3,VLOOKUP(BD72,Lookups!A:I,9)*(1-VLOOKUP(BD72,Lookups!U:W,3))^(BD72-$B$2),"") -> 0.398308 | AY72: 0.399154 | AZ72: 0.0001850593895 | BA72: 0.1269343059 | BB72: 0.807742 | BD72: 115 | BE72: Retire | BF72: =IF(55<$B$3,"",VLOOKUP(BF78,$B$3:$AU$93,34)) -> 0.02 | BG72: =IF(55<$B$3,"",VLOOKUP(BG78,$B$3:$AU$93,34)) -> 0.025 | BH72: 0.03 | BI72: 0.035 | BJ72: 0.05 | BK72: 0.065 | BL72: 0.105 | BM72: 0.22 | BN72: 0.2 | BO72: 0.56 | BP72: Totals - Scaled for Headcount | BQ72: =BF72 -> 0.02 | BR72: 0.025 | BS72: 0.03 | BT72: 0.035 | BU72: 0.05 | BV72: 0.065 | BW72: 0.105 | BX72: 0.22 | BY72: 0.2 | BZ72: 0.56 | CA72: =VLOOKUP(CA78,$B$3:$AU$93,34) -> 0.4 | CB72: =VLOOKUP(CB78,$B$3:$AU$93,34) -> 0.24 | CC72: 0.24 | CD72: 0.24 | CE72: 0.24 | CF72: 1 | CG72: =CG68*CG71 -> 0 | CJ72: PVSalary @ Entry Age | CK72: =SUM(CP26:CP138) -> 45.26846764 | CN72: 56 | CO72: 21 | CP72: 1.170220879 | CR72: 9 | CS72: 0.007 | CT72: 1.007
A73: 2065 | B73: 105 | D73: =VLOOKUP(B73,Lookups!A:B,2) -> 4521.32908 | E73: =VLOOKUP(B73,Lookups!A:C,3) -> 2359.564522 | G73: =VLOOKUP(B73,Lookups!A:D,4) -> 6658.82732 | H73: =VLOOKUP(B73,Lookups!A:E,5) -> 4378.610934 | J73: =VLOOKUP(A73,Trends!$A$3:$Q$94,IF(ExFlg=0,2,10))+IF(B73>=$B$2,Sens,0) -> 1.05 | K73: =IF(B73=$B$2,1,IF(B73<$B$2,K74/J73,K72*J72)) -> 10.22501407 | L73: =VLOOKUP(A73,Trends!$A$3:$Q$94,IF(ExFlg=0,4,12))+IF(B73>=$B$2,Sens,0) -> 1.049 | M73: =IF(B73=$B$2,1,IF(B73<$B$2,M74/L73,M72*L72)) -> 10.13538972 | N73: =VLOOKUP(A73,Trends!$A$3:$Z$94,IF(ExFlg=0,19,23))+IF(B73>=$B$2,Sens,0) -> 1.049 | O73: 11.46793183 | P73: =VLOOKUP(A73,Trends!$A$3:$Q$94,IF(ExFlg=0,6,14))+IF(B73>=$B$2,Sens,0) -> 1.05 | Q73: =IF(B73=$B$2,1,IF(B73<$B$2,Q74/P73,Q72*P72)) -> 10.34222378 | R73: =VLOOKUP(A73,Trends!$A$3:$Q$94,IF(ExFlg=0,8,16))+IF(B73>=$B$2,Sens,0) -> 1.05 | S73: =IF(B73=$B$2,1,IF(B73<$B$2,S74/R73,S72*R72)) -> 10.35922023 | T73: =VLOOKUP(A73,Trends!$A$3:$Z$94,IF(ExFlg=0,21,25))+IF(B73>=$B$2,Sens,0) -> 1.05 | U73: 11.31917123 | W73: 45825.43227 | X73: 27059.32508 | Y73: 18766.10719 | AA73: 68980.25872 | AB73: 49562.2469 | AC73: 19418.01182 | AE73: 19200.71245 | AG73: =IF(B73<71,VLOOKUP(B73,Lookups!A:F,6),"") ->  | AH73: =IF(B73<71,VLOOKUP(Active!B73,Lookups!A:G,7),"") ->  | AJ73: =IF(B73<55,VLOOKUP(B73-$B$3,Lookups!$O$3:$Q$53,2),"") ->  | AK73: =IF(B73<55,VLOOKUP(B73-$B$3,Lookups!$O$3:$Q$53,3),"") ->  | AM73: =IF(B73<55,VLOOKUP(B73,Lookups!A:M,12),"") ->  | AN73: =IF(B73<55,VLOOKUP(B73,Lookups!A:M,13),"") ->  | AP73: =IF(B73<70,VLOOKUP(B73,Lookups!A:H,8)*(1-VLOOKUP(B73,Lookups!$U$3:$W$103,2))^(B73-$B$2),"") ->  | AQ73: =IF(B73<70,VLOOKUP(B73,Lookups!A:I,9)*(1-VLOOKUP(B73,Lookups!$U$3:$W$103,3))^(B73-$B$2),"") ->  | AV73: 116 | AW73: =IF(BD73>=$B$3,VLOOKUP(BD73,Lookups!A:H,8)*(1-VLOOKUP(BD73,Lookups!U:W,2))^(BD73-$B$2),"") -> 0.4 | AX73: =IF(BD73>=$B$3,VLOOKUP(BD73,Lookups!A:I,9)*(1-VLOOKUP(BD73,Lookups!U:W,3))^(BD73-$B$2),"") -> 0.4 | AY73: 0.4 | AZ73: 0.000111192194 | BA73: 0.1226418414 | BB73: 0.807367 | BD73: 116 | BP73: =B1 -> 0 | BQ73: Count in Cohort | CG73: =CG72*(1+PctMarried) -> 0 | CH73: with spouses | CJ73: PVSalary @ Attained Age | CK73: =SUM(CP76:CP138) -> 4.531019269 | CN73: 57 | CO73: 22 | CP73: 1.137500794 | CR73: 10 | CS73: 0.005 | CT73: 1.005
A74: 2066 | B74: 106 | D74: =VLOOKUP(B74,Lookups!A:B,2) -> 4521.32908 | E74: =VLOOKUP(B74,Lookups!A:C,3) -> 2359.564522 | G74: =VLOOKUP(B74,Lookups!A:D,4) -> 6658.82732 | H74: =VLOOKUP(B74,Lookups!A:E,5) -> 4378.610934 | J74: =VLOOKUP(A74,Trends!$A$3:$Q$94,IF(ExFlg=0,2,10))+IF(B74>=$B$2,Sens,0) -> 1.049 | K74: 10.73626477 | L74: =VLOOKUP(A74,Trends!$A$3:$Q$94,IF(ExFlg=0,4,12))+IF(B74>=$B$2,Sens,0) -> 1.049 | M74: 10.63202382 | N74: =VLOOKUP(A74,Trends!$A$3:$Z$94,IF(ExFlg=0,19,23))+IF(B74>=$B$2,Sens,0) -> 1.049 | O74: 12.02986049 | P74: =VLOOKUP(A74,Trends!$A$3:$Q$94,IF(ExFlg=0,6,14))+IF(B74>=$B$2,Sens,0) -> 1.049 | Q74: 10.85933497 | R74: =VLOOKUP(A74,Trends!$A$3:$Q$94,IF(ExFlg=0,8,16))+IF(B74>=$B$2,Sens,0) -> 1.049 | S74: 10.87718125 | T74: =VLOOKUP(A74,Trends!$A$3:$Z$94,IF(ExFlg=0,21,25))+IF(B74>=$B$2,Sens,0) -> 1.049 | U74: 11.88512979 | W74: 48070.87845 | X74: 28385.23201 | Y74: 19685.64645 | AA74: 72429.27165 | AB74: 52040.35924 | AC74: 20388.91241 | AE74: 20154.49276 | AG74: =IF(B74<71,VLOOKUP(B74,Lookups!A:F,6),"") ->  | AH74: =IF(B74<71,VLOOKUP(Active!B74,Lookups!A:G,7),"") ->  | AJ74: =IF(B74<55,VLOOKUP(B74-$B$3,Lookups!$O$3:$Q$53,2),"") ->  | AK74: =IF(B74<55,VLOOKUP(B74-$B$3,Lookups!$O$3:$Q$53,3),"") ->  | AM74: =IF(B74<55,VLOOKUP(B74,Lookups!A:M,12),"") ->  | AN74: =IF(B74<55,VLOOKUP(B74,Lookups!A:M,13),"") ->  | AP74: =IF(B74<70,VLOOKUP(B74,Lookups!A:H,8)*(1-VLOOKUP(B74,Lookups!$U$3:$W$103,2))^(B74-$B$2),"") ->  | AQ74: =IF(B74<70,VLOOKUP(B74,Lookups!A:I,9)*(1-VLOOKUP(B74,Lookups!$U$3:$W$103,3))^(B74-$B$2),"") ->  | AV74: 117 | AW74: =IF(BD74>=$B$3,VLOOKUP(BD74,Lookups!A:H,8)*(1-VLOOKUP(BD74,Lookups!U:W,2))^(BD74-$B$2),"") -> 0.4 | AX74: =IF(BD74>=$B$3,VLOOKUP(BD74,Lookups!A:I,9)*(1-VLOOKUP(BD74,Lookups!U:W,3))^(BD74-$B$2),"") -> 0.4 | AY74: 0.4 | AZ74: 6.671531638e-05 | BA74: 0.1184945328 | BB74: 0.807367 | BD74: 117 | BP74: =BP68*BP73 -> 0 | CN74: 58 | CO74: 23 | CP74: 1.099584543 | CR74: 11 | CS74: 0.004 | CT74: 1.004
A75: 2067 | B75: 107 | D75: =VLOOKUP(B75,Lookups!A:B,2) -> 4521.32908 | E75: =VLOOKUP(B75,Lookups!A:C,3) -> 2359.564522 | G75: =VLOOKUP(B75,Lookups!A:D,4) -> 6658.82732 | H75: =VLOOKUP(B75,Lookups!A:E,5) -> 4378.610934 | J75: =VLOOKUP(A75,Trends!$A$3:$Q$94,IF(ExFlg=0,2,10))+IF(B75>=$B$2,Sens,0) -> 1.048 | K75: 11.26234174 | L75: =VLOOKUP(A75,Trends!$A$3:$Q$94,IF(ExFlg=0,4,12))+IF(B75>=$B$2,Sens,0) -> 1.048 | M75: 11.15299298 | N75: =VLOOKUP(A75,Trends!$A$3:$Z$94,IF(ExFlg=0,19,23))+IF(B75>=$B$2,Sens,0) -> 1.048 | O75: 12.61932365 | P75: =VLOOKUP(A75,Trends!$A$3:$Q$94,IF(ExFlg=0,6,14))+IF(B75>=$B$2,Sens,0) -> 1.048 | Q75: 11.39144238 | R75: =VLOOKUP(A75,Trends!$A$3:$Q$94,IF(ExFlg=0,8,16))+IF(B75>=$B$2,Sens,0) -> 1.048 | S75: 11.41016313 | T75: =VLOOKUP(A75,Trends!$A$3:$Z$94,IF(ExFlg=0,21,25))+IF(B75>=$B$2,Sens,0) -> 1.048 | U75: 12.46750115 | W75: 50426.3515 | X75: 29776.10838 | Y75: 20650.24312 | AA75: 75978.30596 | AB75: 54590.33685 | AC75: 21387.96912 | AE75: 21142.06291 | AG75: =IF(B75<71,VLOOKUP(B75,Lookups!A:F,6),"") ->  | AH75: =IF(B75<71,VLOOKUP(Active!B75,Lookups!A:G,7),"") ->  | AJ75: =IF(B75<55,VLOOKUP(B75-$B$3,Lookups!$O$3:$Q$53,2),"") ->  | AK75: =IF(B75<55,VLOOKUP(B75-$B$3,Lookups!$O$3:$Q$53,3),"") ->  | AM75: =IF(B75<55,VLOOKUP(B75,Lookups!A:M,12),"") ->  | AN75: =IF(B75<55,VLOOKUP(B75,Lookups!A:M,13),"") ->  | AP75: =IF(B75<70,VLOOKUP(B75,Lookups!A:H,8)*(1-VLOOKUP(B75,Lookups!$U$3:$W$103,2))^(B75-$B$2),"") ->  | AQ75: =IF(B75<70,VLOOKUP(B75,Lookups!A:I,9)*(1-VLOOKUP(B75,Lookups!$U$3:$W$103,3))^(B75-$B$2),"") ->  | AV75: 118 | AW75: =IF(BD75>=$B$3,VLOOKUP(BD75,Lookups!A:H,8)*(1-VLOOKUP(BD75,Lookups!U:W,2))^(BD75-$B$2),"") -> 0.4 | AX75: =IF(BD75>=$B$3,VLOOKUP(BD75,Lookups!A:I,9)*(1-VLOOKUP(BD75,Lookups!U:W,3))^(BD75-$B$2),"") -> 0.4 | AY75: 0.4 | AZ75: 4.002918983e-05 | BA75: 0.1144874713 | BB75: 0.807367 | BD75: 118 | BP75: =BP74*(1+PctMarried) -> 0 | BQ75: with spouses | CJ75: PV Benefits from Entry Age | CK75: =Explicit+Implicit -> 0 | CN75: 59 | CO75: =IF(CO76=0,0,CO76-1) -> 24 | CP75: 1.0570867 | CR75: 12 | CS75: 0.003 | CT75: 1.003
A76: 2068 | B76: 108 | D76: =VLOOKUP(B76,Lookups!A:B,2) -> 4521.32908 | E76: =VLOOKUP(B76,Lookups!A:C,3) -> 2359.564522 | G76: =VLOOKUP(B76,Lookups!A:D,4) -> 6658.82732 | H76: =VLOOKUP(B76,Lookups!A:E,5) -> 4378.610934 | J76: =VLOOKUP(A76,Trends!$A$3:$Q$94,IF(ExFlg=0,2,10))+IF(B76>=$B$2,Sens,0) -> 1.047 | K76: 11.80293415 | L76: =VLOOKUP(A76,Trends!$A$3:$Q$94,IF(ExFlg=0,4,12))+IF(B76>=$B$2,Sens,0) -> 1.047 | M76: 11.68833665 | N76: =VLOOKUP(A76,Trends!$A$3:$Z$94,IF(ExFlg=0,19,23))+IF(B76>=$B$2,Sens,0) -> 1.047 | O76: 13.22505119 | P76: =VLOOKUP(A76,Trends!$A$3:$Q$94,IF(ExFlg=0,6,14))+IF(B76>=$B$2,Sens,0) -> 1.048 | Q76: 11.93823162 | R76: =VLOOKUP(A76,Trends!$A$3:$Q$94,IF(ExFlg=0,8,16))+IF(B76>=$B$2,Sens,0) -> 1.047 | S76: 11.95785096 | T76: =VLOOKUP(A76,Trends!$A$3:$Z$94,IF(ExFlg=0,21,25))+IF(B76>=$B$2,Sens,0) -> 1.047 | U76: 13.0659412 | W76: 52846.81637 | X76: 31205.36158 | Y76: 21641.45479 | AA76: 79625.26465 | AB76: 57210.67302 | AC76: 22414.59163 | AE76: 22156.88193 | AG76: =IF(B76<71,VLOOKUP(B76,Lookups!A:F,6),"") ->  | AH76: =IF(B76<71,VLOOKUP(Active!B76,Lookups!A:G,7),"") ->  | AJ76: =IF(B76<55,VLOOKUP(B76-$B$3,Lookups!$O$3:$Q$53,2),"") ->  | AK76: =IF(B76<55,VLOOKUP(B76-$B$3,Lookups!$O$3:$Q$53,3),"") ->  | AM76: =IF(B76<55,VLOOKUP(B76,Lookups!A:M,12),"") ->  | AN76: =IF(B76<55,VLOOKUP(B76,Lookups!A:M,13),"") ->  | AP76: =IF(B76<70,VLOOKUP(B76,Lookups!A:H,8)*(1-VLOOKUP(B76,Lookups!$U$3:$W$103,2))^(B76-$B$2),"") ->  | AQ76: =IF(B76<70,VLOOKUP(B76,Lookups!A:I,9)*(1-VLOOKUP(B76,Lookups!$U$3:$W$103,3))^(B76-$B$2),"") ->  | AV76: 119 | AW76: =IF(BD76>=$B$3,VLOOKUP(BD76,Lookups!A:H,8)*(1-VLOOKUP(BD76,Lookups!U:W,2))^(BD76-$B$2),"") -> 0.4 | AX76: =IF(BD76>=$B$3,VLOOKUP(BD76,Lookups!A:I,9)*(1-VLOOKUP(BD76,Lookups!U:W,3))^(BD76-$B$2),"") -> 0.4 | AY76: 0.4 | AZ76: 2.40175139e-05 | BA76: 0.1106159143 | BB76: 0.807367 | BD76: 119 | BP76: PV Benefits Attained Age | CG76: PVFB | CJ76: PVFB | CK76: =CG82+BP82 -> 0 | CM76: Current Age | CN76: =B2 -> 60 | CO76: =MS -> 25 | CP76: 1 | CR76: 13 | CS76: 0.003 | CT76: 1.003
A77: 2069 | B77: 109 | D77: =VLOOKUP(B77,Lookups!A:B,2) -> 4521.32908 | E77: =VLOOKUP(B77,Lookups!A:C,3) -> 2359.564522 | G77: =VLOOKUP(B77,Lookups!A:D,4) -> 6658.82732 | H77: =VLOOKUP(B77,Lookups!A:E,5) -> 4378.610934 | J77: =VLOOKUP(A77,Trends!$A$3:$Q$94,IF(ExFlg=0,2,10))+IF(B77>=$B$2,Sens,0) -> 1.047 | K77: 12.35767205 | L77: =VLOOKUP(A77,Trends!$A$3:$Q$94,IF(ExFlg=0,4,12))+IF(B77>=$B$2,Sens,0) -> 1.047 | M77: 12.23768847 | N77: =VLOOKUP(A77,Trends!$A$3:$Z$94,IF(ExFlg=0,19,23))+IF(B77>=$B$2,Sens,0) -> 1.047 | O77: 13.84662859 | P77: =VLOOKUP(A77,Trends!$A$3:$Q$94,IF(ExFlg=0,6,14))+IF(B77>=$B$2,Sens,0) -> 1.047 | Q77: 12.51126673 | R77: =VLOOKUP(A77,Trends!$A$3:$Q$94,IF(ExFlg=0,8,16))+IF(B77>=$B$2,Sens,0) -> 1.047 | S77: 12.51986995 | T77: =VLOOKUP(A77,Trends!$A$3:$Z$94,IF(ExFlg=0,21,25))+IF(B77>=$B$2,Sens,0) -> 1.047 | U77: 13.68004044 | W77: 55330.61674 | X77: 32672.01357 | Y77: 22658.60317 | AA77: 83367.65209 | AB77: 59899.57465 | AC77: 23468.07744 | AE77: 23198.25538 | AG77: =IF(B77<71,VLOOKUP(B77,Lookups!A:F,6),"") ->  | AH77: =IF(B77<71,VLOOKUP(Active!B77,Lookups!A:G,7),"") ->  | AJ77: =IF(B77<55,VLOOKUP(B77-$B$3,Lookups!$O$3:$Q$53,2),"") ->  | AK77: =IF(B77<55,VLOOKUP(B77-$B$3,Lookups!$O$3:$Q$53,3),"") ->  | AM77: =IF(B77<55,VLOOKUP(B77,Lookups!A:M,12),"") ->  | AN77: =IF(B77<55,VLOOKUP(B77,Lookups!A:M,13),"") ->  | AP77: =IF(B77<70,VLOOKUP(B77,Lookups!A:H,8)*(1-VLOOKUP(B77,Lookups!$U$3:$W$103,2))^(B77-$B$2),"") ->  | AQ77: =IF(B77<70,VLOOKUP(B77,Lookups!A:I,9)*(1-VLOOKUP(B77,Lookups!$U$3:$W$103,3))^(B77-$B$2),"") ->  | AV77: 120 | AW77: =IF(BD77>=$B$3,VLOOKUP(BD77,Lookups!A:H,8)*(1-VLOOKUP(BD77,Lookups!U:W,2))^(BD77-$B$2),"") -> 1 | AX77: =IF(BD77>=$B$3,VLOOKUP(BD77,Lookups!A:I,9)*(1-VLOOKUP(BD77,Lookups!U:W,3))^(BD77-$B$2),"") -> 1 | AY77: 1 | AZ77: 1.441050834e-05 | BA77: 0.1068752795 | BB77: 0.541667 | BD77: 120 | BF77: =IF(BF70<=1,SUM(BF12:BF67)*BF70*BF71*BF72*Part,"") ->  | BK77: 814.6174061 | BL77: 1064.053262 | BM77: 1624.004267 | BN77: 829.9526051 | BO77: 1002.424044 | BP77: =SUM(BF77:BO77) -> 5335.051584 | BQ77: =IF(BQ70<=1,SUM(BQ12:BQ67)*BQ70*BQ71*BQ72*Part,"") ->  | BV77: 2494.559436 | BW77: 3766.586858 | BX77: 7059.205787 | BY77: 4997.989858 | BZ77: 11178.61253 | CA77: 3483.112617 | CB77: 1220.28234 | CC77: 902.7089013 | CD77: 666.0200631 | CE77: 489.9988626 | CF77: 1497.362408 | CG77: =SUM(BQ77:CF77) -> 37756.43966 | CN77: =IF(CN76<70,CN76+1, "") -> 61 | CO77: =IF(CN77<71,CO76+1,"") -> 26 | CP77: =IF(CN77<71,CP76*(1-VLOOKUP(CN76,$B$3:$AU$93,44,FALSE))* 1/(1+IntRt)*(1+GSG)*VLOOKUP(MIN(CO76,30),$CR$63:$CT$93,3,FALSE),"") -> 0.9306009193 | CR77: 14 | CS77: 0.002 | CT77: 1.002
A78: 2070 | B78: 110 | D78: =VLOOKUP(B78,Lookups!A:B,2) -> 4521.32908 | E78: =VLOOKUP(B78,Lookups!A:C,3) -> 2359.564522 | G78: =VLOOKUP(B78,Lookups!A:D,4) -> 6658.82732 | H78: =VLOOKUP(B78,Lookups!A:E,5) -> 4378.610934 | J78: =VLOOKUP(A78,Trends!$A$3:$Q$94,IF(ExFlg=0,2,10))+IF(B78>=$B$2,Sens,0) -> 1.046 | K78: 12.93848264 | L78: =VLOOKUP(A78,Trends!$A$3:$Q$94,IF(ExFlg=0,4,12))+IF(B78>=$B$2,Sens,0) -> 1.046 | M78: 12.81285983 | N78: =VLOOKUP(A78,Trends!$A$3:$Z$94,IF(ExFlg=0,19,23))+IF(B78>=$B$2,Sens,0) -> 1.046 | O78: 14.49742014 | P78: =VLOOKUP(A78,Trends!$A$3:$Q$94,IF(ExFlg=0,6,14))+IF(B78>=$B$2,Sens,0) -> 1.046 | Q78: 13.09929627 | R78: =VLOOKUP(A78,Trends!$A$3:$Q$94,IF(ExFlg=0,8,16))+IF(B78>=$B$2,Sens,0) -> 1.046 | S78: 13.10830384 | T78: =VLOOKUP(A78,Trends!$A$3:$Z$94,IF(ExFlg=0,21,25))+IF(B78>=$B$2,Sens,0) -> 1.046 | U78: 14.32300234 | W78: 57931.15573 | X78: 34207.59821 | Y78: 23723.55752 | AA78: 87285.93174 | AB78: 62714.85466 | AC78: 24571.07708 | AE78: 24288.57338 | AG78: =IF(B78<71,VLOOKUP(B78,Lookups!A:F,6),"") ->  | AH78: =IF(B78<71,VLOOKUP(Active!B78,Lookups!A:G,7),"") ->  | AJ78: =IF(B78<55,VLOOKUP(B78-$B$3,Lookups!$O$3:$Q$53,2),"") ->  | AK78: =IF(B78<55,VLOOKUP(B78-$B$3,Lookups!$O$3:$Q$53,3),"") ->  | AM78: =IF(B78<55,VLOOKUP(B78,Lookups!A:M,12),"") ->  | AN78: =IF(B78<55,VLOOKUP(B78,Lookups!A:M,13),"") ->  | AP78: =IF(B78<70,VLOOKUP(B78,Lookups!A:H,8)*(1-VLOOKUP(B78,Lookups!$U$3:$W$103,2))^(B78-$B$2),"") ->  | AQ78: =IF(B78<70,VLOOKUP(B78,Lookups!A:I,9)*(1-VLOOKUP(B78,Lookups!$U$3:$W$103,3))^(B78-$B$2),"") ->  | BF78: 55 | BG78: 56 | BH78: 57 | BI78: 58 | BJ78: 59 | BK78: 60 | BL78: 61 | BM78: 62 | BN78: 63 | BO78: 64 | BQ78: 55 | BR78: 56 | BS78: 57 | BT78: 58 | BU78: 59 | BV78: 60 | BW78: 61 | BX78: 62 | BY78: 63 | BZ78: 64 | CA78: 65 | CB78: 66 | CC78: 67 | CD78: 68 | CE78: 69 | CF78: 70 | CJ78: EANC Rate | CK78: =CK75/CK72 -> 0 | CN78: =IF(CN77<70,CN77+1, "") -> 62 | CO78: 27 | CP78: 0.828371247 | CR78: 15 | CS78: 0.002 | CT78: 1.002
A79: 2071 | B79: 111 | D79: =VLOOKUP(B79,Lookups!A:B,2) -> 4521.32908 | E79: =VLOOKUP(B79,Lookups!A:C,3) -> 2359.564522 | G79: =VLOOKUP(B79,Lookups!A:D,4) -> 6658.82732 | H79: =VLOOKUP(B79,Lookups!A:E,5) -> 4378.610934 | J79: =VLOOKUP(A79,Trends!$A$3:$Q$94,IF(ExFlg=0,2,10))+IF(B79>=$B$2,Sens,0) -> 1.045 | K79: 13.53365284 | L79: =VLOOKUP(A79,Trends!$A$3:$Q$94,IF(ExFlg=0,4,12))+IF(B79>=$B$2,Sens,0) -> 1.045 | M79: 13.40225138 | N79: =VLOOKUP(A79,Trends!$A$3:$Z$94,IF(ExFlg=0,19,23))+IF(B79>=$B$2,Sens,0) -> 1.045 | O79: 15.16430146 | P79: =VLOOKUP(A79,Trends!$A$3:$Q$94,IF(ExFlg=0,6,14))+IF(B79>=$B$2,Sens,0) -> 1.045 | Q79: 13.7018639 | R79: =VLOOKUP(A79,Trends!$A$3:$Q$94,IF(ExFlg=0,8,16))+IF(B79>=$B$2,Sens,0) -> 1.045 | S79: 13.71128582 | T79: =VLOOKUP(A79,Trends!$A$3:$Z$94,IF(ExFlg=0,21,25))+IF(B79>=$B$2,Sens,0) -> 1.045 | U79: 14.98186045 | W79: 60595.98889 | X79: 35781.14773 | Y79: 24814.84116 | AA79: 91301.0846 | AB79: 65599.73797 | AC79: 25701.34662 | AE79: 25405.84776 | AG79: =IF(B79<71,VLOOKUP(B79,Lookups!A:F,6),"") ->  | AH79: =IF(B79<71,VLOOKUP(Active!B79,Lookups!A:G,7),"") ->  | AJ79: =IF(B79<55,VLOOKUP(B79-$B$3,Lookups!$O$3:$Q$53,2),"") ->  | AK79: =IF(B79<55,VLOOKUP(B79-$B$3,Lookups!$O$3:$Q$53,3),"") ->  | AM79: =IF(B79<55,VLOOKUP(B79,Lookups!A:M,12),"") ->  | AN79: =IF(B79<55,VLOOKUP(B79,Lookups!A:M,13),"") ->  | AP79: =IF(B79<70,VLOOKUP(B79,Lookups!A:H,8)*(1-VLOOKUP(B79,Lookups!$U$3:$W$103,2))^(B79-$B$2),"") ->  | AQ79: =IF(B79<70,VLOOKUP(B79,Lookups!A:I,9)*(1-VLOOKUP(B79,Lookups!$U$3:$W$103,3))^(B79-$B$2),"") ->  | BP79: Totals - Scaled for Headcount | CG79: Totals - Scaled for Headcount | CN79: 63 | CO79: 28 | CP79: 0.6416775789 | CR79: 16 | CS79: 0.002 | CT79: 1.002
A80: 2072 | B80: 112 | D80: =VLOOKUP(B80,Lookups!A:B,2) -> 4521.32908 | E80: =VLOOKUP(B80,Lookups!A:C,3) -> 2359.564522 | G80: =VLOOKUP(B80,Lookups!A:D,4) -> 6658.82732 | H80: =VLOOKUP(B80,Lookups!A:E,5) -> 4378.610934 | J80: =VLOOKUP(A80,Trends!$A$3:$Q$94,IF(ExFlg=0,2,10))+IF(B80>=$B$2,Sens,0) -> 1.045 | K80: 14.14266722 | L80: =VLOOKUP(A80,Trends!$A$3:$Q$94,IF(ExFlg=0,4,12))+IF(B80>=$B$2,Sens,0) -> 1.045 | M80: 14.00535269 | N80: =VLOOKUP(A80,Trends!$A$3:$Z$94,IF(ExFlg=0,19,23))+IF(B80>=$B$2,Sens,0) -> 1.045 | O80: 15.84669503 | P80: =VLOOKUP(A80,Trends!$A$3:$Q$94,IF(ExFlg=0,6,14))+IF(B80>=$B$2,Sens,0) -> 1.045 | Q80: 14.31844777 | R80: =VLOOKUP(A80,Trends!$A$3:$Q$94,IF(ExFlg=0,8,16))+IF(B80>=$B$2,Sens,0) -> 1.045 | S80: 14.32829368 | T80: =VLOOKUP(A80,Trends!$A$3:$Z$94,IF(ExFlg=0,21,25))+IF(B80>=$B$2,Sens,0) -> 1.045 | U80: 15.65604417 | W80: 63322.80839 | X80: 37391.29937 | Y80: 25931.50901 | AA80: 95409.6334 | AB80: 68551.72618 | AC80: 26857.90722 | AE80: 26549.11091 | AG80: =IF(B80<71,VLOOKUP(B80,Lookups!A:F,6),"") ->  | AH80: =IF(B80<71,VLOOKUP(Active!B80,Lookups!A:G,7),"") ->  | AJ80: =IF(B80<55,VLOOKUP(B80-$B$3,Lookups!$O$3:$Q$53,2),"") ->  | AK80: =IF(B80<55,VLOOKUP(B80-$B$3,Lookups!$O$3:$Q$53,3),"") ->  | AM80: =IF(B80<55,VLOOKUP(B80,Lookups!A:M,12),"") ->  | AN80: =IF(B80<55,VLOOKUP(B80,Lookups!A:M,13),"") ->  | AP80: =IF(B80<70,VLOOKUP(B80,Lookups!A:H,8)*(1-VLOOKUP(B80,Lookups!$U$3:$W$103,2))^(B80-$B$2),"") ->  | AQ80: =IF(B80<70,VLOOKUP(B80,Lookups!A:I,9)*(1-VLOOKUP(B80,Lookups!$U$3:$W$103,3))^(B80-$B$2),"") ->  | BP80: =BP73 -> 0 | BQ80: Count in Cohort | CG80: =CG71 -> 0 | CH80: Count in Cohort | CJ80: PV Future Normal Cost | CK80: =CK78*CK73 -> 0 | CN80: 64 | CO80: 29 | CP80: 0.5094942316 | CR80: 17 | CS80: 0.001 | CT80: 1.001
A81: 2073 | B81: 113 | D81: =VLOOKUP(B81,Lookups!A:B,2) -> 4521.32908 | E81: =VLOOKUP(B81,Lookups!A:C,3) -> 2359.564522 | G81: =VLOOKUP(B81,Lookups!A:D,4) -> 6658.82732 | H81: =VLOOKUP(B81,Lookups!A:E,5) -> 4378.610934 | J81: =VLOOKUP(A81,Trends!$A$3:$Q$94,IF(ExFlg=0,2,10))+IF(B81>=$B$2,Sens,0) -> 1.044 | K81: 14.77908724 | L81: =VLOOKUP(A81,Trends!$A$3:$Q$94,IF(ExFlg=0,4,12))+IF(B81>=$B$2,Sens,0) -> 1.044 | M81: 14.63559356 | N81: =VLOOKUP(A81,Trends!$A$3:$Z$94,IF(ExFlg=0,19,23))+IF(B81>=$B$2,Sens,0) -> 1.044 | O81: 16.55979631 | P81: =VLOOKUP(A81,Trends!$A$3:$Q$94,IF(ExFlg=0,6,14))+IF(B81>=$B$2,Sens,0) -> 1.044 | Q81: 14.96277792 | R81: =VLOOKUP(A81,Trends!$A$3:$Q$94,IF(ExFlg=0,8,16))+IF(B81>=$B$2,Sens,0) -> 1.044 | S81: 14.97306689 | T81: =VLOOKUP(A81,Trends!$A$3:$Z$94,IF(ExFlg=0,21,25))+IF(B81>=$B$2,Sens,0) -> 1.044 | U81: 16.36056616 | W81: 66172.33477 | X81: 39073.90785 | Y81: 27098.42692 | AA81: 99703.06691 | AB81: 71636.55386 | AC81: 28066.51305 | AE81: 27743.8209 | AG81: =IF(B81<71,VLOOKUP(B81,Lookups!A:F,6),"") ->  | AH81: =IF(B81<71,VLOOKUP(Active!B81,Lookups!A:G,7),"") ->  | AJ81: =IF(B81<55,VLOOKUP(B81-$B$3,Lookups!$O$3:$Q$53,2),"") ->  | AK81: =IF(B81<55,VLOOKUP(B81-$B$3,Lookups!$O$3:$Q$53,3),"") ->  | AM81: =IF(B81<55,VLOOKUP(B81,Lookups!A:M,12),"") ->  | AN81: =IF(B81<55,VLOOKUP(B81,Lookups!A:M,13),"") ->  | AP81: =IF(B81<70,VLOOKUP(B81,Lookups!A:H,8)*(1-VLOOKUP(B81,Lookups!$U$3:$W$103,2))^(B81-$B$2),"") ->  | AQ81: =IF(B81<70,VLOOKUP(B81,Lookups!A:I,9)*(1-VLOOKUP(B81,Lookups!$U$3:$W$103,3))^(B81-$B$2),"") ->  | BP81: =BP77*BP80 -> 0 | CG81: =CG77*CG80 -> 0 | CJ81: EAN Accrued Liability (TOL) | CK81: =CK76-CK80 -> 0 | CN81: 65 | CO81: 30 | CP81: 0.2207633055 | CR81: 18 | CS81: 0 | CT81: 1
A82: 2074 | B82: 114 | D82: =VLOOKUP(B82,Lookups!A:B,2) -> 4521.32908 | E82: =VLOOKUP(B82,Lookups!A:C,3) -> 2359.564522 | G82: =VLOOKUP(B82,Lookups!A:D,4) -> 6658.82732 | H82: =VLOOKUP(B82,Lookups!A:E,5) -> 4378.610934 | J82: =VLOOKUP(A82,Trends!$A$3:$Q$94,IF(ExFlg=0,2,10))+IF(B82>=$B$2,Sens,0) -> 1.044 | K82: 15.42936708 | L82: =VLOOKUP(A82,Trends!$A$3:$Q$94,IF(ExFlg=0,4,12))+IF(B82>=$B$2,Sens,0) -> 1.044 | M82: 15.27955968 | N82: =VLOOKUP(A82,Trends!$A$3:$Z$94,IF(ExFlg=0,19,23))+IF(B82>=$B$2,Sens,0) -> 1.044 | O82: 17.28842734 | P82: =VLOOKUP(A82,Trends!$A$3:$Q$94,IF(ExFlg=0,6,14))+IF(B82>=$B$2,Sens,0) -> 1.044 | Q82: 15.62114015 | R82: =VLOOKUP(A82,Trends!$A$3:$Q$94,IF(ExFlg=0,8,16))+IF(B82>=$B$2,Sens,0) -> 1.044 | S82: 15.63188184 | T82: =VLOOKUP(A82,Trends!$A$3:$Z$94,IF(ExFlg=0,21,25))+IF(B82>=$B$2,Sens,0) -> 1.044 | U82: 17.08043107 | W82: 69083.9175 | X82: 40793.15979 | Y82: 28290.7577 | AA82: 104090.0018 | AB82: 74788.56223 | AC82: 29301.43962 | AE82: 28964.54902 | AG82: =IF(B82<71,VLOOKUP(B82,Lookups!A:F,6),"") ->  | AH82: =IF(B82<71,VLOOKUP(Active!B82,Lookups!A:G,7),"") ->  | AJ82: =IF(B82<55,VLOOKUP(B82-$B$3,Lookups!$O$3:$Q$53,2),"") ->  | AK82: =IF(B82<55,VLOOKUP(B82-$B$3,Lookups!$O$3:$Q$53,3),"") ->  | AM82: =IF(B82<55,VLOOKUP(B82,Lookups!A:M,12),"") ->  | AN82: =IF(B82<55,VLOOKUP(B82,Lookups!A:M,13),"") ->  | AP82: =IF(B82<70,VLOOKUP(B82,Lookups!A:H,8)*(1-VLOOKUP(B82,Lookups!$U$3:$W$103,2))^(B82-$B$2),"") ->  | AQ82: =IF(B82<70,VLOOKUP(B82,Lookups!A:I,9)*(1-VLOOKUP(B82,Lookups!$U$3:$W$103,3))^(B82-$B$2),"") ->  | BP82: =BP81*(1+PctMarried) -> 0 | BQ82: with spouses | CG82: =CG81*(1+PctMarried) -> 0 | CH82: with spouses | CN82: 66 | CO82: 31 | CP82: 0.130833676 | CR82: 19 | CS82: 0 | CT82: 1
A83: 2075 | B83: 115 | D83: =VLOOKUP(B83,Lookups!A:B,2) -> 4521.32908 | E83: =VLOOKUP(B83,Lookups!A:C,3) -> 2359.564522 | G83: =VLOOKUP(B83,Lookups!A:D,4) -> 6658.82732 | H83: =VLOOKUP(B83,Lookups!A:E,5) -> 4378.610934 | J83: =VLOOKUP(A83,Trends!$A$3:$Q$94,IF(ExFlg=0,2,10))+IF(B83>=$B$2,Sens,0) -> 1.044 | K83: 16.10825923 | L83: =VLOOKUP(A83,Trends!$A$3:$Q$94,IF(ExFlg=0,4,12))+IF(B83>=$B$2,Sens,0) -> 1.044 | M83: 15.9518603 | N83: =VLOOKUP(A83,Trends!$A$3:$Z$94,IF(ExFlg=0,19,23))+IF(B83>=$B$2,Sens,0) -> 1.044 | O83: 18.04911815 | P83: =VLOOKUP(A83,Trends!$A$3:$Q$94,IF(ExFlg=0,6,14))+IF(B83>=$B$2,Sens,0) -> 1.044 | Q83: 16.30847032 | R83: =VLOOKUP(A83,Trends!$A$3:$Q$94,IF(ExFlg=0,8,16))+IF(B83>=$B$2,Sens,0) -> 1.044 | S83: 16.31968464 | T83: =VLOOKUP(A83,Trends!$A$3:$Z$94,IF(ExFlg=0,21,25))+IF(B83>=$B$2,Sens,0) -> 1.044 | U83: 17.83197003 | W83: 72123.60987 | X83: 42588.05882 | Y83: 29535.55104 | AA83: 108669.9619 | AB83: 78079.25897 | AC83: 30590.70297 | AE83: 30238.98918 | AG83: =IF(B83<71,VLOOKUP(B83,Lookups!A:F,6),"") ->  | AH83: =IF(B83<71,VLOOKUP(Active!B83,Lookups!A:G,7),"") ->  | AJ83: =IF(B83<55,VLOOKUP(B83-$B$3,Lookups!$O$3:$Q$53,2),"") ->  | AK83: =IF(B83<55,VLOOKUP(B83-$B$3,Lookups!$O$3:$Q$53,3),"") ->  | AM83: =IF(B83<55,VLOOKUP(B83,Lookups!A:M,12),"") ->  | AN83: =IF(B83<55,VLOOKUP(B83,Lookups!A:M,13),"") ->  | AP83: =IF(B83<70,VLOOKUP(B83,Lookups!A:H,8)*(1-VLOOKUP(B83,Lookups!$U$3:$W$103,2))^(B83-$B$2),"") ->  | AQ83: =IF(B83<70,VLOOKUP(B83,Lookups!A:I,9)*(1-VLOOKUP(B83,Lookups!$U$3:$W$103,3))^(B83-$B$2),"") ->  | CJ83: Expected Benefit Payments | CK83: =IFERROR(VLOOKUP(B2,BD12:BE67,2,FALSE)*VLOOKUP(B2,AV12:BB67,7,FALSE)*VLOOKUP(B2,B3:AI93,34,FALSE)*CG80*Part*(1+PctMarried)*0.5, 0) -> 0 | CN83: 67 | CO83: 32 | CP83: 0.09837680213 | CR83: 20 | CS83: 0 | CT83: 1
A84: 2076 | B84: 116 | D84: =VLOOKUP(B84,Lookups!A:B,2) -> 4521.32908 | E84: =VLOOKUP(B84,Lookups!A:C,3) -> 2359.564522 | G84: =VLOOKUP(B84,Lookups!A:D,4) -> 6658.82732 | H84: =VLOOKUP(B84,Lookups!A:E,5) -> 4378.610934 | J84: =VLOOKUP(A84,Trends!$A$3:$Q$94,IF(ExFlg=0,2,10))+IF(B84>=$B$2,Sens,0) -> 1.044 | K84: 16.81702264 | L84: =VLOOKUP(A84,Trends!$A$3:$Q$94,IF(ExFlg=0,4,12))+IF(B84>=$B$2,Sens,0) -> 1.044 | M84: 16.65374216 | N84: =VLOOKUP(A84,Trends!$A$3:$Z$94,IF(ExFlg=0,19,23))+IF(B84>=$B$2,Sens,0) -> 1.044 | O84: 18.84327934 | P84: =VLOOKUP(A84,Trends!$A$3:$Q$94,IF(ExFlg=0,6,14))+IF(B84>=$B$2,Sens,0) -> 1.044 | Q84: 17.02604301 | R84: =VLOOKUP(A84,Trends!$A$3:$Q$94,IF(ExFlg=0,8,16))+IF(B84>=$B$2,Sens,0) -> 1.044 | S84: 17.03775076 | T84: =VLOOKUP(A84,Trends!$A$3:$Z$94,IF(ExFlg=0,21,25))+IF(B84>=$B$2,Sens,0) -> 1.044 | U84: 18.61657672 | W84: 75297.0487 | X84: 44461.93341 | Y84: 30835.11529 | AA84: 113451.4403 | AB84: 81514.74636 | AC84: 31936.6939 | AE84: 31569.5047 | AG84: =IF(B84<71,VLOOKUP(B84,Lookups!A:F,6),"") ->  | AH84: =IF(B84<71,VLOOKUP(Active!B84,Lookups!A:G,7),"") ->  | AJ84: =IF(B84<55,VLOOKUP(B84-$B$3,Lookups!$O$3:$Q$53,2),"") ->  | AK84: =IF(B84<55,VLOOKUP(B84-$B$3,Lookups!$O$3:$Q$53,3),"") ->  | AM84: =IF(B84<55,VLOOKUP(B84,Lookups!A:M,12),"") ->  | AN84: =IF(B84<55,VLOOKUP(B84,Lookups!A:M,13),"") ->  | AP84: =IF(B84<70,VLOOKUP(B84,Lookups!A:H,8)*(1-VLOOKUP(B84,Lookups!$U$3:$W$103,2))^(B84-$B$2),"") ->  | AQ84: =IF(B84<70,VLOOKUP(B84,Lookups!A:I,9)*(1-VLOOKUP(B84,Lookups!$U$3:$W$103,3))^(B84-$B$2),"") ->  | CN84: 68 | CO84: 33 | CP84: 0.07389306783 | CR84: 21 | CS84: 0 | CT84: 1
A85: 2077 | B85: 117 | D85: =VLOOKUP(B85,Lookups!A:B,2) -> 4521.32908 | E85: =VLOOKUP(B85,Lookups!A:C,3) -> 2359.564522 | G85: =VLOOKUP(B85,Lookups!A:D,4) -> 6658.82732 | H85: =VLOOKUP(B85,Lookups!A:E,5) -> 4378.610934 | J85: =VLOOKUP(A85,Trends!$A$3:$Q$94,IF(ExFlg=0,2,10))+IF(B85>=$B$2,Sens,0) -> 1.044 | K85: 17.55697164 | L85: =VLOOKUP(A85,Trends!$A$3:$Q$94,IF(ExFlg=0,4,12))+IF(B85>=$B$2,Sens,0) -> 1.044 | M85: 17.38650681 | N85: =VLOOKUP(A85,Trends!$A$3:$Z$94,IF(ExFlg=0,19,23))+IF(B85>=$B$2,Sens,0) -> 1.044 | O85: 19.67238364 | P85: =VLOOKUP(A85,Trends!$A$3:$Q$94,IF(ExFlg=0,6,14))+IF(B85>=$B$2,Sens,0) -> 1.044 | Q85: 17.77518891 | R85: =VLOOKUP(A85,Trends!$A$3:$Q$94,IF(ExFlg=0,8,16))+IF(B85>=$B$2,Sens,0) -> 1.044 | S85: 17.7874118 | T85: =VLOOKUP(A85,Trends!$A$3:$Z$94,IF(ExFlg=0,21,25))+IF(B85>=$B$2,Sens,0) -> 1.044 | U85: 19.43570609 | W85: 78610.11884 | X85: 46418.25848 | Y85: 32191.86036 | AA85: 118443.3036 | AB85: 85101.3952 | AC85: 33341.90843 | AE85: 32958.56291 | AG85: =IF(B85<71,VLOOKUP(B85,Lookups!A:F,6),"") ->  | AH85: =IF(B85<71,VLOOKUP(Active!B85,Lookups!A:G,7),"") ->  | AJ85: =IF(B85<55,VLOOKUP(B85-$B$3,Lookups!$O$3:$Q$53,2),"") ->  | AK85: =IF(B85<55,VLOOKUP(B85-$B$3,Lookups!$O$3:$Q$53,3),"") ->  | AM85: =IF(B85<55,VLOOKUP(B85,Lookups!A:M,12),"") ->  | AN85: =IF(B85<55,VLOOKUP(B85,Lookups!A:M,13),"") ->  | AP85: =IF(B85<70,VLOOKUP(B85,Lookups!A:H,8)*(1-VLOOKUP(B85,Lookups!$U$3:$W$103,2))^(B85-$B$2),"") ->  | AQ85: =IF(B85<70,VLOOKUP(B85,Lookups!A:I,9)*(1-VLOOKUP(B85,Lookups!$U$3:$W$103,3))^(B85-$B$2),"") ->  | CN85: 69 | CO85: 34 | CP85: 0.05544927492 | CR85: 22 | CS85: 0 | CT85: 1
A86: 2078 | B86: 118 | D86: =VLOOKUP(B86,Lookups!A:B,2) -> 4521.32908 | E86: =VLOOKUP(B86,Lookups!A:C,3) -> 2359.564522 | G86: =VLOOKUP(B86,Lookups!A:D,4) -> 6658.82732 | H86: =VLOOKUP(B86,Lookups!A:E,5) -> 4378.610934 | J86: =VLOOKUP(A86,Trends!$A$3:$Q$94,IF(ExFlg=0,2,10))+IF(B86>=$B$2,Sens,0) -> 1.044 | K86: 18.32947839 | L86: =VLOOKUP(A86,Trends!$A$3:$Q$94,IF(ExFlg=0,4,12))+IF(B86>=$B$2,Sens,0) -> 1.044 | M86: 18.15151311 | N86: =VLOOKUP(A86,Trends!$A$3:$Z$94,IF(ExFlg=0,19,23))+IF(B86>=$B$2,Sens,0) -> 1.044 | O86: 20.53796852 | P86: =VLOOKUP(A86,Trends!$A$3:$Q$94,IF(ExFlg=0,6,14))+IF(B86>=$B$2,Sens,0) -> 1.044 | Q86: 18.55729722 | R86: =VLOOKUP(A86,Trends!$A$3:$Q$94,IF(ExFlg=0,8,16))+IF(B86>=$B$2,Sens,0) -> 1.044 | S86: 18.57005792 | T86: =VLOOKUP(A86,Trends!$A$3:$Z$94,IF(ExFlg=0,21,25))+IF(B86>=$B$2,Sens,0) -> 1.044 | U86: 20.29087716 | W86: 82068.96407 | X86: 48460.66185 | Y86: 33608.30222 | AA86: 123654.809 | AB86: 88845.85659 | AC86: 34808.9524 | AE86: 34408.73967 | AG86: =IF(B86<71,VLOOKUP(B86,Lookups!A:F,6),"") ->  | AH86: =IF(B86<71,VLOOKUP(Active!B86,Lookups!A:G,7),"") ->  | AJ86: =IF(B86<55,VLOOKUP(B86-$B$3,Lookups!$O$3:$Q$53,2),"") ->  | AK86: =IF(B86<55,VLOOKUP(B86-$B$3,Lookups!$O$3:$Q$53,3),"") ->  | AM86: =IF(B86<55,VLOOKUP(B86,Lookups!A:M,12),"") ->  | AN86: =IF(B86<55,VLOOKUP(B86,Lookups!A:M,13),"") ->  | AP86: =IF(B86<70,VLOOKUP(B86,Lookups!A:H,8)*(1-VLOOKUP(B86,Lookups!$U$3:$W$103,2))^(B86-$B$2),"") ->  | AQ86: =IF(B86<70,VLOOKUP(B86,Lookups!A:I,9)*(1-VLOOKUP(B86,Lookups!$U$3:$W$103,3))^(B86-$B$2),"") ->  | CK86: 2227910551 | CN86: 70 | CO86: 35 | CP86: 0.04155916581 | CR86: 23 | CS86: 0 | CT86: 1
A87: 2079 | B87: 119 | D87: =VLOOKUP(B87,Lookups!A:B,2) -> 4521.32908 | E87: =VLOOKUP(B87,Lookups!A:C,3) -> 2359.564522 | G87: =VLOOKUP(B87,Lookups!A:D,4) -> 6658.82732 | H87: =VLOOKUP(B87,Lookups!A:E,5) -> 4378.610934 | J87: =VLOOKUP(A87,Trends!$A$3:$Q$94,IF(ExFlg=0,2,10))+IF(B87>=$B$2,Sens,0) -> 1.044 | K87: 19.13597544 | L87: =VLOOKUP(A87,Trends!$A$3:$Q$94,IF(ExFlg=0,4,12))+IF(B87>=$B$2,Sens,0) -> 1.044 | M87: 18.95017969 | N87: =VLOOKUP(A87,Trends!$A$3:$Z$94,IF(ExFlg=0,19,23))+IF(B87>=$B$2,Sens,0) -> 1.044 | O87: 21.44163913 | P87: =VLOOKUP(A87,Trends!$A$3:$Q$94,IF(ExFlg=0,6,14))+IF(B87>=$B$2,Sens,0) -> 1.044 | Q87: 19.3738183 | R87: =VLOOKUP(A87,Trends!$A$3:$Q$94,IF(ExFlg=0,8,16))+IF(B87>=$B$2,Sens,0) -> 1.044 | S87: 19.38714046 | T87: =VLOOKUP(A87,Trends!$A$3:$Z$94,IF(ExFlg=0,21,25))+IF(B87>=$B$2,Sens,0) -> 1.044 | U87: 21.18367576 | W87: 85679.99849 | X87: 50592.93098 | Y87: 35087.06752 | AA87: 129095.6206 | AB87: 92755.07428 | AC87: 36340.5463 | AE87: 35922.72422 | AG87: =IF(B87<71,VLOOKUP(B87,Lookups!A:F,6),"") ->  | AH87: =IF(B87<71,VLOOKUP(Active!B87,Lookups!A:G,7),"") ->  | AJ87: =IF(B87<55,VLOOKUP(B87-$B$3,Lookups!$O$3:$Q$53,2),"") ->  | AK87: =IF(B87<55,VLOOKUP(B87-$B$3,Lookups!$O$3:$Q$53,3),"") ->  | AM87: =IF(B87<55,VLOOKUP(B87,Lookups!A:M,12),"") ->  | AN87: =IF(B87<55,VLOOKUP(B87,Lookups!A:M,13),"") ->  | AP87: =IF(B87<70,VLOOKUP(B87,Lookups!A:H,8)*(1-VLOOKUP(B87,Lookups!$U$3:$W$103,2))^(B87-$B$2),"") ->  | AQ87: =IF(B87<70,VLOOKUP(B87,Lookups!A:I,9)*(1-VLOOKUP(B87,Lookups!$U$3:$W$103,3))^(B87-$B$2),"") ->  | CR87: 24 | CS87: 0 | CT87: 1
A88: 2080 | B88: 120 | D88: =VLOOKUP(B88,Lookups!A:B,2) -> 4521.32908 | E88: =VLOOKUP(B88,Lookups!A:C,3) -> 2359.564522 | G88: =VLOOKUP(B88,Lookups!A:D,4) -> 6658.82732 | H88: =VLOOKUP(B88,Lookups!A:E,5) -> 4378.610934 | J88: =VLOOKUP(A88,Trends!$A$3:$Q$94,IF(ExFlg=0,2,10))+IF(B88>=$B$2,Sens,0) -> 1.044 | K88: 19.97795836 | L88: =VLOOKUP(A88,Trends!$A$3:$Q$94,IF(ExFlg=0,4,12))+IF(B88>=$B$2,Sens,0) -> 1.044 | M88: 19.78398759 | N88: =VLOOKUP(A88,Trends!$A$3:$Z$94,IF(ExFlg=0,19,23))+IF(B88>=$B$2,Sens,0) -> 1.044 | O88: 22.38507125 | P88: =VLOOKUP(A88,Trends!$A$3:$Q$94,IF(ExFlg=0,6,14))+IF(B88>=$B$2,Sens,0) -> 1.044 | Q88: 20.2262663 | R88: =VLOOKUP(A88,Trends!$A$3:$Q$94,IF(ExFlg=0,8,16))+IF(B88>=$B$2,Sens,0) -> 1.044 | S88: 20.24017464 | T88: =VLOOKUP(A88,Trends!$A$3:$Z$94,IF(ExFlg=0,21,25))+IF(B88>=$B$2,Sens,0) -> 1.044 | U88: 22.11575749 | W88: 89449.91842 | X88: 52819.01994 | Y88: 36630.89849 | AA88: 134775.8279 | AB88: 96836.29755 | AC88: 37939.53034 | AE88: 37503.32408 | AG88: =IF(B88<71,VLOOKUP(B88,Lookups!A:F,6),"") ->  | AH88: =IF(B88<71,VLOOKUP(Active!B88,Lookups!A:G,7),"") ->  | AJ88: =IF(B88<55,VLOOKUP(B88-$B$3,Lookups!$O$3:$Q$53,2),"") ->  | AK88: =IF(B88<55,VLOOKUP(B88-$B$3,Lookups!$O$3:$Q$53,3),"") ->  | AM88: =IF(B88<55,VLOOKUP(B88,Lookups!A:M,12),"") ->  | AN88: =IF(B88<55,VLOOKUP(B88,Lookups!A:M,13),"") ->  | AP88: =IF(B88<70,VLOOKUP(B88,Lookups!A:H,8)*(1-VLOOKUP(B88,Lookups!$U$3:$W$103,2))^(B88-$B$2),"") ->  | AQ88: =IF(B88<70,VLOOKUP(B88,Lookups!A:I,9)*(1-VLOOKUP(B88,Lookups!$U$3:$W$103,3))^(B88-$B$2),"") ->  | CR88: 25 | CS88: 0 | CT88: 1
A89: 2081 | B89: 121 | D89: =VLOOKUP(B89,Lookups!A:B,2) -> 4521.32908 | E89: =VLOOKUP(B89,Lookups!A:C,3) -> 2359.564522 | G89: =VLOOKUP(B89,Lookups!A:D,4) -> 6658.82732 | H89: =VLOOKUP(B89,Lookups!A:E,5) -> 4378.610934 | J89: =VLOOKUP(A89,Trends!$A$3:$Q$94,IF(ExFlg=0,2,10))+IF(B89>=$B$2,Sens,0) -> 1.044 | K89: 20.85698853 | L89: =VLOOKUP(A89,Trends!$A$3:$Q$94,IF(ExFlg=0,4,12))+IF(B89>=$B$2,Sens,0) -> 1.044 | M89: 20.65448305 | N89: =VLOOKUP(A89,Trends!$A$3:$Z$94,IF(ExFlg=0,19,23))+IF(B89>=$B$2,Sens,0) -> 1.044 | O89: 23.37001439 | P89: =VLOOKUP(A89,Trends!$A$3:$Q$94,IF(ExFlg=0,6,14))+IF(B89>=$B$2,Sens,0) -> 1.044 | Q89: 21.11622202 | R89: =VLOOKUP(A89,Trends!$A$3:$Q$94,IF(ExFlg=0,8,16))+IF(B89>=$B$2,Sens,0) -> 1.044 | S89: 21.13074233 | T89: =VLOOKUP(A89,Trends!$A$3:$Z$94,IF(ExFlg=0,21,25))+IF(B89>=$B$2,Sens,0) -> 1.044 | U89: 23.08885082 | W89: 93385.71484 | X89: 55143.05682 | Y89: 38242.65802 | AA89: 140705.9643 | AB89: 101097.0946 | AC89: 39608.86968 | AE89: 39153.47034 | AG89: =IF(B89<71,VLOOKUP(B89,Lookups!A:F,6),"") ->  | AH89: =IF(B89<71,VLOOKUP(Active!B89,Lookups!A:G,7),"") ->  | AJ89: =IF(B89<55,VLOOKUP(B89-$B$3,Lookups!$O$3:$Q$53,2),"") ->  | AK89: =IF(B89<55,VLOOKUP(B89-$B$3,Lookups!$O$3:$Q$53,3),"") ->  | AM89: =IF(B89<55,VLOOKUP(B89,Lookups!A:M,12),"") ->  | AN89: =IF(B89<55,VLOOKUP(B89,Lookups!A:M,13),"") ->  | AP89: =IF(B89<70,VLOOKUP(B89,Lookups!A:H,8)*(1-VLOOKUP(B89,Lookups!$U$3:$W$103,2))^(B89-$B$2),"") ->  | AQ89: =IF(B89<70,VLOOKUP(B89,Lookups!A:I,9)*(1-VLOOKUP(B89,Lookups!$U$3:$W$103,3))^(B89-$B$2),"") ->  | CR89: 26 | CS89: 0 | CT89: 1
A90: 2082 | B90: 122 | D90: =VLOOKUP(B90,Lookups!A:B,2) -> 4521.32908 | E90: =VLOOKUP(B90,Lookups!A:C,3) -> 2359.564522 | G90: =VLOOKUP(B90,Lookups!A:D,4) -> 6658.82732 | H90: =VLOOKUP(B90,Lookups!A:E,5) -> 4378.610934 | J90: =VLOOKUP(A90,Trends!$A$3:$Q$94,IF(ExFlg=0,2,10))+IF(B90>=$B$2,Sens,0) -> 1.044 | K90: 21.77469602 | L90: =VLOOKUP(A90,Trends!$A$3:$Q$94,IF(ExFlg=0,4,12))+IF(B90>=$B$2,Sens,0) -> 1.044 | M90: 21.5632803 | N90: =VLOOKUP(A90,Trends!$A$3:$Z$94,IF(ExFlg=0,19,23))+IF(B90>=$B$2,Sens,0) -> 1.044 | O90: 24.39829502 | P90: =VLOOKUP(A90,Trends!$A$3:$Q$94,IF(ExFlg=0,6,14))+IF(B90>=$B$2,Sens,0) -> 1.044 | Q90: 22.04533579 | R90: =VLOOKUP(A90,Trends!$A$3:$Q$94,IF(ExFlg=0,8,16))+IF(B90>=$B$2,Sens,0) -> 1.044 | S90: 22.06049499 | T90: =VLOOKUP(A90,Trends!$A$3:$Z$94,IF(ExFlg=0,21,25))+IF(B90>=$B$2,Sens,0) -> 1.044 | U90: 24.10476025 | W90: 97494.68629 | X90: 57569.35132 | Y90: 39925.33497 | AA90: 146897.0267 | AB90: 105545.3668 | AC90: 41351.65994 | AE90: 40876.22304 | AG90: =IF(B90<71,VLOOKUP(B90,Lookups!A:F,6),"") ->  | AH90: =IF(B90<71,VLOOKUP(Active!B90,Lookups!A:G,7),"") ->  | AJ90: =IF(B90<55,VLOOKUP(B90-$B$3,Lookups!$O$3:$Q$53,2),"") ->  | AK90: =IF(B90<55,VLOOKUP(B90-$B$3,Lookups!$O$3:$Q$53,3),"") ->  | AM90: =IF(B90<55,VLOOKUP(B90,Lookups!A:M,12),"") ->  | AN90: =IF(B90<55,VLOOKUP(B90,Lookups!A:M,13),"") ->  | AP90: =IF(B90<70,VLOOKUP(B90,Lookups!A:H,8)*(1-VLOOKUP(B90,Lookups!$U$3:$W$103,2))^(B90-$B$2),"") ->  | AQ90: =IF(B90<70,VLOOKUP(B90,Lookups!A:I,9)*(1-VLOOKUP(B90,Lookups!$U$3:$W$103,3))^(B90-$B$2),"") ->  | CR90: 27 | CS90: 0 | CT90: 1
A91: 2083 | B91: 123 | D91: =VLOOKUP(B91,Lookups!A:B,2) -> 4521.32908 | E91: =VLOOKUP(B91,Lookups!A:C,3) -> 2359.564522 | G91: =VLOOKUP(B91,Lookups!A:D,4) -> 6658.82732 | H91: =VLOOKUP(B91,Lookups!A:E,5) -> 4378.610934 | J91: =VLOOKUP(A91,Trends!$A$3:$Q$94,IF(ExFlg=0,2,10))+IF(B91>=$B$2,Sens,0) -> 1.044 | K91: 22.73278265 | L91: =VLOOKUP(A91,Trends!$A$3:$Q$94,IF(ExFlg=0,4,12))+IF(B91>=$B$2,Sens,0) -> 1.044 | M91: 22.51206464 | N91: =VLOOKUP(A91,Trends!$A$3:$Z$94,IF(ExFlg=0,19,23))+IF(B91>=$B$2,Sens,0) -> 1.044 | O91: 25.47182 | P91: =VLOOKUP(A91,Trends!$A$3:$Q$94,IF(ExFlg=0,6,14))+IF(B91>=$B$2,Sens,0) -> 1.044 | Q91: 23.01533056 | R91: =VLOOKUP(A91,Trends!$A$3:$Q$94,IF(ExFlg=0,8,16))+IF(B91>=$B$2,Sens,0) -> 1.044 | S91: 23.03115677 | T91: =VLOOKUP(A91,Trends!$A$3:$Z$94,IF(ExFlg=0,21,25))+IF(B91>=$B$2,Sens,0) -> 1.044 | U91: 25.1653697 | W91: 101784.4525 | X91: 60102.40277 | Y91: 41682.04971 | AA91: 153360.4959 | AB91: 110189.3629 | AC91: 43171.13298 | AE91: 42674.77685 | AG91: =IF(B91<71,VLOOKUP(B91,Lookups!A:F,6),"") ->  | AH91: =IF(B91<71,VLOOKUP(Active!B91,Lookups!A:G,7),"") ->  | AJ91: =IF(B91<55,VLOOKUP(B91-$B$3,Lookups!$O$3:$Q$53,2),"") ->  | AK91: =IF(B91<55,VLOOKUP(B91-$B$3,Lookups!$O$3:$Q$53,3),"") ->  | AM91: =IF(B91<55,VLOOKUP(B91,Lookups!A:M,12),"") ->  | AN91: =IF(B91<55,VLOOKUP(B91,Lookups!A:M,13),"") ->  | AP91: =IF(B91<70,VLOOKUP(B91,Lookups!A:H,8)*(1-VLOOKUP(B91,Lookups!$U$3:$W$103,2))^(B91-$B$2),"") ->  | AQ91: =IF(B91<70,VLOOKUP(B91,Lookups!A:I,9)*(1-VLOOKUP(B91,Lookups!$U$3:$W$103,3))^(B91-$B$2),"") ->  | CR91: 28 | CS91: 0 | CT91: 1
A92: 2084 | B92: 124 | D92: =VLOOKUP(B92,Lookups!A:B,2) -> 4521.32908 | E92: =VLOOKUP(B92,Lookups!A:C,3) -> 2359.564522 | G92: =VLOOKUP(B92,Lookups!A:D,4) -> 6658.82732 | H92: =VLOOKUP(B92,Lookups!A:E,5) -> 4378.610934 | J92: =VLOOKUP(A92,Trends!$A$3:$Q$94,IF(ExFlg=0,2,10))+IF(B92>=$B$2,Sens,0) -> 1.044 | K92: 23.73302508 | L92: =VLOOKUP(A92,Trends!$A$3:$Q$94,IF(ExFlg=0,4,12))+IF(B92>=$B$2,Sens,0) -> 1.044 | M92: 23.50259548 | N92: =VLOOKUP(A92,Trends!$A$3:$Z$94,IF(ExFlg=0,19,23))+IF(B92>=$B$2,Sens,0) -> 1.044 | O92: 26.59258008 | P92: =VLOOKUP(A92,Trends!$A$3:$Q$94,IF(ExFlg=0,6,14))+IF(B92>=$B$2,Sens,0) -> 1.044 | Q92: 24.02800511 | R92: =VLOOKUP(A92,Trends!$A$3:$Q$94,IF(ExFlg=0,8,16))+IF(B92>=$B$2,Sens,0) -> 1.044 | S92: 24.04452767 | T92: =VLOOKUP(A92,Trends!$A$3:$Z$94,IF(ExFlg=0,21,25))+IF(B92>=$B$2,Sens,0) -> 1.044 | U92: 26.27264597 | W92: 106262.9684 | X92: 62746.9085 | Y92: 43516.0599 | AA92: 160108.3577 | AB92: 115037.6949 | AC92: 45070.66283 | AE92: 44552.46703 | AG92: =IF(B92<71,VLOOKUP(B92,Lookups!A:F,6),"") ->  | AH92: =IF(B92<71,VLOOKUP(Active!B92,Lookups!A:G,7),"") ->  | AJ92: =IF(B92<55,VLOOKUP(B92-$B$3,Lookups!$O$3:$Q$53,2),"") ->  | AK92: =IF(B92<55,VLOOKUP(B92-$B$3,Lookups!$O$3:$Q$53,3),"") ->  | AM92: =IF(B92<55,VLOOKUP(B92,Lookups!A:M,12),"") ->  | AN92: =IF(B92<55,VLOOKUP(B92,Lookups!A:M,13),"") ->  | AP92: =IF(B92<70,VLOOKUP(B92,Lookups!A:H,8)*(1-VLOOKUP(B92,Lookups!$U$3:$W$103,2))^(B92-$B$2),"") ->  | AQ92: =IF(B92<70,VLOOKUP(B92,Lookups!A:I,9)*(1-VLOOKUP(B92,Lookups!$U$3:$W$103,3))^(B92-$B$2),"") ->  | CR92: 29 | CS92: 0 | CT92: 1
A93: 2085 | B93: 125 | D93: =VLOOKUP(B93,Lookups!A:B,2) -> 4521.32908 | E93: =VLOOKUP(B93,Lookups!A:C,3) -> 2359.564522 | G93: =VLOOKUP(B93,Lookups!A:D,4) -> 6658.82732 | H93: =VLOOKUP(B93,Lookups!A:E,5) -> 4378.610934 | K93: 24.77727819 | M93: 24.53670968 | N93: =VLOOKUP(A93,Trends!$A$3:$Z$94,IF(ExFlg=0,19,23))+IF(B93>=$B$2,Sens,0) -> 1.044 | O93: 27.7626536 | Q93: 25.08523733 | S93: 25.10248689 | T93: =VLOOKUP(A93,Trends!$A$3:$Z$94,IF(ExFlg=0,21,25))+IF(B93>=$B$2,Sens,0) -> 1.044 | U93: 27.42864239 | W93: 110938.539 | X93: 65507.77247 | Y93: 45430.76653 | AA93: 167153.1255 | AB93: 120099.3535 | AC93: 47053.77199 | AE93: 46512.77558 | AG93: =IF(B93<71,VLOOKUP(B93,Lookups!A:F,6),"") ->  | AH93: =IF(B93<71,VLOOKUP(Active!B93,Lookups!A:G,7),"") ->  | AJ93: =IF(B93<55,VLOOKUP(B93-$B$3,Lookups!$O$3:$Q$53,2),"") ->  | AK93: =IF(B93<55,VLOOKUP(B93-$B$3,Lookups!$O$3:$Q$53,3),"") ->  | AM93: =IF(B93<55,VLOOKUP(B93,Lookups!A:M,12),"") ->  | AN93: =IF(B93<55,VLOOKUP(B93,Lookups!A:M,13),"") ->  | AP93: =IF(B93<70,VLOOKUP(B93,Lookups!A:H,8)*(1-VLOOKUP(B93,Lookups!$U$3:$W$103,2))^(B93-$B$2),"") ->  | AQ93: =IF(B93<70,VLOOKUP(B93,Lookups!A:I,9)*(1-VLOOKUP(B93,Lookups!$U$3:$W$103,3))^(B93-$B$2),"") ->  | CR93: 30 | CS93: 0 | CT93: 1
CO102: =IF(CN102<71,CO101+1,"") -> 
CP109: =IF(CN109<71,CP108*(1-VLOOKUP(CN108,$B$3:$AU$93,44,FALSE))* 1/(1+IntRt)*(1+GSG)*VLOOKUP(MIN(CO108,30),$CR$63:$CT$93,3,FALSE),"") -> 

Sheet Additional Disclosures
B1: PEBB - AMM Online Tool Additional Disclosures
C3: This tab is intended to:
C4: (1) Provide guidance on concepts that require users to apply their judgment and/or consult with their auditor.
C5: (2) Document the assumptions and methods we employed for purposes of this AMM Online Tool that vary from the underlying GASB 75 actuarial valuation we performed for the State.
C7: Data Inputs:
C9: We assume the inputs you provide are as of the measurement date of 6/30/2020. If you are not able to determine the counts and average ages as of that time, utilizing your current data or as of your reporting date may be reasonable. Please consult with your auditor for further guidance.
C11: Unless readily identifiable by the user of this tool, we also inherently assume that there are no inactive members entitled to but not currently receiving a benefit. In other words, certain members who stopped working may be eligible to join PEBB as a retiree at a later date.
C13: Transactions Subsequent to Measurement Date (for GASB 75 Reporting):
C15: ="If your reporting date is after the 6/30/2020 measurement date, you will include the dollar amount of benefits paid between the measurement and reporting date in your accounting results."&" Please see the BARS Manual from the State Auditor's Office for more information on how to incorporate this into your financial statements." -> If your reporting date is after the 6/30/2020 measurement date, you will include the dollar amount of benefits paid between the measurement and reporting date in your accounting results. Please see the BARS Manual from the State Auditor's Office for more information on how to incorporate this into your financial statements.
C17: ="We estimate your first-year projected monthly subsidy is $"&ROUND(Log!L12/12,0)&". If your reporting date is after the measurement date, multiply this amount by the number of months between your FYE and the measurement date. We believe this approach will serve as a reasonable estimate under this AMM Online Tool." -> We estimate your first-year projected monthly subsidy is $0. If your reporting date is after the measurement date, multiply this amount by the number of months between your FYE and the measurement date. We believe this approach will serve as a reasonable estimate under this AMM Online Tool.
C19: ="In other words, if you have a 12/31/2020 reporting date, your estimated transactions subsequent to the measurement date would be $"&ROUND(Log!L12/12,0)&" x 6 = $"&ROUND(Log!L12/2,0)&"." -> In other words, if you have a 12/31/2020 reporting date, your estimated transactions subsequent to the measurement date would be $0 x 6 = $0.
C21: OSA actuarial reports relied upon for purposes of this AMM Online Tool:
C22: 2018 PEBB OPEB Actuarial Valuation Report (AVR)
C23: OPEB Actuarial Valuation for the State’s June 30, 2020 Fiscal Year End
C25: Specific assumptions we made when developing this AMM Online Tool:
C27: ◊ We assumed 2/3 of members select a UMP plan and 1/3 select a Kaiser Permanente (KP) plan.
C28: ▪ UMP pre- and post-Medicare costs and premiums are equal to the Uniform Medical Plan (UMP).
C29: ▪ The KP pre-Medicare costs and premiums are a 50/50 blend of KP Classic and KP Value.
C30: ▪ The KP post-Medicare costs and premiums are equal to KP Medicare.
C32: ◊ We estimated retirement service for each active cohort based on the average entry age of 35, with a minimum service of 1 year. For example, an age 47 member is assumed to have 12 years of service. Service is a component of benefit eligibility.
C34: ◊ Assumptions for retirement, disability, termination, and mortality are based on the 2018 PEBB OPEB AVR.
C35: ▪ We made the following changes for simplicity. Assumed all employees are retirement eligible at age 55. Relied on our retirement rates for members with <30 years of service. Assumed a 100% rate of retirement at the age of 70.
C37: ◊ Each cohort is assumed to be a 50/50 male/female split.
C38: ▪ We further assume that eligible spouses are the same age as the primary member.
C40: ◊ We selected the age-based cohorts for this AMM Online Tool based upon the overall distribution of State employees and retirees that participate in PEBB.
C42: ◊ We did not include dental benefits when calculating the Total OPEB Liability. Dental benefits represent less than 3 percent of the accrued benefit obligations under the 2018 PEBB OPEB AVR. We will continue to monitor the impact and may consider including dental benefits in future updates of the tool.
C44: We believe these approaches and simplifying assumptions are reasonable for the purposes of this AMM.
C46: We would like to hear your feedback if you used this tool. Please send us an email at:
C47: State.Actuary@leg.wa.gov
C49: Glossary - Link to the OSA website that includes definitions for frequently used actuarial and OPEB terms.
D50: Page 3 of 5

Sheet Certification Letter
B1: PEBB - GASB 75 AMM Online Tool Actuarial Certification
D58: Page 4 of 5
B60: PEBB - GASB 75 AMM Online Tool Actuarial Certification (Continued)
D117: Page 5 of 5

Sheet Inactive (hidden)
A1: Inactives | B1: 0 | D1: Insured | G1: UMP | J1: Implicit | K1: Insured | L1: Explicit | M1: Insured | N1: Insured Med | O1: Insured | P1: Implicit | Q1: UMP | R1: Explicit | S1: UMP | T1: UMP Med | U1: UMP | X1: Insured | AB1: UMP | AE1: Average | AI1: 0.5 | AN1: Implicit | AO1: Explicit
A2: Year | D2: Cost | E2: Prem | G2: Cost | H2: Prem | J2: Trend | K2: Rel Trend | L2: Trend | M2: Rel Trend | N2: Premium | O2: Med Accum | P2: Trend | Q2: Rel Trend | R2: Trend | S2: Rel Trend | T2: Premium | U2: Med Accum | W2: Cost | X2: Prem | Y2: Net | AA2: Cost | AB2: Prem | AC2: Net | AE2: Net | AG2: Mort - M | AH2: Mort - F | AI2: Mortality | AJ2: Survive | AK2: Interest | AL2: Pay Timing | AN2: Subsidy | AO2: Subsidy
A3: =ToolYear -> 2020 | B3: 82 | D3: =VLOOKUP(B3,Lookups!A:B,2) -> 4635.151696 | E3: =VLOOKUP(B3,Lookups!A:C,3) -> 2359.564522 | G3: =VLOOKUP(B3,Lookups!A:D,4) -> 6826.460552 | H3: =VLOOKUP(B3,Lookups!A:E,5) -> 4378.610934 | J3: =VLOOKUP(A3,Trends!$A$3:$Q$94,IF(ExFlg=0,2,10))+Sens -> 1.06 | K3: 1 | L3: =VLOOKUP(A3,Trends!$A$3:$Q$94,IF(ExFlg=0,4,12))+Sens -> 1.078 | M3: 1 | N3: =VLOOKUP(A3,Trends!$A$3:$Z$94,IF(ExFlg=0,19,23))+Sens -> 1.148 | O3: 1 | P3: =VLOOKUP(A3,Trends!$A$3:$Q$94,IF(ExFlg=0,6,14))+Sens -> 1.06 | Q3: 1 | R3: =VLOOKUP(A3,Trends!$A$3:$Q$94,IF(ExFlg=0,8,16))+Sens -> 1.078 | S3: 1 | T3: =VLOOKUP(A3,Trends!$A$3:$Z$94,IF(ExFlg=0,21,25))+Sens -> 1.117 | U3: 1 | W3: =IF(B3<65,D3*K3,D3*M3) -> 4635.151696 | X3: =IF(B3<65,E3*K3,E3*O3) -> 2359.564522 | Y3: =W3-X3 -> 2275.587174 | AA3: =IF(B3<65,G3*Q3,G3*S3) -> 6826.460552 | AB3: =IF(B3<65,H3*Q3,H3*U3) -> 4378.610934 | AC3: =AA3-AB3 -> 2447.849618 | AE3: =(1-PctUMP)*Y3+PctUMP*AC3 -> 2390.429377 | AG3: =IF($B3<121,VLOOKUP($B3,Lookups!A:H,8)*(1-VLOOKUP($B3,Lookups!$U$3:$W$103,2))^(B3-$B$3),"") -> 0.05324788845 | AH3: =IF($B3<121,VLOOKUP($B3,Lookups!A:I,9)*(1-VLOOKUP($B3,Lookups!$U$3:$W$103,3))^(B3-$B$3),"") -> 0.03988719613 | AI3: =IF(B3<121,(PCTMALE*AG3+(1-PCTMALE)*AH3),"") -> 0.04656754229 | AJ3: 1 | AK3: 1 | AL3: =IF(AI3="","",ROUND((13/24)+(11/24)*(1/(1+IntRt))*(1-AI3),6)) -> 0.963879 | AN3: =IF(B3<65,AE3*AJ3*AK3*AL3,"") ->  | AO3: =IF(AND(B3>=65,B3<121),AE3*AJ3*AK3*AL3,"") -> 2304.084678
A4: =1+A3 -> 2021 | B4: =1+B3 -> 83 | D4: =VLOOKUP(B4,Lookups!A:B,2) -> 4615.972604 | E4: =VLOOKUP(B4,Lookups!A:C,3) -> 2359.564522 | G4: =VLOOKUP(B4,Lookups!A:D,4) -> 6798.21438 | H4: =VLOOKUP(B4,Lookups!A:E,5) -> 4378.610934 | J4: =VLOOKUP(A4,Trends!$A$3:$Q$94,IF(ExFlg=0,2,10))+Sens -> 1.052 | K4: =K3*J3 -> 1.06 | L4: =VLOOKUP(A4,Trends!$A$3:$Q$94,IF(ExFlg=0,4,12))+Sens -> 1.051 | M4: =M3*L3 -> 1.078 | N4: =VLOOKUP(A4,Trends!$A$3:$Z$94,IF(ExFlg=0,19,23))+Sens -> 1.072 | O4: =O3*N3 -> 1.148 | P4: =VLOOKUP(A4,Trends!$A$3:$Q$94,IF(ExFlg=0,6,14))+Sens -> 1.052 | Q4: =Q3*P3 -> 1.06 | R4: =VLOOKUP(A4,Trends!$A$3:$Q$94,IF(ExFlg=0,8,16))+Sens -> 1.052 | S4: =S3*R3 -> 1.078 | T4: =VLOOKUP(A4,Trends!$A$3:$Z$94,IF(ExFlg=0,21,25))+Sens -> 1.065 | U4: =U3*T3 -> 1.117 | W4: =IF(B4<65,D4*K4,D4*M4) -> 4976.018467 | X4: =IF(B4<65,E4*K4,E4*O4) -> 2708.780071 | Y4: 2267.238396 | AA4: =IF(B4<65,G4*Q4,G4*S4) -> 7328.475102 | AB4: =IF(B4<65,H4*Q4,H4*U4) -> 4890.908413 | AC4: 2437.566689 | AE4: =(1-PctUMP)*Y4+PctUMP*AC4 -> 2380.791159 | AG4: =IF($B4<121,VLOOKUP($B4,Lookups!A:H,8)*(1-VLOOKUP($B4,Lookups!$U$3:$W$103,2))^(B4-$B$3),"") -> 0.05859796136 | AH4: =IF($B4<121,VLOOKUP($B4,Lookups!A:I,9)*(1-VLOOKUP($B4,Lookups!$U$3:$W$103,3))^(B4-$B$3),"") -> 0.04368772689 | AI4: 0.05114284412 | AJ4: =IF(B4<121,AJ3*(1-AI3),"") -> 0.9534324577 | AK4: =IF(B4<121,AK3/(1+IntRt),"") -> 0.9661835749 | AL4: 0.961853 | AN4: =IF(B4<65,AE4*AJ4*AK4*AL4,"") ->  | AO4: =IF(AND(B4>=65,B4<121),AE4*AJ4*AK4*AL4,"") -> 2109.500282
A5: 2022 | B5: 84 | D5: =VLOOKUP(B5,Lookups!A:B,2) -> 4596.877488 | E5: =VLOOKUP(B5,Lookups!A:C,3) -> 2359.564522 | G5: =VLOOKUP(B5,Lookups!A:D,4) -> 6770.091885 | H5: =VLOOKUP(B5,Lookups!A:E,5) -> 4378.610934 | J5: =VLOOKUP(A5,Trends!$A$3:$Q$94,IF(ExFlg=0,2,10))+Sens -> 1.052 | K5: =K4*J4 -> 1.11512 | L5: =VLOOKUP(A5,Trends!$A$3:$Q$94,IF(ExFlg=0,4,12))+Sens -> 1.051 | M5: =M4*L4 -> 1.132978 | N5: =VLOOKUP(A5,Trends!$A$3:$Z$94,IF(ExFlg=0,19,23))+Sens -> 1.053 | O5: =O4*N4 -> 1.230656 | P5: =VLOOKUP(A5,Trends!$A$3:$Q$94,IF(ExFlg=0,6,14))+Sens -> 1.052 | Q5: =Q4*P4 -> 1.11512 | R5: =VLOOKUP(A5,Trends!$A$3:$Q$94,IF(ExFlg=0,8,16))+Sens -> 1.052 | S5: =S4*R4 -> 1.134056 | T5: =VLOOKUP(A5,Trends!$A$3:$Z$94,IF(ExFlg=0,21,25))+Sens -> 1.054 | U5: =U4*T4 -> 1.189605 | W5: 5208.161062 | X5: =IF(B5<65,E5*K5,E5*O5) -> 2903.812236 | Y5: 2304.348826 | AA5: 7677.663322 | AB5: 5208.81746 | AC5: 2468.845862 | AE5: 2414.014065 | AG5: =IF($B5<121,VLOOKUP($B5,Lookups!A:H,8)*(1-VLOOKUP($B5,Lookups!$U$3:$W$103,2))^(B5-$B$3),"") -> 0.0643394119 | AH5: =IF($B5<121,VLOOKUP($B5,Lookups!A:I,9)*(1-VLOOKUP($B5,Lookups!$U$3:$W$103,3))^(B5-$B$3),"") -> 0.04792680686 | AI5: 0.05613310938 | AJ5: =IF(B5<121,AJ4*(1-AI4),"") -> 0.9046712101 | AK5: 0.9335107004 | AL5: 0.959643 | AO5: 1956.408613
A6: 2023 | B6: 85 | D6: =VLOOKUP(B6,Lookups!A:B,2) -> 4577.865961 | E6: =VLOOKUP(B6,Lookups!A:C,3) -> 2359.564522 | G6: =VLOOKUP(B6,Lookups!A:D,4) -> 6742.092495 | H6: =VLOOKUP(B6,Lookups!A:E,5) -> 4378.610934 | J6: =VLOOKUP(A6,Trends!$A$3:$Q$94,IF(ExFlg=0,2,10))+Sens -> 1.052 | K6: 1.17310624 | L6: =VLOOKUP(A6,Trends!$A$3:$Q$94,IF(ExFlg=0,4,12))+Sens -> 1.052 | M6: 1.190759878 | N6: =VLOOKUP(A6,Trends!$A$3:$Z$94,IF(ExFlg=0,19,23))+Sens -> 1.054 | O6: 1.295880768 | P6: =VLOOKUP(A6,Trends!$A$3:$Q$94,IF(ExFlg=0,6,14))+Sens -> 1.053 | Q6: 1.17310624 | R6: =VLOOKUP(A6,Trends!$A$3:$Q$94,IF(ExFlg=0,8,16))+Sens -> 1.052 | S6: 1.193026912 | T6: =VLOOKUP(A6,Trends!$A$3:$Z$94,IF(ExFlg=0,21,25))+Sens -> 1.054 | U6: 1.25384367 | W6: 5451.139113 | X6: =IF(B6<65,E6*K6,E6*O6) -> 3057.714284 | Y6: 2393.424828 | AA6: 8043.49779 | AB6: 5490.093603 | AC6: 2553.404188 | AE6: 2500.078268 | AG6: =IF($B6<121,VLOOKUP($B6,Lookups!A:H,8)*(1-VLOOKUP($B6,Lookups!$U$3:$W$103,2))^(B6-$B$3),"") -> 0.07048143521 | AH6: =IF($B6<121,VLOOKUP($B6,Lookups!A:I,9)*(1-VLOOKUP($B6,Lookups!$U$3:$W$103,3))^(B6-$B$3),"") -> 0.05266225132 | AI6: 0.06157184327 | AJ6: 0.8538892022 | AK6: 0.9019427057 | AL6: 0.957235 | AO6: 1843.115905 | AS6: Retirees - Default Ages
A7: 2024 | B7: 86 | D7: =VLOOKUP(B7,Lookups!A:B,2) -> 4558.937638 | E7: =VLOOKUP(B7,Lookups!A:C,3) -> 2359.564522 | G7: =VLOOKUP(B7,Lookups!A:D,4) -> 6714.215647 | H7: =VLOOKUP(B7,Lookups!A:E,5) -> 4378.610934 | J7: =VLOOKUP(A7,Trends!$A$3:$Q$94,IF(ExFlg=0,2,10))+Sens -> 1.053 | K7: 1.234107764 | L7: =VLOOKUP(A7,Trends!$A$3:$Q$94,IF(ExFlg=0,4,12))+Sens -> 1.052 | M7: =M6*L6 -> 1.252679392 | N7: =VLOOKUP(A7,Trends!$A$3:$Z$94,IF(ExFlg=0,19,23))+Sens -> 1.054 | O7: 1.365858329 | P7: =VLOOKUP(A7,Trends!$A$3:$Q$94,IF(ExFlg=0,6,14))+Sens -> 1.053 | Q7: 1.235280871 | R7: =VLOOKUP(A7,Trends!$A$3:$Q$94,IF(ExFlg=0,8,16))+Sens -> 1.053 | S7: 1.255064311 | T7: =VLOOKUP(A7,Trends!$A$3:$Z$94,IF(ExFlg=0,21,25))+Sens -> 1.055 | U7: 1.321551228 | W7: 5710.887227 | X7: 3222.830856 | Y7: 2488.056372 | AA7: 8426.772438 | AB7: 5786.558657 | AC7: 2640.21378 | AE7: 2589.495151 | AG7: =IF($B7<121,VLOOKUP($B7,Lookups!A:H,8)*(1-VLOOKUP($B7,Lookups!$U$3:$W$103,2))^(B7-$B$3),"") -> 0.07706221062 | AH7: =IF($B7<121,VLOOKUP($B7,Lookups!A:I,9)*(1-VLOOKUP($B7,Lookups!$U$3:$W$103,3))^(B7-$B$3),"") -> 0.05796543671 | AI7: 0.06751382366 | AJ7: 0.80131367 | AK7: 0.8714422277 | AL7: 0.954603 | AO7: 1726.152055 | AS7: Age Divisions | AT7: 20-64 | AU7: 65-70 | AV7: 71-77 | AW7: 78+
A8: 2025 | B8: 87 | D8: =VLOOKUP(B8,Lookups!A:B,2) -> 4540.092138 | E8: =VLOOKUP(B8,Lookups!A:C,3) -> 2359.564522 | G8: =VLOOKUP(B8,Lookups!A:D,4) -> 6686.460775 | H8: =VLOOKUP(B8,Lookups!A:E,5) -> 4378.610934 | J8: =VLOOKUP(A8,Trends!$A$3:$Q$94,IF(ExFlg=0,2,10))+Sens -> 1.053 | K8: 1.299515476 | L8: =VLOOKUP(A8,Trends!$A$3:$Q$94,IF(ExFlg=0,4,12))+Sens -> 1.052 | M8: 1.31781872 | N8: =VLOOKUP(A8,Trends!$A$3:$Z$94,IF(ExFlg=0,19,23))+Sens -> 1.054 | O8: 1.439614679 | P8: =VLOOKUP(A8,Trends!$A$3:$Q$94,IF(ExFlg=0,6,14))+Sens -> 1.053 | Q8: 1.300750757 | R8: =VLOOKUP(A8,Trends!$A$3:$Q$94,IF(ExFlg=0,8,16))+Sens -> 1.053 | S8: 1.32158272 | T8: =VLOOKUP(A8,Trends!$A$3:$Z$94,IF(ExFlg=0,21,25))+Sens -> 1.055 | U8: 1.394236546 | W8: 5983.018411 | X8: 3396.863722 | Y8: 2586.154689 | AA8: 8836.711018 | AB8: 6104.819383 | AC8: 2731.891635 | AE8: 2683.313139 | AG8: =IF($B8<121,VLOOKUP($B8,Lookups!A:H,8)*(1-VLOOKUP($B8,Lookups!$U$3:$W$103,2))^(B8-$B$3),"") -> 0.0863202727 | AH8: =IF($B8<121,VLOOKUP($B8,Lookups!A:I,9)*(1-VLOOKUP($B8,Lookups!$U$3:$W$103,3))^(B8-$B$3),"") -> 0.06387260954 | AI8: 0.07509644112 | AJ8: 0.7472139202 | AK8: 0.8419731669 | AL8: 0.951246 | AO8: 1605.858984 | AS8: Number Inactive | AT8: 60 | AU8: =ROUND((70+65)/2,0) -> 68 | AV8: =ROUND((77+71)/2,0) -> 74 | AW8: 82
A9: 2026 | B9: 88 | D9: =VLOOKUP(B9,Lookups!A:B,2) -> 4521.32908 | E9: =VLOOKUP(B9,Lookups!A:C,3) -> 2359.564522 | G9: =VLOOKUP(B9,Lookups!A:D,4) -> 6658.82732 | H9: =VLOOKUP(B9,Lookups!A:E,5) -> 4378.610934 | J9: =VLOOKUP(A9,Trends!$A$3:$Q$94,IF(ExFlg=0,2,10))+Sens -> 1.053 | K9: 1.368389796 | L9: =VLOOKUP(A9,Trends!$A$3:$Q$94,IF(ExFlg=0,4,12))+Sens -> 1.053 | M9: 1.386345293 | N9: =VLOOKUP(A9,Trends!$A$3:$Z$94,IF(ExFlg=0,19,23))+Sens -> 1.055 | O9: 1.517353872 | P9: =VLOOKUP(A9,Trends!$A$3:$Q$94,IF(ExFlg=0,6,14))+Sens -> 1.054 | Q9: 1.369690547 | R9: =VLOOKUP(A9,Trends!$A$3:$Q$94,IF(ExFlg=0,8,16))+Sens -> 1.053 | S9: 1.391626604 | T9: =VLOOKUP(A9,Trends!$A$3:$Z$94,IF(ExFlg=0,21,25))+Sens -> 1.055 | U9: 1.470919556 | W9: 6268.12329 | X9: 3580.294363 | Y9: 2687.828927 | AA9: 9266.601251 | AB9: 6440.584449 | AC9: 2826.016802 | AE9: 2779.954637 | AG9: =IF($B9<121,VLOOKUP($B9,Lookups!A:H,8)*(1-VLOOKUP($B9,Lookups!$U$3:$W$103,2))^(B9-$B$3),"") -> 0.0968102731 | AH9: =IF($B9<121,VLOOKUP($B9,Lookups!A:I,9)*(1-VLOOKUP($B9,Lookups!$U$3:$W$103,3))^(B9-$B$3),"") -> 0.07038415857 | AI9: 0.08359721583 | AJ9: 0.6911008141 | AK9: 0.8135006443 | AL9: 0.947481 | AO9: 1480.837913
A10: 2027 | B10: 89 | D10: =VLOOKUP(B10,Lookups!A:B,2) -> 4521.32908 | E10: =VLOOKUP(B10,Lookups!A:C,3) -> 2359.564522 | G10: =VLOOKUP(B10,Lookups!A:D,4) -> 6658.82732 | H10: =VLOOKUP(B10,Lookups!A:E,5) -> 4378.610934 | J10: =VLOOKUP(A10,Trends!$A$3:$Q$94,IF(ExFlg=0,2,10))+Sens -> 1.053 | K10: 1.440914455 | L10: =VLOOKUP(A10,Trends!$A$3:$Q$94,IF(ExFlg=0,4,12))+Sens -> 1.053 | M10: 1.459821594 | N10: =VLOOKUP(A10,Trends!$A$3:$Z$94,IF(ExFlg=0,19,23))+Sens -> 1.055 | O10: 1.600808335 | P10: =VLOOKUP(A10,Trends!$A$3:$Q$94,IF(ExFlg=0,6,14))+Sens -> 1.054 | Q10: 1.443653837 | R10: =VLOOKUP(A10,Trends!$A$3:$Q$94,IF(ExFlg=0,8,16))+Sens -> 1.053 | S10: 1.465382814 | T10: =VLOOKUP(A10,Trends!$A$3:$Z$94,IF(ExFlg=0,21,25))+Sens -> 1.055 | U10: 1.551820131 | W10: 6600.333824 | X10: 3777.210553 | Y10: 2823.123271 | AA10: 9757.731117 | AB10: 6794.816594 | AC10: 2962.914523 | AE10: 2916.317905 | AG10: =IF($B10<121,VLOOKUP($B10,Lookups!A:H,8)*(1-VLOOKUP($B10,Lookups!$U$3:$W$103,2))^(B10-$B$3),"") -> 0.1087007893 | AH10: =IF($B10<121,VLOOKUP($B10,Lookups!A:I,9)*(1-VLOOKUP($B10,Lookups!$U$3:$W$103,3))^(B10-$B$3),"") -> 0.07745504224 | AI10: 0.09307791578 | AJ10: 0.6333267101 | AK10: 0.7859909607 | AL10: 0.943283 | AO10: 1369.374473
A11: 2028 | B11: 90 | D11: =VLOOKUP(B11,Lookups!A:B,2) -> 4521.32908 | E11: =VLOOKUP(B11,Lookups!A:C,3) -> 2359.564522 | G11: =VLOOKUP(B11,Lookups!A:D,4) -> 6658.82732 | H11: =VLOOKUP(B11,Lookups!A:E,5) -> 4378.610934 | J11: =VLOOKUP(A11,Trends!$A$3:$Q$94,IF(ExFlg=0,2,10))+Sens -> 1.054 | K11: 1.517282922 | L11: =VLOOKUP(A11,Trends!$A$3:$Q$94,IF(ExFlg=0,4,12))+Sens -> 1.053 | M11: 1.537192138 | N11: =VLOOKUP(A11,Trends!$A$3:$Z$94,IF(ExFlg=0,19,23))+Sens -> 1.055 | O11: 1.688852793 | P11: =VLOOKUP(A11,Trends!$A$3:$Q$94,IF(ExFlg=0,6,14))+Sens -> 1.054 | Q11: 1.521611144 | R11: =VLOOKUP(A11,Trends!$A$3:$Q$94,IF(ExFlg=0,8,16))+Sens -> 1.053 | S11: 1.543048103 | T11: =VLOOKUP(A11,Trends!$A$3:$Z$94,IF(ExFlg=0,21,25))+Sens -> 1.055 | U11: 1.637170239 | W11: 6950.151517 | X11: 3984.957133 | Y11: 2965.194384 | AA11: 10274.89087 | AB11: 7168.531507 | AC11: 3106.35936 | AE11: 3059.304838 | AG11: =IF($B11<121,VLOOKUP($B11,Lookups!A:H,8)*(1-VLOOKUP($B11,Lookups!$U$3:$W$103,2))^(B11-$B$3),"") -> 0.1220958392 | AH11: =IF($B11<121,VLOOKUP($B11,Lookups!A:I,9)*(1-VLOOKUP($B11,Lookups!$U$3:$W$103,3))^(B11-$B$3),"") -> 0.08741863688 | AI11: 0.104757238 | AJ11: 0.5743779799 | AK11: 0.7594115562 | AL11: 0.938111 | AO11: =IF(AND(B11>=65,B11<121),AE11*AJ11*AK11*AL11,"") -> 1251.849054
A12: 2029 | B12: 91 | D12: =VLOOKUP(B12,Lookups!A:B,2) -> 4521.32908 | E12: =VLOOKUP(B12,Lookups!A:C,3) -> 2359.564522 | G12: =VLOOKUP(B12,Lookups!A:D,4) -> 6658.82732 | H12: =VLOOKUP(B12,Lookups!A:E,5) -> 4378.610934 | J12: =VLOOKUP(A12,Trends!$A$3:$Q$94,IF(ExFlg=0,2,10))+Sens -> 1.054 | K12: 1.599216199 | L12: =VLOOKUP(A12,Trends!$A$3:$Q$94,IF(ExFlg=0,4,12))+Sens -> 1.053 | M12: 1.618663322 | N12: =VLOOKUP(A12,Trends!$A$3:$Z$94,IF(ExFlg=0,19,23))+Sens -> 1.055 | O12: 1.781739697 | P12: =VLOOKUP(A12,Trends!$A$3:$Q$94,IF(ExFlg=0,6,14))+Sens -> 1.054 | Q12: 1.603778145 | R12: =VLOOKUP(A12,Trends!$A$3:$Q$94,IF(ExFlg=0,8,16))+Sens -> 1.054 | S12: 1.624829653 | T12: =VLOOKUP(A12,Trends!$A$3:$Z$94,IF(ExFlg=0,21,25))+Sens -> 1.056 | U12: 1.727214602 | W12: 7318.509547 | X12: 4204.129776 | Y12: 3114.379772 | AA12: 10819.46008 | AB12: 7562.80074 | AC12: 3256.659343 | AE12: 3209.233293 | AG12: =IF($B12<121,VLOOKUP($B12,Lookups!A:H,8)*(1-VLOOKUP($B12,Lookups!$U$3:$W$103,2))^(B12-$B$3),"") -> 0.1370368918 | AH12: =IF($B12<121,VLOOKUP($B12,Lookups!A:I,9)*(1-VLOOKUP($B12,Lookups!$U$3:$W$103,3))^(B12-$B$3),"") -> 0.09838872076 | AI12: 0.1177128063 | AJ12: 0.5142077292 | AK12: 0.7337309722 | AL12: 0.932374 | AO12: =IF(AND(B12>=65,B12<121),AE12*AJ12*AK12*AL12,"") -> 1128.929692
A13: 2030 | B13: 92 | D13: =VLOOKUP(B13,Lookups!A:B,2) -> 4521.32908 | E13: =VLOOKUP(B13,Lookups!A:C,3) -> 2359.564522 | G13: =VLOOKUP(B13,Lookups!A:D,4) -> 6658.82732 | H13: =VLOOKUP(B13,Lookups!A:E,5) -> 4378.610934 | J13: =VLOOKUP(A13,Trends!$A$3:$Q$94,IF(ExFlg=0,2,10))+Sens -> 1.054 | K13: 1.685573874 | L13: =VLOOKUP(A13,Trends!$A$3:$Q$94,IF(ExFlg=0,4,12))+Sens -> 1.053 | M13: 1.704452478 | N13: =VLOOKUP(A13,Trends!$A$3:$Z$94,IF(ExFlg=0,19,23))+Sens -> 1.055 | O13: 1.87973538 | P13: =VLOOKUP(A13,Trends!$A$3:$Q$94,IF(ExFlg=0,6,14))+Sens -> 1.054 | Q13: 1.690382165 | R13: =VLOOKUP(A13,Trends!$A$3:$Q$94,IF(ExFlg=0,8,16))+Sens -> 1.054 | S13: 1.712570454 | T13: =VLOOKUP(A13,Trends!$A$3:$Z$94,IF(ExFlg=0,21,25))+Sens -> 1.056 | U13: 1.823938619 | W13: 7706.390553 | X13: 4435.356913 | Y13: 3271.03364 | AA13: 11403.71093 | AB13: 7986.317581 | AC13: 3417.393346 | AE13: 3368.607265 | AG13: =IF($B13<121,VLOOKUP($B13,Lookups!A:H,8)*(1-VLOOKUP($B13,Lookups!$U$3:$W$103,2))^(B13-$B$3),"") -> 0.1523130546 | AH13: =IF($B13<121,VLOOKUP($B13,Lookups!A:I,9)*(1-VLOOKUP($B13,Lookups!$U$3:$W$103,3))^(B13-$B$3),"") -> 0.1102528427 | AI13: 0.1312829487 | AJ13: 0.4536788944 | AK13: 0.7089188137 | AL13: 0.926364 | AO13: 1003.638074
A14: 2031 | B14: 93 | D14: =VLOOKUP(B14,Lookups!A:B,2) -> 4521.32908 | E14: =VLOOKUP(B14,Lookups!A:C,3) -> 2359.564522 | G14: =VLOOKUP(B14,Lookups!A:D,4) -> 6658.82732 | H14: =VLOOKUP(B14,Lookups!A:E,5) -> 4378.610934 | J14: =VLOOKUP(A14,Trends!$A$3:$Q$94,IF(ExFlg=0,2,10))+Sens -> 1.054 | K14: 1.776594863 | L14: =VLOOKUP(A14,Trends!$A$3:$Q$94,IF(ExFlg=0,4,12))+Sens -> 1.053 | M14: 1.794788459 | N14: =VLOOKUP(A14,Trends!$A$3:$Z$94,IF(ExFlg=0,19,23))+Sens -> 1.054 | O14: 1.983120826 | P14: =VLOOKUP(A14,Trends!$A$3:$Q$94,IF(ExFlg=0,6,14))+Sens -> 1.054 | Q14: 1.781662802 | R14: =VLOOKUP(A14,Trends!$A$3:$Q$94,IF(ExFlg=0,8,16))+Sens -> 1.054 | S14: 1.805049258 | T14: =VLOOKUP(A14,Trends!$A$3:$Z$94,IF(ExFlg=0,21,25))+Sens -> 1.055 | U14: 1.926079182 | W14: 8114.829253 | X14: 4679.301544 | Y14: 3435.527709 | AA14: 12019.51132 | AB14: 8433.551366 | AC14: 3585.959951 | AE14: 3535.816372 | AG14: =IF($B14<121,VLOOKUP($B14,Lookups!A:H,8)*(1-VLOOKUP($B14,Lookups!$U$3:$W$103,2))^(B14-$B$3),"") -> 0.1688613403 | AH14: =IF($B14<121,VLOOKUP($B14,Lookups!A:I,9)*(1-VLOOKUP($B14,Lookups!$U$3:$W$103,3))^(B14-$B$3),"") -> 0.1228757293 | AI14: 0.1458685348 | AJ14: 0.3941185914 | AK14: 0.6849457137 | AL14: 0.919905 | AO14: 878.0429415
A15: 2032 | B15: 94 | D15: =VLOOKUP(B15,Lookups!A:B,2) -> 4521.32908 | E15: =VLOOKUP(B15,Lookups!A:C,3) -> 2359.564522 | G15: =VLOOKUP(B15,Lookups!A:D,4) -> 6658.82732 | H15: =VLOOKUP(B15,Lookups!A:E,5) -> 4378.610934 | J15: =VLOOKUP(A15,Trends!$A$3:$Q$94,IF(ExFlg=0,2,10))+Sens -> 1.054 | K15: 1.872530986 | L15: =VLOOKUP(A15,Trends!$A$3:$Q$94,IF(ExFlg=0,4,12))+Sens -> 1.053 | M15: 1.889912248 | N15: =VLOOKUP(A15,Trends!$A$3:$Z$94,IF(ExFlg=0,19,23))+Sens -> 1.054 | O15: 2.090209351 | P15: =VLOOKUP(A15,Trends!$A$3:$Q$94,IF(ExFlg=0,6,14))+Sens -> 1.054 | Q15: 1.877872594 | R15: =VLOOKUP(A15,Trends!$A$3:$Q$94,IF(ExFlg=0,8,16))+Sens -> 1.054 | S15: 1.902521918 | T15: =VLOOKUP(A15,Trends!$A$3:$Z$94,IF(ExFlg=0,21,25))+Sens -> 1.055 | U15: 2.032013537 | W15: 8544.915203 | X15: 4931.983827 | Y15: 3612.931376 | AA15: 12668.56493 | AB15: 8897.396691 | AC15: 3771.168237 | AE15: 3718.423144 | AG15: =IF($B15<121,VLOOKUP($B15,Lookups!A:H,8)*(1-VLOOKUP($B15,Lookups!$U$3:$W$103,2))^(B15-$B$3),"") -> 0.1866228461 | AH15: =IF($B15<121,VLOOKUP($B15,Lookups!A:I,9)*(1-VLOOKUP($B15,Lookups!$U$3:$W$103,3))^(B15-$B$3),"") -> 0.1361226817 | AI15: 0.1613727639 | AJ15: 0.3366290899 | AK15: 0.6617832983 | AL15: 0.913039 | AO15: 756.3374127
A16: 2033 | B16: 95 | D16: =VLOOKUP(B16,Lookups!A:B,2) -> 4521.32908 | E16: =VLOOKUP(B16,Lookups!A:C,3) -> 2359.564522 | G16: =VLOOKUP(B16,Lookups!A:D,4) -> 6658.82732 | H16: =VLOOKUP(B16,Lookups!A:E,5) -> 4378.610934 | J16: =VLOOKUP(A16,Trends!$A$3:$Q$94,IF(ExFlg=0,2,10))+Sens -> 1.054 | K16: 1.973647659 | L16: =VLOOKUP(A16,Trends!$A$3:$Q$94,IF(ExFlg=0,4,12))+Sens -> 1.053 | M16: 1.990077597 | N16: =VLOOKUP(A16,Trends!$A$3:$Z$94,IF(ExFlg=0,19,23))+Sens -> 1.054 | O16: 2.203080656 | P16: =VLOOKUP(A16,Trends!$A$3:$Q$94,IF(ExFlg=0,6,14))+Sens -> 1.054 | Q16: 1.979277714 | R16: =VLOOKUP(A16,Trends!$A$3:$Q$94,IF(ExFlg=0,8,16))+Sens -> 1.054 | S16: 2.005258102 | T16: =VLOOKUP(A16,Trends!$A$3:$Z$94,IF(ExFlg=0,21,25))+Sens -> 1.055 | U16: 2.143774282 | W16: 8997.795709 | X16: 5198.310954 | Y16: 3799.484755 | AA16: 13352.66743 | AB16: 9386.753509 | AC16: 3965.913925 | AE16: 3910.43809 | AG16: =IF($B16<121,VLOOKUP($B16,Lookups!A:H,8)*(1-VLOOKUP($B16,Lookups!$U$3:$W$103,2))^(B16-$B$3),"") -> 0.2055385778 | AH16: =IF($B16<121,VLOOKUP($B16,Lookups!A:I,9)*(1-VLOOKUP($B16,Lookups!$U$3:$W$103,3))^(B16-$B$3),"") -> 0.1498733263 | AI16: 0.177705952 | AJ16: 0.2823063233 | AK16: 0.6394041529 | AL16: 0.905807 | AO16: 639.3772004
A17: 2034 | B17: 96 | D17: =VLOOKUP(B17,Lookups!A:B,2) -> 4521.32908 | E17: =VLOOKUP(B17,Lookups!A:C,3) -> 2359.564522 | G17: =VLOOKUP(B17,Lookups!A:D,4) -> 6658.82732 | H17: =VLOOKUP(B17,Lookups!A:E,5) -> 4378.610934 | J17: =VLOOKUP(A17,Trends!$A$3:$Q$94,IF(ExFlg=0,2,10))+Sens -> 1.054 | K17: 2.080224633 | L17: =VLOOKUP(A17,Trends!$A$3:$Q$94,IF(ExFlg=0,4,12))+Sens -> 1.053 | M17: 2.095551709 | N17: =VLOOKUP(A17,Trends!$A$3:$Z$94,IF(ExFlg=0,19,23))+Sens -> 1.054 | O17: 2.322047011 | P17: =VLOOKUP(A17,Trends!$A$3:$Q$94,IF(ExFlg=0,6,14))+Sens -> 1.055 | Q17: 2.08615871 | R17: =VLOOKUP(A17,Trends!$A$3:$Q$94,IF(ExFlg=0,8,16))+Sens -> 1.054 | S17: 2.11354204 | T17: =VLOOKUP(A17,Trends!$A$3:$Z$94,IF(ExFlg=0,21,25))+Sens -> 1.055 | U17: 2.261681867 | W17: 9474.678881 | X17: 5479.019745 | Y17: 3995.659136 | AA17: 14073.71148 | AB17: 9903.024952 | AC17: 4170.686524 | AE17: =(1-PctUMP)*Y17+PctUMP*AC17 -> 4112.344645 | AG17: =IF($B17<121,VLOOKUP($B17,Lookups!A:H,8)*(1-VLOOKUP($B17,Lookups!$U$3:$W$103,2))^(B17-$B$3),"") -> 0.2255763648 | AH17: =IF($B17<121,VLOOKUP($B17,Lookups!A:I,9)*(1-VLOOKUP($B17,Lookups!$U$3:$W$103,3))^(B17-$B$3),"") -> 0.1640307028 | AI17: 0.1948035338 | AJ17: 0.2321388093 | AK17: 0.6177817903 | AL17: 0.898235 | AN17: =IF(B17<65,AE17*AJ17*AK17*AL17,"") ->  | AO17: 529.739471
A18: 2035 | B18: 97 | D18: =VLOOKUP(B18,Lookups!A:B,2) -> 4521.32908 | E18: =VLOOKUP(B18,Lookups!A:C,3) -> 2359.564522 | G18: =VLOOKUP(B18,Lookups!A:D,4) -> 6658.82732 | H18: =VLOOKUP(B18,Lookups!A:E,5) -> 4378.610934 | J18: =VLOOKUP(A18,Trends!$A$3:$Q$94,IF(ExFlg=0,2,10))+Sens -> 1.054 | K18: 2.192556763 | L18: =VLOOKUP(A18,Trends!$A$3:$Q$94,IF(ExFlg=0,4,12))+Sens -> 1.054 | M18: 2.20661595 | N18: =VLOOKUP(A18,Trends!$A$3:$Z$94,IF(ExFlg=0,19,23))+Sens -> 1.055 | O18: 2.44743755 | P18: =VLOOKUP(A18,Trends!$A$3:$Q$94,IF(ExFlg=0,6,14))+Sens -> 1.055 | Q18: 2.200897439 | R18: =VLOOKUP(A18,Trends!$A$3:$Q$94,IF(ExFlg=0,8,16))+Sens -> 1.054 | S18: 2.22767331 | T18: =VLOOKUP(A18,Trends!$A$3:$Z$94,IF(ExFlg=0,21,25))+Sens -> 1.055 | U18: 2.38607437 | W18: 9976.836862 | X18: =IF(B18<65,E18*K18,E18*O18) -> 5774.886811 | Y18: 4201.950051 | AA18: 14833.6919 | AB18: 10447.69132 | AC18: 4386.000571 | AE18: =(1-PctUMP)*Y18+PctUMP*AC18 -> 4324.651011 | AG18: =IF($B18<121,VLOOKUP($B18,Lookups!A:H,8)*(1-VLOOKUP($B18,Lookups!$U$3:$W$103,2))^(B18-$B$3),"") -> 0.2467456491 | AH18: =IF($B18<121,VLOOKUP($B18,Lookups!A:I,9)*(1-VLOOKUP($B18,Lookups!$U$3:$W$103,3))^(B18-$B$3),"") -> 0.178497886 | AI18: 0.2126217676 | AJ18: 0.1869173489 | AK18: 0.5968906186 | AL18: 0.890345 | AO18: 429.5895978
A19: 2036 | B19: 98 | D19: =VLOOKUP(B19,Lookups!A:B,2) -> 4521.32908 | E19: =VLOOKUP(B19,Lookups!A:C,3) -> 2359.564522 | G19: =VLOOKUP(B19,Lookups!A:D,4) -> 6658.82732 | H19: =VLOOKUP(B19,Lookups!A:E,5) -> 4378.610934 | J19: =VLOOKUP(A19,Trends!$A$3:$Q$94,IF(ExFlg=0,2,10))+Sens -> 1.054 | K19: 2.310954828 | L19: =VLOOKUP(A19,Trends!$A$3:$Q$94,IF(ExFlg=0,4,12))+Sens -> 1.054 | M19: 2.325773211 | N19: =VLOOKUP(A19,Trends!$A$3:$Z$94,IF(ExFlg=0,19,23))+Sens -> 1.055 | O19: 2.582046615 | P19: =VLOOKUP(A19,Trends!$A$3:$Q$94,IF(ExFlg=0,6,14))+Sens -> 1.055 | Q19: 2.321946798 | R19: =VLOOKUP(A19,Trends!$A$3:$Q$94,IF(ExFlg=0,8,16))+Sens -> 1.054 | S19: 2.347967668 | T19: =VLOOKUP(A19,Trends!$A$3:$Z$94,IF(ExFlg=0,21,25))+Sens -> 1.055 | U19: 2.51730846 | W19: 10515.58605 | X19: 6092.505586 | Y19: 4423.080467 | AA19: 15634.71126 | AB19: 11022.31435 | AC19: 4612.396911 | AE19: 4549.292061 | AG19: =IF($B19<121,VLOOKUP($B19,Lookups!A:H,8)*(1-VLOOKUP($B19,Lookups!$U$3:$W$103,2))^(B19-$B$3),"") -> 0.2595629601 | AH19: =IF($B19<121,VLOOKUP($B19,Lookups!A:I,9)*(1-VLOOKUP($B19,Lookups!$U$3:$W$103,3))^(B19-$B$3),"") -> 0.1863202828 | AI19: 0.2229416215 | AJ19: 0.1471746518 | AK19: 0.5767059117 | AL19: 0.885775 | AO19: 342.022485
A20: 2037 | B20: 99 | D20: =VLOOKUP(B20,Lookups!A:B,2) -> 4521.32908 | E20: =VLOOKUP(B20,Lookups!A:C,3) -> 2359.564522 | G20: =VLOOKUP(B20,Lookups!A:D,4) -> 6658.82732 | H20: =VLOOKUP(B20,Lookups!A:E,5) -> 4378.610934 | J20: =VLOOKUP(A20,Trends!$A$3:$Q$94,IF(ExFlg=0,2,10))+Sens -> 1.055 | K20: 2.435746389 | L20: =VLOOKUP(A20,Trends!$A$3:$Q$94,IF(ExFlg=0,4,12))+Sens -> 1.054 | M20: 2.451364965 | N20: =VLOOKUP(A20,Trends!$A$3:$Z$94,IF(ExFlg=0,19,23))+Sens -> 1.055 | O20: 2.724059179 | P20: =VLOOKUP(A20,Trends!$A$3:$Q$94,IF(ExFlg=0,6,14))+Sens -> 1.055 | Q20: 2.449653872 | R20: =VLOOKUP(A20,Trends!$A$3:$Q$94,IF(ExFlg=0,8,16))+Sens -> 1.054 | S20: 2.474757922 | T20: =VLOOKUP(A20,Trends!$A$3:$Z$94,IF(ExFlg=0,21,25))+Sens -> 1.055 | U20: 2.655760425 | W20: 11083.4277 | X20: 6427.593393 | Y20: 4655.834307 | AA20: 16478.98567 | AB20: 11628.54164 | AC20: 4850.44403 | AE20: 4785.574771 | AG20: =IF($B20<121,VLOOKUP($B20,Lookups!A:H,8)*(1-VLOOKUP($B20,Lookups!$U$3:$W$103,2))^(B20-$B$3),"") -> 0.2821232438 | AH20: =IF($B20<121,VLOOKUP($B20,Lookups!A:I,9)*(1-VLOOKUP($B20,Lookups!$U$3:$W$103,3))^(B20-$B$3),"") -> 0.200385076 | AI20: 0.2412541599 | AJ20: 0.1143632963 | AK20: 0.5572037794 | AL20: 0.877665 | AO20: 267.6477544
A21: 2038 | B21: 100 | D21: =VLOOKUP(B21,Lookups!A:B,2) -> 4521.32908 | E21: =VLOOKUP(B21,Lookups!A:C,3) -> 2359.564522 | G21: =VLOOKUP(B21,Lookups!A:D,4) -> 6658.82732 | H21: =VLOOKUP(B21,Lookups!A:E,5) -> 4378.610934 | J21: =VLOOKUP(A21,Trends!$A$3:$Q$94,IF(ExFlg=0,2,10))+Sens -> 1.055 | K21: 2.56971244 | L21: =VLOOKUP(A21,Trends!$A$3:$Q$94,IF(ExFlg=0,4,12))+Sens -> 1.054 | M21: 2.583738673 | N21: =VLOOKUP(A21,Trends!$A$3:$Z$94,IF(ExFlg=0,19,23))+Sens -> 1.055 | O21: 2.873882434 | P21: =VLOOKUP(A21,Trends!$A$3:$Q$94,IF(ExFlg=0,6,14))+Sens -> 1.055 | Q21: 2.584384835 | R21: =VLOOKUP(A21,Trends!$A$3:$Q$94,IF(ExFlg=0,8,16))+Sens -> 1.055 | S21: 2.60839485 | T21: =VLOOKUP(A21,Trends!$A$3:$Z$94,IF(ExFlg=0,21,25))+Sens -> 1.056 | U21: 2.801827249 | W21: 11681.9328 | X21: 6781.11103 | Y21: 4900.821766 | AA21: 17368.85089 | AB21: 12268.11143 | AC21: 5100.739466 | AE21: 5034.100899 | AG21: =IF($B21<121,VLOOKUP($B21,Lookups!A:H,8)*(1-VLOOKUP($B21,Lookups!$U$3:$W$103,2))^(B21-$B$3),"") -> 0.2945790402 | AH21: =IF($B21<121,VLOOKUP($B21,Lookups!A:I,9)*(1-VLOOKUP($B21,Lookups!$U$3:$W$103,3))^(B21-$B$3),"") -> 0.2064218203 | AI21: 0.2505004303 | AJ21: 0.08677267533 | AK21: 0.5383611396 | AL21: 0.873571 | AO21: 205.4361254
A22: 2039 | B22: 101 | D22: =VLOOKUP(B22,Lookups!A:B,2) -> 4521.32908 | E22: =VLOOKUP(B22,Lookups!A:C,3) -> 2359.564522 | G22: =VLOOKUP(B22,Lookups!A:D,4) -> 6658.82732 | H22: =VLOOKUP(B22,Lookups!A:E,5) -> 4378.610934 | J22: =VLOOKUP(A22,Trends!$A$3:$Q$94,IF(ExFlg=0,2,10))+Sens -> 1.055 | K22: 2.711046624 | L22: =VLOOKUP(A22,Trends!$A$3:$Q$94,IF(ExFlg=0,4,12))+Sens -> 1.054 | M22: 2.723260561 | N22: =VLOOKUP(A22,Trends!$A$3:$Z$94,IF(ExFlg=0,19,23))+Sens -> 1.055 | O22: 3.031945968 | P22: =VLOOKUP(A22,Trends!$A$3:$Q$94,IF(ExFlg=0,6,14))+Sens -> 1.055 | Q22: 2.726526001 | R22: =VLOOKUP(A22,Trends!$A$3:$Q$94,IF(ExFlg=0,8,16))+Sens -> 1.055 | S22: 2.751856567 | T22: =VLOOKUP(A22,Trends!$A$3:$Z$94,IF(ExFlg=0,21,25))+Sens -> 1.056 | U22: 2.958729575 | W22: 12312.75717 | X22: 7154.072136 | Y22: 5158.68503 | AA22: 18324.13769 | AB22: 12955.12567 | AC22: 5369.012025 | AE22: 5298.903728 | AG22: =IF($B22<121,VLOOKUP($B22,Lookups!A:H,8)*(1-VLOOKUP($B22,Lookups!$U$3:$W$103,2))^(B22-$B$3),"") -> 0.3186775165 | AH22: =IF($B22<121,VLOOKUP($B22,Lookups!A:I,9)*(1-VLOOKUP($B22,Lookups!$U$3:$W$103,3))^(B22-$B$3),"") -> 0.2196313926 | AI22: 0.2691544546 | AJ22: 0.06503608283 | AK22: 0.5201556904 | AL22: 0.86531 | AO22: 155.1120299
A23: 2040 | B23: 102 | D23: =VLOOKUP(B23,Lookups!A:B,2) -> 4521.32908 | E23: =VLOOKUP(B23,Lookups!A:C,3) -> 2359.564522 | G23: =VLOOKUP(B23,Lookups!A:D,4) -> 6658.82732 | H23: =VLOOKUP(B23,Lookups!A:E,5) -> 4378.610934 | J23: =VLOOKUP(A23,Trends!$A$3:$Q$94,IF(ExFlg=0,2,10))+Sens -> 1.055 | K23: 2.860154189 | L23: =VLOOKUP(A23,Trends!$A$3:$Q$94,IF(ExFlg=0,4,12))+Sens -> 1.054 | M23: 2.870316631 | N23: =VLOOKUP(A23,Trends!$A$3:$Z$94,IF(ExFlg=0,19,23))+Sens -> 1.055 | O23: 3.198702996 | P23: =VLOOKUP(A23,Trends!$A$3:$Q$94,IF(ExFlg=0,6,14))+Sens -> 1.055 | Q23: 2.876484931 | R23: =VLOOKUP(A23,Trends!$A$3:$Q$94,IF(ExFlg=0,8,16))+Sens -> 1.055 | S23: 2.903208678 | T23: =VLOOKUP(A23,Trends!$A$3:$Z$94,IF(ExFlg=0,21,25))+Sens -> 1.056 | U23: 3.124418431 | W23: 12977.64605 | X23: 7547.546104 | Y23: 5430.099949 | AA23: 19331.96526 | AB23: 13680.6127 | AC23: 5651.35256 | AE23: 5577.602428 | AG23: =IF($B23<121,VLOOKUP($B23,Lookups!A:H,8)*(1-VLOOKUP($B23,Lookups!$U$3:$W$103,2))^(B23-$B$3),"") -> 0.3310292822 | AH23: =IF($B23<121,VLOOKUP($B23,Lookups!A:I,9)*(1-VLOOKUP($B23,Lookups!$U$3:$W$103,3))^(B23-$B$3),"") -> 0.2259919451 | AI23: 0.2785106137 | AJ23: 0.04753133142 | AK23: 0.5025658844 | AL23: 0.861167 | AO23: 114.7381697
A24: 2041 | B24: 103 | D24: =VLOOKUP(B24,Lookups!A:B,2) -> 4521.32908 | E24: =VLOOKUP(B24,Lookups!A:C,3) -> 2359.564522 | G24: =VLOOKUP(B24,Lookups!A:D,4) -> 6658.82732 | H24: =VLOOKUP(B24,Lookups!A:E,5) -> 4378.610934 | J24: =VLOOKUP(A24,Trends!$A$3:$Q$94,IF(ExFlg=0,2,10))+Sens -> 1.055 | K24: 3.017462669 | L24: =VLOOKUP(A24,Trends!$A$3:$Q$94,IF(ExFlg=0,4,12))+Sens -> 1.054 | M24: 3.025313729 | N24: =VLOOKUP(A24,Trends!$A$3:$Z$94,IF(ExFlg=0,19,23))+Sens -> 1.055 | O24: 3.374631661 | P24: =VLOOKUP(A24,Trends!$A$3:$Q$94,IF(ExFlg=0,6,14))+Sens -> 1.055 | Q24: 3.034691602 | R24: =VLOOKUP(A24,Trends!$A$3:$Q$94,IF(ExFlg=0,8,16))+Sens -> 1.055 | S24: 3.062885156 | T24: =VLOOKUP(A24,Trends!$A$3:$Z$94,IF(ExFlg=0,21,25))+Sens -> 1.056 | U24: 3.299385863 | W24: 13678.43894 | X24: 7962.66114 | Y24: 5715.777801 | AA24: 20395.22335 | AB24: 14446.72701 | AC24: 5948.496339 | AE24: 5870.924268 | AG24: =IF($B24<121,VLOOKUP($B24,Lookups!A:H,8)*(1-VLOOKUP($B24,Lookups!$U$3:$W$103,2))^(B24-$B$3),"") -> 0.3567465416 | AH24: =IF($B24<121,VLOOKUP($B24,Lookups!A:I,9)*(1-VLOOKUP($B24,Lookups!$U$3:$W$103,3))^(B24-$B$3),"") -> 0.2442698104 | AI24: 0.300508176 | AJ24: 0.03429335114 | AK24: 0.4855709028 | AL24: 0.851426 | AO24: 83.23691336
A25: 2042 | B25: 104 | D25: =VLOOKUP(B25,Lookups!A:B,2) -> 4521.32908 | E25: =VLOOKUP(B25,Lookups!A:C,3) -> 2359.564522 | G25: =VLOOKUP(B25,Lookups!A:D,4) -> 6658.82732 | H25: =VLOOKUP(B25,Lookups!A:E,5) -> 4378.610934 | J25: =VLOOKUP(A25,Trends!$A$3:$Q$94,IF(ExFlg=0,2,10))+Sens -> 1.055 | K25: 3.183423116 | L25: =VLOOKUP(A25,Trends!$A$3:$Q$94,IF(ExFlg=0,4,12))+Sens -> 1.054 | M25: 3.188680671 | N25: =VLOOKUP(A25,Trends!$A$3:$Z$94,IF(ExFlg=0,19,23))+Sens -> 1.055 | O25: 3.560236402 | P25: =VLOOKUP(A25,Trends!$A$3:$Q$94,IF(ExFlg=0,6,14))+Sens -> 1.055 | Q25: 3.201599641 | R25: =VLOOKUP(A25,Trends!$A$3:$Q$94,IF(ExFlg=0,8,16))+Sens -> 1.055 | S25: 3.231343839 | T25: =VLOOKUP(A25,Trends!$A$3:$Z$94,IF(ExFlg=0,21,25))+Sens -> 1.056 | U25: 3.484151471 | W25: 14417.07464 | X25: 8400.607502 | Y25: 6016.467141 | AA25: 21516.96064 | AB25: 15255.74373 | AC25: 6261.21691 | AE25: 6179.634469 | AG25: =IF($B25<121,VLOOKUP($B25,Lookups!A:H,8)*(1-VLOOKUP($B25,Lookups!$U$3:$W$103,2))^(B25-$B$3),"") -> 0.3672781788 | AH25: =IF($B25<121,VLOOKUP($B25,Lookups!A:I,9)*(1-VLOOKUP($B25,Lookups!$U$3:$W$103,3))^(B25-$B$3),"") -> 0.2550964876 | AI25: 0.3111873332 | AJ25: 0.02398791874 | AK25: 0.4691506308 | AL25: 0.846696 | AO25: 58.88371047
A26: 2043 | B26: 105 | D26: =VLOOKUP(B26,Lookups!A:B,2) -> 4521.32908 | E26: =VLOOKUP(B26,Lookups!A:C,3) -> 2359.564522 | G26: =VLOOKUP(B26,Lookups!A:D,4) -> 6658.82732 | H26: =VLOOKUP(B26,Lookups!A:E,5) -> 4378.610934 | J26: =VLOOKUP(A26,Trends!$A$3:$Q$94,IF(ExFlg=0,2,10))+Sens -> 1.054 | K26: 3.358511387 | L26: =VLOOKUP(A26,Trends!$A$3:$Q$94,IF(ExFlg=0,4,12))+Sens -> 1.053 | M26: 3.360869427 | N26: =VLOOKUP(A26,Trends!$A$3:$Z$94,IF(ExFlg=0,19,23))+Sens -> 1.054 | O26: 3.756049404 | P26: =VLOOKUP(A26,Trends!$A$3:$Q$94,IF(ExFlg=0,6,14))+Sens -> 1.054 | Q26: 3.377687621 | R26: =VLOOKUP(A26,Trends!$A$3:$Q$94,IF(ExFlg=0,8,16))+Sens -> 1.054 | S26: 3.40906775 | T26: =VLOOKUP(A26,Trends!$A$3:$Z$94,IF(ExFlg=0,21,25))+Sens -> 1.055 | U26: 3.679263954 | W26: 15195.59667 | X26: 8862.640915 | Y26: 6332.955759 | AA26: 22700.39347 | AB26: 16110.06538 | AC26: 6590.328096 | AE26: 6504.538175 | AG26: =IF($B26<121,VLOOKUP($B26,Lookups!A:H,8)*(1-VLOOKUP($B26,Lookups!$U$3:$W$103,2))^(B26-$B$3),"") -> 0.392003 | AH26: =IF($B26<121,VLOOKUP($B26,Lookups!A:I,9)*(1-VLOOKUP($B26,Lookups!$U$3:$W$103,3))^(B26-$B$3),"") -> 0.279055 | AI26: 0.335529 | AJ26: 0.01652318228 | AK26: 0.4532856336 | AL26: 0.835917 | AO26: 40.72351655
A27: 2044 | B27: 106 | D27: =VLOOKUP(B27,Lookups!A:B,2) -> 4521.32908 | E27: =VLOOKUP(B27,Lookups!A:C,3) -> 2359.564522 | G27: =VLOOKUP(B27,Lookups!A:D,4) -> 6658.82732 | H27: =VLOOKUP(B27,Lookups!A:E,5) -> 4378.610934 | J27: =VLOOKUP(A27,Trends!$A$3:$Q$94,IF(ExFlg=0,2,10))+Sens -> 1.053 | K27: 3.539871002 | L27: =VLOOKUP(A27,Trends!$A$3:$Q$94,IF(ExFlg=0,4,12))+Sens -> 1.053 | M27: 3.538995507 | N27: =VLOOKUP(A27,Trends!$A$3:$Z$94,IF(ExFlg=0,19,23))+Sens -> 1.054 | O27: 3.958876072 | P27: =VLOOKUP(A27,Trends!$A$3:$Q$94,IF(ExFlg=0,6,14))+Sens -> 1.054 | Q27: 3.560082752 | R27: =VLOOKUP(A27,Trends!$A$3:$Q$94,IF(ExFlg=0,8,16))+Sens -> 1.053 | S27: 3.593157409 | T27: =VLOOKUP(A27,Trends!$A$3:$Z$94,IF(ExFlg=0,21,25))+Sens -> 1.054 | U27: 3.881623471 | W27: 16000.9633 | X27: 9341.223524 | Y27: 6659.739773 | AA27: 23926.21472 | AB27: 16996.11897 | AC27: 6930.095748 | AE27: 6839.977991 | AG27: =IF($B27<121,VLOOKUP($B27,Lookups!A:H,8)*(1-VLOOKUP($B27,Lookups!$U$3:$W$103,2))^(B27-$B$3),"") -> 0.397886 | AH27: =IF($B27<121,VLOOKUP($B27,Lookups!A:I,9)*(1-VLOOKUP($B27,Lookups!$U$3:$W$103,3))^(B27-$B$3),"") -> 0.293116 | AI27: 0.345501 | AJ27: 0.01097917545 | AK27: 0.4379571339 | AL27: 0.831501 | AO27: 27.34757427
A28: 2045 | B28: 107 | D28: =VLOOKUP(B28,Lookups!A:B,2) -> 4521.32908 | E28: =VLOOKUP(B28,Lookups!A:C,3) -> 2359.564522 | G28: =VLOOKUP(B28,Lookups!A:D,4) -> 6658.82732 | H28: =VLOOKUP(B28,Lookups!A:E,5) -> 4378.610934 | J28: =VLOOKUP(A28,Trends!$A$3:$Q$94,IF(ExFlg=0,2,10))+Sens -> 1.053 | K28: 3.727484165 | L28: =VLOOKUP(A28,Trends!$A$3:$Q$94,IF(ExFlg=0,4,12))+Sens -> 1.052 | M28: 3.726562268 | N28: =VLOOKUP(A28,Trends!$A$3:$Z$94,IF(ExFlg=0,19,23))+Sens -> 1.053 | O28: 4.17265538 | P28: =VLOOKUP(A28,Trends!$A$3:$Q$94,IF(ExFlg=0,6,14))+Sens -> 1.053 | Q28: 3.752327221 | R28: =VLOOKUP(A28,Trends!$A$3:$Q$94,IF(ExFlg=0,8,16))+Sens -> 1.053 | S28: 3.783594751 | T28: =VLOOKUP(A28,Trends!$A$3:$Z$94,IF(ExFlg=0,21,25))+Sens -> 1.054 | U28: 4.091231139 | W28: 16849.01435 | X28: 9845.649595 | Y28: 7003.364758 | AA28: 25194.3041 | AB28: 17913.9094 | AC28: 7280.394704 | AE28: 7188.052312 | AG28: =IF($B28<121,VLOOKUP($B28,Lookups!A:H,8)*(1-VLOOKUP($B28,Lookups!$U$3:$W$103,2))^(B28-$B$3),"") -> 0.4 | AH28: =IF($B28<121,VLOOKUP($B28,Lookups!A:I,9)*(1-VLOOKUP($B28,Lookups!$U$3:$W$103,3))^(B28-$B$3),"") -> 0.307811 | AI28: 0.3539055 | AJ28: 0.007185859354 | AK28: 0.4231469893 | AL28: 0.827779 | AO28: 18.09237586
A29: 2046 | B29: 108 | D29: =VLOOKUP(B29,Lookups!A:B,2) -> 4521.32908 | E29: =VLOOKUP(B29,Lookups!A:C,3) -> 2359.564522 | G29: =VLOOKUP(B29,Lookups!A:D,4) -> 6658.82732 | H29: =VLOOKUP(B29,Lookups!A:E,5) -> 4378.610934 | J29: =VLOOKUP(A29,Trends!$A$3:$Q$94,IF(ExFlg=0,2,10))+Sens -> 1.053 | K29: 3.925040826 | L29: =VLOOKUP(A29,Trends!$A$3:$Q$94,IF(ExFlg=0,4,12))+Sens -> 1.052 | M29: 3.920343506 | N29: =VLOOKUP(A29,Trends!$A$3:$Z$94,IF(ExFlg=0,19,23))+Sens -> 1.053 | O29: 4.393806115 | P29: =VLOOKUP(A29,Trends!$A$3:$Q$94,IF(ExFlg=0,6,14))+Sens -> 1.053 | Q29: 3.951200564 | R29: =VLOOKUP(A29,Trends!$A$3:$Q$94,IF(ExFlg=0,8,16))+Sens -> 1.053 | S29: 3.984125273 | T29: =VLOOKUP(A29,Trends!$A$3:$Z$94,IF(ExFlg=0,21,25))+Sens -> 1.054 | U29: 4.31215762 | W29: 17725.1631 | X29: 10367.46902 | Y29: 7357.694075 | AA29: 26529.60222 | AB29: 18881.2605 | AC29: 7648.341714 | AE29: 7551.460137 | AG29: =IF($B29<121,VLOOKUP($B29,Lookups!A:H,8)*(1-VLOOKUP($B29,Lookups!$U$3:$W$103,2))^(B29-$B$3),"") -> 0.4 | AH29: =IF($B29<121,VLOOKUP($B29,Lookups!A:I,9)*(1-VLOOKUP($B29,Lookups!$U$3:$W$103,3))^(B29-$B$3),"") -> 0.322725 | AI29: 0.3613625 | AJ29: 0.004642744206 | AK29: 0.4088376708 | AL29: 0.824477 | AO29: 11.81775933
A30: 2047 | B30: 109 | D30: =VLOOKUP(B30,Lookups!A:B,2) -> 4521.32908 | E30: =VLOOKUP(B30,Lookups!A:C,3) -> 2359.564522 | G30: =VLOOKUP(B30,Lookups!A:D,4) -> 6658.82732 | H30: =VLOOKUP(B30,Lookups!A:E,5) -> 4378.610934 | J30: =VLOOKUP(A30,Trends!$A$3:$Q$94,IF(ExFlg=0,2,10))+Sens -> 1.053 | K30: 4.13306799 | L30: =VLOOKUP(A30,Trends!$A$3:$Q$94,IF(ExFlg=0,4,12))+Sens -> 1.052 | M30: 4.124201369 | N30: =VLOOKUP(A30,Trends!$A$3:$Z$94,IF(ExFlg=0,19,23))+Sens -> 1.053 | O30: 4.626677839 | P30: =VLOOKUP(A30,Trends!$A$3:$Q$94,IF(ExFlg=0,6,14))+Sens -> 1.053 | Q30: 4.160614194 | R30: =VLOOKUP(A30,Trends!$A$3:$Q$94,IF(ExFlg=0,8,16))+Sens -> 1.052 | S30: 4.195283913 | T30: =VLOOKUP(A30,Trends!$A$3:$Z$94,IF(ExFlg=0,21,25))+Sens -> 1.053 | U30: 4.545014132 | W30: 18646.87158 | X30: 10916.94488 | Y30: 7729.926698 | AA30: 27935.67114 | AB30: 19900.84857 | AC30: 8034.822564 | AE30: 7933.191625 | AG30: =IF($B30<121,VLOOKUP($B30,Lookups!A:H,8)*(1-VLOOKUP($B30,Lookups!$U$3:$W$103,2))^(B30-$B$3),"") -> 0.4 | AH30: =IF($B30<121,VLOOKUP($B30,Lookups!A:I,9)*(1-VLOOKUP($B30,Lookups!$U$3:$W$103,3))^(B30-$B$3),"") -> 0.337441 | AI30: 0.3687205 | AJ30: 0.002965030553 | AK30: 0.3950122423 | AL30: 0.821219 | AO30: 7.630388702
A31: 2048 | B31: 110 | D31: =VLOOKUP(B31,Lookups!A:B,2) -> 4521.32908 | E31: =VLOOKUP(B31,Lookups!A:C,3) -> 2359.564522 | G31: =VLOOKUP(B31,Lookups!A:D,4) -> 6658.82732 | H31: =VLOOKUP(B31,Lookups!A:E,5) -> 4378.610934 | J31: =VLOOKUP(A31,Trends!$A$3:$Q$94,IF(ExFlg=0,2,10))+Sens -> 1.052 | K31: 4.352120593 | L31: =VLOOKUP(A31,Trends!$A$3:$Q$94,IF(ExFlg=0,4,12))+Sens -> 1.052 | M31: 4.33865984 | N31: =VLOOKUP(A31,Trends!$A$3:$Z$94,IF(ExFlg=0,19,23))+Sens -> 1.053 | O31: 4.871891764 | P31: =VLOOKUP(A31,Trends!$A$3:$Q$94,IF(ExFlg=0,6,14))+Sens -> 1.053 | Q31: 4.381126746 | R31: =VLOOKUP(A31,Trends!$A$3:$Q$94,IF(ExFlg=0,8,16))+Sens -> 1.052 | S31: 4.413438676 | T31: =VLOOKUP(A31,Trends!$A$3:$Z$94,IF(ExFlg=0,21,25))+Sens -> 1.053 | U31: 4.785899881 | W31: 19616.5089 | X31: 11495.54296 | Y31: 8120.965942 | AA31: 29388.32603 | AB31: 20955.59355 | AC31: 8432.732489 | AE31: 8328.811346 | AG31: =IF($B31<121,VLOOKUP($B31,Lookups!A:H,8)*(1-VLOOKUP($B31,Lookups!$U$3:$W$103,2))^(B31-$B$3),"") -> 0.4 | AH31: =IF($B31<121,VLOOKUP($B31,Lookups!A:I,9)*(1-VLOOKUP($B31,Lookups!$U$3:$W$103,3))^(B31-$B$3),"") -> 0.351544 | AI31: 0.375772 | AJ31: 0.001871763005 | AK31: 0.3816543404 | AL31: 0.818096 | AO31: 4.86752689
A32: 2049 | B32: 111 | D32: =VLOOKUP(B32,Lookups!A:B,2) -> 4521.32908 | E32: =VLOOKUP(B32,Lookups!A:C,3) -> 2359.564522 | G32: =VLOOKUP(B32,Lookups!A:D,4) -> 6658.82732 | H32: =VLOOKUP(B32,Lookups!A:E,5) -> 4378.610934 | J32: =VLOOKUP(A32,Trends!$A$3:$Q$94,IF(ExFlg=0,2,10))+Sens -> 1.052 | K32: 4.578430864 | L32: =VLOOKUP(A32,Trends!$A$3:$Q$94,IF(ExFlg=0,4,12))+Sens -> 1.052 | M32: 4.564270152 | N32: =VLOOKUP(A32,Trends!$A$3:$Z$94,IF(ExFlg=0,19,23))+Sens -> 1.053 | O32: 5.130102028 | P32: =VLOOKUP(A32,Trends!$A$3:$Q$94,IF(ExFlg=0,6,14))+Sens -> 1.052 | Q32: 4.613326463 | R32: =VLOOKUP(A32,Trends!$A$3:$Q$94,IF(ExFlg=0,8,16))+Sens -> 1.052 | S32: 4.642937487 | T32: =VLOOKUP(A32,Trends!$A$3:$Z$94,IF(ExFlg=0,21,25))+Sens -> 1.053 | U32: 5.039552574 | W32: 20636.56736 | X32: 12104.80674 | Y32: 8531.760628 | AA32: 30916.51899 | AB32: 22066.24 | AC32: 8850.278985 | AE32: 8744.107261 | AG32: =IF($B32<121,VLOOKUP($B32,Lookups!A:H,8)*(1-VLOOKUP($B32,Lookups!$U$3:$W$103,2))^(B32-$B$3),"") -> 0.4 | AH32: =IF($B32<121,VLOOKUP($B32,Lookups!A:I,9)*(1-VLOOKUP($B32,Lookups!$U$3:$W$103,3))^(B32-$B$3),"") -> 0.364617 | AI32: 0.3823085 | AJ32: 0.001168406877 | AK32: 0.368748155 | AL32: 0.815202 | AO32: 3.071175774
A33: 2050 | B33: 112 | D33: =VLOOKUP(B33,Lookups!A:B,2) -> 4521.32908 | E33: =VLOOKUP(B33,Lookups!A:C,3) -> 2359.564522 | G33: =VLOOKUP(B33,Lookups!A:D,4) -> 6658.82732 | H33: =VLOOKUP(B33,Lookups!A:E,5) -> 4378.610934 | J33: =VLOOKUP(A33,Trends!$A$3:$Q$94,IF(ExFlg=0,2,10))+Sens -> 1.052 | K33: 4.816509269 | L33: =VLOOKUP(A33,Trends!$A$3:$Q$94,IF(ExFlg=0,4,12))+Sens -> 1.052 | M33: 4.8016122 | N33: =VLOOKUP(A33,Trends!$A$3:$Z$94,IF(ExFlg=0,19,23))+Sens -> 1.053 | O33: 5.401997435 | P33: =VLOOKUP(A33,Trends!$A$3:$Q$94,IF(ExFlg=0,6,14))+Sens -> 1.052 | Q33: 4.853219439 | R33: =VLOOKUP(A33,Trends!$A$3:$Q$94,IF(ExFlg=0,8,16))+Sens -> 1.052 | S33: 4.884370237 | T33: =VLOOKUP(A33,Trends!$A$3:$Z$94,IF(ExFlg=0,21,25))+Sens -> 1.053 | U33: 5.306648861 | W33: 21709.66887 | X33: 12746.36149 | Y33: 8963.307374 | AA33: 32524.17798 | AB33: 23235.75072 | AC33: 9288.427252 | AE33: 9180.055043 | AG33: =IF($B33<121,VLOOKUP($B33,Lookups!A:H,8)*(1-VLOOKUP($B33,Lookups!$U$3:$W$103,2))^(B33-$B$3),"") -> 0.4 | AH33: =IF($B33<121,VLOOKUP($B33,Lookups!A:I,9)*(1-VLOOKUP($B33,Lookups!$U$3:$W$103,3))^(B33-$B$3),"") -> 0.376246 | AI33: 0.388123 | AJ33: 0.0007217149965 | AK33: 0.3562784106 | AL33: 0.812627 | AO33: 1.918190646
A34: 2051 | B34: 113 | D34: =VLOOKUP(B34,Lookups!A:B,2) -> 4521.32908 | E34: =VLOOKUP(B34,Lookups!A:C,3) -> 2359.564522 | G34: =VLOOKUP(B34,Lookups!A:D,4) -> 6658.82732 | H34: =VLOOKUP(B34,Lookups!A:E,5) -> 4378.610934 | J34: =VLOOKUP(A34,Trends!$A$3:$Q$94,IF(ExFlg=0,2,10))+Sens -> 1.052 | K34: 5.066967751 | L34: =VLOOKUP(A34,Trends!$A$3:$Q$94,IF(ExFlg=0,4,12))+Sens -> 1.052 | M34: 5.051296034 | N34: =VLOOKUP(A34,Trends!$A$3:$Z$94,IF(ExFlg=0,19,23))+Sens -> 1.053 | O34: 5.688303299 | P34: =VLOOKUP(A34,Trends!$A$3:$Q$94,IF(ExFlg=0,6,14))+Sens -> 1.052 | Q34: 5.10558685 | R34: =VLOOKUP(A34,Trends!$A$3:$Q$94,IF(ExFlg=0,8,16))+Sens -> 1.052 | S34: 5.138357489 | T34: =VLOOKUP(A34,Trends!$A$3:$Z$94,IF(ExFlg=0,21,25))+Sens -> 1.053 | U34: 5.58790125 | W34: 22838.57165 | X34: 13421.91865 | Y34: 9416.652996 | AA34: 34215.43523 | AB34: 24467.24551 | AC34: 9748.189718 | AE34: 9637.678583 | AG34: =IF($B34<121,VLOOKUP($B34,Lookups!A:H,8)*(1-VLOOKUP($B34,Lookups!$U$3:$W$103,2))^(B34-$B$3),"") -> 0.4 | AH34: =IF($B34<121,VLOOKUP($B34,Lookups!A:I,9)*(1-VLOOKUP($B34,Lookups!$U$3:$W$103,3))^(B34-$B$3),"") -> 0.386015 | AI34: 0.3930075 | AJ34: 0.0004416008069 | AK34: 0.3442303484 | AL34: 0.810464 | AO34: 1.187367567
A35: 2052 | B35: 114 | D35: =VLOOKUP(B35,Lookups!A:B,2) -> 4521.32908 | E35: =VLOOKUP(B35,Lookups!A:C,3) -> 2359.564522 | G35: =VLOOKUP(B35,Lookups!A:D,4) -> 6658.82732 | H35: =VLOOKUP(B35,Lookups!A:E,5) -> 4378.610934 | J35: =VLOOKUP(A35,Trends!$A$3:$Q$94,IF(ExFlg=0,2,10))+Sens -> 1.052 | K35: 5.330450074 | L35: =VLOOKUP(A35,Trends!$A$3:$Q$94,IF(ExFlg=0,4,12))+Sens -> 1.051 | M35: 5.313963428 | N35: =VLOOKUP(A35,Trends!$A$3:$Z$94,IF(ExFlg=0,19,23))+Sens -> 1.052 | O35: 5.989783374 | P35: =VLOOKUP(A35,Trends!$A$3:$Q$94,IF(ExFlg=0,6,14))+Sens -> 1.052 | Q35: 5.371077367 | R35: =VLOOKUP(A35,Trends!$A$3:$Q$94,IF(ExFlg=0,8,16))+Sens -> 1.052 | S35: 5.405552078 | T35: =VLOOKUP(A35,Trends!$A$3:$Z$94,IF(ExFlg=0,21,25))+Sens -> 1.053 | U35: 5.884060017 | W35: =IF(B35<65,D35*K35,D35*M35) -> 24026.17737 | X35: 14133.28034 | Y35: =W35-X35 -> 9892.897033 | AA35: =IF(B35<65,G35*Q35,G35*S35) -> 35994.63786 | AB35: 25764.00952 | AC35: =AA35-AB35 -> 10230.62834 | AE35: =(1-PctUMP)*Y35+PctUMP*AC35 -> 10118.05236 | AG35: =IF($B35<121,VLOOKUP($B35,Lookups!A:H,8)*(1-VLOOKUP($B35,Lookups!$U$3:$W$103,2))^(B35-$B$3),"") -> 0.4 | AH35: =IF($B35<121,VLOOKUP($B35,Lookups!A:I,9)*(1-VLOOKUP($B35,Lookups!$U$3:$W$103,3))^(B35-$B$3),"") -> 0.393507 | AI35: =IF(B35<121,(PCTMALE*AG35+(1-PCTMALE)*AH35),"") -> 0.3967535 | AJ35: 0.0002680483778 | AK35: 0.3325897086 | AL35: =IF(AI35="","",ROUND((13/24)+(11/24)*(1/(1+IntRt))*(1-AI35),6)) -> 0.808805 | AN35: =IF(B35<65,AE35*AJ35*AK35*AL35,"") ->  | AO35: 0.7295628982
A36: =1+A35 -> 2053 | B36: =1+B35 -> 115 | D36: =VLOOKUP(B36,Lookups!A:B,2) -> 4521.32908 | E36: =VLOOKUP(B36,Lookups!A:C,3) -> 2359.564522 | G36: =VLOOKUP(B36,Lookups!A:D,4) -> 6658.82732 | H36: =VLOOKUP(B36,Lookups!A:E,5) -> 4378.610934 | J36: =VLOOKUP(A36,Trends!$A$3:$Q$94,IF(ExFlg=0,2,10))+Sens -> 1.052 | K36: 5.607633478 | L36: =VLOOKUP(A36,Trends!$A$3:$Q$94,IF(ExFlg=0,4,12))+Sens -> 1.051 | M36: 5.584975562 | N36: =VLOOKUP(A36,Trends!$A$3:$Z$94,IF(ExFlg=0,19,23))+Sens -> 1.052 | O36: 6.30125211 | P36: =VLOOKUP(A36,Trends!$A$3:$Q$94,IF(ExFlg=0,6,14))+Sens -> 1.052 | Q36: 5.65037339 | R36: =VLOOKUP(A36,Trends!$A$3:$Q$94,IF(ExFlg=0,8,16))+Sens -> 1.052 | S36: 5.686640787 | T36: =VLOOKUP(A36,Trends!$A$3:$Z$94,IF(ExFlg=0,21,25))+Sens -> 1.053 | U36: 6.195915197 | W36: 25251.51242 | X36: 14868.21092 | Y36: 10383.3015 | AA36: 37866.35903 | AB36: 27129.50203 | AC36: 10736.857 | AE36: 10619.00635 | AG36: =IF($B36<121,VLOOKUP($B36,Lookups!A:H,8)*(1-VLOOKUP($B36,Lookups!$U$3:$W$103,2))^(B36-$B$3),"") -> 0.4 | AH36: =IF($B36<121,VLOOKUP($B36,Lookups!A:I,9)*(1-VLOOKUP($B36,Lookups!$U$3:$W$103,3))^(B36-$B$3),"") -> 0.398308 | AI36: 0.399154 | AJ36: 0.0001616992457 | AK36: =IF(B36<121,AK35/(1+IntRt),"") -> 0.3213427136 | AL36: 0.807742 | AO36: 0.4456901096
A37: 2054 | B37: 116 | D37: =VLOOKUP(B37,Lookups!A:B,2) -> 4521.32908 | E37: =VLOOKUP(B37,Lookups!A:C,3) -> 2359.564522 | G37: =VLOOKUP(B37,Lookups!A:D,4) -> 6658.82732 | H37: =VLOOKUP(B37,Lookups!A:E,5) -> 4378.610934 | J37: =VLOOKUP(A37,Trends!$A$3:$Q$94,IF(ExFlg=0,2,10))+Sens -> 1.052 | K37: 5.899230419 | L37: =VLOOKUP(A37,Trends!$A$3:$Q$94,IF(ExFlg=0,4,12))+Sens -> 1.051 | M37: 5.869809316 | N37: =VLOOKUP(A37,Trends!$A$3:$Z$94,IF(ExFlg=0,19,23))+Sens -> 1.052 | O37: 6.628917219 | P37: =VLOOKUP(A37,Trends!$A$3:$Q$94,IF(ExFlg=0,6,14))+Sens -> 1.052 | Q37: 5.944192806 | R37: =VLOOKUP(A37,Trends!$A$3:$Q$94,IF(ExFlg=0,8,16))+Sens -> 1.052 | S37: 5.982346107 | T37: =VLOOKUP(A37,Trends!$A$3:$Z$94,IF(ExFlg=0,21,25))+Sens -> 1.053 | U37: 6.524298703 | W37: 26539.33955 | X37: 15641.35789 | Y37: 10897.98167 | AA37: 39835.4097 | AB37: 28567.36564 | AC37: 11268.04406 | AE37: 11144.69117 | AG37: =IF($B37<121,VLOOKUP($B37,Lookups!A:H,8)*(1-VLOOKUP($B37,Lookups!$U$3:$W$103,2))^(B37-$B$3),"") -> 0.4 | AH37: =IF($B37<121,VLOOKUP($B37,Lookups!A:I,9)*(1-VLOOKUP($B37,Lookups!$U$3:$W$103,3))^(B37-$B$3),"") -> 0.4 | AI37: 0.4 | AJ37: 9.715634501e-05 | AK37: 0.3104760518 | AL37: 0.807367 | AO37: 0.2714177886
A38: 2055 | B38: 117 | D38: =VLOOKUP(B38,Lookups!A:B,2) -> 4521.32908 | E38: =VLOOKUP(B38,Lookups!A:C,3) -> 2359.564522 | G38: =VLOOKUP(B38,Lookups!A:D,4) -> 6658.82732 | H38: =VLOOKUP(B38,Lookups!A:E,5) -> 4378.610934 | J38: =VLOOKUP(A38,Trends!$A$3:$Q$94,IF(ExFlg=0,2,10))+Sens -> 1.052 | K38: 6.205990401 | L38: =VLOOKUP(A38,Trends!$A$3:$Q$94,IF(ExFlg=0,4,12))+Sens -> 1.051 | M38: 6.169169591 | N38: =VLOOKUP(A38,Trends!$A$3:$Z$94,IF(ExFlg=0,19,23))+Sens -> 1.052 | O38: 6.973620915 | P38: =VLOOKUP(A38,Trends!$A$3:$Q$94,IF(ExFlg=0,6,14))+Sens -> 1.052 | Q38: 6.253290832 | R38: =VLOOKUP(A38,Trends!$A$3:$Q$94,IF(ExFlg=0,8,16))+Sens -> 1.052 | S38: 6.293428105 | T38: =VLOOKUP(A38,Trends!$A$3:$Z$94,IF(ExFlg=0,21,25))+Sens -> 1.053 | U38: 6.870086534 | W38: 27892.84587 | X38: 16454.7085 | Y38: 11438.13737 | AA38: 41906.851 | AB38: 30081.43601 | AC38: 11825.41499 | AE38: 11696.32374 | AG38: =IF($B38<121,VLOOKUP($B38,Lookups!A:H,8)*(1-VLOOKUP($B38,Lookups!$U$3:$W$103,2))^(B38-$B$3),"") -> 0.4 | AH38: =IF($B38<121,VLOOKUP($B38,Lookups!A:I,9)*(1-VLOOKUP($B38,Lookups!$U$3:$W$103,3))^(B38-$B$3),"") -> 0.4 | AI38: 0.4 | AJ38: 5.8293807e-05 | AK38: 0.2999768617 | AL38: 0.807367 | AO38: 0.1651317376
A39: 2056 | B39: 118 | D39: =VLOOKUP(B39,Lookups!A:B,2) -> 4521.32908 | E39: =VLOOKUP(B39,Lookups!A:C,3) -> 2359.564522 | G39: =VLOOKUP(B39,Lookups!A:D,4) -> 6658.82732 | H39: =VLOOKUP(B39,Lookups!A:E,5) -> 4378.610934 | J39: =VLOOKUP(A39,Trends!$A$3:$Q$94,IF(ExFlg=0,2,10))+Sens -> 1.052 | K39: 6.528701902 | L39: =VLOOKUP(A39,Trends!$A$3:$Q$94,IF(ExFlg=0,4,12))+Sens -> 1.051 | M39: 6.48379724 | N39: =VLOOKUP(A39,Trends!$A$3:$Z$94,IF(ExFlg=0,19,23))+Sens -> 1.051 | O39: 7.336249202 | P39: =VLOOKUP(A39,Trends!$A$3:$Q$94,IF(ExFlg=0,6,14))+Sens -> 1.052 | Q39: 6.578461955 | R39: =VLOOKUP(A39,Trends!$A$3:$Q$94,IF(ExFlg=0,8,16))+Sens -> 1.052 | S39: 6.620686367 | T39: =VLOOKUP(A39,Trends!$A$3:$Z$94,IF(ExFlg=0,21,25))+Sens -> 1.052 | U39: 7.234201121 | W39: 29315.38101 | X39: 17310.35334 | Y39: 12005.02767 | AA39: 44086.00726 | AB39: 31675.75212 | AC39: 12410.25513 | AE39: 12275.18066 | AG39: =IF($B39<121,VLOOKUP($B39,Lookups!A:H,8)*(1-VLOOKUP($B39,Lookups!$U$3:$W$103,2))^(B39-$B$3),"") -> 0.4 | AH39: =IF($B39<121,VLOOKUP($B39,Lookups!A:I,9)*(1-VLOOKUP($B39,Lookups!$U$3:$W$103,3))^(B39-$B$3),"") -> 0.4 | AI39: 0.4 | AJ39: 3.49762842e-05 | AK39: 0.2898327166 | AL39: 0.807367 | AO39: 0.1004661971
A40: 2057 | B40: 119 | D40: =VLOOKUP(B40,Lookups!A:B,2) -> 4521.32908 | E40: =VLOOKUP(B40,Lookups!A:C,3) -> 2359.564522 | G40: =VLOOKUP(B40,Lookups!A:D,4) -> 6658.82732 | H40: =VLOOKUP(B40,Lookups!A:E,5) -> 4378.610934 | J40: =VLOOKUP(A40,Trends!$A$3:$Q$94,IF(ExFlg=0,2,10))+Sens -> 1.052 | K40: 6.8681944 | L40: =VLOOKUP(A40,Trends!$A$3:$Q$94,IF(ExFlg=0,4,12))+Sens -> 1.051 | M40: 6.8144709 | N40: =VLOOKUP(A40,Trends!$A$3:$Z$94,IF(ExFlg=0,19,23))+Sens -> 1.051 | O40: 7.710397912 | P40: =VLOOKUP(A40,Trends!$A$3:$Q$94,IF(ExFlg=0,6,14))+Sens -> 1.052 | Q40: 6.920541977 | R40: =VLOOKUP(A40,Trends!$A$3:$Q$94,IF(ExFlg=0,8,16))+Sens -> 1.051 | S40: 6.964962058 | T40: =VLOOKUP(A40,Trends!$A$3:$Z$94,IF(ExFlg=0,21,25))+Sens -> 1.051 | U40: 7.610379579 | W40: 30810.46544 | X40: 18193.18136 | Y40: 12617.28408 | AA40: 46378.47963 | AB40: 33322.89123 | AC40: 13055.5884 | AE40: 12909.48842 | AG40: =IF($B40<121,VLOOKUP($B40,Lookups!A:H,8)*(1-VLOOKUP($B40,Lookups!$U$3:$W$103,2))^(B40-$B$3),"") -> 0.4 | AH40: =IF($B40<121,VLOOKUP($B40,Lookups!A:I,9)*(1-VLOOKUP($B40,Lookups!$U$3:$W$103,3))^(B40-$B$3),"") -> 0.4 | AI40: 0.4 | AJ40: 2.098577052e-05 | AK40: 0.2800316102 | AL40: 0.807367 | AO40: 0.06125083363
A41: 2058 | B41: 120 | D41: =VLOOKUP(B41,Lookups!A:B,2) -> 4521.32908 | E41: =VLOOKUP(B41,Lookups!A:C,3) -> 2359.564522 | G41: =VLOOKUP(B41,Lookups!A:D,4) -> 6658.82732 | H41: =VLOOKUP(B41,Lookups!A:E,5) -> 4378.610934 | J41: =VLOOKUP(A41,Trends!$A$3:$Q$94,IF(ExFlg=0,2,10))+Sens -> 1.051 | K41: 7.225340509 | L41: =VLOOKUP(A41,Trends!$A$3:$Q$94,IF(ExFlg=0,4,12))+Sens -> 1.051 | M41: 7.162008916 | N41: =VLOOKUP(A41,Trends!$A$3:$Z$94,IF(ExFlg=0,19,23))+Sens -> 1.051 | O41: 8.103628205 | P41: =VLOOKUP(A41,Trends!$A$3:$Q$94,IF(ExFlg=0,6,14))+Sens -> 1.052 | Q41: 7.280410159 | R41: =VLOOKUP(A41,Trends!$A$3:$Q$94,IF(ExFlg=0,8,16))+Sens -> 1.051 | S41: 7.320175123 | T41: =VLOOKUP(A41,Trends!$A$3:$Z$94,IF(ExFlg=0,21,25))+Sens -> 1.051 | U41: 7.998508937 | W41: 32381.79918 | X41: 19121.03361 | Y41: 13260.76557 | AA41: 48743.7821 | AB41: 35022.35869 | AC41: 13721.42341 | AE41: 13567.87233 | AG41: =IF($B41<121,VLOOKUP($B41,Lookups!A:H,8)*(1-VLOOKUP($B41,Lookups!$U$3:$W$103,2))^(B41-$B$3),"") -> 1 | AH41: =IF($B41<121,VLOOKUP($B41,Lookups!A:I,9)*(1-VLOOKUP($B41,Lookups!$U$3:$W$103,3))^(B41-$B$3),"") -> 1 | AI41: 1 | AJ41: 1.259146231e-05 | AK41: 0.2705619422 | AL41: 0.541667 | AO41: 0.0250372718
A42: 2059 | B42: 121 | D42: =VLOOKUP(B42,Lookups!A:B,2) -> 4521.32908 | E42: =VLOOKUP(B42,Lookups!A:C,3) -> 2359.564522 | G42: =VLOOKUP(B42,Lookups!A:D,4) -> 6658.82732 | H42: =VLOOKUP(B42,Lookups!A:E,5) -> 4378.610934 | J42: =VLOOKUP(A42,Trends!$A$3:$Q$94,IF(ExFlg=0,2,10))+Sens -> 1.051 | K42: 7.593832875 | L42: =VLOOKUP(A42,Trends!$A$3:$Q$94,IF(ExFlg=0,4,12))+Sens -> 1.051 | M42: 7.52727137 | N42: =VLOOKUP(A42,Trends!$A$3:$Z$94,IF(ExFlg=0,19,23))+Sens -> 1.051 | O42: 8.516913244 | P42: =VLOOKUP(A42,Trends!$A$3:$Q$94,IF(ExFlg=0,6,14))+Sens -> 1.052 | Q42: 7.658991488 | R42: =VLOOKUP(A42,Trends!$A$3:$Q$94,IF(ExFlg=0,8,16))+Sens -> 1.051 | S42: 7.693504054 | T42: =VLOOKUP(A42,Trends!$A$3:$Z$94,IF(ExFlg=0,21,25))+Sens -> 1.051 | U42: 8.406432893 | W42: 34033.27094 | X42: 20096.20632 | Y42: 13937.06461 | AA42: 51229.71498 | AB42: 36808.49898 | AC42: 14421.216 | AE42: 14259.83382 | AG42: =IF($B42<121,VLOOKUP($B42,Lookups!A:H,8)*(1-VLOOKUP($B42,Lookups!$U$3:$W$103,2))^(B42-$B$3),"") ->  | AH42: =IF($B42<121,VLOOKUP($B42,Lookups!A:I,9)*(1-VLOOKUP($B42,Lookups!$U$3:$W$103,3))^(B42-$B$3),"") -> 
A43: 2060 | B43: 122 | D43: =VLOOKUP(B43,Lookups!A:B,2) -> 4521.32908 | E43: =VLOOKUP(B43,Lookups!A:C,3) -> 2359.564522 | G43: =VLOOKUP(B43,Lookups!A:D,4) -> 6658.82732 | H43: =VLOOKUP(B43,Lookups!A:E,5) -> 4378.610934 | J43: =VLOOKUP(A43,Trends!$A$3:$Q$94,IF(ExFlg=0,2,10))+Sens -> 1.051 | K43: 7.981118352 | L43: =VLOOKUP(A43,Trends!$A$3:$Q$94,IF(ExFlg=0,4,12))+Sens -> 1.051 | M43: 7.91116221 | N43: =VLOOKUP(A43,Trends!$A$3:$Z$94,IF(ExFlg=0,19,23))+Sens -> 1.051 | O43: 8.951275819 | P43: =VLOOKUP(A43,Trends!$A$3:$Q$94,IF(ExFlg=0,6,14))+Sens -> 1.052 | Q43: 8.057259045 | R43: =VLOOKUP(A43,Trends!$A$3:$Q$94,IF(ExFlg=0,8,16))+Sens -> 1.051 | S43: 8.085872761 | T43: =VLOOKUP(A43,Trends!$A$3:$Z$94,IF(ExFlg=0,21,25))+Sens -> 1.051 | U43: 8.835160971 | W43: 35768.96776 | X43: 21121.11285 | Y43: 14647.85491 | AA43: 53842.43045 | AB43: 38685.73243 | AC43: 15156.69802 | AE43: 14987.08535 | AG43: =IF($B43<121,VLOOKUP($B43,Lookups!A:H,8)*(1-VLOOKUP($B43,Lookups!$U$3:$W$103,2))^(B43-$B$3),"") ->  | AH43: =IF($B43<121,VLOOKUP($B43,Lookups!A:I,9)*(1-VLOOKUP($B43,Lookups!$U$3:$W$103,3))^(B43-$B$3),"") -> 
A44: 2061 | B44: 123 | D44: =VLOOKUP(B44,Lookups!A:B,2) -> 4521.32908 | E44: =VLOOKUP(B44,Lookups!A:C,3) -> 2359.564522 | G44: =VLOOKUP(B44,Lookups!A:D,4) -> 6658.82732 | H44: =VLOOKUP(B44,Lookups!A:E,5) -> 4378.610934 | J44: =VLOOKUP(A44,Trends!$A$3:$Q$94,IF(ExFlg=0,2,10))+Sens -> 1.051 | K44: 8.388155388 | L44: =VLOOKUP(A44,Trends!$A$3:$Q$94,IF(ExFlg=0,4,12))+Sens -> 1.051 | M44: 8.314631483 | N44: =VLOOKUP(A44,Trends!$A$3:$Z$94,IF(ExFlg=0,19,23))+Sens -> 1.051 | O44: 9.407790886 | P44: =VLOOKUP(A44,Trends!$A$3:$Q$94,IF(ExFlg=0,6,14))+Sens -> 1.051 | Q44: 8.476236515 | R44: =VLOOKUP(A44,Trends!$A$3:$Q$94,IF(ExFlg=0,8,16))+Sens -> 1.051 | S44: 8.498252271 | T44: =VLOOKUP(A44,Trends!$A$3:$Z$94,IF(ExFlg=0,21,25))+Sens -> 1.051 | U44: 9.28575418 | W44: 37593.18511 | X44: 22198.2896 | Y44: 15394.89551 | AA44: 56588.3944 | AB44: 40658.70478 | AC44: 15929.68962 | AE44: 15751.4267 | AG44: =IF($B44<121,VLOOKUP($B44,Lookups!A:H,8)*(1-VLOOKUP($B44,Lookups!$U$3:$W$103,2))^(B44-$B$3),"") ->  | AH44: =IF($B44<121,VLOOKUP($B44,Lookups!A:I,9)*(1-VLOOKUP($B44,Lookups!$U$3:$W$103,3))^(B44-$B$3),"") -> 
A45: 2062 | B45: 124 | D45: =VLOOKUP(B45,Lookups!A:B,2) -> 4521.32908 | E45: =VLOOKUP(B45,Lookups!A:C,3) -> 2359.564522 | G45: =VLOOKUP(B45,Lookups!A:D,4) -> 6658.82732 | H45: =VLOOKUP(B45,Lookups!A:E,5) -> 4378.610934 | J45: =VLOOKUP(A45,Trends!$A$3:$Q$94,IF(ExFlg=0,2,10))+Sens -> 1.051 | K45: 8.815951313 | L45: =VLOOKUP(A45,Trends!$A$3:$Q$94,IF(ExFlg=0,4,12))+Sens -> 1.051 | M45: 8.738677689 | N45: =VLOOKUP(A45,Trends!$A$3:$Z$94,IF(ExFlg=0,19,23))+Sens -> 1.051 | O45: 9.887588221 | P45: =VLOOKUP(A45,Trends!$A$3:$Q$94,IF(ExFlg=0,6,14))+Sens -> 1.051 | Q45: 8.908524578 | R45: =VLOOKUP(A45,Trends!$A$3:$Q$94,IF(ExFlg=0,8,16))+Sens -> 1.051 | S45: 8.931663137 | T45: =VLOOKUP(A45,Trends!$A$3:$Z$94,IF(ExFlg=0,21,25))+Sens -> 1.051 | U45: 9.759327643 | W45: 39510.43755 | X45: 23330.40237 | Y45: 16180.03518 | AA45: 59474.40251 | AB45: 42732.29873 | AC45: 16742.10379 | AE45: 16554.74946 | AG45: =IF($B45<121,VLOOKUP($B45,Lookups!A:H,8)*(1-VLOOKUP($B45,Lookups!$U$3:$W$103,2))^(B45-$B$3),"") ->  | AH45: =IF($B45<121,VLOOKUP($B45,Lookups!A:I,9)*(1-VLOOKUP($B45,Lookups!$U$3:$W$103,3))^(B45-$B$3),"") -> 
A46: 2063 | B46: 125 | D46: =VLOOKUP(B46,Lookups!A:B,2) -> 4521.32908 | E46: =VLOOKUP(B46,Lookups!A:C,3) -> 2359.564522 | G46: =VLOOKUP(B46,Lookups!A:D,4) -> 6658.82732 | H46: =VLOOKUP(B46,Lookups!A:E,5) -> 4378.610934 | J46: =VLOOKUP(A46,Trends!$A$3:$Q$94,IF(ExFlg=0,2,10))+Sens -> 1.051 | K46: 9.26556483 | L46: =VLOOKUP(A46,Trends!$A$3:$Q$94,IF(ExFlg=0,4,12))+Sens -> 1.051 | M46: 9.184350251 | N46: =VLOOKUP(A46,Trends!$A$3:$Z$94,IF(ExFlg=0,19,23))+Sens -> 1.051 | O46: 10.39185522 | P46: =VLOOKUP(A46,Trends!$A$3:$Q$94,IF(ExFlg=0,6,14))+Sens -> 1.051 | Q46: 9.362859331 | R46: =VLOOKUP(A46,Trends!$A$3:$Q$94,IF(ExFlg=0,8,16))+Sens -> 1.051 | S46: 9.387177957 | T46: =VLOOKUP(A46,Trends!$A$3:$Z$94,IF(ExFlg=0,21,25))+Sens -> 1.051 | U46: 10.25705335 | W46: 41525.46987 | X46: 24520.25289 | Y46: 17005.21698 | AA46: 62507.59704 | AB46: 44911.64596 | AC46: 17595.95108 | AE46: 17399.04168 | AG46: =IF($B46<121,VLOOKUP($B46,Lookups!A:H,8)*(1-VLOOKUP($B46,Lookups!$U$3:$W$103,2))^(B46-$B$3),"") ->  | AH46: =IF($B46<121,VLOOKUP($B46,Lookups!A:I,9)*(1-VLOOKUP($B46,Lookups!$U$3:$W$103,3))^(B46-$B$3),"") -> 
A47: 2064 | B47: 126 | D47: =VLOOKUP(B47,Lookups!A:B,2) -> 4521.32908 | E47: =VLOOKUP(B47,Lookups!A:C,3) -> 2359.564522 | G47: =VLOOKUP(B47,Lookups!A:D,4) -> 6658.82732 | H47: =VLOOKUP(B47,Lookups!A:E,5) -> 4378.610934 | J47: =VLOOKUP(A47,Trends!$A$3:$Q$94,IF(ExFlg=0,2,10))+Sens -> 1.05 | K47: 9.738108636 | L47: =VLOOKUP(A47,Trends!$A$3:$Q$94,IF(ExFlg=0,4,12))+Sens -> 1.05 | M47: 9.652752113 | N47: =VLOOKUP(A47,Trends!$A$3:$Z$94,IF(ExFlg=0,19,23))+Sens -> 1.05 | O47: 10.92183984 | P47: =VLOOKUP(A47,Trends!$A$3:$Q$94,IF(ExFlg=0,6,14))+Sens -> 1.051 | Q47: 9.840365157 | R47: =VLOOKUP(A47,Trends!$A$3:$Q$94,IF(ExFlg=0,8,16))+Sens -> 1.05 | S47: 9.865924033 | T47: =VLOOKUP(A47,Trends!$A$3:$Z$94,IF(ExFlg=0,21,25))+Sens -> 1.05 | U47: 10.78016307 | W47: 43643.26883 | X47: 25770.78579 | Y47: 17872.48304 | AA47: 65695.48449 | AB47: 47202.1399 | AC47: 18493.34459 | AE47: 18286.39281 | AG47: =IF($B47<121,VLOOKUP($B47,Lookups!A:H,8)*(1-VLOOKUP($B47,Lookups!$U$3:$W$103,2))^(B47-$B$3),"") ->  | AH47: =IF($B47<121,VLOOKUP($B47,Lookups!A:I,9)*(1-VLOOKUP($B47,Lookups!$U$3:$W$103,3))^(B47-$B$3),"") -> 
A48: 2065 | B48: 127 | D48: =VLOOKUP(B48,Lookups!A:B,2) -> 4521.32908 | E48: =VLOOKUP(B48,Lookups!A:C,3) -> 2359.564522 | G48: =VLOOKUP(B48,Lookups!A:D,4) -> 6658.82732 | H48: =VLOOKUP(B48,Lookups!A:E,5) -> 4378.610934 | J48: =VLOOKUP(A48,Trends!$A$3:$Q$94,IF(ExFlg=0,2,10))+Sens -> 1.05 | K48: 10.22501407 | L48: =VLOOKUP(A48,Trends!$A$3:$Q$94,IF(ExFlg=0,4,12))+Sens -> 1.049 | M48: 10.13538972 | N48: =VLOOKUP(A48,Trends!$A$3:$Z$94,IF(ExFlg=0,19,23))+Sens -> 1.049 | O48: 11.46793183 | P48: =VLOOKUP(A48,Trends!$A$3:$Q$94,IF(ExFlg=0,6,14))+Sens -> 1.05 | Q48: 10.34222378 | R48: =VLOOKUP(A48,Trends!$A$3:$Q$94,IF(ExFlg=0,8,16))+Sens -> 1.05 | S48: 10.35922023 | T48: =VLOOKUP(A48,Trends!$A$3:$Z$94,IF(ExFlg=0,21,25))+Sens -> 1.05 | U48: 11.31917123 | W48: 45825.43227 | X48: 27059.32508 | Y48: 18766.10719 | AA48: 68980.25872 | AB48: 49562.2469 | AC48: 19418.01182 | AE48: 19200.71245 | AG48: =IF($B48<121,VLOOKUP($B48,Lookups!A:H,8)*(1-VLOOKUP($B48,Lookups!$U$3:$W$103,2))^(B48-$B$3),"") ->  | AH48: =IF($B48<121,VLOOKUP($B48,Lookups!A:I,9)*(1-VLOOKUP($B48,Lookups!$U$3:$W$103,3))^(B48-$B$3),"") -> 
A49: 2066 | B49: 128 | D49: =VLOOKUP(B49,Lookups!A:B,2) -> 4521.32908 | E49: =VLOOKUP(B49,Lookups!A:C,3) -> 2359.564522 | G49: =VLOOKUP(B49,Lookups!A:D,4) -> 6658.82732 | H49: =VLOOKUP(B49,Lookups!A:E,5) -> 4378.610934 | J49: =VLOOKUP(A49,Trends!$A$3:$Q$94,IF(ExFlg=0,2,10))+Sens -> 1.049 | K49: 10.73626477 | L49: =VLOOKUP(A49,Trends!$A$3:$Q$94,IF(ExFlg=0,4,12))+Sens -> 1.049 | M49: 10.63202382 | N49: =VLOOKUP(A49,Trends!$A$3:$Z$94,IF(ExFlg=0,19,23))+Sens -> 1.049 | O49: 12.02986049 | P49: =VLOOKUP(A49,Trends!$A$3:$Q$94,IF(ExFlg=0,6,14))+Sens -> 1.049 | Q49: 10.85933497 | R49: =VLOOKUP(A49,Trends!$A$3:$Q$94,IF(ExFlg=0,8,16))+Sens -> 1.049 | S49: 10.87718125 | T49: =VLOOKUP(A49,Trends!$A$3:$Z$94,IF(ExFlg=0,21,25))+Sens -> 1.049 | U49: 11.88512979 | W49: 48070.87845 | X49: 28385.23201 | Y49: 19685.64645 | AA49: 72429.27165 | AB49: 52040.35924 | AC49: 20388.91241 | AE49: 20154.49276 | AG49: =IF($B49<121,VLOOKUP($B49,Lookups!A:H,8)*(1-VLOOKUP($B49,Lookups!$U$3:$W$103,2))^(B49-$B$3),"") ->  | AH49: =IF($B49<121,VLOOKUP($B49,Lookups!A:I,9)*(1-VLOOKUP($B49,Lookups!$U$3:$W$103,3))^(B49-$B$3),"") -> 
A50: 2067 | B50: 129 | D50: =VLOOKUP(B50,Lookups!A:B,2) -> 4521.32908 | E50: =VLOOKUP(B50,Lookups!A:C,3) -> 2359.564522 | G50: =VLOOKUP(B50,Lookups!A:D,4) -> 6658.82732 | H50: =VLOOKUP(B50,Lookups!A:E,5) -> 4378.610934 | J50: =VLOOKUP(A50,Trends!$A$3:$Q$94,IF(ExFlg=0,2,10))+Sens -> 1.048 | K50: 11.26234174 | L50: =VLOOKUP(A50,Trends!$A$3:$Q$94,IF(ExFlg=0,4,12))+Sens -> 1.048 | M50: 11.15299298 | N50: =VLOOKUP(A50,Trends!$A$3:$Z$94,IF(ExFlg=0,19,23))+Sens -> 1.048 | O50: 12.61932365 | P50: =VLOOKUP(A50,Trends!$A$3:$Q$94,IF(ExFlg=0,6,14))+Sens -> 1.048 | Q50: 11.39144238 | R50: =VLOOKUP(A50,Trends!$A$3:$Q$94,IF(ExFlg=0,8,16))+Sens -> 1.048 | S50: 11.41016313 | T50: =VLOOKUP(A50,Trends!$A$3:$Z$94,IF(ExFlg=0,21,25))+Sens -> 1.048 | U50: 12.46750115 | W50: 50426.3515 | X50: 29776.10838 | Y50: 20650.24312 | AA50: 75978.30596 | AB50: 54590.33685 | AC50: 21387.96912 | AE50: 21142.06291 | AG50: =IF($B50<121,VLOOKUP($B50,Lookups!A:H,8)*(1-VLOOKUP($B50,Lookups!$U$3:$W$103,2))^(B50-$B$3),"") ->  | AH50: =IF($B50<121,VLOOKUP($B50,Lookups!A:I,9)*(1-VLOOKUP($B50,Lookups!$U$3:$W$103,3))^(B50-$B$3),"") -> 
A51: 2068 | B51: 130 | D51: =VLOOKUP(B51,Lookups!A:B,2) -> 4521.32908 | E51: =VLOOKUP(B51,Lookups!A:C,3) -> 2359.564522 | G51: =VLOOKUP(B51,Lookups!A:D,4) -> 6658.82732 | H51: =VLOOKUP(B51,Lookups!A:E,5) -> 4378.610934 | J51: =VLOOKUP(A51,Trends!$A$3:$Q$94,IF(ExFlg=0,2,10))+Sens -> 1.047 | K51: 11.80293415 | L51: =VLOOKUP(A51,Trends!$A$3:$Q$94,IF(ExFlg=0,4,12))+Sens -> 1.047 | M51: 11.68833665 | N51: =VLOOKUP(A51,Trends!$A$3:$Z$94,IF(ExFlg=0,19,23))+Sens -> 1.047 | O51: 13.22505119 | P51: =VLOOKUP(A51,Trends!$A$3:$Q$94,IF(ExFlg=0,6,14))+Sens -> 1.048 | Q51: 11.93823162 | R51: =VLOOKUP(A51,Trends!$A$3:$Q$94,IF(ExFlg=0,8,16))+Sens -> 1.047 | S51: 11.95785096 | T51: =VLOOKUP(A51,Trends!$A$3:$Z$94,IF(ExFlg=0,21,25))+Sens -> 1.047 | U51: 13.0659412 | W51: 52846.81637 | X51: 31205.36158 | Y51: 21641.45479 | AA51: 79625.26465 | AB51: 57210.67302 | AC51: 22414.59163 | AE51: 22156.88193 | AG51: =IF($B51<121,VLOOKUP($B51,Lookups!A:H,8)*(1-VLOOKUP($B51,Lookups!$U$3:$W$103,2))^(B51-$B$3),"") ->  | AH51: =IF($B51<121,VLOOKUP($B51,Lookups!A:I,9)*(1-VLOOKUP($B51,Lookups!$U$3:$W$103,3))^(B51-$B$3),"") -> 
A52: 2069 | B52: 131 | D52: =VLOOKUP(B52,Lookups!A:B,2) -> 4521.32908 | E52: =VLOOKUP(B52,Lookups!A:C,3) -> 2359.564522 | G52: =VLOOKUP(B52,Lookups!A:D,4) -> 6658.82732 | H52: =VLOOKUP(B52,Lookups!A:E,5) -> 4378.610934 | J52: =VLOOKUP(A52,Trends!$A$3:$Q$94,IF(ExFlg=0,2,10))+Sens -> 1.047 | K52: 12.35767205 | L52: =VLOOKUP(A52,Trends!$A$3:$Q$94,IF(ExFlg=0,4,12))+Sens -> 1.047 | M52: 12.23768847 | N52: =VLOOKUP(A52,Trends!$A$3:$Z$94,IF(ExFlg=0,19,23))+Sens -> 1.047 | O52: 13.84662859 | P52: =VLOOKUP(A52,Trends!$A$3:$Q$94,IF(ExFlg=0,6,14))+Sens -> 1.047 | Q52: 12.51126673 | R52: =VLOOKUP(A52,Trends!$A$3:$Q$94,IF(ExFlg=0,8,16))+Sens -> 1.047 | S52: 12.51986995 | T52: =VLOOKUP(A52,Trends!$A$3:$Z$94,IF(ExFlg=0,21,25))+Sens -> 1.047 | U52: 13.68004044 | W52: 55330.61674 | X52: 32672.01357 | Y52: 22658.60317 | AA52: 83367.65209 | AB52: 59899.57465 | AC52: 23468.07744 | AE52: 23198.25538 | AG52: =IF($B52<121,VLOOKUP($B52,Lookups!A:H,8)*(1-VLOOKUP($B52,Lookups!$U$3:$W$103,2))^(B52-$B$3),"") ->  | AH52: =IF($B52<121,VLOOKUP($B52,Lookups!A:I,9)*(1-VLOOKUP($B52,Lookups!$U$3:$W$103,3))^(B52-$B$3),"") -> 
A53: 2070 | B53: 132 | D53: =VLOOKUP(B53,Lookups!A:B,2) -> 4521.32908 | E53: =VLOOKUP(B53,Lookups!A:C,3) -> 2359.564522 | G53: =VLOOKUP(B53,Lookups!A:D,4) -> 6658.82732 | H53: =VLOOKUP(B53,Lookups!A:E,5) -> 4378.610934 | J53: =VLOOKUP(A53,Trends!$A$3:$Q$94,IF(ExFlg=0,2,10))+Sens -> 1.046 | K53: 12.93848264 | L53: =VLOOKUP(A53,Trends!$A$3:$Q$94,IF(ExFlg=0,4,12))+Sens -> 1.046 | M53: 12.81285983 | N53: =VLOOKUP(A53,Trends!$A$3:$Z$94,IF(ExFlg=0,19,23))+Sens -> 1.046 | O53: 14.49742014 | P53: =VLOOKUP(A53,Trends!$A$3:$Q$94,IF(ExFlg=0,6,14))+Sens -> 1.046 | Q53: 13.09929627 | R53: =VLOOKUP(A53,Trends!$A$3:$Q$94,IF(ExFlg=0,8,16))+Sens -> 1.046 | S53: 13.10830384 | T53: =VLOOKUP(A53,Trends!$A$3:$Z$94,IF(ExFlg=0,21,25))+Sens -> 1.046 | U53: 14.32300234 | W53: 57931.15573 | X53: 34207.59821 | Y53: 23723.55752 | AA53: 87285.93174 | AB53: 62714.85466 | AC53: 24571.07708 | AE53: 24288.57338 | AG53: =IF($B53<121,VLOOKUP($B53,Lookups!A:H,8)*(1-VLOOKUP($B53,Lookups!$U$3:$W$103,2))^(B53-$B$3),"") ->  | AH53: =IF($B53<121,VLOOKUP($B53,Lookups!A:I,9)*(1-VLOOKUP($B53,Lookups!$U$3:$W$103,3))^(B53-$B$3),"") -> 
A54: 2071 | B54: 133 | D54: =VLOOKUP(B54,Lookups!A:B,2) -> 4521.32908 | E54: =VLOOKUP(B54,Lookups!A:C,3) -> 2359.564522 | G54: =VLOOKUP(B54,Lookups!A:D,4) -> 6658.82732 | H54: =VLOOKUP(B54,Lookups!A:E,5) -> 4378.610934 | J54: =VLOOKUP(A54,Trends!$A$3:$Q$94,IF(ExFlg=0,2,10))+Sens -> 1.045 | K54: 13.53365284 | L54: =VLOOKUP(A54,Trends!$A$3:$Q$94,IF(ExFlg=0,4,12))+Sens -> 1.045 | M54: 13.40225138 | N54: =VLOOKUP(A54,Trends!$A$3:$Z$94,IF(ExFlg=0,19,23))+Sens -> 1.045 | O54: 15.16430146 | P54: =VLOOKUP(A54,Trends!$A$3:$Q$94,IF(ExFlg=0,6,14))+Sens -> 1.045 | Q54: 13.7018639 | R54: =VLOOKUP(A54,Trends!$A$3:$Q$94,IF(ExFlg=0,8,16))+Sens -> 1.045 | S54: 13.71128582 | T54: =VLOOKUP(A54,Trends!$A$3:$Z$94,IF(ExFlg=0,21,25))+Sens -> 1.045 | U54: 14.98186045 | W54: 60595.98889 | X54: 35781.14773 | Y54: 24814.84116 | AA54: 91301.0846 | AB54: 65599.73797 | AC54: 25701.34662 | AE54: 25405.84776 | AG54: =IF($B54<121,VLOOKUP($B54,Lookups!A:H,8)*(1-VLOOKUP($B54,Lookups!$U$3:$W$103,2))^(B54-$B$3),"") ->  | AH54: =IF($B54<121,VLOOKUP($B54,Lookups!A:I,9)*(1-VLOOKUP($B54,Lookups!$U$3:$W$103,3))^(B54-$B$3),"") -> 
A55: 2072 | B55: 134 | D55: =VLOOKUP(B55,Lookups!A:B,2) -> 4521.32908 | E55: =VLOOKUP(B55,Lookups!A:C,3) -> 2359.564522 | G55: =VLOOKUP(B55,Lookups!A:D,4) -> 6658.82732 | H55: =VLOOKUP(B55,Lookups!A:E,5) -> 4378.610934 | J55: =VLOOKUP(A55,Trends!$A$3:$Q$94,IF(ExFlg=0,2,10))+Sens -> 1.045 | K55: 14.14266722 | L55: =VLOOKUP(A55,Trends!$A$3:$Q$94,IF(ExFlg=0,4,12))+Sens -> 1.045 | M55: 14.00535269 | N55: =VLOOKUP(A55,Trends!$A$3:$Z$94,IF(ExFlg=0,19,23))+Sens -> 1.045 | O55: 15.84669503 | P55: =VLOOKUP(A55,Trends!$A$3:$Q$94,IF(ExFlg=0,6,14))+Sens -> 1.045 | Q55: 14.31844777 | R55: =VLOOKUP(A55,Trends!$A$3:$Q$94,IF(ExFlg=0,8,16))+Sens -> 1.045 | S55: 14.32829368 | T55: =VLOOKUP(A55,Trends!$A$3:$Z$94,IF(ExFlg=0,21,25))+Sens -> 1.045 | U55: 15.65604417 | W55: 63322.80839 | X55: 37391.29937 | Y55: 25931.50901 | AA55: 95409.6334 | AB55: 68551.72618 | AC55: 26857.90722 | AE55: 26549.11091 | AG55: =IF($B55<121,VLOOKUP($B55,Lookups!A:H,8)*(1-VLOOKUP($B55,Lookups!$U$3:$W$103,2))^(B55-$B$3),"") ->  | AH55: =IF($B55<121,VLOOKUP($B55,Lookups!A:I,9)*(1-VLOOKUP($B55,Lookups!$U$3:$W$103,3))^(B55-$B$3),"") -> 
A56: 2073 | B56: 135 | D56: =VLOOKUP(B56,Lookups!A:B,2) -> 4521.32908 | E56: =VLOOKUP(B56,Lookups!A:C,3) -> 2359.564522 | G56: =VLOOKUP(B56,Lookups!A:D,4) -> 6658.82732 | H56: =VLOOKUP(B56,Lookups!A:E,5) -> 4378.610934 | J56: =VLOOKUP(A56,Trends!$A$3:$Q$94,IF(ExFlg=0,2,10))+Sens -> 1.044 | K56: 14.77908724 | L56: =VLOOKUP(A56,Trends!$A$3:$Q$94,IF(ExFlg=0,4,12))+Sens -> 1.044 | M56: 14.63559356 | N56: =VLOOKUP(A56,Trends!$A$3:$Z$94,IF(ExFlg=0,19,23))+Sens -> 1.044 | O56: 16.55979631 | P56: =VLOOKUP(A56,Trends!$A$3:$Q$94,IF(ExFlg=0,6,14))+Sens -> 1.044 | Q56: 14.96277792 | R56: =VLOOKUP(A56,Trends!$A$3:$Q$94,IF(ExFlg=0,8,16))+Sens -> 1.044 | S56: 14.97306689 | T56: =VLOOKUP(A56,Trends!$A$3:$Z$94,IF(ExFlg=0,21,25))+Sens -> 1.044 | U56: 16.36056616 | W56: =IF(B56<65,D56*K56,D56*M56) -> 66172.33477 | X56: 39073.90785 | Y56: 27098.42692 | AA56: 99703.06691 | AB56: 71636.55386 | AC56: 28066.51305 | AE56: 27743.8209 | AG56: =IF($B56<121,VLOOKUP($B56,Lookups!A:H,8)*(1-VLOOKUP($B56,Lookups!$U$3:$W$103,2))^(B56-$B$3),"") ->  | AH56: =IF($B56<121,VLOOKUP($B56,Lookups!A:I,9)*(1-VLOOKUP($B56,Lookups!$U$3:$W$103,3))^(B56-$B$3),"") -> 
A57: 2074 | B57: 136 | D57: =VLOOKUP(B57,Lookups!A:B,2) -> 4521.32908 | E57: =VLOOKUP(B57,Lookups!A:C,3) -> 2359.564522 | G57: =VLOOKUP(B57,Lookups!A:D,4) -> 6658.82732 | H57: =VLOOKUP(B57,Lookups!A:E,5) -> 4378.610934 | J57: =VLOOKUP(A57,Trends!$A$3:$Q$94,IF(ExFlg=0,2,10))+Sens -> 1.044 | K57: 15.42936708 | L57: =VLOOKUP(A57,Trends!$A$3:$Q$94,IF(ExFlg=0,4,12))+Sens -> 1.044 | M57: 15.27955968 | N57: =VLOOKUP(A57,Trends!$A$3:$Z$94,IF(ExFlg=0,19,23))+Sens -> 1.044 | O57: 17.28842734 | P57: =VLOOKUP(A57,Trends!$A$3:$Q$94,IF(ExFlg=0,6,14))+Sens -> 1.044 | Q57: 15.62114015 | R57: =VLOOKUP(A57,Trends!$A$3:$Q$94,IF(ExFlg=0,8,16))+Sens -> 1.044 | S57: 15.63188184 | T57: =VLOOKUP(A57,Trends!$A$3:$Z$94,IF(ExFlg=0,21,25))+Sens -> 1.044 | U57: 17.08043107 | W57: 69083.9175 | X57: 40793.15979 | Y57: 28290.7577 | AA57: 104090.0018 | AB57: 74788.56223 | AC57: 29301.43962 | AE57: 28964.54902 | AG57: =IF($B57<121,VLOOKUP($B57,Lookups!A:H,8)*(1-VLOOKUP($B57,Lookups!$U$3:$W$103,2))^(B57-$B$3),"") ->  | AH57: =IF($B57<121,VLOOKUP($B57,Lookups!A:I,9)*(1-VLOOKUP($B57,Lookups!$U$3:$W$103,3))^(B57-$B$3),"") -> 
A58: 2075 | B58: 137 | D58: =VLOOKUP(B58,Lookups!A:B,2) -> 4521.32908 | E58: =VLOOKUP(B58,Lookups!A:C,3) -> 2359.564522 | G58: =VLOOKUP(B58,Lookups!A:D,4) -> 6658.82732 | H58: =VLOOKUP(B58,Lookups!A:E,5) -> 4378.610934 | J58: =VLOOKUP(A58,Trends!$A$3:$Q$94,IF(ExFlg=0,2,10))+Sens -> 1.044 | K58: 16.10825923 | L58: =VLOOKUP(A58,Trends!$A$3:$Q$94,IF(ExFlg=0,4,12))+Sens -> 1.044 | M58: 15.9518603 | N58: =VLOOKUP(A58,Trends!$A$3:$Z$94,IF(ExFlg=0,19,23))+Sens -> 1.044 | O58: 18.04911815 | P58: =VLOOKUP(A58,Trends!$A$3:$Q$94,IF(ExFlg=0,6,14))+Sens -> 1.044 | Q58: 16.30847032 | R58: =VLOOKUP(A58,Trends!$A$3:$Q$94,IF(ExFlg=0,8,16))+Sens -> 1.044 | S58: 16.31968464 | T58: =VLOOKUP(A58,Trends!$A$3:$Z$94,IF(ExFlg=0,21,25))+Sens -> 1.044 | U58: 17.83197003 | W58: 72123.60987 | X58: 42588.05882 | Y58: 29535.55104 | AA58: 108669.9619 | AB58: 78079.25897 | AC58: 30590.70297 | AE58: 30238.98918 | AG58: =IF($B58<121,VLOOKUP($B58,Lookups!A:H,8)*(1-VLOOKUP($B58,Lookups!$U$3:$W$103,2))^(B58-$B$3),"") ->  | AH58: =IF($B58<121,VLOOKUP($B58,Lookups!A:I,9)*(1-VLOOKUP($B58,Lookups!$U$3:$W$103,3))^(B58-$B$3),"") -> 
A59: 2076 | B59: 138 | D59: =VLOOKUP(B59,Lookups!A:B,2) -> 4521.32908 | E59: =VLOOKUP(B59,Lookups!A:C,3) -> 2359.564522 | G59: =VLOOKUP(B59,Lookups!A:D,4) -> 6658.82732 | H59: =VLOOKUP(B59,Lookups!A:E,5) -> 4378.610934 | J59: =VLOOKUP(A59,Trends!$A$3:$Q$94,IF(ExFlg=0,2,10))+Sens -> 1.044 | K59: 16.81702264 | L59: =VLOOKUP(A59,Trends!$A$3:$Q$94,IF(ExFlg=0,4,12))+Sens -> 1.044 | M59: 16.65374216 | N59: =VLOOKUP(A59,Trends!$A$3:$Z$94,IF(ExFlg=0,19,23))+Sens -> 1.044 | O59: 18.84327934 | P59: =VLOOKUP(A59,Trends!$A$3:$Q$94,IF(ExFlg=0,6,14))+Sens -> 1.044 | Q59: 17.02604301 | R59: =VLOOKUP(A59,Trends!$A$3:$Q$94,IF(ExFlg=0,8,16))+Sens -> 1.044 | S59: 17.03775076 | T59: =VLOOKUP(A59,Trends!$A$3:$Z$94,IF(ExFlg=0,21,25))+Sens -> 1.044 | U59: 18.61657672 | W59: 75297.0487 | X59: 44461.93341 | Y59: 30835.11529 | AA59: 113451.4403 | AB59: 81514.74636 | AC59: 31936.6939 | AE59: 31569.5047 | AG59: =IF($B59<121,VLOOKUP($B59,Lookups!A:H,8)*(1-VLOOKUP($B59,Lookups!$U$3:$W$103,2))^(B59-$B$3),"") ->  | AH59: =IF($B59<121,VLOOKUP($B59,Lookups!A:I,9)*(1-VLOOKUP($B59,Lookups!$U$3:$W$103,3))^(B59-$B$3),"") -> 
A60: 2077 | B60: 139 | D60: =VLOOKUP(B60,Lookups!A:B,2) -> 4521.32908 | E60: =VLOOKUP(B60,Lookups!A:C,3) -> 2359.564522 | G60: =VLOOKUP(B60,Lookups!A:D,4) -> 6658.82732 | H60: =VLOOKUP(B60,Lookups!A:E,5) -> 4378.610934 | J60: =VLOOKUP(A60,Trends!$A$3:$Q$94,IF(ExFlg=0,2,10))+Sens -> 1.044 | K60: 17.55697164 | L60: =VLOOKUP(A60,Trends!$A$3:$Q$94,IF(ExFlg=0,4,12))+Sens -> 1.044 | M60: 17.38650681 | N60: =VLOOKUP(A60,Trends!$A$3:$Z$94,IF(ExFlg=0,19,23))+Sens -> 1.044 | O60: 19.67238364 | P60: =VLOOKUP(A60,Trends!$A$3:$Q$94,IF(ExFlg=0,6,14))+Sens -> 1.044 | Q60: 17.77518891 | R60: =VLOOKUP(A60,Trends!$A$3:$Q$94,IF(ExFlg=0,8,16))+Sens -> 1.044 | S60: 17.7874118 | T60: =VLOOKUP(A60,Trends!$A$3:$Z$94,IF(ExFlg=0,21,25))+Sens -> 1.044 | U60: 19.43570609 | W60: 78610.11884 | X60: 46418.25848 | Y60: 32191.86036 | AA60: 118443.3036 | AB60: 85101.3952 | AC60: 33341.90843 | AE60: 32958.56291 | AG60: =IF($B60<121,VLOOKUP($B60,Lookups!A:H,8)*(1-VLOOKUP($B60,Lookups!$U$3:$W$103,2))^(B60-$B$3),"") ->  | AH60: =IF($B60<121,VLOOKUP($B60,Lookups!A:I,9)*(1-VLOOKUP($B60,Lookups!$U$3:$W$103,3))^(B60-$B$3),"") -> 
